Workbook

Sheet Index
A1: =Inputs!$D$6&" - Introduction and Index" -> Força Açoreana, S.A.: Azores Photovoltaic Energy Venture - Introduction and Index
B4: Overview | I4: Worksheet Navigation
B6: Project Name: | D6: Azores Photovoltaic Energy Venture | J6: Inputs | L6: Inputs | P6: Summary | R6: Project Summary Information | S6: Calculations | U6: Production Calculations
B7: Project Developer: | D7: Força Açoreana, S.A. | L7: General | R7: Key Project Information | U7: Electricity Production
B8: Location: | D8: =Inputs!D7 -> Vila do Porto, Santa Maria, Azores | L8: Timing | R8: Sources and Uses
B9: Projections by: | D9: R. Bercuvitz | F9: rbercuvitz@bell.net | L9: Electricity Production | R9: Financial Metrics
L10: Revenues | R10: Key Dates
L11: Capital Expenses Monthly Breakdown | R11: Error Checks | S11: Calculations | U11: Debt
L12: Reserve Accounts | R12: Summary Financials | U12: Subordinated Debt
L13: Financing | R13: Project Spend Curve (chart) | U13: Senior Debt
L14: Depreciation and Tax | R14: Debt Service Coverage (chart) | U14: Amortization Table
R15: Senior Debt Amortization (chart) | U15: Debt Covenants
R16: Equity Cash Flow (chart)
L17: Cell Style Guide | U17: Equity
J18: 1234 | L18: Input (project-specific) | P18: Timeline | R18: Project Timeline | U18: Equity Drawdown Detail
J19: 1234 | L19: Input reference from another sheet | R19: Timeline | U19: Dividend Detail
J20: 1234 | L20: Calculation | U20: IRR Calculation
J21: 1234 | L21: Sum or Max Reference Calculation | P21: AFS | R21: Annual Financial Statements
J22: OK | L22: Positive Error Check Result | R22: Income Statement | U22: Startup Costs
J23: NO | L23: Negative Error Check Result | R23: Balance Sheet | U23: Startup Costs
R24: Cash Flow Statement
R25: Cash Waterfall | U25: Capital Expenses
U26: Capital Expense Detail & Assumptions
P27: QFS | R27: Quarterly Financial Statements | U27: Construction Labor
R28: Income Statement
R29: Balance Sheet | U29: Revenues
R30: Cash Flow Statement | U30: Revenue Calculations (Electricity)
R31: Cash Waterfall
U32: Operating Expenses
P33: MFS | R33: Monthly Financial Statements | U33: Operating Expenses
R34: Income Statement | U34: Payroll and Staffing
R35: Balance Sheet | U35: Monthly Expenses
R36: Cash Flow Statement
R37: Cash Waterfall | U37: Other Calculations
U38: Flags and Timing
U39: Indexation Factors
U40: Uses of Funds
U41: Sources of Funds
U42: Working Capital
U43: Depreciation
U44: Taxes
U45: Retained Earnings

Sheet AFS
A1: =Inputs!$D$6&" - Annual Financial Statements" -> Força Açoreana, S.A.: Azores Photovoltaic Energy Venture - Annual Financial Statements
C2: Year | D2: 2028-2045 | E2: 2045-2053 | H2: 2028-2053 | I2: =YEAR(I3) -> 2026 | J2: =YEAR(J3) -> 2027 | K2: 2028 | L2: 2029 | M2: 2030 | N2: 2031 | O2: 2032 | P2: 2033 | Q2: 2034 | R2: 2035 | S2: 2036 | T2: 2037 | U2: 2038 | V2: 2039 | W2: 2040 | X2: 2041 | Y2: 2042 | Z2: 2043 | AA2: 2044 | AB2: 2045 | AC2: 2046 | AD2: 2047 | AE2: 2048 | AF2: 2049 | AG2: 2050 | AH2: 2051 | AI2: 2052 | AJ2: 2053
C3: Period End | D3: 17.5 Years | E3: 7.5 Years | H3: 2053-06-30 | I3: 2026-12-31 | J3: =I3+365 -> 2027-12-31 | K3: =J3+365 -> 2028-12-30 | L3: =K3+366 -> 2029-12-31 | M3: =L3+365 -> 2030-12-31 | N3: 2031-12-31 | O3: 2032-12-30 | P3: =O3+366 -> 2033-12-31 | Q3: 2034-12-31 | R3: 2035-12-31 | S3: 2036-12-30 | T3: =S3+366 -> 2037-12-31 | U3: 2038-12-31 | V3: 2039-12-31 | W3: 2040-12-30 | X3: =W3+366 -> 2041-12-31 | Y3: 2042-12-31 | Z3: 2043-12-31 | AA3: 2044-12-30 | AB3: =AA3+366 -> 2045-12-31 | AC3: 2046-12-31 | AD3: 2047-12-31 | AE3: 2048-12-30 | AF3: =AE3+366 -> 2049-12-31 | AG3: 2050-12-31 | AH3: 2051-12-31 | AI3: 2052-12-30 | AJ3: =AI3+182 -> 2053-06-30
A4: · | B4: Income Statement | F4: Unit
A5: =Summary!$C$49 -> OK
C6: =Calculations!C351 -> Revenues | H6: Project Lifetime
C7: Electricity Produced | D7: =SUM(K7:AA7)+AB7/2 -> 56763778.36 | E7: =H7-D7 -> 23551956.53 | F7: Kwh | H7: =SUM(I7:AT7) -> 80315734.89 | I7: =SUMIF(Calculations!$I$8:$QJ$8, I$2, Calculations!$I210:$QJ210) -> 0 | J7: =SUMIF(Calculations!$I$8:$QJ$8, J$2, Calculations!$I210:$QJ210) -> 0 | K7: =SUMIF(Calculations!$I$8:$QJ$8, K$2, Calculations!$I215:$QJ215) -> 1798375.253 | L7: =SUMIF(Calculations!$I$8:$QJ$8, L$2, Calculations!$I215:$QJ215) -> 3593032.233 | M7: =SUMIF(Calculations!$I$8:$QJ$8, M$2, Calculations!$I215:$QJ215) -> 3560381.777 | N7: =SUMIF(Calculations!$I$8:$QJ$8, N$2, Calculations!$I215:$QJ215) -> 3524940.691 | O7: =SUMIF(Calculations!$I$8:$QJ$8, O$2, Calculations!$I215:$QJ215) -> 3489852.396 | P7: =SUMIF(Calculations!$I$8:$QJ$8, P$2, Calculations!$I215:$QJ215) -> 3455113.38 | Q7: =SUMIF(Calculations!$I$8:$QJ$8, Q$2, Calculations!$I215:$QJ215) -> 3420720.167 | R7: =SUMIF(Calculations!$I$8:$QJ$8, R$2, Calculations!$I215:$QJ215) -> 3386669.314 | S7: =SUMIF(Calculations!$I$8:$QJ$8, S$2, Calculations!$I215:$QJ215) -> 3352957.412 | T7: =SUMIF(Calculations!$I$8:$QJ$8, T$2, Calculations!$I215:$QJ215) -> 3319581.089 | U7: =SUMIF(Calculations!$I$8:$QJ$8, U$2, Calculations!$I215:$QJ215) -> 3286537.004 | V7: =SUMIF(Calculations!$I$8:$QJ$8, V$2, Calculations!$I215:$QJ215) -> 3253821.849 | W7: =SUMIF(Calculations!$I$8:$QJ$8, W$2, Calculations!$I215:$QJ215) -> 3221432.351 | X7: =SUMIF(Calculations!$I$8:$QJ$8, X$2, Calculations!$I215:$QJ215) -> 3189365.267 | Y7: =SUMIF(Calculations!$I$8:$QJ$8, Y$2, Calculations!$I215:$QJ215) -> 3157617.388 | Z7: =SUMIF(Calculations!$I$8:$QJ$8, Z$2, Calculations!$I215:$QJ215) -> 3126185.537 | AA7: =SUMIF(Calculations!$I$8:$QJ$8, AA$2, Calculations!$I215:$QJ215) -> 3095066.568 | AB7: =SUMIF(Calculations!$I$8:$QJ$8, AB$2, Calculations!$I215:$QJ215) -> 3064257.366 | AC7: =SUMIF(Calculations!$I$8:$QJ$8, AC$2, Calculations!$I215:$QJ215) -> 3033754.848 | AD7: =SUMIF(Calculations!$I$8:$QJ$8, AD$2, Calculations!$I215:$QJ215) -> 3003555.962 | AE7: =SUMIF(Calculations!$I$8:$QJ$8, AE$2, Calculations!$I215:$QJ215) -> 2973657.683 | AF7: =SUMIF(Calculations!$I$8:$QJ$8, AF$2, Calculations!$I215:$QJ215) -> 2944057.021 | AG7: =SUMIF(Calculations!$I$8:$QJ$8, AG$2, Calculations!$I215:$QJ215) -> 2914751.013 | AH7: =SUMIF(Calculations!$I$8:$QJ$8, AH$2, Calculations!$I215:$QJ215) -> 2885736.725 | AI7: =SUMIF(Calculations!$I$8:$QJ$8, AI$2, Calculations!$I215:$QJ215) -> 2857011.254 | AJ7: =SUMIF(Calculations!$I$8:$QJ$8, AJ$2, Calculations!$I215:$QJ215) -> 1407303.342
C8: Electricity Sold | D8: =SUM(K8:AA8)+AB8/2 -> 61254156.12 | E8: =H8-D8 -> 27117335.1 | F8: Kwh | H8: =SUM(I8:AT8) -> 88371491.22 | I8: =SUMIF(Calculations!$I$8:$QJ$8, I$2, Calculations!$I215:$QJ215) -> 0 | J8: =SUMIF(Calculations!$I$8:$QJ$8, J$2, Calculations!$I215:$QJ215) -> 0 | K8: =SUMIF(Calculations!$I$8:$QJ$8, K$2, Calculations!$I218:$QJ218)+SUMIF(Calculations!$I$8:$QJ$8, K$2, Calculations!$I225:$QJ225) -> 2035539.615 | L8: =SUMIF(Calculations!$I$8:$QJ$8, L$2, Calculations!$I218:$QJ218)+SUMIF(Calculations!$I$8:$QJ$8, L$2, Calculations!$I225:$QJ225) -> 3610732.192 | M8: =SUMIF(Calculations!$I$8:$QJ$8, M$2, Calculations!$I218:$QJ218)+SUMIF(Calculations!$I$8:$QJ$8, M$2, Calculations!$I225:$QJ225) -> 3623320.999 | N8: =SUMIF(Calculations!$I$8:$QJ$8, N$2, Calculations!$I218:$QJ218)+SUMIF(Calculations!$I$8:$QJ$8, N$2, Calculations!$I225:$QJ225) -> 3632511.762 | O8: =SUMIF(Calculations!$I$8:$QJ$8, O$2, Calculations!$I218:$QJ218)+SUMIF(Calculations!$I$8:$QJ$8, O$2, Calculations!$I225:$QJ225) -> 3643681.018 | P8: =SUMIF(Calculations!$I$8:$QJ$8, P$2, Calculations!$I218:$QJ218)+SUMIF(Calculations!$I$8:$QJ$8, P$2, Calculations!$I225:$QJ225) -> 3647459.692 | Q8: =SUMIF(Calculations!$I$8:$QJ$8, Q$2, Calculations!$I218:$QJ218)+SUMIF(Calculations!$I$8:$QJ$8, Q$2, Calculations!$I225:$QJ225) -> 3639140.298 | R8: =SUMIF(Calculations!$I$8:$QJ$8, R$2, Calculations!$I218:$QJ218)+SUMIF(Calculations!$I$8:$QJ$8, R$2, Calculations!$I225:$QJ225) -> 3628538.618 | S8: =SUMIF(Calculations!$I$8:$QJ$8, S$2, Calculations!$I218:$QJ218)+SUMIF(Calculations!$I$8:$QJ$8, S$2, Calculations!$I225:$QJ225) -> 3621751.415 | T8: =SUMIF(Calculations!$I$8:$QJ$8, T$2, Calculations!$I218:$QJ218)+SUMIF(Calculations!$I$8:$QJ$8, T$2, Calculations!$I225:$QJ225) -> 3602285.525 | U8: =SUMIF(Calculations!$I$8:$QJ$8, U$2, Calculations!$I218:$QJ218)+SUMIF(Calculations!$I$8:$QJ$8, U$2, Calculations!$I225:$QJ225) -> 3587439.486 | V8: =SUMIF(Calculations!$I$8:$QJ$8, V$2, Calculations!$I218:$QJ218)+SUMIF(Calculations!$I$8:$QJ$8, V$2, Calculations!$I225:$QJ225) -> 3572966.767 | W8: =SUMIF(Calculations!$I$8:$QJ$8, W$2, Calculations!$I218:$QJ218)+SUMIF(Calculations!$I$8:$QJ$8, W$2, Calculations!$I225:$QJ225) -> 3560926.838 | X8: =SUMIF(Calculations!$I$8:$QJ$8, X$2, Calculations!$I218:$QJ218)+SUMIF(Calculations!$I$8:$QJ$8, X$2, Calculations!$I225:$QJ225) -> 3545135.483 | Y8: =SUMIF(Calculations!$I$8:$QJ$8, Y$2, Calculations!$I218:$QJ218)+SUMIF(Calculations!$I$8:$QJ$8, Y$2, Calculations!$I225:$QJ225) -> 3531774.107 | Z8: =SUMIF(Calculations!$I$8:$QJ$8, Z$2, Calculations!$I218:$QJ218)+SUMIF(Calculations!$I$8:$QJ$8, Z$2, Calculations!$I225:$QJ225) -> 3518780.43 | AA8: =SUMIF(Calculations!$I$8:$QJ$8, AA$2, Calculations!$I218:$QJ218)+SUMIF(Calculations!$I$8:$QJ$8, AA$2, Calculations!$I225:$QJ225) -> 3508121.116 | AB8: =SUMIF(Calculations!$I$8:$QJ$8, AB$2, Calculations!$I218:$QJ218)+SUMIF(Calculations!$I$8:$QJ$8, AB$2, Calculations!$I225:$QJ225) -> 3488101.521 | AC8: =SUMIF(Calculations!$I$8:$QJ$8, AC$2, Calculations!$I218:$QJ218)+SUMIF(Calculations!$I$8:$QJ$8, AC$2, Calculations!$I225:$QJ225) -> 3467244.21 | AD8: =SUMIF(Calculations!$I$8:$QJ$8, AD$2, Calculations!$I218:$QJ218)+SUMIF(Calculations!$I$8:$QJ$8, AD$2, Calculations!$I225:$QJ225) -> 3444605.239 | AE8: =SUMIF(Calculations!$I$8:$QJ$8, AE$2, Calculations!$I218:$QJ218)+SUMIF(Calculations!$I$8:$QJ$8, AE$2, Calculations!$I225:$QJ225) -> 3424206.912 | AF8: =SUMIF(Calculations!$I$8:$QJ$8, AF$2, Calculations!$I218:$QJ218)+SUMIF(Calculations!$I$8:$QJ$8, AF$2, Calculations!$I225:$QJ225) -> 3399618.385 | AG8: =SUMIF(Calculations!$I$8:$QJ$8, AG$2, Calculations!$I218:$QJ218)+SUMIF(Calculations!$I$8:$QJ$8, AG$2, Calculations!$I225:$QJ225) -> 3374977.192 | AH8: =SUMIF(Calculations!$I$8:$QJ$8, AH$2, Calculations!$I218:$QJ218)+SUMIF(Calculations!$I$8:$QJ$8, AH$2, Calculations!$I225:$QJ225) -> 3348853.957 | AI8: =SUMIF(Calculations!$I$8:$QJ$8, AI$2, Calculations!$I218:$QJ218)+SUMIF(Calculations!$I$8:$QJ$8, AI$2, Calculations!$I225:$QJ225) -> 3321088.676 | AJ8: =SUMIF(Calculations!$I$8:$QJ$8, AJ$2, Calculations!$I218:$QJ218)+SUMIF(Calculations!$I$8:$QJ$8, AJ$2, Calculations!$I225:$QJ225) -> 1592689.771
C9: Average PPA Price | D9: =(D13-D12)/D8 -> 0.19674 | E9: =(E13-E12)/E8 -> 0.19674 | H9: =(H13-H12)/H8 -> 0.19674 | K9: =(K13-K12)/K8 -> 0.19674 | L9: 0.19674 | M9: 0.19674 | N9: 0.19674 | O9: 0.19674 | P9: 0.19674 | Q9: 0.19674 | R9: 0.19674 | S9: 0.19674 | T9: 0.19674 | U9: 0.19674 | V9: 0.19674 | W9: 0.19674 | X9: 0.19674 | Y9: 0.19674 | Z9: 0.19674 | AA9: 0.19674 | AB9: 0.19674 | AC9: 0.19674 | AD9: 0.19674 | AE9: 0.19674 | AF9: 0.19674 | AG9: 0.19674 | AH9: 0.19674 | AI9: 0.19674 | AJ9: 0.19674
C10: =Calculations!C352 -> Production Sold | D10: =SUM(K10:AA10)+AB10/2 -> 9320142.685 | E10: =H10-D10 -> 4248955.643 | F10: EUR | H10: =SUM(I10:AT10) -> 13569098.33 | I10: =SUMIF(Calculations!$I$8:$QJ$8, I$2, Calculations!$I352:$QJ352) -> 0 | J10: =SUMIF(Calculations!$I$8:$QJ$8, J$2, Calculations!$I352:$QJ352) -> 0 | K10: =SUMIF(Calculations!$I$8:$QJ$8, K$2, Calculations!$I229:$QJ229) -> 313006.0958 | L10: =SUMIF(Calculations!$I$8:$QJ$8, L$2, Calculations!$I229:$QJ229) -> 532606.4889 | M10: =SUMIF(Calculations!$I$8:$QJ$8, M$2, Calculations!$I229:$QJ229) -> 537432.6781 | N10: =SUMIF(Calculations!$I$8:$QJ$8, N$2, Calculations!$I229:$QJ229) -> 541985.8853 | O10: =SUMIF(Calculations!$I$8:$QJ$8, O$2, Calculations!$I229:$QJ229) -> 546097.9438 | P10: =SUMIF(Calculations!$I$8:$QJ$8, P$2, Calculations!$I229:$QJ229) -> 549583.7719 | Q10: =SUMIF(Calculations!$I$8:$QJ$8, Q$2, Calculations!$I229:$QJ229) -> 550035.7698 | R10: =SUMIF(Calculations!$I$8:$QJ$8, R$2, Calculations!$I229:$QJ229) -> 550439.1787 | S10: =SUMIF(Calculations!$I$8:$QJ$8, S$2, Calculations!$I229:$QJ229) -> 550788.9034 | T10: =SUMIF(Calculations!$I$8:$QJ$8, T$2, Calculations!$I229:$QJ229) -> 549835.4952 | U10: =SUMIF(Calculations!$I$8:$QJ$8, U$2, Calculations!$I229:$QJ229) -> 548937.9183 | V10: =SUMIF(Calculations!$I$8:$QJ$8, V$2, Calculations!$I229:$QJ229) -> 548096.0803 | W10: =SUMIF(Calculations!$I$8:$QJ$8, W$2, Calculations!$I229:$QJ229) -> 547309.8945 | X10: =SUMIF(Calculations!$I$8:$QJ$8, X$2, Calculations!$I229:$QJ229) -> 546579.2795 | Y10: =SUMIF(Calculations!$I$8:$QJ$8, Y$2, Calculations!$I229:$QJ229) -> 545904.1597 | Z10: =SUMIF(Calculations!$I$8:$QJ$8, Z$2, Calculations!$I229:$QJ229) -> 545284.4648 | AA10: =SUMIF(Calculations!$I$8:$QJ$8, AA$2, Calculations!$I229:$QJ229) -> 544720.1302 | AB10: =SUMIF(Calculations!$I$8:$QJ$8, AB$2, Calculations!$I229:$QJ229) -> 542997.0942 | AC10: =SUMIF(Calculations!$I$8:$QJ$8, AC$2, Calculations!$I229:$QJ229) -> 541230.134 | AD10: =SUMIF(Calculations!$I$8:$QJ$8, AD$2, Calculations!$I229:$QJ229) -> 538567.8712 | AE10: =SUMIF(Calculations!$I$8:$QJ$8, AE$2, Calculations!$I229:$QJ229) -> 535960.7573 | AF10: =SUMIF(Calculations!$I$8:$QJ$8, AF$2, Calculations!$I229:$QJ229) -> 533242.3283 | AG10: =SUMIF(Calculations!$I$8:$QJ$8, AG$2, Calculations!$I229:$QJ229) -> 530098.5687 | AH10: =SUMIF(Calculations!$I$8:$QJ$8, AH$2, Calculations!$I229:$QJ229) -> 526623.8949 | AI10: =SUMIF(Calculations!$I$8:$QJ$8, AI$2, Calculations!$I229:$QJ229) -> 522409.0043 | AJ10: =SUMIF(Calculations!$I$8:$QJ$8, AJ$2, Calculations!$I229:$QJ229) -> 249324.5376
C11: Storage Sold | D11: 2730999.99 | E11: 1086108.865 | F11: EUR | H11: 3817108.854 | I11: =SUMIF(Calculations!$I$8:$QJ$8, I$2, Calculations!$I353:$QJ353) -> 0 | J11: =SUMIF(Calculations!$I$8:$QJ$8, J$2, Calculations!$I353:$QJ353) -> 0 | K11: =SUMIF(Calculations!$I$8:$QJ$8, K$2, Calculations!$I230:$QJ230) -> 87465.96803 | L11: =SUMIF(Calculations!$I$8:$QJ$8, L$2, Calculations!$I230:$QJ230) -> 177768.9626 | M11: =SUMIF(Calculations!$I$8:$QJ$8, M$2, Calculations!$I230:$QJ230) -> 175419.4952 | N11: =SUMIF(Calculations!$I$8:$QJ$8, N$2, Calculations!$I230:$QJ230) -> 172674.4788 | O11: =SUMIF(Calculations!$I$8:$QJ$8, O$2, Calculations!$I230:$QJ230) -> 170759.8596 | P11: =SUMIF(Calculations!$I$8:$QJ$8, P$2, Calculations!$I230:$QJ230) -> 168017.4479 | Q11: =SUMIF(Calculations!$I$8:$QJ$8, Q$2, Calculations!$I230:$QJ230) -> 165928.6924 | R11: =SUMIF(Calculations!$I$8:$QJ$8, R$2, Calculations!$I230:$QJ230) -> 163439.509 | S11: =SUMIF(Calculations!$I$8:$QJ$8, S$2, Calculations!$I230:$QJ230) -> 161754.4699 | T11: =SUMIF(Calculations!$I$8:$QJ$8, T$2, Calculations!$I230:$QJ230) -> 158878.159 | U11: =SUMIF(Calculations!$I$8:$QJ$8, U$2, Calculations!$I230:$QJ230) -> 156854.9262 | V11: =SUMIF(Calculations!$I$8:$QJ$8, V$2, Calculations!$I230:$QJ230) -> 154849.4015 | W11: =SUMIF(Calculations!$I$8:$QJ$8, W$2, Calculations!$I230:$QJ230) -> 153266.8516 | X11: =SUMIF(Calculations!$I$8:$QJ$8, X$2, Calculations!$I230:$QJ230) -> 150890.6754 | Y11: =SUMIF(Calculations!$I$8:$QJ$8, Y$2, Calculations!$I230:$QJ230) -> 148937.0781 | Z11: =SUMIF(Calculations!$I$8:$QJ$8, Z$2, Calculations!$I230:$QJ230) -> 147000.3969 | AA11: =SUMIF(Calculations!$I$8:$QJ$8, AA$2, Calculations!$I230:$QJ230) -> 145467.6181 | AB11: =SUMIF(Calculations!$I$8:$QJ$8, AB$2, Calculations!$I230:$QJ230) -> 143251.9991 | AC11: =SUMIF(Calculations!$I$8:$QJ$8, AC$2, Calculations!$I230:$QJ230) -> 140915.4919 | AD11: =SUMIF(Calculations!$I$8:$QJ$8, AD$2, Calculations!$I230:$QJ230) -> 139123.7635 | AE11: =SUMIF(Calculations!$I$8:$QJ$8, AE$2, Calculations!$I230:$QJ230) -> 137717.7106 | AF11: =SUMIF(Calculations!$I$8:$QJ$8, AF$2, Calculations!$I230:$QJ230) -> 135598.5927 | AG11: =SUMIF(Calculations!$I$8:$QJ$8, AG$2, Calculations!$I230:$QJ230) -> 133894.444 | AH11: =SUMIF(Calculations!$I$8:$QJ$8, AH$2, Calculations!$I230:$QJ230) -> 132229.6326 | AI11: =SUMIF(Calculations!$I$8:$QJ$8, AI$2, Calculations!$I230:$QJ230) -> 130981.9819 | AJ11: =SUMIF(Calculations!$I$8:$QJ$8, AJ$2, Calculations!$I230:$QJ230) -> 64021.24795
E12: 0
C13: Gross Revenues | D13: 12051142.68 | E13: 5335064.508 | F13: =Calculations!E355 -> EUR | H13: 17386207.18 | I13: =I10+I11+I12 -> 0 | J13: 0 | K13: 400472.0638 | L13: 710375.4515 | M13: 712852.1733 | N13: 714660.3641 | O13: 716857.8034 | P13: 717601.2199 | Q13: 715964.4622 | R13: 713878.6877 | S13: 712543.3733 | T13: 708713.6542 | U13: 705792.8446 | V13: 702945.4818 | W13: 700576.7461 | X13: 697469.9549 | Y13: 694841.2378 | Z13: 692284.8617 | AA13: 690187.7483 | AB13: 686249.0933 | AC13: 682145.6259 | AD13: 677691.6347 | AE13: 673678.4679 | AF13: 668840.921 | AG13: 663993.0127 | AH13: 658853.5275 | AI13: 653390.9862 | AJ13: 313345.7855
C14: less: Cost of Goods Sold | D14: -1365539.909 | E14: =H14-D14 -> -769492.3843 | F14: =Calculations!E355 -> EUR | H14: =SUM(I14:AT14) -> -2135032.293 | I14: =SUMIF(Calculations!$I$8:$QJ$8, I$2, Calculations!$I231:$QJ232) -> 0 | J14: =SUMIF(Calculations!$I$8:$QJ$8, J$2, Calculations!$I231:$QJ232) -> 0 | K14: =SUMIF(Calculations!$I$8:$QJ$8, K$2, Calculations!$I354:$QJ354) -> -52497.56532 | L14: =SUMIF(Calculations!$I$8:$QJ$8, L$2, Calculations!$I354:$QJ354) -> -58138.1832 | M14: =SUMIF(Calculations!$I$8:$QJ$8, M$2, Calculations!$I354:$QJ354) -> -62076.33542 | N14: =SUMIF(Calculations!$I$8:$QJ$8, N$2, Calculations!$I354:$QJ354) -> -66224.03098 | O14: =SUMIF(Calculations!$I$8:$QJ$8, O$2, Calculations!$I354:$QJ354) -> -70974.25275 | P14: =SUMIF(Calculations!$I$8:$QJ$8, P$2, Calculations!$I354:$QJ354) -> -74447.02549 | Q14: =SUMIF(Calculations!$I$8:$QJ$8, Q$2, Calculations!$I354:$QJ354) -> -76304.01585 | R14: =SUMIF(Calculations!$I$8:$QJ$8, R$2, Calculations!$I354:$QJ354) -> -77770.56496 | S14: =SUMIF(Calculations!$I$8:$QJ$8, S$2, Calculations!$I354:$QJ354) -> -80531.01117 | T14: =SUMIF(Calculations!$I$8:$QJ$8, T$2, Calculations!$I354:$QJ354) -> -81265.75555 | U14: =SUMIF(Calculations!$I$8:$QJ$8, U$2, Calculations!$I354:$QJ354) -> -82978.88772 | V14: =SUMIF(Calculations!$I$8:$QJ$8, V$2, Calculations!$I354:$QJ354) -> -84700.9779 | W14: =SUMIF(Calculations!$I$8:$QJ$8, W$2, Calculations!$I354:$QJ354) -> -86817.26728 | X14: =SUMIF(Calculations!$I$8:$QJ$8, X$2, Calculations!$I354:$QJ354) -> -88172.71698 | Y14: =SUMIF(Calculations!$I$8:$QJ$8, Y$2, Calculations!$I354:$QJ354) -> -89922.71047 | Z14: =SUMIF(Calculations!$I$8:$QJ$8, Z$2, Calculations!$I354:$QJ354) -> -91682.3512 | AA14: =SUMIF(Calculations!$I$8:$QJ$8, AA$2, Calculations!$I354:$QJ354) -> -93821.6637 | AB14: =SUMIF(Calculations!$I$8:$QJ$8, AB$2, Calculations!$I354:$QJ354) -> -94429.18582 | AC14: =SUMIF(Calculations!$I$8:$QJ$8, AC$2, Calculations!$I354:$QJ354) -> -95042.89645 | AD14: =SUMIF(Calculations!$I$8:$QJ$8, AD$2, Calculations!$I354:$QJ354) -> -95886.72547 | AE14: =SUMIF(Calculations!$I$8:$QJ$8, AE$2, Calculations!$I354:$QJ354) -> -97096.30904 | AF14: =SUMIF(Calculations!$I$8:$QJ$8, AF$2, Calculations!$I354:$QJ354) -> -97496.24285 | AG14: =SUMIF(Calculations!$I$8:$QJ$8, AG$2, Calculations!$I354:$QJ354) -> -97944.99298 | AH14: =SUMIF(Calculations!$I$8:$QJ$8, AH$2, Calculations!$I354:$QJ354) -> -98149.96629 | AI14: =SUMIF(Calculations!$I$8:$QJ$8, AI$2, Calculations!$I354:$QJ354) -> -98182.16475 | AJ14: =SUMIF(Calculations!$I$8:$QJ$8, AJ$2, Calculations!$I354:$QJ354) -> -42478.49356
C15: =Calculations!C356 -> less: Operating Expenses | D15: -3632816.883 | E15: -2087999.527 | F15: =Calculations!E356 -> EUR | H15: -5720816.41 | I15: =SUMIF(Calculations!$I$8:$QJ$8, I$2, Calculations!$I356:$QJ356) -> 0 | J15: =SUMIF(Calculations!$I$8:$QJ$8, J$2, Calculations!$I356:$QJ356) -> 0 | K15: =SUMIF(Calculations!$I$8:$QJ$8, K$2, Calculations!$I356:$QJ356) -> -113975.6911 | L15: =SUMIF(Calculations!$I$8:$QJ$8, L$2, Calculations!$I356:$QJ356) -> -201532.7022 | M15: =SUMIF(Calculations!$I$8:$QJ$8, M$2, Calculations!$I356:$QJ356) -> -205434.8904 | N15: =SUMIF(Calculations!$I$8:$QJ$8, N$2, Calculations!$I356:$QJ356) -> -206342.8026 | O15: =SUMIF(Calculations!$I$8:$QJ$8, O$2, Calculations!$I356:$QJ356) -> -208851.7849 | P15: =SUMIF(Calculations!$I$8:$QJ$8, P$2, Calculations!$I356:$QJ356) -> -209718.7637 | Q15: =SUMIF(Calculations!$I$8:$QJ$8, Q$2, Calculations!$I356:$QJ356) -> -210676.9986 | R15: =SUMIF(Calculations!$I$8:$QJ$8, R$2, Calculations!$I356:$QJ356) -> -211659.7648 | S15: =SUMIF(Calculations!$I$8:$QJ$8, S$2, Calculations!$I356:$QJ356) -> -212739.4757 | T15: =SUMIF(Calculations!$I$8:$QJ$8, T$2, Calculations!$I356:$QJ356) -> -213673.8802 | U15: =SUMIF(Calculations!$I$8:$QJ$8, U$2, Calculations!$I356:$QJ356) -> -214716.0423 | V15: =SUMIF(Calculations!$I$8:$QJ$8, V$2, Calculations!$I356:$QJ356) -> -215787.8653 | W15: =SUMIF(Calculations!$I$8:$QJ$8, W$2, Calculations!$I356:$QJ356) -> -216971.9252 | X15: =SUMIF(Calculations!$I$8:$QJ$8, X$2, Calculations!$I356:$QJ356) -> -218023.3119 | Y15: =SUMIF(Calculations!$I$8:$QJ$8, Y$2, Calculations!$I356:$QJ356) -> -219188.3897 | Z15: =SUMIF(Calculations!$I$8:$QJ$8, Z$2, Calculations!$I356:$QJ356) -> -220386.0378 | AA15: =SUMIF(Calculations!$I$8:$QJ$8, AA$2, Calculations!$I356:$QJ356) -> -221698.845 | AB15: =SUMIF(Calculations!$I$8:$QJ$8, AB$2, Calculations!$I356:$QJ356) -> -222875.4226 | AC15: =SUMIF(Calculations!$I$8:$QJ$8, AC$2, Calculations!$I356:$QJ356) -> -224163.7726 | AD15: =SUMIF(Calculations!$I$8:$QJ$8, AD$2, Calculations!$I356:$QJ356) -> -225475.077 | AE15: =SUMIF(Calculations!$I$8:$QJ$8, AE$2, Calculations!$I356:$QJ356) -> -226904.7826 | AF15: =SUMIF(Calculations!$I$8:$QJ$8, AF$2, Calculations!$I356:$QJ356) -> -228207.5745 | AG15: =SUMIF(Calculations!$I$8:$QJ$8, AG$2, Calculations!$I356:$QJ356) -> -229627.8763 | AH15: =SUMIF(Calculations!$I$8:$QJ$8, AH$2, Calculations!$I356:$QJ356) -> -231085.3779 | AI15: =SUMIF(Calculations!$I$8:$QJ$8, AI$2, Calculations!$I356:$QJ356) -> -232660.4518 | AJ15: =SUMIF(Calculations!$I$8:$QJ$8, AJ$2, Calculations!$I356:$QJ356) -> -378436.9033
C16: =Calculations!C357 -> EBITDA | D16: 7052785.883 | E16: 2477572.596 | F16: =Calculations!E357 -> EUR | H16: 9530358.48 | I16: =SUM(I13:I15) -> 0 | J16: 0 | K16: 233998.8074 | L16: 450704.5661 | M16: 445340.9475 | N16: 442093.5305 | O16: 437031.7657 | P16: 433435.4307 | Q16: 428983.4477 | R16: 424448.3579 | S16: 419272.8865 | T16: 413774.0185 | U16: 408097.9145 | V16: 402456.6386 | W16: 396787.5536 | X16: 391273.926 | Y16: 385730.1376 | Z16: 380216.4727 | AA16: 374667.2396 | AB16: 368944.4849 | AC16: 362938.9569 | AD16: 356329.8322 | AE16: 349677.3763 | AF16: 343137.1036 | AG16: 336420.1434 | AH16: 329618.1834 | AI16: 322548.3696 | AJ16: =SUM(AJ13:AJ15) -> -107569.6113
D17: 0 | E17: 0
C18: =Calculations!C359 -> less: Depreciation and Amortization | D18: -3771892.871 | E18: -737465.7142 | F18: =Calculations!E359 -> EUR | H18: =SUM(I18:AT18) -> -4509358.585 | I18: =SUMIF(Calculations!$I$8:$QJ$8, I$2, Calculations!$I359:$QJ359) -> 0 | J18: =SUMIF(Calculations!$I$8:$QJ$8, J$2, Calculations!$I359:$QJ359) -> 0 | K18: =SUMIF(Calculations!$I$8:$QJ$8, K$2, Calculations!$I359:$QJ359) -> -179171.9185 | L18: =SUMIF(Calculations!$I$8:$QJ$8, L$2, Calculations!$I359:$QJ359) -> -358343.837 | M18: =SUMIF(Calculations!$I$8:$QJ$8, M$2, Calculations!$I359:$QJ359) -> -358343.837 | N18: =SUMIF(Calculations!$I$8:$QJ$8, N$2, Calculations!$I359:$QJ359) -> -358343.837 | O18: =SUMIF(Calculations!$I$8:$QJ$8, O$2, Calculations!$I359:$QJ359) -> -358343.837 | P18: =SUMIF(Calculations!$I$8:$QJ$8, P$2, Calculations!$I359:$QJ359) -> -342293.837 | Q18: =SUMIF(Calculations!$I$8:$QJ$8, Q$2, Calculations!$I359:$QJ359) -> -326243.837 | R18: =SUMIF(Calculations!$I$8:$QJ$8, R$2, Calculations!$I359:$QJ359) -> -267425.7824 | S18: =SUMIF(Calculations!$I$8:$QJ$8, S$2, Calculations!$I359:$QJ359) -> -208607.7279 | T18: =SUMIF(Calculations!$I$8:$QJ$8, T$2, Calculations!$I359:$QJ359) -> -208607.7279 | U18: =SUMIF(Calculations!$I$8:$QJ$8, U$2, Calculations!$I359:$QJ359) -> -161689.299 | V18: =SUMIF(Calculations!$I$8:$QJ$8, V$2, Calculations!$I359:$QJ359) -> -115210.8701 | W18: =SUMIF(Calculations!$I$8:$QJ$8, W$2, Calculations!$I359:$QJ359) -> -115210.8701 | X18: =SUMIF(Calculations!$I$8:$QJ$8, X$2, Calculations!$I359:$QJ359) -> -92012.36728 | Y18: =SUMIF(Calculations!$I$8:$QJ$8, Y$2, Calculations!$I359:$QJ359) -> -92012.36728 | Z18: =SUMIF(Calculations!$I$8:$QJ$8, Z$2, Calculations!$I359:$QJ359) -> -92012.36728 | AA18: =SUMIF(Calculations!$I$8:$QJ$8, AA$2, Calculations!$I359:$QJ359) -> -92012.36728 | AB18: =SUMIF(Calculations!$I$8:$QJ$8, AB$2, Calculations!$I359:$QJ359) -> -92012.36728 | AC18: =SUMIF(Calculations!$I$8:$QJ$8, AC$2, Calculations!$I359:$QJ359) -> -92194.60407 | AD18: =SUMIF(Calculations!$I$8:$QJ$8, AD$2, Calculations!$I359:$QJ359) -> -92194.60407 | AE18: =SUMIF(Calculations!$I$8:$QJ$8, AE$2, Calculations!$I359:$QJ359) -> -92194.60407 | AF18: =SUMIF(Calculations!$I$8:$QJ$8, AF$2, Calculations!$I359:$QJ359) -> -92194.60407 | AG18: =SUMIF(Calculations!$I$8:$QJ$8, AG$2, Calculations!$I359:$QJ359) -> -92194.60407 | AH18: =SUMIF(Calculations!$I$8:$QJ$8, AH$2, Calculations!$I359:$QJ359) -> -92194.60407 | AI18: =SUMIF(Calculations!$I$8:$QJ$8, AI$2, Calculations!$I359:$QJ359) -> -92194.60407 | AJ18: =SUMIF(Calculations!$I$8:$QJ$8, AJ$2, Calculations!$I359:$QJ359) -> -46097.30204
C19: =Calculations!C360 -> EBIT | D19: 3280893.013 | E19: 1740106.882 | F19: =Calculations!E360 -> EUR | H19: =SUM(I19:AT19) -> 5020999.895 | I19: =I16+I18 -> 0 | J19: =J16+J18 -> 0 | K19: 54826.88887 | L19: 92360.72907 | M19: 86997.11045 | N19: 83749.69352 | O19: 78687.92874 | P19: 91141.59369 | Q19: 102739.6107 | R19: 157022.5755 | S19: 210665.1586 | T19: 205166.2906 | U19: 246408.6155 | V19: 287245.7685 | W19: 281576.6835 | X19: 299261.5588 | Y19: 293717.7703 | Z19: 288204.1055 | AA19: 282654.8723 | AB19: 276932.1176 | AC19: 270744.3528 | AD19: 264135.2281 | AE19: 257482.7722 | AF19: 250942.4996 | AG19: 244225.5394 | AH19: 237423.5793 | AI19: 230353.7655 | AJ19: =AJ16+AJ18 -> -153666.9134
D20: 0 | E20: 0
C21: =Calculations!C362 -> less: Senior Debt Interest Expense | D21: -1387594.74 | E21: -5579.223968 | F21: =Calculations!E362 -> EUR | H21: =SUM(I21:AT21) -> -1393173.964 | I21: =SUMIF(Calculations!$I$8:$QJ$8, I$2, Calculations!$I362:$QJ362) -> 0 | J21: =SUMIF(Calculations!$I$8:$QJ$8, J$2, Calculations!$I362:$QJ362) -> 0 | K21: =SUMIF(Calculations!$I$8:$QJ$8, K$2, Calculations!$I362:$QJ362) -> -66268.33122 | L21: =SUMIF(Calculations!$I$8:$QJ$8, L$2, Calculations!$I362:$QJ362) -> -129597.2088 | M21: =SUMIF(Calculations!$I$8:$QJ$8, M$2, Calculations!$I362:$QJ362) -> -124811.2848 | N21: =SUMIF(Calculations!$I$8:$QJ$8, N$2, Calculations!$I362:$QJ362) -> -119755.3971 | O21: =SUMIF(Calculations!$I$8:$QJ$8, O$2, Calculations!$I362:$QJ362) -> -114414.3176 | P21: =SUMIF(Calculations!$I$8:$QJ$8, P$2, Calculations!$I362:$QJ362) -> -108771.9592 | Q21: =SUMIF(Calculations!$I$8:$QJ$8, Q$2, Calculations!$I362:$QJ362) -> -102811.3274 | R21: =SUMIF(Calculations!$I$8:$QJ$8, R$2, Calculations!$I362:$QJ362) -> -96514.46912 | S21: =SUMIF(Calculations!$I$8:$QJ$8, S$2, Calculations!$I362:$QJ362) -> -89862.41855 | T21: =SUMIF(Calculations!$I$8:$QJ$8, T$2, Calculations!$I362:$QJ362) -> -82835.14005 | U21: =SUMIF(Calculations!$I$8:$QJ$8, U$2, Calculations!$I362:$QJ362) -> -75411.4678 | V21: =SUMIF(Calculations!$I$8:$QJ$8, V$2, Calculations!$I362:$QJ362) -> -67569.04209 | W21: =SUMIF(Calculations!$I$8:$QJ$8, W$2, Calculations!$I362:$QJ362) -> -59284.24191 | X21: =SUMIF(Calculations!$I$8:$QJ$8, X$2, Calculations!$I362:$QJ362) -> -50532.11389 | Y21: =SUMIF(Calculations!$I$8:$QJ$8, Y$2, Calculations!$I362:$QJ362) -> -41286.29705 | Z21: =SUMIF(Calculations!$I$8:$QJ$8, Z$2, Calculations!$I362:$QJ362) -> -31518.94347 | AA21: =SUMIF(Calculations!$I$8:$QJ$8, AA$2, Calculations!$I362:$QJ362) -> -21200.63437 | AB21: =SUMIF(Calculations!$I$8:$QJ$8, AB$2, Calculations!$I362:$QJ362) -> -10300.29153 | AC21: =SUMIF(Calculations!$I$8:$QJ$8, AC$2, Calculations!$I362:$QJ362) -> -429.0782044 | AD21: =SUMIF(Calculations!$I$8:$QJ$8, AD$2, Calculations!$I362:$QJ362) -> 0 | AE21: =SUMIF(Calculations!$I$8:$QJ$8, AE$2, Calculations!$I362:$QJ362) -> 0 | AF21: =SUMIF(Calculations!$I$8:$QJ$8, AF$2, Calculations!$I362:$QJ362) -> 0 | AG21: =SUMIF(Calculations!$I$8:$QJ$8, AG$2, Calculations!$I362:$QJ362) -> 0 | AH21: =SUMIF(Calculations!$I$8:$QJ$8, AH$2, Calculations!$I362:$QJ362) -> 0 | AI21: =SUMIF(Calculations!$I$8:$QJ$8, AI$2, Calculations!$I362:$QJ362) -> 0 | AJ21: =SUMIF(Calculations!$I$8:$QJ$8, AJ$2, Calculations!$I362:$QJ362) -> 0
C22: =Calculations!C363 -> less: Subordinated Debt Interest Expense | D22: -1754122.999 | E22: 248224.041 | F22: =Calculations!E363 -> EUR | H22: =SUM(I22:AT22) -> -1505898.958 | I22: =SUMIF(Calculations!$I$8:$QJ$8, I$2, Calculations!$I363:$QJ363) -> 0 | J22: 0 | K22: =SUMIF(Calculations!$I$8:$QJ$8, K$2, Calculations!$I363:$QJ363) -> -72749.9332 | L22: =SUMIF(Calculations!$I$8:$QJ$8, L$2, Calculations!$I363:$QJ363) -> -143528.3346 | M22: =SUMIF(Calculations!$I$8:$QJ$8, M$2, Calculations!$I363:$QJ363) -> -140828.5511 | N22: =SUMIF(Calculations!$I$8:$QJ$8, N$2, Calculations!$I363:$QJ363) -> -137786.3674 | O22: =SUMIF(Calculations!$I$8:$QJ$8, O$2, Calculations!$I363:$QJ363) -> -134358.3588 | P22: =SUMIF(Calculations!$I$8:$QJ$8, P$2, Calculations!$I363:$QJ363) -> -130495.5928 | Q22: =SUMIF(Calculations!$I$8:$QJ$8, Q$2, Calculations!$I363:$QJ363) -> -126142.9315 | R22: =SUMIF(Calculations!$I$8:$QJ$8, R$2, Calculations!$I363:$QJ363) -> -121238.2437 | S22: =SUMIF(Calculations!$I$8:$QJ$8, S$2, Calculations!$I363:$QJ363) -> -115711.5188 | T22: =SUMIF(Calculations!$I$8:$QJ$8, T$2, Calculations!$I363:$QJ363) -> -109483.8668 | U22: =SUMIF(Calculations!$I$8:$QJ$8, U$2, Calculations!$I363:$QJ363) -> -102466.3927 | V22: =SUMIF(Calculations!$I$8:$QJ$8, V$2, Calculations!$I363:$QJ363) -> -94558.92715 | W22: =SUMIF(Calculations!$I$8:$QJ$8, W$2, Calculations!$I363:$QJ363) -> -85648.59708 | X22: =SUMIF(Calculations!$I$8:$QJ$8, X$2, Calculations!$I363:$QJ363) -> -75608.21414 | Y22: =SUMIF(Calculations!$I$8:$QJ$8, Y$2, Calculations!$I363:$QJ363) -> -64294.45933 | Z22: =SUMIF(Calculations!$I$8:$QJ$8, Z$2, Calculations!$I363:$QJ363) -> -51545.83722 | AA22: =SUMIF(Calculations!$I$8:$QJ$8, AA$2, Calculations!$I363:$QJ363) -> -37180.37073 | AB22: =SUMIF(Calculations!$I$8:$QJ$8, AB$2, Calculations!$I363:$QJ363) -> -20993.00351 | AC22: =SUMIF(Calculations!$I$8:$QJ$8, AC$2, Calculations!$I363:$QJ363) -> -2752.672967 | AD22: =SUMIF(Calculations!$I$8:$QJ$8, AD$2, Calculations!$I363:$QJ363) -> 17800.98805 | AE22: =SUMIF(Calculations!$I$8:$QJ$8, AE$2, Calculations!$I363:$QJ363) -> 40961.36775 | AF22: =SUMIF(Calculations!$I$8:$QJ$8, AF$2, Calculations!$I363:$QJ363) -> 67059.06329 | AG22: =SUMIF(Calculations!$I$8:$QJ$8, AG$2, Calculations!$I363:$QJ363) -> 96466.59987 | AH22: =SUMIF(Calculations!$I$8:$QJ$8, AH$2, Calculations!$I363:$QJ363) -> 39185.19679 | AI22: =SUMIF(Calculations!$I$8:$QJ$8, AI$2, Calculations!$I363:$QJ363) -> 0 | AJ22: =SUMIF(Calculations!$I$8:$QJ$8, AJ$2, Calculations!$I363:$QJ363) -> 0
C23: =Calculations!C364 -> add: Interest on Reserve Accounts | D23: 0 | E23: 0 | F23: =Calculations!E364 -> EUR | H23: =SUM(I23:AT23) -> 0 | I23: =SUMIF(Calculations!$I$8:$QJ$8, I$2, Calculations!$I364:$QJ364) -> 0 | J23: =SUMIF(Calculations!$I$8:$QJ$8, J$2, Calculations!$I364:$QJ364) -> 0 | K23: =SUMIF(Calculations!$I$8:$QJ$8, K$2, Calculations!$I364:$QJ364) -> 0 | L23: =SUMIF(Calculations!$I$8:$QJ$8, L$2, Calculations!$I364:$QJ364) -> 0 | M23: =SUMIF(Calculations!$I$8:$QJ$8, M$2, Calculations!$I364:$QJ364) -> 0 | N23: =SUMIF(Calculations!$I$8:$QJ$8, N$2, Calculations!$I364:$QJ364) -> 0 | O23: =SUMIF(Calculations!$I$8:$QJ$8, O$2, Calculations!$I364:$QJ364) -> 0 | P23: =SUMIF(Calculations!$I$8:$QJ$8, P$2, Calculations!$I364:$QJ364) -> 0 | Q23: =SUMIF(Calculations!$I$8:$QJ$8, Q$2, Calculations!$I364:$QJ364) -> 0 | R23: =SUMIF(Calculations!$I$8:$QJ$8, R$2, Calculations!$I364:$QJ364) -> 0 | S23: =SUMIF(Calculations!$I$8:$QJ$8, S$2, Calculations!$I364:$QJ364) -> 0 | T23: =SUMIF(Calculations!$I$8:$QJ$8, T$2, Calculations!$I364:$QJ364) -> 0 | U23: =SUMIF(Calculations!$I$8:$QJ$8, U$2, Calculations!$I364:$QJ364) -> 0 | V23: =SUMIF(Calculations!$I$8:$QJ$8, V$2, Calculations!$I364:$QJ364) -> 0 | W23: =SUMIF(Calculations!$I$8:$QJ$8, W$2, Calculations!$I364:$QJ364) -> 0 | X23: =SUMIF(Calculations!$I$8:$QJ$8, X$2, Calculations!$I364:$QJ364) -> 0 | Y23: =SUMIF(Calculations!$I$8:$QJ$8, Y$2, Calculations!$I364:$QJ364) -> 0 | Z23: =SUMIF(Calculations!$I$8:$QJ$8, Z$2, Calculations!$I364:$QJ364) -> 0 | AA23: =SUMIF(Calculations!$I$8:$QJ$8, AA$2, Calculations!$I364:$QJ364) -> 0 | AB23: =SUMIF(Calculations!$I$8:$QJ$8, AB$2, Calculations!$I364:$QJ364) -> 0 | AC23: =SUMIF(Calculations!$I$8:$QJ$8, AC$2, Calculations!$I364:$QJ364) -> 0 | AD23: =SUMIF(Calculations!$I$8:$QJ$8, AD$2, Calculations!$I364:$QJ364) -> 0 | AE23: =SUMIF(Calculations!$I$8:$QJ$8, AE$2, Calculations!$I364:$QJ364) -> 0 | AF23: =SUMIF(Calculations!$I$8:$QJ$8, AF$2, Calculations!$I364:$QJ364) -> 0 | AG23: =SUMIF(Calculations!$I$8:$QJ$8, AG$2, Calculations!$I364:$QJ364) -> 0 | AH23: =SUMIF(Calculations!$I$8:$QJ$8, AH$2, Calculations!$I364:$QJ364) -> 0 | AI23: =SUMIF(Calculations!$I$8:$QJ$8, AI$2, Calculations!$I364:$QJ364) -> 0 | AJ23: =SUMIF(Calculations!$I$8:$QJ$8, AJ$2, Calculations!$I364:$QJ364) -> 0
C24: =Calculations!C365 -> EBT | D24: 139175.2738 | E24: 1982751.699 | F24: =Calculations!E365 -> EUR | H24: =SUM(I24:AT24) -> 2121926.973 | I24: =I19+SUM(I21:I23) -> 0 | J24: 0 | K24: -84191.37556 | L24: -180764.8143 | M24: -178642.7255 | N24: -173792.071 | O24: -170084.7476 | P24: -148125.9583 | Q24: -126214.6482 | R24: -60730.13735 | S24: 5091.221231 | T24: 12847.28375 | U24: 68530.75506 | V24: 125117.7993 | W24: 136643.8445 | X24: 173121.2307 | Y24: 188137.0139 | Z24: 205139.3248 | AA24: 224273.8672 | AB24: 245638.8225 | AC24: 267562.6017 | AD24: 281936.2161 | AE24: 298444.14 | AF24: 318001.5629 | AG24: 340692.1392 | AH24: 276608.7761 | AI24: 230353.7655 | AJ24: =AJ19+SUM(AJ21:AJ23) -> -153666.9134
D25: 0 | E25: 0
C26: =Calculations!C367 -> less: Taxes | D26: -218.2996614 | E26: -320882.5039 | F26: =Calculations!E367 -> EUR | H26: =SUM(I26:AT26) -> -321100.8036 | I26: =SUMIF(Calculations!$I$8:$QJ$8, I$2, Calculations!$I367:$QJ367) -> 0 | J26: =SUMIF(Calculations!$I$8:$QJ$8, J$2, Calculations!$I367:$QJ367) -> 0 | K26: =SUMIF(Calculations!$I$8:$QJ$8, K$2, Calculations!$I367:$QJ367) -> -218.2996614 | L26: =SUMIF(Calculations!$I$8:$QJ$8, L$2, Calculations!$I367:$QJ367) -> 0 | M26: =SUMIF(Calculations!$I$8:$QJ$8, M$2, Calculations!$I367:$QJ367) -> 0 | N26: =SUMIF(Calculations!$I$8:$QJ$8, N$2, Calculations!$I367:$QJ367) -> 0 | O26: =SUMIF(Calculations!$I$8:$QJ$8, O$2, Calculations!$I367:$QJ367) -> 0 | P26: =SUMIF(Calculations!$I$8:$QJ$8, P$2, Calculations!$I367:$QJ367) -> 0 | Q26: =SUMIF(Calculations!$I$8:$QJ$8, Q$2, Calculations!$I367:$QJ367) -> 0 | R26: =SUMIF(Calculations!$I$8:$QJ$8, R$2, Calculations!$I367:$QJ367) -> 0 | S26: =SUMIF(Calculations!$I$8:$QJ$8, S$2, Calculations!$I367:$QJ367) -> 0 | T26: =SUMIF(Calculations!$I$8:$QJ$8, T$2, Calculations!$I367:$QJ367) -> 0 | U26: =SUMIF(Calculations!$I$8:$QJ$8, U$2, Calculations!$I367:$QJ367) -> 0 | V26: =SUMIF(Calculations!$I$8:$QJ$8, V$2, Calculations!$I367:$QJ367) -> 0 | W26: =SUMIF(Calculations!$I$8:$QJ$8, W$2, Calculations!$I367:$QJ367) -> 0 | X26: =SUMIF(Calculations!$I$8:$QJ$8, X$2, Calculations!$I367:$QJ367) -> 0 | Y26: =SUMIF(Calculations!$I$8:$QJ$8, Y$2, Calculations!$I367:$QJ367) -> 0 | Z26: =SUMIF(Calculations!$I$8:$QJ$8, Z$2, Calculations!$I367:$QJ367) -> 0 | AA26: =SUMIF(Calculations!$I$8:$QJ$8, AA$2, Calculations!$I367:$QJ367) -> 0 | AB26: =SUMIF(Calculations!$I$8:$QJ$8, AB$2, Calculations!$I367:$QJ367) -> 0 | AC26: =SUMIF(Calculations!$I$8:$QJ$8, AC$2, Calculations!$I367:$QJ367) -> 0 | AD26: =SUMIF(Calculations!$I$8:$QJ$8, AD$2, Calculations!$I367:$QJ367) -> -21178.07728 | AE26: =SUMIF(Calculations!$I$8:$QJ$8, AE$2, Calculations!$I367:$QJ367) -> -57642.86299 | AF26: =SUMIF(Calculations!$I$8:$QJ$8, AF$2, Calculations!$I367:$QJ367) -> -60928.51003 | AG26: =SUMIF(Calculations!$I$8:$QJ$8, AG$2, Calculations!$I367:$QJ367) -> -64740.52686 | AH26: =SUMIF(Calculations!$I$8:$QJ$8, AH$2, Calculations!$I367:$QJ367) -> -54331.62472 | AI26: =SUMIF(Calculations!$I$8:$QJ$8, AI$2, Calculations!$I367:$QJ367) -> -46264.04877 | AJ26: =SUMIF(Calculations!$I$8:$QJ$8, AJ$2, Calculations!$I367:$QJ367) -> -15796.85325
C27: =Calculations!C368 -> add: Change in Deferred Tax Asset | D27: 119101.1776 | E27: -80822.93513 | F27: =Calculations!E368 -> EUR | H27: =SUM(I27:AT27) -> 38278.24251 | I27: =SUMIF(Calculations!$I$8:$QJ$8, I$2, Calculations!$I368:$QJ368) -> 0 | J27: 0 | K27: =SUMIF(Calculations!$I$8:$QJ$8, K$2, Calculations!$I368:$QJ368) -> 23058.68476 | L27: =SUMIF(Calculations!$I$8:$QJ$8, L$2, Calculations!$I368:$QJ368) -> 47760.95682 | M27: =SUMIF(Calculations!$I$8:$QJ$8, M$2, Calculations!$I368:$QJ368) -> 47404.44589 | N27: =SUMIF(Calculations!$I$8:$QJ$8, N$2, Calculations!$I368:$QJ368) -> 46589.53594 | O27: =SUMIF(Calculations!$I$8:$QJ$8, O$2, Calculations!$I368:$QJ368) -> 45966.70561 | P27: =SUMIF(Calculations!$I$8:$QJ$8, P$2, Calculations!$I368:$QJ368) -> 44974.02901 | Q27: =SUMIF(Calculations!$I$8:$QJ$8, Q$2, Calculations!$I368:$QJ368) -> 43989.3289 | R27: =SUMIF(Calculations!$I$8:$QJ$8, R$2, Calculations!$I368:$QJ368) -> 42869.36425 | S27: =SUMIF(Calculations!$I$8:$QJ$8, S$2, Calculations!$I368:$QJ368) -> 41692.80918 | T27: =SUMIF(Calculations!$I$8:$QJ$8, T$2, Calculations!$I368:$QJ368) -> 40389.79067 | U27: =SUMIF(Calculations!$I$8:$QJ$8, U$2, Calculations!$I368:$QJ368) -> 120.1472343 | V27: =SUMIF(Calculations!$I$8:$QJ$8, V$2, Calculations!$I368:$QJ368) -> -40375.21646 | W27: =SUMIF(Calculations!$I$8:$QJ$8, W$2, Calculations!$I368:$QJ368) -> -42311.59205 | X27: =SUMIF(Calculations!$I$8:$QJ$8, X$2, Calculations!$I368:$QJ368) -> -44542.44447 | Y27: =SUMIF(Calculations!$I$8:$QJ$8, Y$2, Calculations!$I368:$QJ368) -> -47065.09604 | Z27: =SUMIF(Calculations!$I$8:$QJ$8, Z$2, Calculations!$I368:$QJ368) -> -49921.48426 | AA27: =SUMIF(Calculations!$I$8:$QJ$8, AA$2, Calculations!$I368:$QJ368) -> -53136.08739 | AB27: =SUMIF(Calculations!$I$8:$QJ$8, AB$2, Calculations!$I368:$QJ368) -> -56725.39989 | AC27: =SUMIF(Calculations!$I$8:$QJ$8, AC$2, Calculations!$I368:$QJ368) -> -57047.0232 | AD27: =SUMIF(Calculations!$I$8:$QJ$8, AD$2, Calculations!$I368:$QJ368) -> -33691.4545 | AE27: =SUMIF(Calculations!$I$8:$QJ$8, AE$2, Calculations!$I368:$QJ368) -> 0 | AF27: =SUMIF(Calculations!$I$8:$QJ$8, AF$2, Calculations!$I368:$QJ368) -> 0 | AG27: =SUMIF(Calculations!$I$8:$QJ$8, AG$2, Calculations!$I368:$QJ368) -> 0 | AH27: =SUMIF(Calculations!$I$8:$QJ$8, AH$2, Calculations!$I368:$QJ368) -> 357.1028638 | AI27: =SUMIF(Calculations!$I$8:$QJ$8, AI$2, Calculations!$I368:$QJ368) -> 60.36868478 | AJ27: =SUMIF(Calculations!$I$8:$QJ$8, AJ$2, Calculations!$I368:$QJ368) -> 37860.77097
C28: =Calculations!C369 -> Net Income / (Loss) | D28: 258058.1518 | E28: 1581046.26 | F28: =Calculations!E369 -> EUR | H28: =SUM(I28:AT28) -> 1839104.412 | I28: =I24+SUM(I26:I27) -> 0 | J28: =J24+SUM(J26:J27) -> 0 | K28: -61350.99046 | L28: -133003.8575 | M28: -131238.2796 | N28: -127202.5351 | O28: -124118.042 | P28: -103151.9293 | Q28: -82225.31928 | R28: -17860.7731 | S28: 46784.03041 | T28: 53237.07442 | U28: 68650.90229 | V28: 84742.58286 | W28: 94332.25244 | X28: 128578.7863 | Y28: 141071.9179 | Z28: 155217.8405 | AA28: 171137.7798 | AB28: 188913.4227 | AC28: 210515.5785 | AD28: 227066.6844 | AE28: 240801.277 | AF28: 257073.0528 | AG28: 275951.6124 | AH28: 222634.2542 | AI28: 184150.0855 | AJ28: =AJ24+SUM(AJ26:AJ27) -> -131602.9957
A30: · | B30: Balance Sheet | F30: Unit
B32: Current Assets
C33: =Calculations!C374 -> Unrestricted Cash | F33: =Calculations!E374 -> EUR | I33: =LOOKUP(I$3, Calculations!$I$4:$QJ$4, Calculations!$I374:$QJ374) -> 41410.56426 | J33: =LOOKUP(J$3, Calculations!$I$4:$QJ$4, Calculations!$I374:$QJ374) -> 62034.36278 | K33: =LOOKUP(K$3, Calculations!$I$4:$QJ$4, Calculations!$I374:$QJ374) -> 99843.8558 | L33: =LOOKUP(L$3, Calculations!$I$4:$QJ$4, Calculations!$I374:$QJ374) -> 204488.3087 | M33: =LOOKUP(M$3, Calculations!$I$4:$QJ$4, Calculations!$I374:$QJ374) -> 271111.9368 | N33: =LOOKUP(N$3, Calculations!$I$4:$QJ$4, Calculations!$I374:$QJ374) -> 334572.3023 | O33: =LOOKUP(O$3, Calculations!$I$4:$QJ$4, Calculations!$I374:$QJ374) -> 357725.9233 | P33: =LOOKUP(P$3, Calculations!$I$4:$QJ$4, Calculations!$I374:$QJ374) -> 448028.9128 | Q33: =LOOKUP(Q$3, Calculations!$I$4:$QJ$4, Calculations!$I374:$QJ374) -> 498497.6837 | R33: =LOOKUP(R$3, Calculations!$I$4:$QJ$4, Calculations!$I374:$QJ374) -> 544425.233 | S33: =LOOKUP(S$3, Calculations!$I$4:$QJ$4, Calculations!$I374:$QJ374) -> 552045.6808 | T33: =LOOKUP(T$3, Calculations!$I$4:$QJ$4, Calculations!$I374:$QJ374) -> 620412.4955 | U33: =LOOKUP(U$3, Calculations!$I$4:$QJ$4, Calculations!$I374:$QJ374) -> 649971.7614 | V33: =LOOKUP(V$3, Calculations!$I$4:$QJ$4, Calculations!$I374:$QJ374) -> 673883.9896 | W33: =LOOKUP(W$3, Calculations!$I$4:$QJ$4, Calculations!$I374:$QJ374) -> 661428.4108 | X33: =LOOKUP(X$3, Calculations!$I$4:$QJ$4, Calculations!$I374:$QJ374) -> 704839.7324 | Y33: =LOOKUP(Y$3, Calculations!$I$4:$QJ$4, Calculations!$I374:$QJ374) -> 712008.7281 | Z33: =LOOKUP(Z$3, Calculations!$I$4:$QJ$4, Calculations!$I374:$QJ374) -> 713658.6663 | AA33: =LOOKUP(AA$3, Calculations!$I$4:$QJ$4, Calculations!$I374:$QJ374) -> 681453.6151 | AB33: =LOOKUP(AB$3, Calculations!$I$4:$QJ$4, Calculations!$I374:$QJ374) -> 713296.4683 | AC33: =LOOKUP(AC$3, Calculations!$I$4:$QJ$4, Calculations!$I374:$QJ374) -> 529595.5861 | AD33: =LOOKUP(AD$3, Calculations!$I$4:$QJ$4, Calculations!$I374:$QJ374) -> 703467.1585 | AE33: =LOOKUP(AE$3, Calculations!$I$4:$QJ$4, Calculations!$I374:$QJ374) -> 810216.1176 | AF33: =LOOKUP(AF$3, Calculations!$I$4:$QJ$4, Calculations!$I374:$QJ374) -> 950569.5617 | AG33: =LOOKUP(AG$3, Calculations!$I$4:$QJ$4, Calculations!$I374:$QJ374) -> 1058812.136 | AH33: =LOOKUP(AH$3, Calculations!$I$4:$QJ$4, Calculations!$I374:$QJ374) -> 2305365.888 | AI33: =LOOKUP(AI$3, Calculations!$I$4:$QJ$4, Calculations!$I374:$QJ374) -> 2561835.507 | AJ33: =LOOKUP(AJ$3, Calculations!$I$4:$QJ$4, Calculations!$I374:$QJ374) -> 2403255.62
C34: =Calculations!C375 -> DSRA | F34: =Calculations!E375 -> EUR | I34: =LOOKUP(I$3, Calculations!$I$4:$QJ$4, Calculations!$I375:$QJ375) -> 0 | J34: =LOOKUP(J$3, Calculations!$I$4:$QJ$4, Calculations!$I375:$QJ375) -> 0 | K34: =LOOKUP(K$3, Calculations!$I$4:$QJ$4, Calculations!$I375:$QJ375) -> 107221.0963 | L34: =LOOKUP(L$3, Calculations!$I$4:$QJ$4, Calculations!$I375:$QJ375) -> 107221.0963 | M34: =LOOKUP(M$3, Calculations!$I$4:$QJ$4, Calculations!$I375:$QJ375) -> 107221.0963 | N34: =LOOKUP(N$3, Calculations!$I$4:$QJ$4, Calculations!$I375:$QJ375) -> 107221.0963 | O34: =LOOKUP(O$3, Calculations!$I$4:$QJ$4, Calculations!$I375:$QJ375) -> 107221.0963 | P34: =LOOKUP(P$3, Calculations!$I$4:$QJ$4, Calculations!$I375:$QJ375) -> 107221.0963 | Q34: =LOOKUP(Q$3, Calculations!$I$4:$QJ$4, Calculations!$I375:$QJ375) -> 107221.0963 | R34: =LOOKUP(R$3, Calculations!$I$4:$QJ$4, Calculations!$I375:$QJ375) -> 107221.0963 | S34: =LOOKUP(S$3, Calculations!$I$4:$QJ$4, Calculations!$I375:$QJ375) -> 107221.0963 | T34: =LOOKUP(T$3, Calculations!$I$4:$QJ$4, Calculations!$I375:$QJ375) -> 107221.0963 | U34: =LOOKUP(U$3, Calculations!$I$4:$QJ$4, Calculations!$I375:$QJ375) -> 107221.0963 | V34: =LOOKUP(V$3, Calculations!$I$4:$QJ$4, Calculations!$I375:$QJ375) -> 107221.0963 | W34: =LOOKUP(W$3, Calculations!$I$4:$QJ$4, Calculations!$I375:$QJ375) -> 107221.0963 | X34: =LOOKUP(X$3, Calculations!$I$4:$QJ$4, Calculations!$I375:$QJ375) -> 107221.0963 | Y34: =LOOKUP(Y$3, Calculations!$I$4:$QJ$4, Calculations!$I375:$QJ375) -> 107221.0963 | Z34: =LOOKUP(Z$3, Calculations!$I$4:$QJ$4, Calculations!$I375:$QJ375) -> 107221.0963 | AA34: =LOOKUP(AA$3, Calculations!$I$4:$QJ$4, Calculations!$I375:$QJ375) -> 107221.0963 | AB34: =LOOKUP(AB$3, Calculations!$I$4:$QJ$4, Calculations!$I375:$QJ375) -> 94046.14098 | AC34: =LOOKUP(AC$3, Calculations!$I$4:$QJ$4, Calculations!$I375:$QJ375) -> 0 | AD34: =LOOKUP(AD$3, Calculations!$I$4:$QJ$4, Calculations!$I375:$QJ375) -> 0 | AE34: =LOOKUP(AE$3, Calculations!$I$4:$QJ$4, Calculations!$I375:$QJ375) -> 0 | AF34: =LOOKUP(AF$3, Calculations!$I$4:$QJ$4, Calculations!$I375:$QJ375) -> 0 | AG34: =LOOKUP(AG$3, Calculations!$I$4:$QJ$4, Calculations!$I375:$QJ375) -> 0 | AH34: =LOOKUP(AH$3, Calculations!$I$4:$QJ$4, Calculations!$I375:$QJ375) -> 0 | AI34: =LOOKUP(AI$3, Calculations!$I$4:$QJ$4, Calculations!$I375:$QJ375) -> 0 | AJ34: =LOOKUP(AJ$3, Calculations!$I$4:$QJ$4, Calculations!$I375:$QJ375) -> 0
C35: =Calculations!C376 -> MMRA | F35: =Calculations!E376 -> EUR | I35: =LOOKUP(I$3, Calculations!$I$4:$QJ$4, Calculations!$I376:$QJ376) -> 0 | J35: =LOOKUP(J$3, Calculations!$I$4:$QJ$4, Calculations!$I376:$QJ376) -> 0 | K35: =LOOKUP(K$3, Calculations!$I$4:$QJ$4, Calculations!$I376:$QJ376) -> 0 | L35: =LOOKUP(L$3, Calculations!$I$4:$QJ$4, Calculations!$I376:$QJ376) -> 0 | M35: =LOOKUP(M$3, Calculations!$I$4:$QJ$4, Calculations!$I376:$QJ376) -> 0 | N35: =LOOKUP(N$3, Calculations!$I$4:$QJ$4, Calculations!$I376:$QJ376) -> 0 | O35: =LOOKUP(O$3, Calculations!$I$4:$QJ$4, Calculations!$I376:$QJ376) -> 0 | P35: =LOOKUP(P$3, Calculations!$I$4:$QJ$4, Calculations!$I376:$QJ376) -> 0 | Q35: =LOOKUP(Q$3, Calculations!$I$4:$QJ$4, Calculations!$I376:$QJ376) -> 0 | R35: =LOOKUP(R$3, Calculations!$I$4:$QJ$4, Calculations!$I376:$QJ376) -> 0 | S35: =LOOKUP(S$3, Calculations!$I$4:$QJ$4, Calculations!$I376:$QJ376) -> 0 | T35: =LOOKUP(T$3, Calculations!$I$4:$QJ$4, Calculations!$I376:$QJ376) -> 0 | U35: =LOOKUP(U$3, Calculations!$I$4:$QJ$4, Calculations!$I376:$QJ376) -> 0 | V35: =LOOKUP(V$3, Calculations!$I$4:$QJ$4, Calculations!$I376:$QJ376) -> 0 | W35: =LOOKUP(W$3, Calculations!$I$4:$QJ$4, Calculations!$I376:$QJ376) -> 0 | X35: =LOOKUP(X$3, Calculations!$I$4:$QJ$4, Calculations!$I376:$QJ376) -> 0 | Y35: =LOOKUP(Y$3, Calculations!$I$4:$QJ$4, Calculations!$I376:$QJ376) -> 0 | Z35: =LOOKUP(Z$3, Calculations!$I$4:$QJ$4, Calculations!$I376:$QJ376) -> 0 | AA35: =LOOKUP(AA$3, Calculations!$I$4:$QJ$4, Calculations!$I376:$QJ376) -> 0 | AB35: =LOOKUP(AB$3, Calculations!$I$4:$QJ$4, Calculations!$I376:$QJ376) -> 0 | AC35: =LOOKUP(AC$3, Calculations!$I$4:$QJ$4, Calculations!$I376:$QJ376) -> 0 | AD35: =LOOKUP(AD$3, Calculations!$I$4:$QJ$4, Calculations!$I376:$QJ376) -> 0 | AE35: =LOOKUP(AE$3, Calculations!$I$4:$QJ$4, Calculations!$I376:$QJ376) -> 0 | AF35: =LOOKUP(AF$3, Calculations!$I$4:$QJ$4, Calculations!$I376:$QJ376) -> 0 | AG35: =LOOKUP(AG$3, Calculations!$I$4:$QJ$4, Calculations!$I376:$QJ376) -> 0 | AH35: =LOOKUP(AH$3, Calculations!$I$4:$QJ$4, Calculations!$I376:$QJ376) -> 0 | AI35: =LOOKUP(AI$3, Calculations!$I$4:$QJ$4, Calculations!$I376:$QJ376) -> 0 | AJ35: =LOOKUP(AJ$3, Calculations!$I$4:$QJ$4, Calculations!$I376:$QJ376) -> 0
C36: =Calculations!C377 -> Accounts Receivable | F36: =Calculations!E377 -> EUR | I36: =LOOKUP(I$3, Calculations!$I$4:$QJ$4, Calculations!$I377:$QJ377) -> 157442.6585 | J36: =LOOKUP(J$3, Calculations!$I$4:$QJ$4, Calculations!$I377:$QJ377) -> 50410.10062 | K36: =LOOKUP(K$3, Calculations!$I$4:$QJ$4, Calculations!$I377:$QJ377) -> 95921.97087 | L36: =LOOKUP(L$3, Calculations!$I$4:$QJ$4, Calculations!$I377:$QJ377) -> 69071.45055 | M36: =LOOKUP(M$3, Calculations!$I$4:$QJ$4, Calculations!$I377:$QJ377) -> 68563.62181 | N36: =LOOKUP(N$3, Calculations!$I$4:$QJ$4, Calculations!$I377:$QJ377) -> 67972.45976 | O36: =LOOKUP(O$3, Calculations!$I$4:$QJ$4, Calculations!$I377:$QJ377) -> 94053.74083 | P36: =LOOKUP(P$3, Calculations!$I$4:$QJ$4, Calculations!$I377:$QJ377) -> 66536.93775 | Q36: =LOOKUP(Q$3, Calculations!$I$4:$QJ$4, Calculations!$I377:$QJ377) -> 65829.87608 | R36: =LOOKUP(R$3, Calculations!$I$4:$QJ$4, Calculations!$I377:$QJ377) -> 65129.85272 | S36: =LOOKUP(S$3, Calculations!$I$4:$QJ$4, Calculations!$I377:$QJ377) -> 90408.18794 | T36: =LOOKUP(T$3, Calculations!$I$4:$QJ$4, Calculations!$I377:$QJ377) -> 63750.64133 | U36: =LOOKUP(U$3, Calculations!$I$4:$QJ$4, Calculations!$I377:$QJ377) -> 63071.31527 | V36: =LOOKUP(V$3, Calculations!$I$4:$QJ$4, Calculations!$I377:$QJ377) -> 62398.75143 | W36: =LOOKUP(W$3, Calculations!$I$4:$QJ$4, Calculations!$I377:$QJ377) -> 86685.50395 | X36: =LOOKUP(X$3, Calculations!$I$4:$QJ$4, Calculations!$I377:$QJ377) -> 61073.64179 | Y36: =LOOKUP(Y$3, Calculations!$I$4:$QJ$4, Calculations!$I377:$QJ377) -> 60420.96338 | Z36: =LOOKUP(Z$3, Calculations!$I$4:$QJ$4, Calculations!$I377:$QJ377) -> 59774.78192 | AA36: =LOOKUP(AA$3, Calculations!$I$4:$QJ$4, Calculations!$I377:$QJ377) -> 83108.84812 | AB36: =LOOKUP(AB$3, Calculations!$I$4:$QJ$4, Calculations!$I377:$QJ377) -> 58501.6518 | AC36: =LOOKUP(AC$3, Calculations!$I$4:$QJ$4, Calculations!$I377:$QJ377) -> 57874.57573 | AD36: =LOOKUP(AD$3, Calculations!$I$4:$QJ$4, Calculations!$I377:$QJ377) -> 57253.74176 | AE36: =LOOKUP(AE$3, Calculations!$I$4:$QJ$4, Calculations!$I377:$QJ377) -> 79672.49229 | AF36: =LOOKUP(AF$3, Calculations!$I$4:$QJ$4, Calculations!$I377:$QJ377) -> 56030.55219 | AG36: =LOOKUP(AG$3, Calculations!$I$4:$QJ$4, Calculations!$I377:$QJ377) -> 55428.07417 | AH36: =LOOKUP(AH$3, Calculations!$I$4:$QJ$4, Calculations!$I377:$QJ377) -> 54831.59339 | AI36: =LOOKUP(AI$3, Calculations!$I$4:$QJ$4, Calculations!$I377:$QJ377) -> 76370.93295 | AJ36: =LOOKUP(AJ$3, Calculations!$I$4:$QJ$4, Calculations!$I377:$QJ377) -> 113422.6236
C37: =Calculations!C378 -> Total Current Assets | F37: =Calculations!E378 -> EUR | I37: =SUM(I33:I36) -> 198853.2228 | J37: =SUM(J33:J36) -> 112444.4634 | K37: 302986.923 | L37: 380780.8556 | M37: 446896.6549 | N37: 509765.8584 | O37: 559000.7605 | P37: 621786.9468 | Q37: 671548.6561 | R37: 716776.182 | S37: 749674.9651 | T37: 791384.2332 | U37: 820264.173 | V37: 843503.8374 | W37: 855335.011 | X37: 873134.4705 | Y37: 879650.7878 | Z37: 880654.5446 | AA37: 871783.5596 | AB37: 865844.2611 | AC37: 587470.1618 | AD37: 760720.9002 | AE37: 889888.6098 | AF37: 1006600.114 | AG37: =SUM(AG33:AG36) -> 1114240.21 | AH37: 2360197.482 | AI37: 2638206.44 | AJ37: 2516678.244
B39: Non-Current Assets
C40: =Calculations!C381 -> Net Property, Plant and Equipment | F40: =Calculations!E381 -> EUR | I40: =LOOKUP(I$3, Calculations!$I$4:$QJ$4, Calculations!$I381:$QJ381) -> 1601146.777 | J40: =LOOKUP(J$3, Calculations!$I$4:$QJ$4, Calculations!$I381:$QJ381) -> 3687555.537 | K40: =LOOKUP(K$3, Calculations!$I$4:$QJ$4, Calculations!$I381:$QJ381) -> 4469394.391 | L40: =LOOKUP(L$3, Calculations!$I$4:$QJ$4, Calculations!$I381:$QJ381) -> 4081188.567 | M40: =LOOKUP(M$3, Calculations!$I$4:$QJ$4, Calculations!$I381:$QJ381) -> 3722844.73 | N40: =LOOKUP(N$3, Calculations!$I$4:$QJ$4, Calculations!$I381:$QJ381) -> 3364500.893 | O40: =LOOKUP(O$3, Calculations!$I$4:$QJ$4, Calculations!$I381:$QJ381) -> 3036019.043 | P40: =LOOKUP(P$3, Calculations!$I$4:$QJ$4, Calculations!$I381:$QJ381) -> 2663863.219 | Q40: =LOOKUP(Q$3, Calculations!$I$4:$QJ$4, Calculations!$I381:$QJ381) -> 2337619.382 | R40: =LOOKUP(R$3, Calculations!$I$4:$QJ$4, Calculations!$I381:$QJ381) -> 2070193.6 | S40: =LOOKUP(S$3, Calculations!$I$4:$QJ$4, Calculations!$I381:$QJ381) -> 1878969.849 | T40: =LOOKUP(T$3, Calculations!$I$4:$QJ$4, Calculations!$I381:$QJ381) -> 1652978.144 | U40: =LOOKUP(U$3, Calculations!$I$4:$QJ$4, Calculations!$I381:$QJ381) -> 1491288.845 | V40: =LOOKUP(V$3, Calculations!$I$4:$QJ$4, Calculations!$I381:$QJ381) -> 1376077.975 | W40: =LOOKUP(W$3, Calculations!$I$4:$QJ$4, Calculations!$I381:$QJ381) -> 1270468.011 | X40: =LOOKUP(X$3, Calculations!$I$4:$QJ$4, Calculations!$I381:$QJ381) -> 1168854.738 | Y40: =LOOKUP(Y$3, Calculations!$I$4:$QJ$4, Calculations!$I381:$QJ381) -> 1076842.37 | Z40: =LOOKUP(Z$3, Calculations!$I$4:$QJ$4, Calculations!$I381:$QJ381) -> 984830.0032 | AA40: =LOOKUP(AA$3, Calculations!$I$4:$QJ$4, Calculations!$I381:$QJ381) -> 900485.3332 | AB40: =LOOKUP(AB$3, Calculations!$I$4:$QJ$4, Calculations!$I381:$QJ381) -> 800805.2686 | AC40: =LOOKUP(AC$3, Calculations!$I$4:$QJ$4, Calculations!$I381:$QJ381) -> 1183875.308 | AD40: =LOOKUP(AD$3, Calculations!$I$4:$QJ$4, Calculations!$I381:$QJ381) -> 1091680.704 | AE40: =LOOKUP(AE$3, Calculations!$I$4:$QJ$4, Calculations!$I381:$QJ381) -> 1007168.984 | AF40: =LOOKUP(AF$3, Calculations!$I$4:$QJ$4, Calculations!$I381:$QJ381) -> 907291.4959 | AG40: =LOOKUP(AG$3, Calculations!$I$4:$QJ$4, Calculations!$I381:$QJ381) -> 815096.8919 | AH40: =LOOKUP(AH$3, Calculations!$I$4:$QJ$4, Calculations!$I381:$QJ381) -> 722902.2878 | AI40: =LOOKUP(AI$3, Calculations!$I$4:$QJ$4, Calculations!$I381:$QJ381) -> 638390.5674 | AJ40: =LOOKUP(AJ$3, Calculations!$I$4:$QJ$4, Calculations!$I381:$QJ381) -> 584610.3817
C41: =Calculations!C382 -> Goodwill (net of amortization) | F41: =Calculations!E382 -> EUR | I41: =LOOKUP(I$3, Calculations!$I$4:$QJ$4, Calculations!$I382:$QJ382) -> 0 | J41: =LOOKUP(J$3, Calculations!$I$4:$QJ$4, Calculations!$I382:$QJ382) -> 0 | K41: =LOOKUP(K$3, Calculations!$I$4:$QJ$4, Calculations!$I382:$QJ382) -> 0 | L41: =LOOKUP(L$3, Calculations!$I$4:$QJ$4, Calculations!$I382:$QJ382) -> 0 | M41: =LOOKUP(M$3, Calculations!$I$4:$QJ$4, Calculations!$I382:$QJ382) -> 0 | N41: =LOOKUP(N$3, Calculations!$I$4:$QJ$4, Calculations!$I382:$QJ382) -> 0 | O41: =LOOKUP(O$3, Calculations!$I$4:$QJ$4, Calculations!$I382:$QJ382) -> 0 | P41: =LOOKUP(P$3, Calculations!$I$4:$QJ$4, Calculations!$I382:$QJ382) -> 0 | Q41: =LOOKUP(Q$3, Calculations!$I$4:$QJ$4, Calculations!$I382:$QJ382) -> 0 | R41: =LOOKUP(R$3, Calculations!$I$4:$QJ$4, Calculations!$I382:$QJ382) -> 0 | S41: =LOOKUP(S$3, Calculations!$I$4:$QJ$4, Calculations!$I382:$QJ382) -> 0 | T41: =LOOKUP(T$3, Calculations!$I$4:$QJ$4, Calculations!$I382:$QJ382) -> 0 | U41: =LOOKUP(U$3, Calculations!$I$4:$QJ$4, Calculations!$I382:$QJ382) -> 0 | V41: =LOOKUP(V$3, Calculations!$I$4:$QJ$4, Calculations!$I382:$QJ382) -> 0 | W41: =LOOKUP(W$3, Calculations!$I$4:$QJ$4, Calculations!$I382:$QJ382) -> 0 | X41: =LOOKUP(X$3, Calculations!$I$4:$QJ$4, Calculations!$I382:$QJ382) -> 0 | Y41: =LOOKUP(Y$3, Calculations!$I$4:$QJ$4, Calculations!$I382:$QJ382) -> 0 | Z41: =LOOKUP(Z$3, Calculations!$I$4:$QJ$4, Calculations!$I382:$QJ382) -> 0 | AA41: =LOOKUP(AA$3, Calculations!$I$4:$QJ$4, Calculations!$I382:$QJ382) -> 0 | AB41: =LOOKUP(AB$3, Calculations!$I$4:$QJ$4, Calculations!$I382:$QJ382) -> 0 | AC41: =LOOKUP(AC$3, Calculations!$I$4:$QJ$4, Calculations!$I382:$QJ382) -> 0 | AD41: =LOOKUP(AD$3, Calculations!$I$4:$QJ$4, Calculations!$I382:$QJ382) -> 0 | AE41: =LOOKUP(AE$3, Calculations!$I$4:$QJ$4, Calculations!$I382:$QJ382) -> 0 | AF41: =LOOKUP(AF$3, Calculations!$I$4:$QJ$4, Calculations!$I382:$QJ382) -> 0 | AG41: =LOOKUP(AG$3, Calculations!$I$4:$QJ$4, Calculations!$I382:$QJ382) -> 0 | AH41: =LOOKUP(AH$3, Calculations!$I$4:$QJ$4, Calculations!$I382:$QJ382) -> 0 | AI41: =LOOKUP(AI$3, Calculations!$I$4:$QJ$4, Calculations!$I382:$QJ382) -> 0 | AJ41: =LOOKUP(AJ$3, Calculations!$I$4:$QJ$4, Calculations!$I382:$QJ382) -> 0
C42: =Calculations!C383 -> Deferred Tax Asset | F42: =Calculations!E383 -> EUR | I42: =LOOKUP(I$3, Calculations!$I$4:$QJ$4, Calculations!$I383:$QJ383) -> 0 | J42: =LOOKUP(J$3, Calculations!$I$4:$QJ$4, Calculations!$I383:$QJ383) -> 0 | K42: =LOOKUP(K$3, Calculations!$I$4:$QJ$4, Calculations!$I383:$QJ383) -> 13776.05055 | L42: =LOOKUP(L$3, Calculations!$I$4:$QJ$4, Calculations!$I383:$QJ383) -> 70819.64158 | M42: =LOOKUP(M$3, Calculations!$I$4:$QJ$4, Calculations!$I383:$QJ383) -> 118224.0875 | N42: =LOOKUP(N$3, Calculations!$I$4:$QJ$4, Calculations!$I383:$QJ383) -> 164813.6234 | O42: =LOOKUP(O$3, Calculations!$I$4:$QJ$4, Calculations!$I383:$QJ383) -> 202330.9592 | P42: =LOOKUP(P$3, Calculations!$I$4:$QJ$4, Calculations!$I383:$QJ383) -> 255754.358 | Q42: =LOOKUP(Q$3, Calculations!$I$4:$QJ$4, Calculations!$I383:$QJ383) -> 299743.6869 | R42: =LOOKUP(R$3, Calculations!$I$4:$QJ$4, Calculations!$I383:$QJ383) -> 342613.0512 | S42: =LOOKUP(S$3, Calculations!$I$4:$QJ$4, Calculations!$I383:$QJ383) -> 376246.084 | T42: =LOOKUP(T$3, Calculations!$I$4:$QJ$4, Calculations!$I383:$QJ383) -> 424695.651 | U42: =LOOKUP(U$3, Calculations!$I$4:$QJ$4, Calculations!$I383:$QJ383) -> 424815.7983 | V42: =LOOKUP(V$3, Calculations!$I$4:$QJ$4, Calculations!$I383:$QJ383) -> 384440.5818 | W42: =LOOKUP(W$3, Calculations!$I$4:$QJ$4, Calculations!$I383:$QJ383) -> 341181.1236 | X42: =LOOKUP(X$3, Calculations!$I$4:$QJ$4, Calculations!$I383:$QJ383) -> 297586.5453 | Y42: =LOOKUP(Y$3, Calculations!$I$4:$QJ$4, Calculations!$I383:$QJ383) -> 250521.4492 | Z42: =LOOKUP(Z$3, Calculations!$I$4:$QJ$4, Calculations!$I383:$QJ383) -> 200599.965 | AA42: =LOOKUP(AA$3, Calculations!$I$4:$QJ$4, Calculations!$I383:$QJ383) -> 147541.4793 | AB42: =LOOKUP(AB$3, Calculations!$I$4:$QJ$4, Calculations!$I383:$QJ383) -> 90738.4777 | AC42: =LOOKUP(AC$3, Calculations!$I$4:$QJ$4, Calculations!$I383:$QJ383) -> 33691.4545 | AD42: =LOOKUP(AD$3, Calculations!$I$4:$QJ$4, Calculations!$I383:$QJ383) -> 0 | AE42: =LOOKUP(AE$3, Calculations!$I$4:$QJ$4, Calculations!$I383:$QJ383) -> 0 | AF42: =LOOKUP(AF$3, Calculations!$I$4:$QJ$4, Calculations!$I383:$QJ383) -> 0 | AG42: =LOOKUP(AG$3, Calculations!$I$4:$QJ$4, Calculations!$I383:$QJ383) -> 0 | AH42: =LOOKUP(AH$3, Calculations!$I$4:$QJ$4, Calculations!$I383:$QJ383) -> 357.1028638 | AI42: =LOOKUP(AI$3, Calculations!$I$4:$QJ$4, Calculations!$I383:$QJ383) -> 0 | AJ42: =LOOKUP(AJ$3, Calculations!$I$4:$QJ$4, Calculations!$I383:$QJ383) -> 38278.24251
C43: =Calculations!C384 -> Total Non-Current Assets | F43: =Calculations!E384 -> EUR | I43: =SUM(I40:I42) -> 1601146.777 | J43: =SUM(J40:J42) -> 3687555.537 | K43: 4483170.441 | L43: 4152008.209 | M43: 3841068.818 | N43: 3529314.517 | O43: 3238350.002 | P43: 2919617.577 | Q43: 2637363.069 | R43: 2412806.651 | S43: 2255215.933 | T43: 2077673.795 | U43: 1916104.643 | V43: 1760518.557 | W43: 1611649.135 | X43: 1466441.283 | Y43: 1327363.82 | Z43: 1185429.968 | AA43: 1048026.813 | AB43: 891543.7463 | AC43: 1217566.763 | AD43: 1091680.704 | AE43: 1007168.984 | AF43: 907291.4959 | AG43: =SUM(AG40:AG42) -> 815096.8919 | AH43: 723259.3907 | AI43: 638390.5674 | AJ43: 622888.6242
B45: Total Assets | F45: =Calculations!E386 -> EUR | I45: =I37+I43 -> 1800000 | J45: =J37+J43 -> 3800000 | K45: 4786157.364 | L45: 4532789.065 | M45: 4287965.473 | N45: 4039080.375 | O45: 3797350.763 | P45: 3541404.524 | Q45: 3308911.725 | R45: 3129582.833 | S45: 3004890.898 | T45: 2869058.028 | U45: 2736368.816 | V45: 2604022.394 | W45: 2466984.146 | X45: 2339575.754 | Y45: 2207014.608 | Z45: 2066084.513 | AA45: 1919810.372 | AB45: 1757388.007 | AC45: 1805036.924 | AD45: 1852401.604 | AE45: 1897057.594 | AF45: 1913891.61 | AG45: =AG37+AG43 -> 1929337.102 | AH45: 3083456.872 | AI45: 3276597.007 | AJ45: 3139566.868
B47: Current Liabilities
C48: =Calculations!C389 -> Accounts Payable | F48: =Calculations!E389 -> EUR | I48: =LOOKUP(I$3, Calculations!$I$4:$QJ$4, Calculations!$I389:$QJ389) -> 0 | J48: =LOOKUP(J$3, Calculations!$I$4:$QJ$4, Calculations!$I389:$QJ389) -> 0 | K48: =LOOKUP(K$3, Calculations!$I$4:$QJ$4, Calculations!$I389:$QJ389) -> 1281.752218 | L48: =LOOKUP(L$3, Calculations!$I$4:$QJ$4, Calculations!$I389:$QJ389) -> 1313.796024 | M48: =LOOKUP(M$3, Calculations!$I$4:$QJ$4, Calculations!$I389:$QJ389) -> 1346.640924 | N48: =LOOKUP(N$3, Calculations!$I$4:$QJ$4, Calculations!$I389:$QJ389) -> 1380.306947 | O48: =LOOKUP(O$3, Calculations!$I$4:$QJ$4, Calculations!$I389:$QJ389) -> 1414.814621 | P48: =LOOKUP(P$3, Calculations!$I$4:$QJ$4, Calculations!$I389:$QJ389) -> 1450.184987 | Q48: =LOOKUP(Q$3, Calculations!$I$4:$QJ$4, Calculations!$I389:$QJ389) -> 1486.439611 | R48: =LOOKUP(R$3, Calculations!$I$4:$QJ$4, Calculations!$I389:$QJ389) -> 1523.600602 | S48: =LOOKUP(S$3, Calculations!$I$4:$QJ$4, Calculations!$I389:$QJ389) -> 1561.690617 | T48: =LOOKUP(T$3, Calculations!$I$4:$QJ$4, Calculations!$I389:$QJ389) -> 1600.732882 | U48: =LOOKUP(U$3, Calculations!$I$4:$QJ$4, Calculations!$I389:$QJ389) -> 1640.751204 | V48: =LOOKUP(V$3, Calculations!$I$4:$QJ$4, Calculations!$I389:$QJ389) -> 1681.769984 | W48: =LOOKUP(W$3, Calculations!$I$4:$QJ$4, Calculations!$I389:$QJ389) -> 1723.814234 | X48: =LOOKUP(X$3, Calculations!$I$4:$QJ$4, Calculations!$I389:$QJ389) -> 1766.90959 | Y48: =LOOKUP(Y$3, Calculations!$I$4:$QJ$4, Calculations!$I389:$QJ389) -> 1811.082329 | Z48: =LOOKUP(Z$3, Calculations!$I$4:$QJ$4, Calculations!$I389:$QJ389) -> 1856.359388 | AA48: =LOOKUP(AA$3, Calculations!$I$4:$QJ$4, Calculations!$I389:$QJ389) -> 1902.768372 | AB48: =LOOKUP(AB$3, Calculations!$I$4:$QJ$4, Calculations!$I389:$QJ389) -> 1950.337582 | AC48: =LOOKUP(AC$3, Calculations!$I$4:$QJ$4, Calculations!$I389:$QJ389) -> 1999.096021 | AD48: =LOOKUP(AD$3, Calculations!$I$4:$QJ$4, Calculations!$I389:$QJ389) -> 4639.581009 | AE48: =LOOKUP(AE$3, Calculations!$I$4:$QJ$4, Calculations!$I389:$QJ389) -> 6366.337571 | AF48: =LOOKUP(AF$3, Calculations!$I$4:$QJ$4, Calculations!$I389:$QJ389) -> 5298.973927 | AG48: =LOOKUP(AG$3, Calculations!$I$4:$QJ$4, Calculations!$I389:$QJ389) -> 5700.679631 | AH48: =LOOKUP(AH$3, Calculations!$I$4:$QJ$4, Calculations!$I389:$QJ389) -> 4134.7795 | AI48: =LOOKUP(AI$3, Calculations!$I$4:$QJ$4, Calculations!$I389:$QJ389) -> 5544.330852 | AJ48: =LOOKUP(AJ$3, Calculations!$I$4:$QJ$4, Calculations!$I389:$QJ389) -> 7697.685537
C49: =Calculations!C390 -> Accrued Interest: Subordinated Debt | F49: =Calculations!E390 -> EUR | I49: =LOOKUP(I$3, Calculations!$I$4:$QJ$4, Calculations!$I390:$QJ390) -> 0 | J49: =LOOKUP(J$3, Calculations!$I$4:$QJ$4, Calculations!$I390:$QJ390) -> 0 | K49: =LOOKUP(K$3, Calculations!$I$4:$QJ$4, Calculations!$I390:$QJ390) -> 11952.79662 | L49: =LOOKUP(L$3, Calculations!$I$4:$QJ$4, Calculations!$I390:$QJ390) -> 23605.67403 | M49: =LOOKUP(M$3, Calculations!$I$4:$QJ$4, Calculations!$I390:$QJ390) -> 23133.03045 | N49: =LOOKUP(N$3, Calculations!$I$4:$QJ$4, Calculations!$I390:$QJ390) -> 22600.44384 | O49: =LOOKUP(O$3, Calculations!$I$4:$QJ$4, Calculations!$I390:$QJ390) -> 10945.42882 | P49: =LOOKUP(P$3, Calculations!$I$4:$QJ$4, Calculations!$I390:$QJ390) -> 21324.06824 | Q49: =LOOKUP(Q$3, Calculations!$I$4:$QJ$4, Calculations!$I390:$QJ390) -> 20562.05995 | R49: =LOOKUP(R$3, Calculations!$I$4:$QJ$4, Calculations!$I390:$QJ390) -> 19703.40992 | S49: =LOOKUP(S$3, Calculations!$I$4:$QJ$4, Calculations!$I390:$QJ390) -> 9321.324172 | T49: =LOOKUP(T$3, Calculations!$I$4:$QJ$4, Calculations!$I390:$QJ390) -> 17645.6039 | U49: =LOOKUP(U$3, Calculations!$I$4:$QJ$4, Calculations!$I390:$QJ390) -> 16417.07425 | V49: =LOOKUP(V$3, Calculations!$I$4:$QJ$4, Calculations!$I390:$QJ390) -> 15032.73629 | W49: =LOOKUP(W$3, Calculations!$I$4:$QJ$4, Calculations!$I390:$QJ390) -> 6702.900313 | X49: =LOOKUP(X$3, Calculations!$I$4:$QJ$4, Calculations!$I390:$QJ390) -> 11715.08776 | Y49: =LOOKUP(Y$3, Calculations!$I$4:$QJ$4, Calculations!$I390:$QJ390) -> 9734.42022 | Z49: =LOOKUP(Z$3, Calculations!$I$4:$QJ$4, Calculations!$I390:$QJ390) -> 7502.554462 | AA49: =LOOKUP(AA$3, Calculations!$I$4:$QJ$4, Calculations!$I390:$QJ390) -> 2481.409086 | AB49: =LOOKUP(AB$3, Calculations!$I$4:$QJ$4, Calculations!$I390:$QJ390) -> 2153.754978 | AC49: =LOOKUP(AC$3, Calculations!$I$4:$QJ$4, Calculations!$I390:$QJ390) -> -1039.528877 | AD49: =LOOKUP(AD$3, Calculations!$I$4:$QJ$4, Calculations!$I390:$QJ390) -> -4637.801054 | AE49: =LOOKUP(AE$3, Calculations!$I$4:$QJ$4, Calculations!$I390:$QJ390) -> -4324.589158 | AF49: =LOOKUP(AF$3, Calculations!$I$4:$QJ$4, Calculations!$I390:$QJ390) -> -13261.27507 | AG49: =LOOKUP(AG$3, Calculations!$I$4:$QJ$4, Calculations!$I390:$QJ390) -> -18409.57057 | AH49: =LOOKUP(AH$3, Calculations!$I$4:$QJ$4, Calculations!$I390:$QJ390) -> 0 | AI49: =LOOKUP(AI$3, Calculations!$I$4:$QJ$4, Calculations!$I390:$QJ390) -> 0 | AJ49: =LOOKUP(AJ$3, Calculations!$I$4:$QJ$4, Calculations!$I390:$QJ390) -> 0
C50: =Calculations!C391 -> Accrued Interest: Senior Debt | F50: =Calculations!E391 -> EUR | I50: =LOOKUP(I$3, Calculations!$I$4:$QJ$4, Calculations!$I391:$QJ391) -> 0 | J50: =LOOKUP(J$3, Calculations!$I$4:$QJ$4, Calculations!$I391:$QJ391) -> 0 | K50: =LOOKUP(K$3, Calculations!$I$4:$QJ$4, Calculations!$I391:$QJ391) -> 10957.34235 | L50: =LOOKUP(L$3, Calculations!$I$4:$QJ$4, Calculations!$I391:$QJ391) -> 21192.47469 | M50: =LOOKUP(M$3, Calculations!$I$4:$QJ$4, Calculations!$I391:$QJ391) -> 20376.47232 | N50: =LOOKUP(N$3, Calculations!$I$4:$QJ$4, Calculations!$I391:$QJ391) -> 19514.44101 | O50: =LOOKUP(O$3, Calculations!$I$4:$QJ$4, Calculations!$I391:$QJ391) -> 9280.624084 | P50: =LOOKUP(P$3, Calculations!$I$4:$QJ$4, Calculations!$I391:$QJ391) -> 17641.75952 | Q50: =LOOKUP(Q$3, Calculations!$I$4:$QJ$4, Calculations!$I391:$QJ391) -> 16625.46891 | R50: =LOOKUP(R$3, Calculations!$I$4:$QJ$4, Calculations!$I391:$QJ391) -> 15551.85152 | S50: =LOOKUP(S$3, Calculations!$I$4:$QJ$4, Calculations!$I391:$QJ391) -> 7192.354358 | T50: =LOOKUP(T$3, Calculations!$I$4:$QJ$4, Calculations!$I391:$QJ391) -> 13219.51928 | U50: =LOOKUP(U$3, Calculations!$I$4:$QJ$4, Calculations!$I391:$QJ391) -> 11953.77956 | V50: =LOOKUP(V$3, Calculations!$I$4:$QJ$4, Calculations!$I391:$QJ391) -> 10616.64217 | W50: =LOOKUP(W$3, Calculations!$I$4:$QJ$4, Calculations!$I391:$QJ391) -> 4591.517636 | X50: =LOOKUP(X$3, Calculations!$I$4:$QJ$4, Calculations!$I391:$QJ391) -> 7711.837655 | Y50: =LOOKUP(Y$3, Calculations!$I$4:$QJ$4, Calculations!$I391:$QJ391) -> 6135.421401 | Z50: =LOOKUP(Z$3, Calculations!$I$4:$QJ$4, Calculations!$I391:$QJ391) -> 4470.082878 | AA50: =LOOKUP(AA$3, Calculations!$I$4:$QJ$4, Calculations!$I391:$QJ391) -> 1352.304056 | AB50: =LOOKUP(AB$3, Calculations!$I$4:$QJ$4, Calculations!$I391:$QJ391) -> 852.2924325 | AC50: =LOOKUP(AC$3, Calculations!$I$4:$QJ$4, Calculations!$I391:$QJ391) -> 0 | AD50: =LOOKUP(AD$3, Calculations!$I$4:$QJ$4, Calculations!$I391:$QJ391) -> 0 | AE50: =LOOKUP(AE$3, Calculations!$I$4:$QJ$4, Calculations!$I391:$QJ391) -> 0 | AF50: =LOOKUP(AF$3, Calculations!$I$4:$QJ$4, Calculations!$I391:$QJ391) -> 0 | AG50: =LOOKUP(AG$3, Calculations!$I$4:$QJ$4, Calculations!$I391:$QJ391) -> 0 | AH50: =LOOKUP(AH$3, Calculations!$I$4:$QJ$4, Calculations!$I391:$QJ391) -> 0 | AI50: =LOOKUP(AI$3, Calculations!$I$4:$QJ$4, Calculations!$I391:$QJ391) -> 0 | AJ50: =LOOKUP(AJ$3, Calculations!$I$4:$QJ$4, Calculations!$I391:$QJ391) -> 0
C51: =Calculations!C392 -> Income Tax Payable | F51: =Calculations!E392 -> EUR | I51: =LOOKUP(I$3, Calculations!$I$4:$QJ$4, Calculations!$I392:$QJ392) -> 0 | J51: =LOOKUP(J$3, Calculations!$I$4:$QJ$4, Calculations!$I392:$QJ392) -> 0 | K51: =LOOKUP(K$3, Calculations!$I$4:$QJ$4, Calculations!$I392:$QJ392) -> 0 | L51: =LOOKUP(L$3, Calculations!$I$4:$QJ$4, Calculations!$I392:$QJ392) -> 0 | M51: =LOOKUP(M$3, Calculations!$I$4:$QJ$4, Calculations!$I392:$QJ392) -> 0 | N51: =LOOKUP(N$3, Calculations!$I$4:$QJ$4, Calculations!$I392:$QJ392) -> 0 | O51: =LOOKUP(O$3, Calculations!$I$4:$QJ$4, Calculations!$I392:$QJ392) -> 0 | P51: =LOOKUP(P$3, Calculations!$I$4:$QJ$4, Calculations!$I392:$QJ392) -> 0 | Q51: =LOOKUP(Q$3, Calculations!$I$4:$QJ$4, Calculations!$I392:$QJ392) -> 0 | R51: =LOOKUP(R$3, Calculations!$I$4:$QJ$4, Calculations!$I392:$QJ392) -> 0 | S51: =LOOKUP(S$3, Calculations!$I$4:$QJ$4, Calculations!$I392:$QJ392) -> 0 | T51: =LOOKUP(T$3, Calculations!$I$4:$QJ$4, Calculations!$I392:$QJ392) -> 0 | U51: =LOOKUP(U$3, Calculations!$I$4:$QJ$4, Calculations!$I392:$QJ392) -> 0 | V51: =LOOKUP(V$3, Calculations!$I$4:$QJ$4, Calculations!$I392:$QJ392) -> 0 | W51: =LOOKUP(W$3, Calculations!$I$4:$QJ$4, Calculations!$I392:$QJ392) -> 0 | X51: =LOOKUP(X$3, Calculations!$I$4:$QJ$4, Calculations!$I392:$QJ392) -> 0 | Y51: =LOOKUP(Y$3, Calculations!$I$4:$QJ$4, Calculations!$I392:$QJ392) -> 0 | Z51: =LOOKUP(Z$3, Calculations!$I$4:$QJ$4, Calculations!$I392:$QJ392) -> 0 | AA51: =LOOKUP(AA$3, Calculations!$I$4:$QJ$4, Calculations!$I392:$QJ392) -> 0 | AB51: =LOOKUP(AB$3, Calculations!$I$4:$QJ$4, Calculations!$I392:$QJ392) -> 0 | AC51: =LOOKUP(AC$3, Calculations!$I$4:$QJ$4, Calculations!$I392:$QJ392) -> 0 | AD51: =LOOKUP(AD$3, Calculations!$I$4:$QJ$4, Calculations!$I392:$QJ392) -> 274.2989048 | AE51: =LOOKUP(AE$3, Calculations!$I$4:$QJ$4, Calculations!$I392:$QJ392) -> 2846.795453 | AF51: =LOOKUP(AF$3, Calculations!$I$4:$QJ$4, Calculations!$I392:$QJ392) -> 882.6134885 | AG51: =LOOKUP(AG$3, Calculations!$I$4:$QJ$4, Calculations!$I392:$QJ392) -> 1257.187477 | AH51: =LOOKUP(AH$3, Calculations!$I$4:$QJ$4, Calculations!$I392:$QJ392) -> 0 | AI51: =LOOKUP(AI$3, Calculations!$I$4:$QJ$4, Calculations!$I392:$QJ392) -> 1790.675178 | AJ51: =LOOKUP(AJ$3, Calculations!$I$4:$QJ$4, Calculations!$I392:$QJ392) -> 0
C52: =Calculations!C393 -> Current Portion of Subordinated Debt | F52: =Calculations!E393 -> EUR | I52: =LOOKUP(I$3, Calculations!$I$4:$QJ$4, Calculations!$I393:$QJ393) -> 0 | J52: =LOOKUP(J$3, Calculations!$I$4:$QJ$4, Calculations!$I393:$QJ393) -> 0 | K52: =LOOKUP(K$3, Calculations!$I$4:$QJ$4, Calculations!$I393:$QJ393) -> 20868.01865 | L52: =LOOKUP(L$3, Calculations!$I$4:$QJ$4, Calculations!$I393:$QJ393) -> 23514.60575 | M52: =LOOKUP(M$3, Calculations!$I$4:$QJ$4, Calculations!$I393:$QJ393) -> 26496.84633 | N52: =LOOKUP(N$3, Calculations!$I$4:$QJ$4, Calculations!$I393:$QJ393) -> 29857.30966 | O52: =LOOKUP(O$3, Calculations!$I$4:$QJ$4, Calculations!$I393:$QJ393) -> 33643.96386 | P52: =LOOKUP(P$3, Calculations!$I$4:$QJ$4, Calculations!$I393:$QJ393) -> 37910.86059 | Q52: =LOOKUP(Q$3, Calculations!$I$4:$QJ$4, Calculations!$I393:$QJ393) -> 42718.90663 | R52: =LOOKUP(R$3, Calculations!$I$4:$QJ$4, Calculations!$I393:$QJ393) -> 48136.73325 | S52: =LOOKUP(S$3, Calculations!$I$4:$QJ$4, Calculations!$I393:$QJ393) -> 54241.67589 | T52: =LOOKUP(T$3, Calculations!$I$4:$QJ$4, Calculations!$I393:$QJ393) -> 61120.87807 | U52: =LOOKUP(U$3, Calculations!$I$4:$QJ$4, Calculations!$I393:$QJ393) -> 68872.53528 | V52: =LOOKUP(V$3, Calculations!$I$4:$QJ$4, Calculations!$I393:$QJ393) -> 77607.29664 | W52: =LOOKUP(W$3, Calculations!$I$4:$QJ$4, Calculations!$I393:$QJ393) -> 87449.84437 | X52: =LOOKUP(X$3, Calculations!$I$4:$QJ$4, Calculations!$I393:$QJ393) -> 98540.67352 | Y52: =LOOKUP(Y$3, Calculations!$I$4:$QJ$4, Calculations!$I393:$QJ393) -> 111038.0974 | Z52: =LOOKUP(Z$3, Calculations!$I$4:$QJ$4, Calculations!$I393:$QJ393) -> 125120.5075 | AA52: =LOOKUP(AA$3, Calculations!$I$4:$QJ$4, Calculations!$I393:$QJ393) -> 140988.9196 | AB52: =LOOKUP(AB$3, Calculations!$I$4:$QJ$4, Calculations!$I393:$QJ393) -> 107151.989 | AC52: =LOOKUP(AC$3, Calculations!$I$4:$QJ$4, Calculations!$I393:$QJ393) -> -51717.85459 | AD52: =LOOKUP(AD$3, Calculations!$I$4:$QJ$4, Calculations!$I393:$QJ393) -> -230736.3708 | AE52: =LOOKUP(AE$3, Calculations!$I$4:$QJ$4, Calculations!$I393:$QJ393) -> -432458.9158 | AF52: =LOOKUP(AF$3, Calculations!$I$4:$QJ$4, Calculations!$I393:$QJ393) -> -659764.9286 | AG52: =LOOKUP(AG$3, Calculations!$I$4:$QJ$4, Calculations!$I393:$QJ393) -> -915899.0334 | AH52: =LOOKUP(AH$3, Calculations!$I$4:$QJ$4, Calculations!$I393:$QJ393) -> 0 | AI52: =LOOKUP(AI$3, Calculations!$I$4:$QJ$4, Calculations!$I393:$QJ393) -> 0 | AJ52: =LOOKUP(AJ$3, Calculations!$I$4:$QJ$4, Calculations!$I393:$QJ393) -> 0
C53: =Calculations!C394 -> Current Portion of Senior Debt | F53: =Calculations!E394 -> EUR | I53: =LOOKUP(I$3, Calculations!$I$4:$QJ$4, Calculations!$I394:$QJ394) -> 0 | J53: =LOOKUP(J$3, Calculations!$I$4:$QJ$4, Calculations!$I394:$QJ394) -> 9307.122798 | K53: =LOOKUP(K$3, Calculations!$I$4:$QJ$4, Calculations!$I394:$QJ394) -> 84072.55263 | L53: =LOOKUP(L$3, Calculations!$I$4:$QJ$4, Calculations!$I394:$QJ394) -> 88814.90544 | M53: =LOOKUP(M$3, Calculations!$I$4:$QJ$4, Calculations!$I394:$QJ394) -> 93824.76423 | N53: =LOOKUP(N$3, Calculations!$I$4:$QJ$4, Calculations!$I394:$QJ394) -> 99117.21843 | O53: =LOOKUP(O$3, Calculations!$I$4:$QJ$4, Calculations!$I394:$QJ394) -> 104708.2086 | P53: =LOOKUP(P$3, Calculations!$I$4:$QJ$4, Calculations!$I394:$QJ394) -> 110614.5747 | Q53: =LOOKUP(Q$3, Calculations!$I$4:$QJ$4, Calculations!$I394:$QJ394) -> 116854.1061 | R53: =LOOKUP(R$3, Calculations!$I$4:$QJ$4, Calculations!$I394:$QJ394) -> 123445.5962 | S53: =LOOKUP(S$3, Calculations!$I$4:$QJ$4, Calculations!$I394:$QJ394) -> 130408.8982 | T53: =LOOKUP(T$3, Calculations!$I$4:$QJ$4, Calculations!$I394:$QJ394) -> 137764.9851 | U53: =LOOKUP(U$3, Calculations!$I$4:$QJ$4, Calculations!$I394:$QJ394) -> 145536.0132 | V53: =LOOKUP(V$3, Calculations!$I$4:$QJ$4, Calculations!$I394:$QJ394) -> 153745.3883 | W53: =LOOKUP(W$3, Calculations!$I$4:$QJ$4, Calculations!$I394:$QJ394) -> 162417.8367 | X53: =LOOKUP(X$3, Calculations!$I$4:$QJ$4, Calculations!$I394:$QJ394) -> 171579.4793 | Y53: =LOOKUP(Y$3, Calculations!$I$4:$QJ$4, Calculations!$I394:$QJ394) -> 181257.9107 | Z53: =LOOKUP(Z$3, Calculations!$I$4:$QJ$4, Calculations!$I394:$QJ394) -> 191482.2816 | AA53: =LOOKUP(AA$3, Calculations!$I$4:$QJ$4, Calculations!$I394:$QJ394) -> 202283.3874 | AB53: =LOOKUP(AB$3, Calculations!$I$4:$QJ$4, Calculations!$I394:$QJ394) -> 92764.77034 | AC53: =LOOKUP(AC$3, Calculations!$I$4:$QJ$4, Calculations!$I394:$QJ394) -> 0 | AD53: =LOOKUP(AD$3, Calculations!$I$4:$QJ$4, Calculations!$I394:$QJ394) -> 0 | AE53: =LOOKUP(AE$3, Calculations!$I$4:$QJ$4, Calculations!$I394:$QJ394) -> 0 | AF53: =LOOKUP(AF$3, Calculations!$I$4:$QJ$4, Calculations!$I394:$QJ394) -> 0 | AG53: =LOOKUP(AG$3, Calculations!$I$4:$QJ$4, Calculations!$I394:$QJ394) -> 0 | AH53: =LOOKUP(AH$3, Calculations!$I$4:$QJ$4, Calculations!$I394:$QJ394) -> 0 | AI53: =LOOKUP(AI$3, Calculations!$I$4:$QJ$4, Calculations!$I394:$QJ394) -> 0 | AJ53: =LOOKUP(AJ$3, Calculations!$I$4:$QJ$4, Calculations!$I394:$QJ394) -> 0
C54: =Calculations!C395 -> Total Current Liabilities | F54: =Calculations!E395 -> EUR | I54: =SUM(I48:I53) -> 0 | J54: =SUM(J48:J53) -> 9307.122798 | K54: 129132.4625 | L54: 158441.4559 | M54: 165177.7543 | N54: 172469.7199 | O54: 159993.04 | P54: 188941.448 | Q54: 198246.9812 | R54: 208361.1915 | S54: 202725.9432 | T54: 231351.7193 | U54: 244420.1535 | V54: 258683.8334 | W54: 262885.9132 | X54: 291313.9879 | Y54: 309976.932 | Z54: 330431.7858 | AA54: 349008.7885 | AB54: 204873.1443 | AC54: -50758.28744 | AD54: -230460.292 | AE54: -427570.3719 | AF54: -666844.6163 | AG54: =SUM(AG48:AG53) -> -927350.7368 | AH54: 4134.7795 | AI54: 7335.006029 | AJ54: 7697.685537
B56: Non-Current Liabilities
C57: =Calculations!C398 -> Subordinated Debt | F57: =Calculations!E398 -> EUR | I57: =LOOKUP(I$3, Calculations!$I$4:$QJ$4, Calculations!$I398:$QJ398) -> 600000 | J57: =LOOKUP(J$3, Calculations!$I$4:$QJ$4, Calculations!$I398:$QJ398) -> 1200000 | K57: =LOOKUP(K$3, Calculations!$I$4:$QJ$4, Calculations!$I398:$QJ398) -> 1174411.643 | L57: =LOOKUP(L$3, Calculations!$I$4:$QJ$4, Calculations!$I398:$QJ398) -> 1150897.038 | M57: =LOOKUP(M$3, Calculations!$I$4:$QJ$4, Calculations!$I398:$QJ398) -> 1124400.191 | N57: =LOOKUP(N$3, Calculations!$I$4:$QJ$4, Calculations!$I398:$QJ398) -> 1094542.882 | O57: =LOOKUP(O$3, Calculations!$I$4:$QJ$4, Calculations!$I398:$QJ398) -> 1060898.918 | P57: =LOOKUP(P$3, Calculations!$I$4:$QJ$4, Calculations!$I398:$QJ398) -> 1022988.057 | Q57: =LOOKUP(Q$3, Calculations!$I$4:$QJ$4, Calculations!$I398:$QJ398) -> 980269.1504 | R57: =LOOKUP(R$3, Calculations!$I$4:$QJ$4, Calculations!$I398:$QJ398) -> 932132.4172 | S57: =LOOKUP(S$3, Calculations!$I$4:$QJ$4, Calculations!$I398:$QJ398) -> 877890.7413 | T57: =LOOKUP(T$3, Calculations!$I$4:$QJ$4, Calculations!$I398:$QJ398) -> 816769.8632 | U57: =LOOKUP(U$3, Calculations!$I$4:$QJ$4, Calculations!$I398:$QJ398) -> 747897.3279 | V57: =LOOKUP(V$3, Calculations!$I$4:$QJ$4, Calculations!$I398:$QJ398) -> 670290.0313 | W57: =LOOKUP(W$3, Calculations!$I$4:$QJ$4, Calculations!$I398:$QJ398) -> 582840.1869 | X57: =LOOKUP(X$3, Calculations!$I$4:$QJ$4, Calculations!$I398:$QJ398) -> 484299.5134 | Y57: =LOOKUP(Y$3, Calculations!$I$4:$QJ$4, Calculations!$I398:$QJ398) -> 373261.416 | Z57: =LOOKUP(Z$3, Calculations!$I$4:$QJ$4, Calculations!$I398:$QJ398) -> 248140.9086 | AA57: =LOOKUP(AA$3, Calculations!$I$4:$QJ$4, Calculations!$I398:$QJ398) -> 107151.989 | AB57: =LOOKUP(AB$3, Calculations!$I$4:$QJ$4, Calculations!$I398:$QJ398) -> 0 | AC57: =LOOKUP(AC$3, Calculations!$I$4:$QJ$4, Calculations!$I398:$QJ398) -> 0 | AD57: =LOOKUP(AD$3, Calculations!$I$4:$QJ$4, Calculations!$I398:$QJ398) -> 0 | AE57: =LOOKUP(AE$3, Calculations!$I$4:$QJ$4, Calculations!$I398:$QJ398) -> 0 | AF57: =LOOKUP(AF$3, Calculations!$I$4:$QJ$4, Calculations!$I398:$QJ398) -> 0 | AG57: =LOOKUP(AG$3, Calculations!$I$4:$QJ$4, Calculations!$I398:$QJ398) -> 0 | AH57: =LOOKUP(AH$3, Calculations!$I$4:$QJ$4, Calculations!$I398:$QJ398) -> 0 | AI57: =LOOKUP(AI$3, Calculations!$I$4:$QJ$4, Calculations!$I398:$QJ398) -> 0 | AJ57: =LOOKUP(AJ$3, Calculations!$I$4:$QJ$4, Calculations!$I398:$QJ398) -> 0
C58: =Calculations!C399 -> Long-Term Senior Debt | F58: =Calculations!E399 -> EUR | I58: =LOOKUP(I$3, Calculations!$I$4:$QJ$4, Calculations!$I399:$QJ399) -> 0 | J58: =LOOKUP(J$3, Calculations!$I$4:$QJ$4, Calculations!$I399:$QJ399) -> 1390692.877 | K58: =LOOKUP(K$3, Calculations!$I$4:$QJ$4, Calculations!$I399:$QJ399) -> 2306620.325 | L58: =LOOKUP(L$3, Calculations!$I$4:$QJ$4, Calculations!$I399:$QJ399) -> 2217805.419 | M58: =LOOKUP(M$3, Calculations!$I$4:$QJ$4, Calculations!$I399:$QJ399) -> 2123980.655 | N58: =LOOKUP(N$3, Calculations!$I$4:$QJ$4, Calculations!$I399:$QJ399) -> 2024863.436 | O58: =LOOKUP(O$3, Calculations!$I$4:$QJ$4, Calculations!$I399:$QJ399) -> 1920155.228 | P58: =LOOKUP(P$3, Calculations!$I$4:$QJ$4, Calculations!$I399:$QJ399) -> 1809540.653 | Q58: =LOOKUP(Q$3, Calculations!$I$4:$QJ$4, Calculations!$I399:$QJ399) -> 1692686.547 | R58: =LOOKUP(R$3, Calculations!$I$4:$QJ$4, Calculations!$I399:$QJ399) -> 1569240.951 | S58: =LOOKUP(S$3, Calculations!$I$4:$QJ$4, Calculations!$I399:$QJ399) -> 1438832.053 | T58: =LOOKUP(T$3, Calculations!$I$4:$QJ$4, Calculations!$I399:$QJ399) -> 1301067.067 | U58: =LOOKUP(U$3, Calculations!$I$4:$QJ$4, Calculations!$I399:$QJ399) -> 1155531.054 | V58: =LOOKUP(V$3, Calculations!$I$4:$QJ$4, Calculations!$I399:$QJ399) -> 1001785.666 | W58: =LOOKUP(W$3, Calculations!$I$4:$QJ$4, Calculations!$I399:$QJ399) -> 839367.8293 | X58: =LOOKUP(X$3, Calculations!$I$4:$QJ$4, Calculations!$I399:$QJ399) -> 667788.35 | Y58: =LOOKUP(Y$3, Calculations!$I$4:$QJ$4, Calculations!$I399:$QJ399) -> 486530.4393 | Z58: =LOOKUP(Z$3, Calculations!$I$4:$QJ$4, Calculations!$I399:$QJ399) -> 295048.1577 | AA58: =LOOKUP(AA$3, Calculations!$I$4:$QJ$4, Calculations!$I399:$QJ399) -> 92764.77034 | AB58: =LOOKUP(AB$3, Calculations!$I$4:$QJ$4, Calculations!$I399:$QJ399) -> 0 | AC58: =LOOKUP(AC$3, Calculations!$I$4:$QJ$4, Calculations!$I399:$QJ399) -> 0 | AD58: =LOOKUP(AD$3, Calculations!$I$4:$QJ$4, Calculations!$I399:$QJ399) -> 0 | AE58: =LOOKUP(AE$3, Calculations!$I$4:$QJ$4, Calculations!$I399:$QJ399) -> 0 | AF58: =LOOKUP(AF$3, Calculations!$I$4:$QJ$4, Calculations!$I399:$QJ399) -> 0 | AG58: =LOOKUP(AG$3, Calculations!$I$4:$QJ$4, Calculations!$I399:$QJ399) -> 0 | AH58: =LOOKUP(AH$3, Calculations!$I$4:$QJ$4, Calculations!$I399:$QJ399) -> 0 | AI58: =LOOKUP(AI$3, Calculations!$I$4:$QJ$4, Calculations!$I399:$QJ399) -> 0 | AJ58: =LOOKUP(AJ$3, Calculations!$I$4:$QJ$4, Calculations!$I399:$QJ399) -> 0
C59: =Calculations!C400 -> Total Non-Current Liabilities | F59: =Calculations!E400 -> EUR | I59: =SUM(I57:I58) -> 600000 | J59: 2590692.877 | K59: 3481031.968 | L59: 3368702.457 | M59: 3248380.846 | N59: 3119406.318 | O59: 2981054.145 | P59: 2832528.71 | Q59: 2672955.697 | R59: 2501373.368 | S59: 2316722.794 | T59: 2117836.931 | U59: 1903428.382 | V59: 1672075.697 | W59: 1422208.016 | X59: 1152087.863 | Y59: 859791.8553 | Z59: 543189.0663 | AA59: 199916.7593 | AB59: 0 | AC59: 0 | AD59: 0 | AE59: 0 | AF59: 0 | AG59: 0 | AH59: 0 | AI59: 0 | AJ59: =SUM(AJ57:AJ58) -> 0
B61: Total Liabilities | F61: =Calculations!E402 -> EUR | I61: =I54+I59 -> 600000 | J61: 2600000 | K61: 3610164.43 | L61: 3527143.913 | M61: 3413558.6 | N61: 3291876.038 | O61: 3141047.186 | P61: 3021470.158 | Q61: 2871202.679 | R61: 2709734.56 | S61: 2519448.737 | T61: 2349188.65 | U61: 2147848.536 | V61: 1930759.531 | W61: 1685093.929 | X61: 1443401.851 | Y61: 1169768.787 | Z61: 873620.852 | AA61: 548925.5478 | AB61: 204873.1443 | AC61: -50758.28744 | AD61: -230460.292 | AE61: -427570.3719 | AF61: -666844.6163 | AG61: -927350.7368 | AH61: 4134.7795 | AI61: 7335.006029 | AJ61: =AJ54+AJ59 -> 7697.685537
B63: Shareholders' Equity
C64: =Calculations!C405 -> Share Capital | F64: =Calculations!E405 -> EUR | I64: =LOOKUP(I$3, Calculations!$I$4:$QJ$4, Calculations!$I405:$QJ405) -> 1200000 | J64: =LOOKUP(J$3, Calculations!$I$4:$QJ$4, Calculations!$I405:$QJ405) -> 1200000 | K64: =LOOKUP(K$3, Calculations!$I$4:$QJ$4, Calculations!$I405:$QJ405) -> 1200000 | L64: =LOOKUP(L$3, Calculations!$I$4:$QJ$4, Calculations!$I405:$QJ405) -> 1200000 | M64: =LOOKUP(M$3, Calculations!$I$4:$QJ$4, Calculations!$I405:$QJ405) -> 1200000 | N64: =LOOKUP(N$3, Calculations!$I$4:$QJ$4, Calculations!$I405:$QJ405) -> 1200000 | O64: =LOOKUP(O$3, Calculations!$I$4:$QJ$4, Calculations!$I405:$QJ405) -> 1200000 | P64: =LOOKUP(P$3, Calculations!$I$4:$QJ$4, Calculations!$I405:$QJ405) -> 1200000 | Q64: =LOOKUP(Q$3, Calculations!$I$4:$QJ$4, Calculations!$I405:$QJ405) -> 1200000 | R64: =LOOKUP(R$3, Calculations!$I$4:$QJ$4, Calculations!$I405:$QJ405) -> 1200000 | S64: =LOOKUP(S$3, Calculations!$I$4:$QJ$4, Calculations!$I405:$QJ405) -> 1200000 | T64: =LOOKUP(T$3, Calculations!$I$4:$QJ$4, Calculations!$I405:$QJ405) -> 1200000 | U64: =LOOKUP(U$3, Calculations!$I$4:$QJ$4, Calculations!$I405:$QJ405) -> 1200000 | V64: =LOOKUP(V$3, Calculations!$I$4:$QJ$4, Calculations!$I405:$QJ405) -> 1200000 | W64: =LOOKUP(W$3, Calculations!$I$4:$QJ$4, Calculations!$I405:$QJ405) -> 1200000 | X64: =LOOKUP(X$3, Calculations!$I$4:$QJ$4, Calculations!$I405:$QJ405) -> 1200000 | Y64: =LOOKUP(Y$3, Calculations!$I$4:$QJ$4, Calculations!$I405:$QJ405) -> 1200000 | Z64: =LOOKUP(Z$3, Calculations!$I$4:$QJ$4, Calculations!$I405:$QJ405) -> 1200000 | AA64: =LOOKUP(AA$3, Calculations!$I$4:$QJ$4, Calculations!$I405:$QJ405) -> 1200000 | AB64: =LOOKUP(AB$3, Calculations!$I$4:$QJ$4, Calculations!$I405:$QJ405) -> 1200000 | AC64: =LOOKUP(AC$3, Calculations!$I$4:$QJ$4, Calculations!$I405:$QJ405) -> 1200000 | AD64: =LOOKUP(AD$3, Calculations!$I$4:$QJ$4, Calculations!$I405:$QJ405) -> 1200000 | AE64: =LOOKUP(AE$3, Calculations!$I$4:$QJ$4, Calculations!$I405:$QJ405) -> 1200000 | AF64: =LOOKUP(AF$3, Calculations!$I$4:$QJ$4, Calculations!$I405:$QJ405) -> 1200000 | AG64: =LOOKUP(AG$3, Calculations!$I$4:$QJ$4, Calculations!$I405:$QJ405) -> 1200000 | AH64: =LOOKUP(AH$3, Calculations!$I$4:$QJ$4, Calculations!$I405:$QJ405) -> 1200000 | AI64: =LOOKUP(AI$3, Calculations!$I$4:$QJ$4, Calculations!$I405:$QJ405) -> 1200000 | AJ64: =LOOKUP(AJ$3, Calculations!$I$4:$QJ$4, Calculations!$I405:$QJ405) -> 1200000
C65: =Calculations!C406 -> Retained Earnings | F65: =Calculations!E406 -> EUR | I65: =LOOKUP(I$3, Calculations!$I$4:$QJ$4, Calculations!$I406:$QJ406) -> 0 | J65: =LOOKUP(J$3, Calculations!$I$4:$QJ$4, Calculations!$I406:$QJ406) -> 0 | K65: =LOOKUP(K$3, Calculations!$I$4:$QJ$4, Calculations!$I406:$QJ406) -> -24007 | L65: =LOOKUP(L$3, Calculations!$I$4:$QJ$4, Calculations!$I406:$QJ406) -> -194354 | M65: =LOOKUP(M$3, Calculations!$I$4:$QJ$4, Calculations!$I406:$QJ406) -> -325591 | N65: =LOOKUP(N$3, Calculations!$I$4:$QJ$4, Calculations!$I406:$QJ406) -> -452794 | O65: =LOOKUP(O$3, Calculations!$I$4:$QJ$4, Calculations!$I406:$QJ406) -> -543696 | P65: =LOOKUP(P$3, Calculations!$I$4:$QJ$4, Calculations!$I406:$QJ406) -> -680064 | Q65: =LOOKUP(Q$3, Calculations!$I$4:$QJ$4, Calculations!$I406:$QJ406) -> -762290 | R65: =LOOKUP(R$3, Calculations!$I$4:$QJ$4, Calculations!$I406:$QJ406) -> -780149 | S65: =LOOKUP(S$3, Calculations!$I$4:$QJ$4, Calculations!$I406:$QJ406) -> -714555 | T65: =LOOKUP(T$3, Calculations!$I$4:$QJ$4, Calculations!$I406:$QJ406) -> -680128 | U65: =LOOKUP(U$3, Calculations!$I$4:$QJ$4, Calculations!$I406:$QJ406) -> -611478 | V65: =LOOKUP(V$3, Calculations!$I$4:$QJ$4, Calculations!$I406:$QJ406) -> -526733 | W65: =LOOKUP(W$3, Calculations!$I$4:$QJ$4, Calculations!$I406:$QJ406) -> -418107 | X65: =LOOKUP(X$3, Calculations!$I$4:$QJ$4, Calculations!$I406:$QJ406) -> -303824 | Y65: =LOOKUP(Y$3, Calculations!$I$4:$QJ$4, Calculations!$I406:$QJ406) -> -162753 | Z65: =LOOKUP(Z$3, Calculations!$I$4:$QJ$4, Calculations!$I406:$QJ406) -> -7535 | AA65: =LOOKUP(AA$3, Calculations!$I$4:$QJ$4, Calculations!$I406:$QJ406) -> 170888 | AB65: =LOOKUP(AB$3, Calculations!$I$4:$QJ$4, Calculations!$I406:$QJ406) -> 352519 | AC65: =LOOKUP(AC$3, Calculations!$I$4:$QJ$4, Calculations!$I406:$QJ406) -> 563035 | AD65: =LOOKUP(AD$3, Calculations!$I$4:$QJ$4, Calculations!$I406:$QJ406) -> 790103 | AE65: =LOOKUP(AE$3, Calculations!$I$4:$QJ$4, Calculations!$I406:$QJ406) -> 1031869 | AF65: =LOOKUP(AF$3, Calculations!$I$4:$QJ$4, Calculations!$I406:$QJ406) -> 1287978 | AG65: =LOOKUP(AG$3, Calculations!$I$4:$QJ$4, Calculations!$I406:$QJ406) -> 1563930 | AH65: =LOOKUP(AH$3, Calculations!$I$4:$QJ$4, Calculations!$I406:$QJ406) -> 1786563 | AI65: =LOOKUP(AI$3, Calculations!$I$4:$QJ$4, Calculations!$I406:$QJ406) -> 1976503 | AJ65: =LOOKUP(AJ$3, Calculations!$I$4:$QJ$4, Calculations!$I406:$QJ406) -> 1839109
C66: =Calculations!C407 -> Rounding | F66: =Calculations!E407 -> 0 | I66: =LOOKUP(I$3, Calculations!$I$4:$QJ$4, Calculations!$I407:$QJ407) -> 0 | J66: =LOOKUP(J$3, Calculations!$I$4:$QJ$4, Calculations!$I407:$QJ407) -> -4.656612873e-10 | K66: =LOOKUP(K$3, Calculations!$I$4:$QJ$4, Calculations!$I407:$QJ407) -> -0.06590039982 | L66: =LOOKUP(L$3, Calculations!$I$4:$QJ$4, Calculations!$I407:$QJ407) -> -0.8479784536 | M66: =LOOKUP(M$3, Calculations!$I$4:$QJ$4, Calculations!$I407:$QJ407) -> -2.127553903 | N66: =LOOKUP(N$3, Calculations!$I$4:$QJ$4, Calculations!$I407:$QJ407) -> -1.662648645 | O66: =LOOKUP(O$3, Calculations!$I$4:$QJ$4, Calculations!$I407:$QJ407) -> -0.4229566613 | P66: =LOOKUP(P$3, Calculations!$I$4:$QJ$4, Calculations!$I407:$QJ407) -> -1.633977512 | Q66: =LOOKUP(Q$3, Calculations!$I$4:$QJ$4, Calculations!$I407:$QJ407) -> -0.9532593018 | R66: =LOOKUP(R$3, Calculations!$I$4:$QJ$4, Calculations!$I407:$QJ407) -> -2.726356292 | S66: =LOOKUP(S$3, Calculations!$I$4:$QJ$4, Calculations!$I407:$QJ407) -> -2.838622858 | T66: =LOOKUP(T$3, Calculations!$I$4:$QJ$4, Calculations!$I407:$QJ407) -> -2.621526009 | U66: =LOOKUP(U$3, Calculations!$I$4:$QJ$4, Calculations!$I407:$QJ407) -> -1.719234783 | V66: =LOOKUP(V$3, Calculations!$I$4:$QJ$4, Calculations!$I407:$QJ407) -> -4.136377857 | W66: =LOOKUP(W$3, Calculations!$I$4:$QJ$4, Calculations!$I407:$QJ407) -> -2.78391796 | X66: =LOOKUP(X$3, Calculations!$I$4:$QJ$4, Calculations!$I407:$QJ407) -> -2.097676046 | Y66: =LOOKUP(Y$3, Calculations!$I$4:$QJ$4, Calculations!$I407:$QJ407) -> -1.1798077 | Z66: =LOOKUP(Z$3, Calculations!$I$4:$QJ$4, Calculations!$I407:$QJ407) -> -1.339305281 | AA66: =LOOKUP(AA$3, Calculations!$I$4:$QJ$4, Calculations!$I407:$QJ407) -> -3.175672349 | AB66: =LOOKUP(AB$3, Calculations!$I$4:$QJ$4, Calculations!$I407:$QJ407) -> -4.136869423 | AC66: =LOOKUP(AC$3, Calculations!$I$4:$QJ$4, Calculations!$I407:$QJ407) -> 92760.21194 | AD66: =LOOKUP(AD$3, Calculations!$I$4:$QJ$4, Calculations!$I407:$QJ407) -> 92758.89629 | AE66: =LOOKUP(AE$3, Calculations!$I$4:$QJ$4, Calculations!$I407:$QJ407) -> 92758.96547 | AF66: =LOOKUP(AF$3, Calculations!$I$4:$QJ$4, Calculations!$I407:$QJ407) -> 92758.22609 | AG66: =LOOKUP(AG$3, Calculations!$I$4:$QJ$4, Calculations!$I407:$QJ407) -> 92757.83845 | AH66: =LOOKUP(AH$3, Calculations!$I$4:$QJ$4, Calculations!$I407:$QJ407) -> 92759.09267 | AI66: =LOOKUP(AI$3, Calculations!$I$4:$QJ$4, Calculations!$I407:$QJ407) -> 92759.00126 | AJ66: =LOOKUP(AJ$3, Calculations!$I$4:$QJ$4, Calculations!$I407:$QJ407) -> 92760.18247
C67: =Calculations!C408 -> Total Shareholders' Equity | F67: =Calculations!E408 -> EUR | I67: =LOOKUP(I$3, Calculations!$I$4:$QJ$4, Calculations!$I408:$QJ408) -> 1200000 | J67: =LOOKUP(J$3, Calculations!$I$4:$QJ$4, Calculations!$I408:$QJ408) -> 1200000 | K67: =LOOKUP(K$3, Calculations!$I$4:$QJ$4, Calculations!$I408:$QJ408) -> 1175992.934 | L67: =LOOKUP(L$3, Calculations!$I$4:$QJ$4, Calculations!$I408:$QJ408) -> 1005645.152 | M67: =LOOKUP(M$3, Calculations!$I$4:$QJ$4, Calculations!$I408:$QJ408) -> 874406.8724 | N67: =LOOKUP(N$3, Calculations!$I$4:$QJ$4, Calculations!$I408:$QJ408) -> 747204.3374 | O67: =LOOKUP(O$3, Calculations!$I$4:$QJ$4, Calculations!$I408:$QJ408) -> 656303.577 | P67: =LOOKUP(P$3, Calculations!$I$4:$QJ$4, Calculations!$I408:$QJ408) -> 519934.366 | Q67: =LOOKUP(Q$3, Calculations!$I$4:$QJ$4, Calculations!$I408:$QJ408) -> 437709.0467 | R67: =LOOKUP(R$3, Calculations!$I$4:$QJ$4, Calculations!$I408:$QJ408) -> 419848.2736 | S67: =LOOKUP(S$3, Calculations!$I$4:$QJ$4, Calculations!$I408:$QJ408) -> 485442.1614 | T67: =LOOKUP(T$3, Calculations!$I$4:$QJ$4, Calculations!$I408:$QJ408) -> 519869.3785 | U67: =LOOKUP(U$3, Calculations!$I$4:$QJ$4, Calculations!$I408:$QJ408) -> 588520.2808 | V67: =LOOKUP(V$3, Calculations!$I$4:$QJ$4, Calculations!$I408:$QJ408) -> 673262.8636 | W67: =LOOKUP(W$3, Calculations!$I$4:$QJ$4, Calculations!$I408:$QJ408) -> 781890.2161 | X67: =LOOKUP(X$3, Calculations!$I$4:$QJ$4, Calculations!$I408:$QJ408) -> 896173.9023 | Y67: =LOOKUP(Y$3, Calculations!$I$4:$QJ$4, Calculations!$I408:$QJ408) -> 1037245.82 | Z67: =LOOKUP(Z$3, Calculations!$I$4:$QJ$4, Calculations!$I408:$QJ408) -> 1192463.661 | AA67: =LOOKUP(AA$3, Calculations!$I$4:$QJ$4, Calculations!$I408:$QJ408) -> 1370884.824 | AB67: =LOOKUP(AB$3, Calculations!$I$4:$QJ$4, Calculations!$I408:$QJ408) -> 1552514.863 | AC67: =LOOKUP(AC$3, Calculations!$I$4:$QJ$4, Calculations!$I408:$QJ408) -> 1855795.212 | AD67: =LOOKUP(AD$3, Calculations!$I$4:$QJ$4, Calculations!$I408:$QJ408) -> 2082861.896 | AE67: =LOOKUP(AE$3, Calculations!$I$4:$QJ$4, Calculations!$I408:$QJ408) -> 2324627.965 | AF67: =LOOKUP(AF$3, Calculations!$I$4:$QJ$4, Calculations!$I408:$QJ408) -> 2580736.226 | AG67: =LOOKUP(AG$3, Calculations!$I$4:$QJ$4, Calculations!$I408:$QJ408) -> 2856687.838 | AH67: =LOOKUP(AH$3, Calculations!$I$4:$QJ$4, Calculations!$I408:$QJ408) -> 3079322.093 | AI67: =LOOKUP(AI$3, Calculations!$I$4:$QJ$4, Calculations!$I408:$QJ408) -> 3269262.001 | AJ67: =LOOKUP(AJ$3, Calculations!$I$4:$QJ$4, Calculations!$I408:$QJ408) -> 3131869.182
B69: Total Liabilities & Shareholders' Equity | F69: =Calculations!E410 -> EUR | I69: =I61+I67 -> 1800000 | J69: =J61+J67 -> 3800000 | K69: 4786157.364 | L69: 4532789.065 | M69: 4287965.473 | N69: 4039080.375 | O69: 3797350.763 | P69: 3541404.524 | Q69: 3308911.725 | R69: 3129582.833 | S69: 3004890.898 | T69: 2869058.028 | U69: 2736368.816 | V69: 2604022.394 | W69: 2466984.146 | X69: 2339575.754 | Y69: 2207014.608 | Z69: 2066084.513 | AA69: 1919810.372 | AB69: 1757388.007 | AC69: 1805036.924 | AD69: 1852401.604 | AE69: 1897057.594 | AF69: 1913891.61 | AG69: =AG61+AG67 -> 1929337.102 | AH69: 3083456.872 | AI69: 3276597.007 | AJ69: 3139566.868
M70: =M45-M69 -> 0 | N70: =N45-N69 -> 0 | O70: =O45-O69 -> 0 | P70: 0 | Q70: 0 | R70: 0 | S70: 0 | T70: 0 | U70: 0 | V70: 0
C71: Balance Check | F71: Check | H71: =IF(COUNTIF(I71:AT71, "NO")>0, "NO", "OK") -> OK | I71: =IF(ROUND(I45-I69, 0)=0, "OK", "NO") -> OK | J71: =IF(ROUND(J45-J69, 0)=0, "OK", "NO") -> OK | K71: OK | L71: OK | M71: OK | N71: OK | O71: OK | P71: OK | Q71: OK | R71: OK | S71: OK | T71: OK | U71: OK | V71: OK | W71: OK | X71: OK | Y71: OK | Z71: OK | AA71: OK | AB71: OK | AC71: OK | AD71: OK | AE71: OK | AF71: OK | AG71: OK | AH71: OK | AI71: OK | AJ71: =IF(ROUND(AJ45-AJ69, 0)=0, "OK", "NO") -> OK
A73: · | B73: Cash Flow Statement | F73: Unit
B75: Operating Activities
C76: =Calculations!C417 -> Net Income | D76: =SUM(K76:AA76)+AB76/2 -> 258058.1518 | E76: =H76-D76 -> 1581046.26 | F76: =Calculations!E417 -> EUR | H76: =SUM(I76:AT76) -> 1839104.412 | I76: =SUMIF(Calculations!$I$8:$QJ$8, I$2, Calculations!$I417:$QJ417) -> 0 | J76: 0 | K76: =SUMIF(Calculations!$I$8:$QJ$8, K$2, Calculations!$I417:$QJ417) -> -61350.99046 | L76: =SUMIF(Calculations!$I$8:$QJ$8, L$2, Calculations!$I417:$QJ417) -> -133003.8575 | M76: =SUMIF(Calculations!$I$8:$QJ$8, M$2, Calculations!$I417:$QJ417) -> -131238.2796 | N76: =SUMIF(Calculations!$I$8:$QJ$8, N$2, Calculations!$I417:$QJ417) -> -127202.5351 | O76: =SUMIF(Calculations!$I$8:$QJ$8, O$2, Calculations!$I417:$QJ417) -> -124118.042 | P76: =SUMIF(Calculations!$I$8:$QJ$8, P$2, Calculations!$I417:$QJ417) -> -103151.9293 | Q76: =SUMIF(Calculations!$I$8:$QJ$8, Q$2, Calculations!$I417:$QJ417) -> -82225.31928 | R76: =SUMIF(Calculations!$I$8:$QJ$8, R$2, Calculations!$I417:$QJ417) -> -17860.7731 | S76: =SUMIF(Calculations!$I$8:$QJ$8, S$2, Calculations!$I417:$QJ417) -> 46784.03041 | T76: =SUMIF(Calculations!$I$8:$QJ$8, T$2, Calculations!$I417:$QJ417) -> 53237.07442 | U76: =SUMIF(Calculations!$I$8:$QJ$8, U$2, Calculations!$I417:$QJ417) -> 68650.90229 | V76: =SUMIF(Calculations!$I$8:$QJ$8, V$2, Calculations!$I417:$QJ417) -> 84742.58286 | W76: =SUMIF(Calculations!$I$8:$QJ$8, W$2, Calculations!$I417:$QJ417) -> 94332.25244 | X76: =SUMIF(Calculations!$I$8:$QJ$8, X$2, Calculations!$I417:$QJ417) -> 128578.7863 | Y76: =SUMIF(Calculations!$I$8:$QJ$8, Y$2, Calculations!$I417:$QJ417) -> 141071.9179 | Z76: =SUMIF(Calculations!$I$8:$QJ$8, Z$2, Calculations!$I417:$QJ417) -> 155217.8405 | AA76: =SUMIF(Calculations!$I$8:$QJ$8, AA$2, Calculations!$I417:$QJ417) -> 171137.7798 | AB76: =SUMIF(Calculations!$I$8:$QJ$8, AB$2, Calculations!$I417:$QJ417) -> 188913.4227 | AC76: =SUMIF(Calculations!$I$8:$QJ$8, AC$2, Calculations!$I417:$QJ417) -> 210515.5785 | AD76: =SUMIF(Calculations!$I$8:$QJ$8, AD$2, Calculations!$I417:$QJ417) -> 227066.6844 | AE76: =SUMIF(Calculations!$I$8:$QJ$8, AE$2, Calculations!$I417:$QJ417) -> 240801.277 | AF76: =SUMIF(Calculations!$I$8:$QJ$8, AF$2, Calculations!$I417:$QJ417) -> 257073.0528 | AG76: =SUMIF(Calculations!$I$8:$QJ$8, AG$2, Calculations!$I417:$QJ417) -> 275951.6124 | AH76: =SUMIF(Calculations!$I$8:$QJ$8, AH$2, Calculations!$I417:$QJ417) -> 222634.2542 | AI76: =SUMIF(Calculations!$I$8:$QJ$8, AI$2, Calculations!$I417:$QJ417) -> 184150.0855 | AJ76: =SUMIF(Calculations!$I$8:$QJ$8, AJ$2, Calculations!$I417:$QJ417) -> -131602.9957
C77: =Calculations!C418 -> less: Changes in Net Working Capital | D77: -6481.688676 | E77: -99243.24937 | F77: =Calculations!E418 -> EUR | H77: -105724.938 | I77: =SUMIF(Calculations!$I$8:$QJ$8, I$2, Calculations!$I418:$QJ418) -> -157442.6585 | J77: =SUMIF(Calculations!$I$8:$QJ$8, J$2, Calculations!$I418:$QJ418) -> 107032.5579 | K77: =SUMIF(Calculations!$I$8:$QJ$8, K$2, Calculations!$I418:$QJ418) -> -17518.35913 | L77: =SUMIF(Calculations!$I$8:$QJ$8, L$2, Calculations!$I418:$QJ418) -> 170.805217 | M77: =SUMIF(Calculations!$I$8:$QJ$8, M$2, Calculations!$I418:$QJ418) -> 540.6736468 | N77: =SUMIF(Calculations!$I$8:$QJ$8, N$2, Calculations!$I418:$QJ418) -> 624.8280687 | O77: =SUMIF(Calculations!$I$8:$QJ$8, O$2, Calculations!$I418:$QJ418) -> 755.8589493 | P77: =SUMIF(Calculations!$I$8:$QJ$8, P$2, Calculations!$I418:$QJ418) -> 749.5410987 | Q77: =SUMIF(Calculations!$I$8:$QJ$8, Q$2, Calculations!$I418:$QJ418) -> 743.3162925 | R77: =SUMIF(Calculations!$I$8:$QJ$8, R$2, Calculations!$I418:$QJ418) -> 737.1843586 | S77: =SUMIF(Calculations!$I$8:$QJ$8, S$2, Calculations!$I418:$QJ418) -> 731.1451451 | T77: =SUMIF(Calculations!$I$8:$QJ$8, T$2, Calculations!$I418:$QJ418) -> 725.1985212 | U77: =SUMIF(Calculations!$I$8:$QJ$8, U$2, Calculations!$I418:$QJ418) -> 719.3443769 | V77: =SUMIF(Calculations!$I$8:$QJ$8, V$2, Calculations!$I418:$QJ418) -> 713.5826238 | W77: =SUMIF(Calculations!$I$8:$QJ$8, W$2, Calculations!$I418:$QJ418) -> 707.9131953 | X77: =SUMIF(Calculations!$I$8:$QJ$8, X$2, Calculations!$I418:$QJ418) -> 702.3360464 | Y77: =SUMIF(Calculations!$I$8:$QJ$8, Y$2, Calculations!$I418:$QJ418) -> 696.8511548 | Z77: =SUMIF(Calculations!$I$8:$QJ$8, Z$2, Calculations!$I418:$QJ418) -> 691.4585207 | AA77: =SUMIF(Calculations!$I$8:$QJ$8, AA$2, Calculations!$I418:$QJ418) -> 686.158167 | AB77: =SUMIF(Calculations!$I$8:$QJ$8, AB$2, Calculations!$I418:$QJ418) -> 680.9501404 | AC77: =SUMIF(Calculations!$I$8:$QJ$8, AC$2, Calculations!$I418:$QJ418) -> 675.8345108 | AD77: =SUMIF(Calculations!$I$8:$QJ$8, AD$2, Calculations!$I418:$QJ418) -> 3535.617864 | AE77: =SUMIF(Calculations!$I$8:$QJ$8, AE$2, Calculations!$I418:$QJ418) -> 1204.683346 | AF77: =SUMIF(Calculations!$I$8:$QJ$8, AF$2, Calculations!$I418:$QJ418) -> 1286.213726 | AG77: =SUMIF(Calculations!$I$8:$QJ$8, AG$2, Calculations!$I418:$QJ418) -> 1378.757712 | AH77: =SUMIF(Calculations!$I$8:$QJ$8, AH$2, Calculations!$I418:$QJ418) -> -2226.606831 | AI77: =SUMIF(Calculations!$I$8:$QJ$8, AI$2, Calculations!$I418:$QJ418) -> 564.7774076 | AJ77: =SUMIF(Calculations!$I$8:$QJ$8, AJ$2, Calculations!$I418:$QJ418) -> -55592.90155
C78: =Calculations!C419 -> less: Change in Deferred Tax Asset | D78: -119101.1776 | E78: 80822.93513 | F78: =Calculations!E419 -> EUR | H78: -38278.24251 | I78: =SUMIF(Calculations!$I$8:$QJ$8, I$2, Calculations!$I419:$QJ419) -> 0 | J78: 0 | K78: =SUMIF(Calculations!$I$8:$QJ$8, K$2, Calculations!$I419:$QJ419) -> -23058.68476 | L78: =SUMIF(Calculations!$I$8:$QJ$8, L$2, Calculations!$I419:$QJ419) -> -47760.95682 | M78: =SUMIF(Calculations!$I$8:$QJ$8, M$2, Calculations!$I419:$QJ419) -> -47404.44589 | N78: =SUMIF(Calculations!$I$8:$QJ$8, N$2, Calculations!$I419:$QJ419) -> -46589.53594 | O78: =SUMIF(Calculations!$I$8:$QJ$8, O$2, Calculations!$I419:$QJ419) -> -45966.70561 | P78: =SUMIF(Calculations!$I$8:$QJ$8, P$2, Calculations!$I419:$QJ419) -> -44974.02901 | Q78: =SUMIF(Calculations!$I$8:$QJ$8, Q$2, Calculations!$I419:$QJ419) -> -43989.3289 | R78: =SUMIF(Calculations!$I$8:$QJ$8, R$2, Calculations!$I419:$QJ419) -> -42869.36425 | S78: =SUMIF(Calculations!$I$8:$QJ$8, S$2, Calculations!$I419:$QJ419) -> -41692.80918 | T78: =SUMIF(Calculations!$I$8:$QJ$8, T$2, Calculations!$I419:$QJ419) -> -40389.79067 | U78: =SUMIF(Calculations!$I$8:$QJ$8, U$2, Calculations!$I419:$QJ419) -> -120.1472343 | V78: =SUMIF(Calculations!$I$8:$QJ$8, V$2, Calculations!$I419:$QJ419) -> 40375.21646 | W78: =SUMIF(Calculations!$I$8:$QJ$8, W$2, Calculations!$I419:$QJ419) -> 42311.59205 | X78: =SUMIF(Calculations!$I$8:$QJ$8, X$2, Calculations!$I419:$QJ419) -> 44542.44447 | Y78: =SUMIF(Calculations!$I$8:$QJ$8, Y$2, Calculations!$I419:$QJ419) -> 47065.09604 | Z78: =SUMIF(Calculations!$I$8:$QJ$8, Z$2, Calculations!$I419:$QJ419) -> 49921.48426 | AA78: =SUMIF(Calculations!$I$8:$QJ$8, AA$2, Calculations!$I419:$QJ419) -> 53136.08739 | AB78: =SUMIF(Calculations!$I$8:$QJ$8, AB$2, Calculations!$I419:$QJ419) -> 56725.39989 | AC78: =SUMIF(Calculations!$I$8:$QJ$8, AC$2, Calculations!$I419:$QJ419) -> 57047.0232 | AD78: =SUMIF(Calculations!$I$8:$QJ$8, AD$2, Calculations!$I419:$QJ419) -> 33691.4545 | AE78: =SUMIF(Calculations!$I$8:$QJ$8, AE$2, Calculations!$I419:$QJ419) -> 0 | AF78: =SUMIF(Calculations!$I$8:$QJ$8, AF$2, Calculations!$I419:$QJ419) -> 0 | AG78: =SUMIF(Calculations!$I$8:$QJ$8, AG$2, Calculations!$I419:$QJ419) -> 0 | AH78: =SUMIF(Calculations!$I$8:$QJ$8, AH$2, Calculations!$I419:$QJ419) -> -357.1028638 | AI78: =SUMIF(Calculations!$I$8:$QJ$8, AI$2, Calculations!$I419:$QJ419) -> -60.36868478 | AJ78: =SUMIF(Calculations!$I$8:$QJ$8, AJ$2, Calculations!$I419:$QJ419) -> -37860.77097
C79: =Calculations!C420 -> add: Depreciation | D79: 3771892.871 | E79: 737465.7142 | F79: =Calculations!E420 -> EUR | H79: 4509358.585 | I79: =SUMIF(Calculations!$I$8:$QJ$8, I$2, Calculations!$I420:$QJ420) -> 0 | J79: =SUMIF(Calculations!$I$8:$QJ$8, J$2, Calculations!$I420:$QJ420) -> 0 | K79: =SUMIF(Calculations!$I$8:$QJ$8, K$2, Calculations!$I420:$QJ420) -> 179171.9185 | L79: =SUMIF(Calculations!$I$8:$QJ$8, L$2, Calculations!$I420:$QJ420) -> 358343.837 | M79: =SUMIF(Calculations!$I$8:$QJ$8, M$2, Calculations!$I420:$QJ420) -> 358343.837 | N79: =SUMIF(Calculations!$I$8:$QJ$8, N$2, Calculations!$I420:$QJ420) -> 358343.837 | O79: =SUMIF(Calculations!$I$8:$QJ$8, O$2, Calculations!$I420:$QJ420) -> 358343.837 | P79: =SUMIF(Calculations!$I$8:$QJ$8, P$2, Calculations!$I420:$QJ420) -> 342293.837 | Q79: =SUMIF(Calculations!$I$8:$QJ$8, Q$2, Calculations!$I420:$QJ420) -> 326243.837 | R79: =SUMIF(Calculations!$I$8:$QJ$8, R$2, Calculations!$I420:$QJ420) -> 267425.7824 | S79: =SUMIF(Calculations!$I$8:$QJ$8, S$2, Calculations!$I420:$QJ420) -> 208607.7279 | T79: =SUMIF(Calculations!$I$8:$QJ$8, T$2, Calculations!$I420:$QJ420) -> 208607.7279 | U79: =SUMIF(Calculations!$I$8:$QJ$8, U$2, Calculations!$I420:$QJ420) -> 161689.299 | V79: =SUMIF(Calculations!$I$8:$QJ$8, V$2, Calculations!$I420:$QJ420) -> 115210.8701 | W79: =SUMIF(Calculations!$I$8:$QJ$8, W$2, Calculations!$I420:$QJ420) -> 115210.8701 | X79: =SUMIF(Calculations!$I$8:$QJ$8, X$2, Calculations!$I420:$QJ420) -> 92012.36728 | Y79: =SUMIF(Calculations!$I$8:$QJ$8, Y$2, Calculations!$I420:$QJ420) -> 92012.36728 | Z79: =SUMIF(Calculations!$I$8:$QJ$8, Z$2, Calculations!$I420:$QJ420) -> 92012.36728 | AA79: =SUMIF(Calculations!$I$8:$QJ$8, AA$2, Calculations!$I420:$QJ420) -> 92012.36728 | AB79: =SUMIF(Calculations!$I$8:$QJ$8, AB$2, Calculations!$I420:$QJ420) -> 92012.36728 | AC79: =SUMIF(Calculations!$I$8:$QJ$8, AC$2, Calculations!$I420:$QJ420) -> 92194.60407 | AD79: =SUMIF(Calculations!$I$8:$QJ$8, AD$2, Calculations!$I420:$QJ420) -> 92194.60407 | AE79: =SUMIF(Calculations!$I$8:$QJ$8, AE$2, Calculations!$I420:$QJ420) -> 92194.60407 | AF79: =SUMIF(Calculations!$I$8:$QJ$8, AF$2, Calculations!$I420:$QJ420) -> 92194.60407 | AG79: =SUMIF(Calculations!$I$8:$QJ$8, AG$2, Calculations!$I420:$QJ420) -> 92194.60407 | AH79: =SUMIF(Calculations!$I$8:$QJ$8, AH$2, Calculations!$I420:$QJ420) -> 92194.60407 | AI79: =SUMIF(Calculations!$I$8:$QJ$8, AI$2, Calculations!$I420:$QJ420) -> 92194.60407 | AJ79: =SUMIF(Calculations!$I$8:$QJ$8, AJ$2, Calculations!$I420:$QJ420) -> 46097.30204
C80: =Calculations!C421 -> add: Senior Debt Interest Expense | D80: 1387594.74 | E80: 5579.223968 | F80: =Calculations!E421 -> EUR | H80: 1393173.964 | I80: =SUMIF(Calculations!$I$8:$QJ$8, I$2, Calculations!$I421:$QJ421) -> 0 | J80: =SUMIF(Calculations!$I$8:$QJ$8, J$2, Calculations!$I421:$QJ421) -> 0 | K80: =SUMIF(Calculations!$I$8:$QJ$8, K$2, Calculations!$I421:$QJ421) -> 66268.33122 | L80: =SUMIF(Calculations!$I$8:$QJ$8, L$2, Calculations!$I421:$QJ421) -> 129597.2088 | M80: =SUMIF(Calculations!$I$8:$QJ$8, M$2, Calculations!$I421:$QJ421) -> 124811.2848 | N80: =SUMIF(Calculations!$I$8:$QJ$8, N$2, Calculations!$I421:$QJ421) -> 119755.3971 | O80: =SUMIF(Calculations!$I$8:$QJ$8, O$2, Calculations!$I421:$QJ421) -> 114414.3176 | P80: =SUMIF(Calculations!$I$8:$QJ$8, P$2, Calculations!$I421:$QJ421) -> 108771.9592 | Q80: =SUMIF(Calculations!$I$8:$QJ$8, Q$2, Calculations!$I421:$QJ421) -> 102811.3274 | R80: =SUMIF(Calculations!$I$8:$QJ$8, R$2, Calculations!$I421:$QJ421) -> 96514.46912 | S80: =SUMIF(Calculations!$I$8:$QJ$8, S$2, Calculations!$I421:$QJ421) -> 89862.41855 | T80: =SUMIF(Calculations!$I$8:$QJ$8, T$2, Calculations!$I421:$QJ421) -> 82835.14005 | U80: =SUMIF(Calculations!$I$8:$QJ$8, U$2, Calculations!$I421:$QJ421) -> 75411.4678 | V80: =SUMIF(Calculations!$I$8:$QJ$8, V$2, Calculations!$I421:$QJ421) -> 67569.04209 | W80: =SUMIF(Calculations!$I$8:$QJ$8, W$2, Calculations!$I421:$QJ421) -> 59284.24191 | X80: =SUMIF(Calculations!$I$8:$QJ$8, X$2, Calculations!$I421:$QJ421) -> 50532.11389 | Y80: =SUMIF(Calculations!$I$8:$QJ$8, Y$2, Calculations!$I421:$QJ421) -> 41286.29705 | Z80: =SUMIF(Calculations!$I$8:$QJ$8, Z$2, Calculations!$I421:$QJ421) -> 31518.94347 | AA80: =SUMIF(Calculations!$I$8:$QJ$8, AA$2, Calculations!$I421:$QJ421) -> 21200.63437 | AB80: =SUMIF(Calculations!$I$8:$QJ$8, AB$2, Calculations!$I421:$QJ421) -> 10300.29153 | AC80: =SUMIF(Calculations!$I$8:$QJ$8, AC$2, Calculations!$I421:$QJ421) -> 429.0782044 | AD80: =SUMIF(Calculations!$I$8:$QJ$8, AD$2, Calculations!$I421:$QJ421) -> 0 | AE80: =SUMIF(Calculations!$I$8:$QJ$8, AE$2, Calculations!$I421:$QJ421) -> 0 | AF80: =SUMIF(Calculations!$I$8:$QJ$8, AF$2, Calculations!$I421:$QJ421) -> 0 | AG80: =SUMIF(Calculations!$I$8:$QJ$8, AG$2, Calculations!$I421:$QJ421) -> 0 | AH80: =SUMIF(Calculations!$I$8:$QJ$8, AH$2, Calculations!$I421:$QJ421) -> 0 | AI80: =SUMIF(Calculations!$I$8:$QJ$8, AI$2, Calculations!$I421:$QJ421) -> 0 | AJ80: =SUMIF(Calculations!$I$8:$QJ$8, AJ$2, Calculations!$I421:$QJ421) -> 0
C81: =Calculations!C422 -> add: Subordinated Debt Interest Expense | D81: 1754122.999 | E81: -248224.041 | F81: =Calculations!E422 -> EUR | H81: 1505898.958 | I81: =SUMIF(Calculations!$I$8:$QJ$8, I$2, Calculations!$I422:$QJ422) -> 0 | J81: =SUMIF(Calculations!$I$8:$QJ$8, J$2, Calculations!$I422:$QJ422) -> 0 | K81: =SUMIF(Calculations!$I$8:$QJ$8, K$2, Calculations!$I422:$QJ422) -> 72749.9332 | L81: =SUMIF(Calculations!$I$8:$QJ$8, L$2, Calculations!$I422:$QJ422) -> 143528.3346 | M81: =SUMIF(Calculations!$I$8:$QJ$8, M$2, Calculations!$I422:$QJ422) -> 140828.5511 | N81: =SUMIF(Calculations!$I$8:$QJ$8, N$2, Calculations!$I422:$QJ422) -> 137786.3674 | O81: =SUMIF(Calculations!$I$8:$QJ$8, O$2, Calculations!$I422:$QJ422) -> 134358.3588 | P81: =SUMIF(Calculations!$I$8:$QJ$8, P$2, Calculations!$I422:$QJ422) -> 130495.5928 | Q81: =SUMIF(Calculations!$I$8:$QJ$8, Q$2, Calculations!$I422:$QJ422) -> 126142.9315 | R81: =SUMIF(Calculations!$I$8:$QJ$8, R$2, Calculations!$I422:$QJ422) -> 121238.2437 | S81: =SUMIF(Calculations!$I$8:$QJ$8, S$2, Calculations!$I422:$QJ422) -> 115711.5188 | T81: =SUMIF(Calculations!$I$8:$QJ$8, T$2, Calculations!$I422:$QJ422) -> 109483.8668 | U81: =SUMIF(Calculations!$I$8:$QJ$8, U$2, Calculations!$I422:$QJ422) -> 102466.3927 | V81: =SUMIF(Calculations!$I$8:$QJ$8, V$2, Calculations!$I422:$QJ422) -> 94558.92715 | W81: =SUMIF(Calculations!$I$8:$QJ$8, W$2, Calculations!$I422:$QJ422) -> 85648.59708 | X81: =SUMIF(Calculations!$I$8:$QJ$8, X$2, Calculations!$I422:$QJ422) -> 75608.21414 | Y81: =SUMIF(Calculations!$I$8:$QJ$8, Y$2, Calculations!$I422:$QJ422) -> 64294.45933 | Z81: =SUMIF(Calculations!$I$8:$QJ$8, Z$2, Calculations!$I422:$QJ422) -> 51545.83722 | AA81: =SUMIF(Calculations!$I$8:$QJ$8, AA$2, Calculations!$I422:$QJ422) -> 37180.37073 | AB81: =SUMIF(Calculations!$I$8:$QJ$8, AB$2, Calculations!$I422:$QJ422) -> 20993.00351 | AC81: =SUMIF(Calculations!$I$8:$QJ$8, AC$2, Calculations!$I422:$QJ422) -> 2752.672967 | AD81: =SUMIF(Calculations!$I$8:$QJ$8, AD$2, Calculations!$I422:$QJ422) -> -17800.98805 | AE81: =SUMIF(Calculations!$I$8:$QJ$8, AE$2, Calculations!$I422:$QJ422) -> -40961.36775 | AF81: =SUMIF(Calculations!$I$8:$QJ$8, AF$2, Calculations!$I422:$QJ422) -> -67059.06329 | AG81: =SUMIF(Calculations!$I$8:$QJ$8, AG$2, Calculations!$I422:$QJ422) -> -96466.59987 | AH81: =SUMIF(Calculations!$I$8:$QJ$8, AH$2, Calculations!$I422:$QJ422) -> -39185.19679 | AI81: =SUMIF(Calculations!$I$8:$QJ$8, AI$2, Calculations!$I422:$QJ422) -> 0 | AJ81: =SUMIF(Calculations!$I$8:$QJ$8, AJ$2, Calculations!$I422:$QJ422) -> 0
C82: =Calculations!C423 -> less: Interest on Reserve Accounts | D82: 0 | E82: 0 | F82: =Calculations!E423 -> EUR | H82: 0 | I82: =SUMIF(Calculations!$I$8:$QJ$8, I$2, Calculations!$I423:$QJ423) -> 0 | J82: =SUMIF(Calculations!$I$8:$QJ$8, J$2, Calculations!$I423:$QJ423) -> 0 | K82: =SUMIF(Calculations!$I$8:$QJ$8, K$2, Calculations!$I423:$QJ423) -> 0 | L82: =SUMIF(Calculations!$I$8:$QJ$8, L$2, Calculations!$I423:$QJ423) -> 0 | M82: =SUMIF(Calculations!$I$8:$QJ$8, M$2, Calculations!$I423:$QJ423) -> 0 | N82: =SUMIF(Calculations!$I$8:$QJ$8, N$2, Calculations!$I423:$QJ423) -> 0 | O82: =SUMIF(Calculations!$I$8:$QJ$8, O$2, Calculations!$I423:$QJ423) -> 0 | P82: =SUMIF(Calculations!$I$8:$QJ$8, P$2, Calculations!$I423:$QJ423) -> 0 | Q82: =SUMIF(Calculations!$I$8:$QJ$8, Q$2, Calculations!$I423:$QJ423) -> 0 | R82: =SUMIF(Calculations!$I$8:$QJ$8, R$2, Calculations!$I423:$QJ423) -> 0 | S82: =SUMIF(Calculations!$I$8:$QJ$8, S$2, Calculations!$I423:$QJ423) -> 0 | T82: =SUMIF(Calculations!$I$8:$QJ$8, T$2, Calculations!$I423:$QJ423) -> 0 | U82: =SUMIF(Calculations!$I$8:$QJ$8, U$2, Calculations!$I423:$QJ423) -> 0 | V82: =SUMIF(Calculations!$I$8:$QJ$8, V$2, Calculations!$I423:$QJ423) -> 0 | W82: =SUMIF(Calculations!$I$8:$QJ$8, W$2, Calculations!$I423:$QJ423) -> 0 | X82: =SUMIF(Calculations!$I$8:$QJ$8, X$2, Calculations!$I423:$QJ423) -> 0 | Y82: =SUMIF(Calculations!$I$8:$QJ$8, Y$2, Calculations!$I423:$QJ423) -> 0 | Z82: =SUMIF(Calculations!$I$8:$QJ$8, Z$2, Calculations!$I423:$QJ423) -> 0 | AA82: =SUMIF(Calculations!$I$8:$QJ$8, AA$2, Calculations!$I423:$QJ423) -> 0 | AB82: =SUMIF(Calculations!$I$8:$QJ$8, AB$2, Calculations!$I423:$QJ423) -> 0 | AC82: =SUMIF(Calculations!$I$8:$QJ$8, AC$2, Calculations!$I423:$QJ423) -> 0 | AD82: =SUMIF(Calculations!$I$8:$QJ$8, AD$2, Calculations!$I423:$QJ423) -> 0 | AE82: =SUMIF(Calculations!$I$8:$QJ$8, AE$2, Calculations!$I423:$QJ423) -> 0 | AF82: =SUMIF(Calculations!$I$8:$QJ$8, AF$2, Calculations!$I423:$QJ423) -> 0 | AG82: =SUMIF(Calculations!$I$8:$QJ$8, AG$2, Calculations!$I423:$QJ423) -> 0 | AH82: =SUMIF(Calculations!$I$8:$QJ$8, AH$2, Calculations!$I423:$QJ423) -> 0 | AI82: =SUMIF(Calculations!$I$8:$QJ$8, AI$2, Calculations!$I423:$QJ423) -> 0 | AJ82: =SUMIF(Calculations!$I$8:$QJ$8, AJ$2, Calculations!$I423:$QJ423) -> 0
C83: =Calculations!C424 -> Cash Flows From Operating Activities | D83: 7046085.895 | E83: 2057446.843 | F83: =Calculations!E424 -> EUR | H83: 9103532.738 | I83: =SUM(I76:I82) -> -157442.6585 | J83: =SUM(J76:J82) -> 107032.5579 | K83: =SUM(K76:K82) -> 216262.1486 | L83: 450875.3713 | M83: 445881.6211 | N83: 442718.3586 | O83: 437787.6247 | P83: 434184.9718 | Q83: 429726.764 | R83: 425185.5423 | S83: 420004.0316 | T83: 414499.217 | U83: 408817.2589 | V83: 403170.2213 | W83: 397495.4668 | X83: 391976.2621 | Y83: 386426.9887 | Z83: 380907.9313 | AA83: 375353.3977 | AB83: 369625.435 | AC83: 363614.7914 | AD83: 338687.3727 | AE83: 293239.1966 | AF83: 283494.8073 | AG83: =SUM(AG76:AG82) -> 273058.3743 | AH83: 273059.9518 | AI83: 276849.0983 | AJ83: -178959.3661
D84: 0 | E84: 0
B85: Investing Activities | D85: 0 | E85: 0
C86: =Calculations!C427 -> Capital Expenditures | D86: -931148.7863 | E86: -4162820.18 | F86: =Calculations!E427 -> EUR | H86: =SUM(I86:AT86) -> -5093968.967 | I86: =SUMIF(Calculations!$I$8:$QJ$8, I$2, Calculations!$I429:$QJ429) -> -1601146.777 | J86: =SUMIF(Calculations!$I$8:$QJ$8, J$2, Calculations!$I429:$QJ429) -> -2086408.759 | K86: =SUMIF(Calculations!$I$8:$QJ$8, K$2, Calculations!$I429:$QJ429) -> -931148.7863 | L86: =SUMIF(Calculations!$I$8:$QJ$8, L$2, Calculations!$I429:$QJ429) -> 0 | M86: =SUMIF(Calculations!$I$8:$QJ$8, M$2, Calculations!$I429:$QJ429) -> 0 | N86: =SUMIF(Calculations!$I$8:$QJ$8, N$2, Calculations!$I429:$QJ429) -> 0 | O86: =SUMIF(Calculations!$I$8:$QJ$8, O$2, Calculations!$I429:$QJ429) -> 0 | P86: =SUMIF(Calculations!$I$8:$QJ$8, P$2, Calculations!$I429:$QJ429) -> 0 | Q86: =SUMIF(Calculations!$I$8:$QJ$8, Q$2, Calculations!$I429:$QJ429) -> 0 | R86: =SUMIF(Calculations!$I$8:$QJ$8, R$2, Calculations!$I429:$QJ429) -> 0 | S86: =SUMIF(Calculations!$I$8:$QJ$8, S$2, Calculations!$I429:$QJ429) -> 0 | T86: =SUMIF(Calculations!$I$8:$QJ$8, T$2, Calculations!$I429:$QJ429) -> 0 | U86: =SUMIF(Calculations!$I$8:$QJ$8, U$2, Calculations!$I429:$QJ429) -> 0 | V86: =SUMIF(Calculations!$I$8:$QJ$8, V$2, Calculations!$I429:$QJ429) -> 0 | W86: =SUMIF(Calculations!$I$8:$QJ$8, W$2, Calculations!$I429:$QJ429) -> 0 | X86: =SUMIF(Calculations!$I$8:$QJ$8, X$2, Calculations!$I429:$QJ429) -> 0 | Y86: =SUMIF(Calculations!$I$8:$QJ$8, Y$2, Calculations!$I429:$QJ429) -> 0 | Z86: =SUMIF(Calculations!$I$8:$QJ$8, Z$2, Calculations!$I429:$QJ429) -> 0 | AA86: =SUMIF(Calculations!$I$8:$QJ$8, AA$2, Calculations!$I429:$QJ429) -> 0 | AB86: =SUMIF(Calculations!$I$8:$QJ$8, AB$2, Calculations!$I429:$QJ429) -> 0 | AC86: =SUMIF(Calculations!$I$8:$QJ$8, AC$2, Calculations!$I429:$QJ429) -> -475264.6436 | AD86: =SUMIF(Calculations!$I$8:$QJ$8, AD$2, Calculations!$I429:$QJ429) -> 0 | AE86: =SUMIF(Calculations!$I$8:$QJ$8, AE$2, Calculations!$I429:$QJ429) -> 0 | AF86: =SUMIF(Calculations!$I$8:$QJ$8, AF$2, Calculations!$I429:$QJ429) -> 0 | AG86: =SUMIF(Calculations!$I$8:$QJ$8, AG$2, Calculations!$I429:$QJ429) -> 0 | AH86: =SUMIF(Calculations!$I$8:$QJ$8, AH$2, Calculations!$I429:$QJ429) -> 0 | AI86: =SUMIF(Calculations!$I$8:$QJ$8, AI$2, Calculations!$I429:$QJ429) -> 0 | AJ86: =SUMIF(Calculations!$I$8:$QJ$8, AJ$2, Calculations!$I429:$QJ429) -> 0
C87: =Calculations!C429 -> Cash Flows From Investing Activities | D87: -931148.7863 | E87: -4162820.18 | F87: =Calculations!E429 -> EUR | H87: =SUM(I87:AT87) -> -5093968.967 | I87: =SUM(I86) -> -1601146.777 | J87: =SUM(J86) -> -2086408.759 | K87: -931148.7863 | L87: 0 | M87: 0 | N87: 0 | O87: 0 | P87: 0 | Q87: 0 | R87: 0 | S87: 0 | T87: 0 | U87: 0 | V87: 0 | W87: 0 | X87: 0 | Y87: 0 | Z87: 0 | AA87: 0 | AB87: 0 | AC87: -475264.6436 | AD87: 0 | AE87: 0 | AF87: 0 | AG87: =SUM(AG86) -> 0 | AH87: 0 | AI87: 0 | AJ87: 0
D88: 0 | E88: 0
B89: Financing Activities | D89: 0 | E89: 0
C90: =Calculations!C432 -> Drawdown of Equity | D90: 0 | E90: 1200000 | F90: =Calculations!E432 -> EUR | H90: =SUM(I90:AT90) -> 1200000 | I90: =SUMIF(Calculations!$I$8:$QJ$8, I$2, Calculations!$I432:$QJ432) -> 1200000 | J90: =SUMIF(Calculations!$I$8:$QJ$8, J$2, Calculations!$I432:$QJ432) -> 0 | K90: =SUMIF(Calculations!$I$8:$QJ$8, K$2, Calculations!$I432:$QJ432) -> 0 | L90: =SUMIF(Calculations!$I$8:$QJ$8, L$2, Calculations!$I432:$QJ432) -> 0 | M90: =SUMIF(Calculations!$I$8:$QJ$8, M$2, Calculations!$I432:$QJ432) -> 0 | N90: =SUMIF(Calculations!$I$8:$QJ$8, N$2, Calculations!$I432:$QJ432) -> 0 | O90: =SUMIF(Calculations!$I$8:$QJ$8, O$2, Calculations!$I432:$QJ432) -> 0 | P90: =SUMIF(Calculations!$I$8:$QJ$8, P$2, Calculations!$I432:$QJ432) -> 0 | Q90: =SUMIF(Calculations!$I$8:$QJ$8, Q$2, Calculations!$I432:$QJ432) -> 0 | R90: =SUMIF(Calculations!$I$8:$QJ$8, R$2, Calculations!$I432:$QJ432) -> 0 | S90: =SUMIF(Calculations!$I$8:$QJ$8, S$2, Calculations!$I432:$QJ432) -> 0 | T90: =SUMIF(Calculations!$I$8:$QJ$8, T$2, Calculations!$I432:$QJ432) -> 0 | U90: =SUMIF(Calculations!$I$8:$QJ$8, U$2, Calculations!$I432:$QJ432) -> 0 | V90: =SUMIF(Calculations!$I$8:$QJ$8, V$2, Calculations!$I432:$QJ432) -> 0 | W90: =SUMIF(Calculations!$I$8:$QJ$8, W$2, Calculations!$I432:$QJ432) -> 0 | X90: =SUMIF(Calculations!$I$8:$QJ$8, X$2, Calculations!$I432:$QJ432) -> 0 | Y90: =SUMIF(Calculations!$I$8:$QJ$8, Y$2, Calculations!$I432:$QJ432) -> 0 | Z90: =SUMIF(Calculations!$I$8:$QJ$8, Z$2, Calculations!$I432:$QJ432) -> 0 | AA90: =SUMIF(Calculations!$I$8:$QJ$8, AA$2, Calculations!$I432:$QJ432) -> 0 | AB90: =SUMIF(Calculations!$I$8:$QJ$8, AB$2, Calculations!$I432:$QJ432) -> 0 | AC90: =SUMIF(Calculations!$I$8:$QJ$8, AC$2, Calculations!$I432:$QJ432) -> 0 | AD90: =SUMIF(Calculations!$I$8:$QJ$8, AD$2, Calculations!$I432:$QJ432) -> 0 | AE90: =SUMIF(Calculations!$I$8:$QJ$8, AE$2, Calculations!$I432:$QJ432) -> 0 | AF90: =SUMIF(Calculations!$I$8:$QJ$8, AF$2, Calculations!$I432:$QJ432) -> 0 | AG90: =SUMIF(Calculations!$I$8:$QJ$8, AG$2, Calculations!$I432:$QJ432) -> 0 | AH90: =SUMIF(Calculations!$I$8:$QJ$8, AH$2, Calculations!$I432:$QJ432) -> 0 | AI90: =SUMIF(Calculations!$I$8:$QJ$8, AI$2, Calculations!$I432:$QJ432) -> 0 | AJ90: =SUMIF(Calculations!$I$8:$QJ$8, AJ$2, Calculations!$I432:$QJ432) -> 0
C91: =Calculations!C433 -> Drawdown of Subordinated Debt | D91: 0 | E91: 1200000 | F91: =Calculations!E433 -> EUR | H91: 1200000 | I91: =SUMIF(Calculations!$I$8:$QJ$8, I$2, Calculations!$I433:$QJ433) -> 600000 | J91: =SUMIF(Calculations!$I$8:$QJ$8, J$2, Calculations!$I433:$QJ433) -> 600000 | K91: =SUMIF(Calculations!$I$8:$QJ$8, K$2, Calculations!$I433:$QJ433) -> 0 | L91: =SUMIF(Calculations!$I$8:$QJ$8, L$2, Calculations!$I433:$QJ433) -> 0 | M91: =SUMIF(Calculations!$I$8:$QJ$8, M$2, Calculations!$I433:$QJ433) -> 0 | N91: =SUMIF(Calculations!$I$8:$QJ$8, N$2, Calculations!$I433:$QJ433) -> 0 | O91: =SUMIF(Calculations!$I$8:$QJ$8, O$2, Calculations!$I433:$QJ433) -> 0 | P91: =SUMIF(Calculations!$I$8:$QJ$8, P$2, Calculations!$I433:$QJ433) -> 0 | Q91: =SUMIF(Calculations!$I$8:$QJ$8, Q$2, Calculations!$I433:$QJ433) -> 0 | R91: =SUMIF(Calculations!$I$8:$QJ$8, R$2, Calculations!$I433:$QJ433) -> 0 | S91: =SUMIF(Calculations!$I$8:$QJ$8, S$2, Calculations!$I433:$QJ433) -> 0 | T91: =SUMIF(Calculations!$I$8:$QJ$8, T$2, Calculations!$I433:$QJ433) -> 0 | U91: =SUMIF(Calculations!$I$8:$QJ$8, U$2, Calculations!$I433:$QJ433) -> 0 | V91: =SUMIF(Calculations!$I$8:$QJ$8, V$2, Calculations!$I433:$QJ433) -> 0 | W91: =SUMIF(Calculations!$I$8:$QJ$8, W$2, Calculations!$I433:$QJ433) -> 0 | X91: =SUMIF(Calculations!$I$8:$QJ$8, X$2, Calculations!$I433:$QJ433) -> 0 | Y91: =SUMIF(Calculations!$I$8:$QJ$8, Y$2, Calculations!$I433:$QJ433) -> 0 | Z91: =SUMIF(Calculations!$I$8:$QJ$8, Z$2, Calculations!$I433:$QJ433) -> 0 | AA91: =SUMIF(Calculations!$I$8:$QJ$8, AA$2, Calculations!$I433:$QJ433) -> 0 | AB91: =SUMIF(Calculations!$I$8:$QJ$8, AB$2, Calculations!$I433:$QJ433) -> 0 | AC91: =SUMIF(Calculations!$I$8:$QJ$8, AC$2, Calculations!$I433:$QJ433) -> 0 | AD91: =SUMIF(Calculations!$I$8:$QJ$8, AD$2, Calculations!$I433:$QJ433) -> 0 | AE91: =SUMIF(Calculations!$I$8:$QJ$8, AE$2, Calculations!$I433:$QJ433) -> 0 | AF91: =SUMIF(Calculations!$I$8:$QJ$8, AF$2, Calculations!$I433:$QJ433) -> 0 | AG91: =SUMIF(Calculations!$I$8:$QJ$8, AG$2, Calculations!$I433:$QJ433) -> 0 | AH91: =SUMIF(Calculations!$I$8:$QJ$8, AH$2, Calculations!$I433:$QJ433) -> 0 | AI91: =SUMIF(Calculations!$I$8:$QJ$8, AI$2, Calculations!$I433:$QJ433) -> 0 | AJ91: =SUMIF(Calculations!$I$8:$QJ$8, AJ$2, Calculations!$I433:$QJ433) -> 0
C92: =Calculations!C434 -> Drawdown of Construction Loan | D92: 1000000 | E92: 1400000 | F92: =Calculations!E434 -> EUR | H92: 2400000 | I92: =SUMIF(Calculations!$I$8:$QJ$8, I$2, Calculations!$I434:$QJ434) -> 0 | J92: =SUMIF(Calculations!$I$8:$QJ$8, J$2, Calculations!$I434:$QJ434) -> 1400000 | K92: =SUMIF(Calculations!$I$8:$QJ$8, K$2, Calculations!$I434:$QJ434) -> 1000000 | L92: =SUMIF(Calculations!$I$8:$QJ$8, L$2, Calculations!$I434:$QJ434) -> 0 | M92: =SUMIF(Calculations!$I$8:$QJ$8, M$2, Calculations!$I434:$QJ434) -> 0 | N92: =SUMIF(Calculations!$I$8:$QJ$8, N$2, Calculations!$I434:$QJ434) -> 0 | O92: =SUMIF(Calculations!$I$8:$QJ$8, O$2, Calculations!$I434:$QJ434) -> 0 | P92: =SUMIF(Calculations!$I$8:$QJ$8, P$2, Calculations!$I434:$QJ434) -> 0 | Q92: =SUMIF(Calculations!$I$8:$QJ$8, Q$2, Calculations!$I434:$QJ434) -> 0 | R92: =SUMIF(Calculations!$I$8:$QJ$8, R$2, Calculations!$I434:$QJ434) -> 0 | S92: =SUMIF(Calculations!$I$8:$QJ$8, S$2, Calculations!$I434:$QJ434) -> 0 | T92: =SUMIF(Calculations!$I$8:$QJ$8, T$2, Calculations!$I434:$QJ434) -> 0 | U92: =SUMIF(Calculations!$I$8:$QJ$8, U$2, Calculations!$I434:$QJ434) -> 0 | V92: =SUMIF(Calculations!$I$8:$QJ$8, V$2, Calculations!$I434:$QJ434) -> 0 | W92: =SUMIF(Calculations!$I$8:$QJ$8, W$2, Calculations!$I434:$QJ434) -> 0 | X92: =SUMIF(Calculations!$I$8:$QJ$8, X$2, Calculations!$I434:$QJ434) -> 0 | Y92: =SUMIF(Calculations!$I$8:$QJ$8, Y$2, Calculations!$I434:$QJ434) -> 0 | Z92: =SUMIF(Calculations!$I$8:$QJ$8, Z$2, Calculations!$I434:$QJ434) -> 0 | AA92: =SUMIF(Calculations!$I$8:$QJ$8, AA$2, Calculations!$I434:$QJ434) -> 0 | AB92: =SUMIF(Calculations!$I$8:$QJ$8, AB$2, Calculations!$I434:$QJ434) -> 0 | AC92: =SUMIF(Calculations!$I$8:$QJ$8, AC$2, Calculations!$I434:$QJ434) -> 0 | AD92: =SUMIF(Calculations!$I$8:$QJ$8, AD$2, Calculations!$I434:$QJ434) -> 0 | AE92: =SUMIF(Calculations!$I$8:$QJ$8, AE$2, Calculations!$I434:$QJ434) -> 0 | AF92: =SUMIF(Calculations!$I$8:$QJ$8, AF$2, Calculations!$I434:$QJ434) -> 0 | AG92: =SUMIF(Calculations!$I$8:$QJ$8, AG$2, Calculations!$I434:$QJ434) -> 0 | AH92: =SUMIF(Calculations!$I$8:$QJ$8, AH$2, Calculations!$I434:$QJ434) -> 0 | AI92: =SUMIF(Calculations!$I$8:$QJ$8, AI$2, Calculations!$I434:$QJ434) -> 0 | AJ92: =SUMIF(Calculations!$I$8:$QJ$8, AJ$2, Calculations!$I434:$QJ434) -> 0
C93: =Calculations!C435 -> Drawdown of Operating Loan | D93: 0 | E93: 0 | F93: =Calculations!E435 -> 0 | H93: 0 | I93: =SUMIF(Calculations!$I$8:$QJ$8, I$2, Calculations!$I435:$QJ435) -> 0 | J93: =SUMIF(Calculations!$I$8:$QJ$8, J$2, Calculations!$I435:$QJ435) -> 0 | K93: =SUMIF(Calculations!$I$8:$QJ$8, K$2, Calculations!$I435:$QJ435) -> 0 | L93: =SUMIF(Calculations!$I$8:$QJ$8, L$2, Calculations!$I435:$QJ435) -> 0 | M93: =SUMIF(Calculations!$I$8:$QJ$8, M$2, Calculations!$I435:$QJ435) -> 0 | N93: =SUMIF(Calculations!$I$8:$QJ$8, N$2, Calculations!$I435:$QJ435) -> 0 | O93: =SUMIF(Calculations!$I$8:$QJ$8, O$2, Calculations!$I435:$QJ435) -> 0 | P93: =SUMIF(Calculations!$I$8:$QJ$8, P$2, Calculations!$I435:$QJ435) -> 0 | Q93: =SUMIF(Calculations!$I$8:$QJ$8, Q$2, Calculations!$I435:$QJ435) -> 0 | R93: =SUMIF(Calculations!$I$8:$QJ$8, R$2, Calculations!$I435:$QJ435) -> 0 | S93: =SUMIF(Calculations!$I$8:$QJ$8, S$2, Calculations!$I435:$QJ435) -> 0 | T93: =SUMIF(Calculations!$I$8:$QJ$8, T$2, Calculations!$I435:$QJ435) -> 0 | U93: =SUMIF(Calculations!$I$8:$QJ$8, U$2, Calculations!$I435:$QJ435) -> 0 | V93: =SUMIF(Calculations!$I$8:$QJ$8, V$2, Calculations!$I435:$QJ435) -> 0 | W93: =SUMIF(Calculations!$I$8:$QJ$8, W$2, Calculations!$I435:$QJ435) -> 0 | X93: =SUMIF(Calculations!$I$8:$QJ$8, X$2, Calculations!$I435:$QJ435) -> 0 | Y93: =SUMIF(Calculations!$I$8:$QJ$8, Y$2, Calculations!$I435:$QJ435) -> 0 | Z93: =SUMIF(Calculations!$I$8:$QJ$8, Z$2, Calculations!$I435:$QJ435) -> 0 | AA93: =SUMIF(Calculations!$I$8:$QJ$8, AA$2, Calculations!$I435:$QJ435) -> 0 | AB93: =SUMIF(Calculations!$I$8:$QJ$8, AB$2, Calculations!$I435:$QJ435) -> 0 | AC93: =SUMIF(Calculations!$I$8:$QJ$8, AC$2, Calculations!$I435:$QJ435) -> 0 | AD93: =SUMIF(Calculations!$I$8:$QJ$8, AD$2, Calculations!$I435:$QJ435) -> 0 | AE93: =SUMIF(Calculations!$I$8:$QJ$8, AE$2, Calculations!$I435:$QJ435) -> 0 | AF93: =SUMIF(Calculations!$I$8:$QJ$8, AF$2, Calculations!$I435:$QJ435) -> 0 | AG93: =SUMIF(Calculations!$I$8:$QJ$8, AG$2, Calculations!$I435:$QJ435) -> 0 | AH93: =SUMIF(Calculations!$I$8:$QJ$8, AH$2, Calculations!$I435:$QJ435) -> 0 | AI93: =SUMIF(Calculations!$I$8:$QJ$8, AI$2, Calculations!$I435:$QJ435) -> 0 | AJ93: =SUMIF(Calculations!$I$8:$QJ$8, AJ$2, Calculations!$I435:$QJ435) -> 0
C94: =Calculations!C436 -> Principal Repayment of Subordinated Debt | D94: -1022353.551 | E94: -177646.4488 | F94: =Calculations!E436 -> EUR | H94: -1200000 | I94: =SUMIF(Calculations!$I$8:$QJ$8, I$2, Calculations!$I436:$QJ436) -> 0 | J94: =SUMIF(Calculations!$I$8:$QJ$8, J$2, Calculations!$I436:$QJ436) -> 0 | K94: =SUMIF(Calculations!$I$8:$QJ$8, K$2, Calculations!$I436:$QJ436) -> -4720.338095 | L94: =SUMIF(Calculations!$I$8:$QJ$8, L$2, Calculations!$I436:$QJ436) -> -20868.01865 | M94: =SUMIF(Calculations!$I$8:$QJ$8, M$2, Calculations!$I436:$QJ436) -> -23514.60575 | N94: =SUMIF(Calculations!$I$8:$QJ$8, N$2, Calculations!$I436:$QJ436) -> -26496.84633 | O94: =SUMIF(Calculations!$I$8:$QJ$8, O$2, Calculations!$I436:$QJ436) -> -29857.30966 | P94: =SUMIF(Calculations!$I$8:$QJ$8, P$2, Calculations!$I436:$QJ436) -> -33643.96386 | Q94: =SUMIF(Calculations!$I$8:$QJ$8, Q$2, Calculations!$I436:$QJ436) -> -37910.86059 | R94: =SUMIF(Calculations!$I$8:$QJ$8, R$2, Calculations!$I436:$QJ436) -> -42718.90663 | S94: =SUMIF(Calculations!$I$8:$QJ$8, S$2, Calculations!$I436:$QJ436) -> -48136.73325 | T94: =SUMIF(Calculations!$I$8:$QJ$8, T$2, Calculations!$I436:$QJ436) -> -54241.67589 | U94: =SUMIF(Calculations!$I$8:$QJ$8, U$2, Calculations!$I436:$QJ436) -> -61120.87807 | V94: =SUMIF(Calculations!$I$8:$QJ$8, V$2, Calculations!$I436:$QJ436) -> -68872.53528 | W94: =SUMIF(Calculations!$I$8:$QJ$8, W$2, Calculations!$I436:$QJ436) -> -77607.29664 | X94: =SUMIF(Calculations!$I$8:$QJ$8, X$2, Calculations!$I436:$QJ436) -> -87449.84437 | Y94: =SUMIF(Calculations!$I$8:$QJ$8, Y$2, Calculations!$I436:$QJ436) -> -98540.67352 | Z94: =SUMIF(Calculations!$I$8:$QJ$8, Z$2, Calculations!$I436:$QJ436) -> -111038.0974 | AA94: =SUMIF(Calculations!$I$8:$QJ$8, AA$2, Calculations!$I436:$QJ436) -> -125120.5075 | AB94: =SUMIF(Calculations!$I$8:$QJ$8, AB$2, Calculations!$I436:$QJ436) -> -140988.9196 | AC94: =SUMIF(Calculations!$I$8:$QJ$8, AC$2, Calculations!$I436:$QJ436) -> -158869.8436 | AD94: =SUMIF(Calculations!$I$8:$QJ$8, AD$2, Calculations!$I436:$QJ436) -> -179018.5163 | AE94: =SUMIF(Calculations!$I$8:$QJ$8, AE$2, Calculations!$I436:$QJ436) -> -201722.545 | AF94: =SUMIF(Calculations!$I$8:$QJ$8, AF$2, Calculations!$I436:$QJ436) -> -227306.0128 | AG94: =SUMIF(Calculations!$I$8:$QJ$8, AG$2, Calculations!$I436:$QJ436) -> -256134.1047 | AH94: =SUMIF(Calculations!$I$8:$QJ$8, AH$2, Calculations!$I436:$QJ436) -> 915899.0334 | AI94: =SUMIF(Calculations!$I$8:$QJ$8, AI$2, Calculations!$I436:$QJ436) -> 0 | AJ94: =SUMIF(Calculations!$I$8:$QJ$8, AJ$2, Calculations!$I436:$QJ436) -> 0
C95: =Calculations!C437 -> Principal Repayment of Construction Loan | D95: 0 | E95: 0 | F95: =Calculations!E437 -> EUR | H95: 0 | I95: =SUMIF(Calculations!$I$8:$QJ$8, I$2, Calculations!$I437:$QJ437) -> 0 | J95: =SUMIF(Calculations!$I$8:$QJ$8, J$2, Calculations!$I437:$QJ437) -> 0 | K95: =SUMIF(Calculations!$I$8:$QJ$8, K$2, Calculations!$I437:$QJ437) -> 0 | L95: =SUMIF(Calculations!$I$8:$QJ$8, L$2, Calculations!$I437:$QJ437) -> 0 | M95: =SUMIF(Calculations!$I$8:$QJ$8, M$2, Calculations!$I437:$QJ437) -> 0 | N95: =SUMIF(Calculations!$I$8:$QJ$8, N$2, Calculations!$I437:$QJ437) -> 0 | O95: =SUMIF(Calculations!$I$8:$QJ$8, O$2, Calculations!$I437:$QJ437) -> 0 | P95: =SUMIF(Calculations!$I$8:$QJ$8, P$2, Calculations!$I437:$QJ437) -> 0 | Q95: =SUMIF(Calculations!$I$8:$QJ$8, Q$2, Calculations!$I437:$QJ437) -> 0 | R95: =SUMIF(Calculations!$I$8:$QJ$8, R$2, Calculations!$I437:$QJ437) -> 0 | S95: =SUMIF(Calculations!$I$8:$QJ$8, S$2, Calculations!$I437:$QJ437) -> 0 | T95: =SUMIF(Calculations!$I$8:$QJ$8, T$2, Calculations!$I437:$QJ437) -> 0 | U95: =SUMIF(Calculations!$I$8:$QJ$8, U$2, Calculations!$I437:$QJ437) -> 0 | V95: =SUMIF(Calculations!$I$8:$QJ$8, V$2, Calculations!$I437:$QJ437) -> 0 | W95: =SUMIF(Calculations!$I$8:$QJ$8, W$2, Calculations!$I437:$QJ437) -> 0 | X95: =SUMIF(Calculations!$I$8:$QJ$8, X$2, Calculations!$I437:$QJ437) -> 0 | Y95: =SUMIF(Calculations!$I$8:$QJ$8, Y$2, Calculations!$I437:$QJ437) -> 0 | Z95: =SUMIF(Calculations!$I$8:$QJ$8, Z$2, Calculations!$I437:$QJ437) -> 0 | AA95: =SUMIF(Calculations!$I$8:$QJ$8, AA$2, Calculations!$I437:$QJ437) -> 0 | AB95: =SUMIF(Calculations!$I$8:$QJ$8, AB$2, Calculations!$I437:$QJ437) -> 0 | AC95: =SUMIF(Calculations!$I$8:$QJ$8, AC$2, Calculations!$I437:$QJ437) -> 0 | AD95: =SUMIF(Calculations!$I$8:$QJ$8, AD$2, Calculations!$I437:$QJ437) -> 0 | AE95: =SUMIF(Calculations!$I$8:$QJ$8, AE$2, Calculations!$I437:$QJ437) -> 0 | AF95: =SUMIF(Calculations!$I$8:$QJ$8, AF$2, Calculations!$I437:$QJ437) -> 0 | AG95: =SUMIF(Calculations!$I$8:$QJ$8, AG$2, Calculations!$I437:$QJ437) -> 0 | AH95: =SUMIF(Calculations!$I$8:$QJ$8, AH$2, Calculations!$I437:$QJ437) -> 0 | AI95: =SUMIF(Calculations!$I$8:$QJ$8, AI$2, Calculations!$I437:$QJ437) -> 0 | AJ95: =SUMIF(Calculations!$I$8:$QJ$8, AJ$2, Calculations!$I437:$QJ437) -> 0
C96: =Calculations!C438 -> Principal Repayment of Operating Loan | D96: -2206093.536 | E96: -101141.6937 | F96: =Calculations!E438 -> EUR | H96: -2307235.23 | I96: =SUMIF(Calculations!$I$8:$QJ$8, I$2, Calculations!$I438:$QJ438) -> 0 | J96: =SUMIF(Calculations!$I$8:$QJ$8, J$2, Calculations!$I438:$QJ438) -> 0 | K96: =SUMIF(Calculations!$I$8:$QJ$8, K$2, Calculations!$I438:$QJ438) -> -9307.122798 | L96: =SUMIF(Calculations!$I$8:$QJ$8, L$2, Calculations!$I438:$QJ438) -> -84072.55263 | M96: =SUMIF(Calculations!$I$8:$QJ$8, M$2, Calculations!$I438:$QJ438) -> -88814.90544 | N96: =SUMIF(Calculations!$I$8:$QJ$8, N$2, Calculations!$I438:$QJ438) -> -93824.76423 | O96: =SUMIF(Calculations!$I$8:$QJ$8, O$2, Calculations!$I438:$QJ438) -> -99117.21843 | P96: =SUMIF(Calculations!$I$8:$QJ$8, P$2, Calculations!$I438:$QJ438) -> -104708.2086 | Q96: =SUMIF(Calculations!$I$8:$QJ$8, Q$2, Calculations!$I438:$QJ438) -> -110614.5747 | R96: =SUMIF(Calculations!$I$8:$QJ$8, R$2, Calculations!$I438:$QJ438) -> -116854.1061 | S96: =SUMIF(Calculations!$I$8:$QJ$8, S$2, Calculations!$I438:$QJ438) -> -123445.5962 | T96: =SUMIF(Calculations!$I$8:$QJ$8, T$2, Calculations!$I438:$QJ438) -> -130408.8982 | U96: =SUMIF(Calculations!$I$8:$QJ$8, U$2, Calculations!$I438:$QJ438) -> -137764.9851 | V96: =SUMIF(Calculations!$I$8:$QJ$8, V$2, Calculations!$I438:$QJ438) -> -145536.0132 | W96: =SUMIF(Calculations!$I$8:$QJ$8, W$2, Calculations!$I438:$QJ438) -> -153745.3883 | X96: =SUMIF(Calculations!$I$8:$QJ$8, X$2, Calculations!$I438:$QJ438) -> -162417.8367 | Y96: =SUMIF(Calculations!$I$8:$QJ$8, Y$2, Calculations!$I438:$QJ438) -> -171579.4793 | Z96: =SUMIF(Calculations!$I$8:$QJ$8, Z$2, Calculations!$I438:$QJ438) -> -181257.9107 | AA96: =SUMIF(Calculations!$I$8:$QJ$8, AA$2, Calculations!$I438:$QJ438) -> -191482.2816 | AB96: =SUMIF(Calculations!$I$8:$QJ$8, AB$2, Calculations!$I438:$QJ438) -> -202283.3874 | AC96: =SUMIF(Calculations!$I$8:$QJ$8, AC$2, Calculations!$I438:$QJ438) -> 0 | AD96: =SUMIF(Calculations!$I$8:$QJ$8, AD$2, Calculations!$I438:$QJ438) -> 0 | AE96: =SUMIF(Calculations!$I$8:$QJ$8, AE$2, Calculations!$I438:$QJ438) -> 0 | AF96: =SUMIF(Calculations!$I$8:$QJ$8, AF$2, Calculations!$I438:$QJ438) -> 0 | AG96: =SUMIF(Calculations!$I$8:$QJ$8, AG$2, Calculations!$I438:$QJ438) -> 0 | AH96: =SUMIF(Calculations!$I$8:$QJ$8, AH$2, Calculations!$I438:$QJ438) -> 0 | AI96: =SUMIF(Calculations!$I$8:$QJ$8, AI$2, Calculations!$I438:$QJ438) -> 0 | AJ96: =SUMIF(Calculations!$I$8:$QJ$8, AJ$2, Calculations!$I438:$QJ438) -> 0
C97: =Calculations!C439 -> Interest Payment on Senior Loan | D97: -1385813.191 | E97: -7360.773271 | F97: =Calculations!E439 -> EUR | H97: -1393173.964 | I97: =SUMIF(Calculations!$I$8:$QJ$8, I$2, Calculations!$I439:$QJ439) -> 0 | J97: =SUMIF(Calculations!$I$8:$QJ$8, J$2, Calculations!$I439:$QJ439) -> 0 | K97: =SUMIF(Calculations!$I$8:$QJ$8, K$2, Calculations!$I439:$QJ439) -> -44303.42536 | L97: =SUMIF(Calculations!$I$8:$QJ$8, L$2, Calculations!$I439:$QJ439) -> -130369.64 | M97: =SUMIF(Calculations!$I$8:$QJ$8, M$2, Calculations!$I439:$QJ439) -> -125627.2872 | N97: =SUMIF(Calculations!$I$8:$QJ$8, N$2, Calculations!$I439:$QJ439) -> -120617.4284 | O97: =SUMIF(Calculations!$I$8:$QJ$8, O$2, Calculations!$I439:$QJ439) -> -115324.9742 | P97: =SUMIF(Calculations!$I$8:$QJ$8, P$2, Calculations!$I439:$QJ439) -> -109733.984 | Q97: =SUMIF(Calculations!$I$8:$QJ$8, Q$2, Calculations!$I439:$QJ439) -> -103827.618 | R97: =SUMIF(Calculations!$I$8:$QJ$8, R$2, Calculations!$I439:$QJ439) -> -97588.08651 | S97: =SUMIF(Calculations!$I$8:$QJ$8, S$2, Calculations!$I439:$QJ439) -> -90996.5964 | T97: =SUMIF(Calculations!$I$8:$QJ$8, T$2, Calculations!$I439:$QJ439) -> -84033.29444 | U97: =SUMIF(Calculations!$I$8:$QJ$8, U$2, Calculations!$I439:$QJ439) -> -76677.20752 | V97: =SUMIF(Calculations!$I$8:$QJ$8, V$2, Calculations!$I439:$QJ439) -> -68906.17947 | W97: =SUMIF(Calculations!$I$8:$QJ$8, W$2, Calculations!$I439:$QJ439) -> -60696.80436 | X97: =SUMIF(Calculations!$I$8:$QJ$8, X$2, Calculations!$I439:$QJ439) -> -52024.35596 | Y97: =SUMIF(Calculations!$I$8:$QJ$8, Y$2, Calculations!$I439:$QJ439) -> -42862.71331 | Z97: =SUMIF(Calculations!$I$8:$QJ$8, Z$2, Calculations!$I439:$QJ439) -> -33184.28199 | AA97: =SUMIF(Calculations!$I$8:$QJ$8, AA$2, Calculations!$I439:$QJ439) -> -22959.91107 | AB97: =SUMIF(Calculations!$I$8:$QJ$8, AB$2, Calculations!$I439:$QJ439) -> -12158.80527 | AC97: =SUMIF(Calculations!$I$8:$QJ$8, AC$2, Calculations!$I439:$QJ439) -> -1281.370637 | AD97: =SUMIF(Calculations!$I$8:$QJ$8, AD$2, Calculations!$I439:$QJ439) -> 0 | AE97: =SUMIF(Calculations!$I$8:$QJ$8, AE$2, Calculations!$I439:$QJ439) -> 0 | AF97: =SUMIF(Calculations!$I$8:$QJ$8, AF$2, Calculations!$I439:$QJ439) -> 0 | AG97: =SUMIF(Calculations!$I$8:$QJ$8, AG$2, Calculations!$I439:$QJ439) -> 0 | AH97: =SUMIF(Calculations!$I$8:$QJ$8, AH$2, Calculations!$I439:$QJ439) -> 0 | AI97: =SUMIF(Calculations!$I$8:$QJ$8, AI$2, Calculations!$I439:$QJ439) -> 0 | AJ97: =SUMIF(Calculations!$I$8:$QJ$8, AJ$2, Calculations!$I439:$QJ439) -> 0
C98: =Calculations!C440 -> Interest Payment on Subordinated Debt | D98: -1750552.305 | E98: 244653.3474 | F98: =Calculations!E440 -> EUR | H98: -1505898.958 | I98: =SUMIF(Calculations!$I$8:$QJ$8, I$2, Calculations!$I440:$QJ440) -> 0 | J98: =SUMIF(Calculations!$I$8:$QJ$8, J$2, Calculations!$I440:$QJ440) -> 0 | K98: =SUMIF(Calculations!$I$8:$QJ$8, K$2, Calculations!$I440:$QJ440) -> -48724.812 | L98: =SUMIF(Calculations!$I$8:$QJ$8, L$2, Calculations!$I440:$QJ440) -> -143947.7817 | M98: =SUMIF(Calculations!$I$8:$QJ$8, M$2, Calculations!$I440:$QJ440) -> -141301.1946 | N98: =SUMIF(Calculations!$I$8:$QJ$8, N$2, Calculations!$I440:$QJ440) -> -138318.9541 | O98: =SUMIF(Calculations!$I$8:$QJ$8, O$2, Calculations!$I440:$QJ440) -> -134958.4907 | P98: =SUMIF(Calculations!$I$8:$QJ$8, P$2, Calculations!$I440:$QJ440) -> -131171.8365 | Q98: =SUMIF(Calculations!$I$8:$QJ$8, Q$2, Calculations!$I440:$QJ440) -> -126904.9398 | R98: =SUMIF(Calculations!$I$8:$QJ$8, R$2, Calculations!$I440:$QJ440) -> -122096.8938 | S98: =SUMIF(Calculations!$I$8:$QJ$8, S$2, Calculations!$I440:$QJ440) -> -116679.0671 | T98: =SUMIF(Calculations!$I$8:$QJ$8, T$2, Calculations!$I440:$QJ440) -> -110574.1245 | U98: =SUMIF(Calculations!$I$8:$QJ$8, U$2, Calculations!$I440:$QJ440) -> -103694.9223 | V98: =SUMIF(Calculations!$I$8:$QJ$8, V$2, Calculations!$I440:$QJ440) -> -95943.26511 | W98: =SUMIF(Calculations!$I$8:$QJ$8, W$2, Calculations!$I440:$QJ440) -> -87208.50375 | X98: =SUMIF(Calculations!$I$8:$QJ$8, X$2, Calculations!$I440:$QJ440) -> -77365.95601 | Y98: =SUMIF(Calculations!$I$8:$QJ$8, Y$2, Calculations!$I440:$QJ440) -> -66275.12686 | Z98: =SUMIF(Calculations!$I$8:$QJ$8, Z$2, Calculations!$I440:$QJ440) -> -53777.70298 | AA98: =SUMIF(Calculations!$I$8:$QJ$8, AA$2, Calculations!$I440:$QJ440) -> -39695.29293 | AB98: =SUMIF(Calculations!$I$8:$QJ$8, AB$2, Calculations!$I440:$QJ440) -> -23826.8808 | AC98: =SUMIF(Calculations!$I$8:$QJ$8, AC$2, Calculations!$I440:$QJ440) -> -5945.956823 | AD98: =SUMIF(Calculations!$I$8:$QJ$8, AD$2, Calculations!$I440:$QJ440) -> 14202.71587 | AE98: =SUMIF(Calculations!$I$8:$QJ$8, AE$2, Calculations!$I440:$QJ440) -> 36906.74459 | AF98: =SUMIF(Calculations!$I$8:$QJ$8, AF$2, Calculations!$I440:$QJ440) -> 62490.21244 | AG98: =SUMIF(Calculations!$I$8:$QJ$8, AG$2, Calculations!$I440:$QJ440) -> 91318.30436 | AH98: =SUMIF(Calculations!$I$8:$QJ$8, AH$2, Calculations!$I440:$QJ440) -> 57594.76736 | AI98: =SUMIF(Calculations!$I$8:$QJ$8, AI$2, Calculations!$I440:$QJ440) -> 0 | AJ98: =SUMIF(Calculations!$I$8:$QJ$8, AJ$2, Calculations!$I440:$QJ440) -> 0
C99: =Calculations!C441 -> Dividends | D99: 0 | E99: 0 | F99: =Calculations!E441 -> EUR | H99: 0 | I99: =SUMIF(Calculations!$I$8:$QJ$8, I$2, Calculations!$I441:$QJ441) -> 0 | J99: =SUMIF(Calculations!$I$8:$QJ$8, J$2, Calculations!$I441:$QJ441) -> 0 | K99: =SUMIF(Calculations!$I$8:$QJ$8, K$2, Calculations!$I441:$QJ441) -> 0 | L99: =SUMIF(Calculations!$I$8:$QJ$8, L$2, Calculations!$I441:$QJ441) -> 0 | M99: =SUMIF(Calculations!$I$8:$QJ$8, M$2, Calculations!$I441:$QJ441) -> 0 | N99: =SUMIF(Calculations!$I$8:$QJ$8, N$2, Calculations!$I441:$QJ441) -> 0 | O99: =SUMIF(Calculations!$I$8:$QJ$8, O$2, Calculations!$I441:$QJ441) -> 0 | P99: =SUMIF(Calculations!$I$8:$QJ$8, P$2, Calculations!$I441:$QJ441) -> 0 | Q99: =SUMIF(Calculations!$I$8:$QJ$8, Q$2, Calculations!$I441:$QJ441) -> 0 | R99: =SUMIF(Calculations!$I$8:$QJ$8, R$2, Calculations!$I441:$QJ441) -> 0 | S99: =SUMIF(Calculations!$I$8:$QJ$8, S$2, Calculations!$I441:$QJ441) -> 0 | T99: =SUMIF(Calculations!$I$8:$QJ$8, T$2, Calculations!$I441:$QJ441) -> 0 | U99: =SUMIF(Calculations!$I$8:$QJ$8, U$2, Calculations!$I441:$QJ441) -> 0 | V99: =SUMIF(Calculations!$I$8:$QJ$8, V$2, Calculations!$I441:$QJ441) -> 0 | W99: =SUMIF(Calculations!$I$8:$QJ$8, W$2, Calculations!$I441:$QJ441) -> 0 | X99: =SUMIF(Calculations!$I$8:$QJ$8, X$2, Calculations!$I441:$QJ441) -> 0 | Y99: =SUMIF(Calculations!$I$8:$QJ$8, Y$2, Calculations!$I441:$QJ441) -> 0 | Z99: =SUMIF(Calculations!$I$8:$QJ$8, Z$2, Calculations!$I441:$QJ441) -> 0 | AA99: =SUMIF(Calculations!$I$8:$QJ$8, AA$2, Calculations!$I441:$QJ441) -> 0 | AB99: =SUMIF(Calculations!$I$8:$QJ$8, AB$2, Calculations!$I441:$QJ441) -> 0 | AC99: =SUMIF(Calculations!$I$8:$QJ$8, AC$2, Calculations!$I441:$QJ441) -> 0 | AD99: =SUMIF(Calculations!$I$8:$QJ$8, AD$2, Calculations!$I441:$QJ441) -> 0 | AE99: =SUMIF(Calculations!$I$8:$QJ$8, AE$2, Calculations!$I441:$QJ441) -> 0 | AF99: =SUMIF(Calculations!$I$8:$QJ$8, AF$2, Calculations!$I441:$QJ441) -> 0 | AG99: =SUMIF(Calculations!$I$8:$QJ$8, AG$2, Calculations!$I441:$QJ441) -> 0 | AH99: =SUMIF(Calculations!$I$8:$QJ$8, AH$2, Calculations!$I441:$QJ441) -> 0 | AI99: =SUMIF(Calculations!$I$8:$QJ$8, AI$2, Calculations!$I441:$QJ441) -> 0 | AJ99: =SUMIF(Calculations!$I$8:$QJ$8, AJ$2, Calculations!$I441:$QJ441) -> 0
C100: =Calculations!C442 -> Change in DSRA | D100: -100633.6187 | E100: 100633.6187 | F100: =Calculations!E442 -> EUR | H100: 0 | I100: =SUMIF(Calculations!$I$8:$QJ$8, I$2, Calculations!$I442:$QJ442) -> 0 | J100: =SUMIF(Calculations!$I$8:$QJ$8, J$2, Calculations!$I442:$QJ442) -> 0 | K100: =SUMIF(Calculations!$I$8:$QJ$8, K$2, Calculations!$I442:$QJ442) -> -107221.0963 | L100: =SUMIF(Calculations!$I$8:$QJ$8, L$2, Calculations!$I442:$QJ442) -> 0 | M100: =SUMIF(Calculations!$I$8:$QJ$8, M$2, Calculations!$I442:$QJ442) -> 0 | N100: =SUMIF(Calculations!$I$8:$QJ$8, N$2, Calculations!$I442:$QJ442) -> 0 | O100: =SUMIF(Calculations!$I$8:$QJ$8, O$2, Calculations!$I442:$QJ442) -> 0 | P100: =SUMIF(Calculations!$I$8:$QJ$8, P$2, Calculations!$I442:$QJ442) -> 0 | Q100: =SUMIF(Calculations!$I$8:$QJ$8, Q$2, Calculations!$I442:$QJ442) -> 0 | R100: =SUMIF(Calculations!$I$8:$QJ$8, R$2, Calculations!$I442:$QJ442) -> 0 | S100: =SUMIF(Calculations!$I$8:$QJ$8, S$2, Calculations!$I442:$QJ442) -> 0 | T100: =SUMIF(Calculations!$I$8:$QJ$8, T$2, Calculations!$I442:$QJ442) -> 0 | U100: =SUMIF(Calculations!$I$8:$QJ$8, U$2, Calculations!$I442:$QJ442) -> 0 | V100: =SUMIF(Calculations!$I$8:$QJ$8, V$2, Calculations!$I442:$QJ442) -> 0 | W100: =SUMIF(Calculations!$I$8:$QJ$8, W$2, Calculations!$I442:$QJ442) -> 0 | X100: =SUMIF(Calculations!$I$8:$QJ$8, X$2, Calculations!$I442:$QJ442) -> 0 | Y100: =SUMIF(Calculations!$I$8:$QJ$8, Y$2, Calculations!$I442:$QJ442) -> 0 | Z100: =SUMIF(Calculations!$I$8:$QJ$8, Z$2, Calculations!$I442:$QJ442) -> 0 | AA100: =SUMIF(Calculations!$I$8:$QJ$8, AA$2, Calculations!$I442:$QJ442) -> 0 | AB100: =SUMIF(Calculations!$I$8:$QJ$8, AB$2, Calculations!$I442:$QJ442) -> 13174.95535 | AC100: =SUMIF(Calculations!$I$8:$QJ$8, AC$2, Calculations!$I442:$QJ442) -> 94046.14098 | AD100: =SUMIF(Calculations!$I$8:$QJ$8, AD$2, Calculations!$I442:$QJ442) -> 0 | AE100: =SUMIF(Calculations!$I$8:$QJ$8, AE$2, Calculations!$I442:$QJ442) -> 0 | AF100: =SUMIF(Calculations!$I$8:$QJ$8, AF$2, Calculations!$I442:$QJ442) -> 0 | AG100: =SUMIF(Calculations!$I$8:$QJ$8, AG$2, Calculations!$I442:$QJ442) -> 0 | AH100: =SUMIF(Calculations!$I$8:$QJ$8, AH$2, Calculations!$I442:$QJ442) -> 0 | AI100: =SUMIF(Calculations!$I$8:$QJ$8, AI$2, Calculations!$I442:$QJ442) -> 0 | AJ100: =SUMIF(Calculations!$I$8:$QJ$8, AJ$2, Calculations!$I442:$QJ442) -> 0
C101: =Calculations!C443 -> Change in MMRA | D101: 0 | E101: 0 | F101: =Calculations!E443 -> EUR | H101: 0 | I101: =SUMIF(Calculations!$I$8:$QJ$8, I$2, Calculations!$I443:$QJ443) -> 0 | J101: =SUMIF(Calculations!$I$8:$QJ$8, J$2, Calculations!$I443:$QJ443) -> 0 | K101: =SUMIF(Calculations!$I$8:$QJ$8, K$2, Calculations!$I443:$QJ443) -> 0 | L101: =SUMIF(Calculations!$I$8:$QJ$8, L$2, Calculations!$I443:$QJ443) -> 0 | M101: =SUMIF(Calculations!$I$8:$QJ$8, M$2, Calculations!$I443:$QJ443) -> 0 | N101: =SUMIF(Calculations!$I$8:$QJ$8, N$2, Calculations!$I443:$QJ443) -> 0 | O101: =SUMIF(Calculations!$I$8:$QJ$8, O$2, Calculations!$I443:$QJ443) -> 0 | P101: =SUMIF(Calculations!$I$8:$QJ$8, P$2, Calculations!$I443:$QJ443) -> 0 | Q101: =SUMIF(Calculations!$I$8:$QJ$8, Q$2, Calculations!$I443:$QJ443) -> 0 | R101: =SUMIF(Calculations!$I$8:$QJ$8, R$2, Calculations!$I443:$QJ443) -> 0 | S101: =SUMIF(Calculations!$I$8:$QJ$8, S$2, Calculations!$I443:$QJ443) -> 0 | T101: =SUMIF(Calculations!$I$8:$QJ$8, T$2, Calculations!$I443:$QJ443) -> 0 | U101: =SUMIF(Calculations!$I$8:$QJ$8, U$2, Calculations!$I443:$QJ443) -> 0 | V101: =SUMIF(Calculations!$I$8:$QJ$8, V$2, Calculations!$I443:$QJ443) -> 0 | W101: =SUMIF(Calculations!$I$8:$QJ$8, W$2, Calculations!$I443:$QJ443) -> 0 | X101: =SUMIF(Calculations!$I$8:$QJ$8, X$2, Calculations!$I443:$QJ443) -> 0 | Y101: =SUMIF(Calculations!$I$8:$QJ$8, Y$2, Calculations!$I443:$QJ443) -> 0 | Z101: =SUMIF(Calculations!$I$8:$QJ$8, Z$2, Calculations!$I443:$QJ443) -> 0 | AA101: =SUMIF(Calculations!$I$8:$QJ$8, AA$2, Calculations!$I443:$QJ443) -> 0 | AB101: =SUMIF(Calculations!$I$8:$QJ$8, AB$2, Calculations!$I443:$QJ443) -> 0 | AC101: =SUMIF(Calculations!$I$8:$QJ$8, AC$2, Calculations!$I443:$QJ443) -> 0 | AD101: =SUMIF(Calculations!$I$8:$QJ$8, AD$2, Calculations!$I443:$QJ443) -> 0 | AE101: =SUMIF(Calculations!$I$8:$QJ$8, AE$2, Calculations!$I443:$QJ443) -> 0 | AF101: =SUMIF(Calculations!$I$8:$QJ$8, AF$2, Calculations!$I443:$QJ443) -> 0 | AG101: =SUMIF(Calculations!$I$8:$QJ$8, AG$2, Calculations!$I443:$QJ443) -> 0 | AH101: =SUMIF(Calculations!$I$8:$QJ$8, AH$2, Calculations!$I443:$QJ443) -> 0 | AI101: =SUMIF(Calculations!$I$8:$QJ$8, AI$2, Calculations!$I443:$QJ443) -> 0 | AJ101: =SUMIF(Calculations!$I$8:$QJ$8, AJ$2, Calculations!$I443:$QJ443) -> 0
C102: =Calculations!C444 -> Initial Funding of Working Capital | D102: 0 | E102: 0 | F102: =Calculations!E444 -> EUR | H102: 0 | I102: =SUMIF(Calculations!$I$8:$QJ$8, I$2, Calculations!$I444:$QJ444) -> 0 | J102: =SUMIF(Calculations!$I$8:$QJ$8, J$2, Calculations!$I444:$QJ444) -> 0 | K102: =SUMIF(Calculations!$I$8:$QJ$8, K$2, Calculations!$I444:$QJ444) -> 0 | L102: =SUMIF(Calculations!$I$8:$QJ$8, L$2, Calculations!$I444:$QJ444) -> 0 | M102: =SUMIF(Calculations!$I$8:$QJ$8, M$2, Calculations!$I444:$QJ444) -> 0 | N102: =SUMIF(Calculations!$I$8:$QJ$8, N$2, Calculations!$I444:$QJ444) -> 0 | O102: =SUMIF(Calculations!$I$8:$QJ$8, O$2, Calculations!$I444:$QJ444) -> 0 | P102: =SUMIF(Calculations!$I$8:$QJ$8, P$2, Calculations!$I444:$QJ444) -> 0 | Q102: =SUMIF(Calculations!$I$8:$QJ$8, Q$2, Calculations!$I444:$QJ444) -> 0 | R102: =SUMIF(Calculations!$I$8:$QJ$8, R$2, Calculations!$I444:$QJ444) -> 0 | S102: =SUMIF(Calculations!$I$8:$QJ$8, S$2, Calculations!$I444:$QJ444) -> 0 | T102: =SUMIF(Calculations!$I$8:$QJ$8, T$2, Calculations!$I444:$QJ444) -> 0 | U102: =SUMIF(Calculations!$I$8:$QJ$8, U$2, Calculations!$I444:$QJ444) -> 0 | V102: =SUMIF(Calculations!$I$8:$QJ$8, V$2, Calculations!$I444:$QJ444) -> 0 | W102: =SUMIF(Calculations!$I$8:$QJ$8, W$2, Calculations!$I444:$QJ444) -> 0 | X102: =SUMIF(Calculations!$I$8:$QJ$8, X$2, Calculations!$I444:$QJ444) -> 0 | Y102: =SUMIF(Calculations!$I$8:$QJ$8, Y$2, Calculations!$I444:$QJ444) -> 0 | Z102: =SUMIF(Calculations!$I$8:$QJ$8, Z$2, Calculations!$I444:$QJ444) -> 0 | AA102: =SUMIF(Calculations!$I$8:$QJ$8, AA$2, Calculations!$I444:$QJ444) -> 0 | AB102: =SUMIF(Calculations!$I$8:$QJ$8, AB$2, Calculations!$I444:$QJ444) -> 0 | AC102: =SUMIF(Calculations!$I$8:$QJ$8, AC$2, Calculations!$I444:$QJ444) -> 0 | AD102: =SUMIF(Calculations!$I$8:$QJ$8, AD$2, Calculations!$I444:$QJ444) -> 0 | AE102: =SUMIF(Calculations!$I$8:$QJ$8, AE$2, Calculations!$I444:$QJ444) -> 0 | AF102: =SUMIF(Calculations!$I$8:$QJ$8, AF$2, Calculations!$I444:$QJ444) -> 0 | AG102: =SUMIF(Calculations!$I$8:$QJ$8, AG$2, Calculations!$I444:$QJ444) -> 0 | AH102: =SUMIF(Calculations!$I$8:$QJ$8, AH$2, Calculations!$I444:$QJ444) -> 0 | AI102: =SUMIF(Calculations!$I$8:$QJ$8, AI$2, Calculations!$I444:$QJ444) -> 0 | AJ102: =SUMIF(Calculations!$I$8:$QJ$8, AJ$2, Calculations!$I444:$QJ444) -> 0
C103: =Calculations!C445 -> Interest on Reserve Accounts | D103: 0 | E103: 0 | F103: =Calculations!E445 -> EUR | H103: 0 | I103: =SUMIF(Calculations!$I$8:$QJ$8, I$2, Calculations!$I445:$QJ445) -> 0 | J103: =SUMIF(Calculations!$I$8:$QJ$8, J$2, Calculations!$I445:$QJ445) -> 0 | K103: =SUMIF(Calculations!$I$8:$QJ$8, K$2, Calculations!$I445:$QJ445) -> 0 | L103: =SUMIF(Calculations!$I$8:$QJ$8, L$2, Calculations!$I445:$QJ445) -> 0 | M103: =SUMIF(Calculations!$I$8:$QJ$8, M$2, Calculations!$I445:$QJ445) -> 0 | N103: =SUMIF(Calculations!$I$8:$QJ$8, N$2, Calculations!$I445:$QJ445) -> 0 | O103: =SUMIF(Calculations!$I$8:$QJ$8, O$2, Calculations!$I445:$QJ445) -> 0 | P103: =SUMIF(Calculations!$I$8:$QJ$8, P$2, Calculations!$I445:$QJ445) -> 0 | Q103: =SUMIF(Calculations!$I$8:$QJ$8, Q$2, Calculations!$I445:$QJ445) -> 0 | R103: =SUMIF(Calculations!$I$8:$QJ$8, R$2, Calculations!$I445:$QJ445) -> 0 | S103: =SUMIF(Calculations!$I$8:$QJ$8, S$2, Calculations!$I445:$QJ445) -> 0 | T103: =SUMIF(Calculations!$I$8:$QJ$8, T$2, Calculations!$I445:$QJ445) -> 0 | U103: =SUMIF(Calculations!$I$8:$QJ$8, U$2, Calculations!$I445:$QJ445) -> 0 | V103: =SUMIF(Calculations!$I$8:$QJ$8, V$2, Calculations!$I445:$QJ445) -> 0 | W103: =SUMIF(Calculations!$I$8:$QJ$8, W$2, Calculations!$I445:$QJ445) -> 0 | X103: =SUMIF(Calculations!$I$8:$QJ$8, X$2, Calculations!$I445:$QJ445) -> 0 | Y103: =SUMIF(Calculations!$I$8:$QJ$8, Y$2, Calculations!$I445:$QJ445) -> 0 | Z103: =SUMIF(Calculations!$I$8:$QJ$8, Z$2, Calculations!$I445:$QJ445) -> 0 | AA103: =SUMIF(Calculations!$I$8:$QJ$8, AA$2, Calculations!$I445:$QJ445) -> 0 | AB103: =SUMIF(Calculations!$I$8:$QJ$8, AB$2, Calculations!$I445:$QJ445) -> 0 | AC103: =SUMIF(Calculations!$I$8:$QJ$8, AC$2, Calculations!$I445:$QJ445) -> 0 | AD103: =SUMIF(Calculations!$I$8:$QJ$8, AD$2, Calculations!$I445:$QJ445) -> 0 | AE103: =SUMIF(Calculations!$I$8:$QJ$8, AE$2, Calculations!$I445:$QJ445) -> 0 | AF103: =SUMIF(Calculations!$I$8:$QJ$8, AF$2, Calculations!$I445:$QJ445) -> 0 | AG103: =SUMIF(Calculations!$I$8:$QJ$8, AG$2, Calculations!$I445:$QJ445) -> 0 | AH103: =SUMIF(Calculations!$I$8:$QJ$8, AH$2, Calculations!$I445:$QJ445) -> 0 | AI103: =SUMIF(Calculations!$I$8:$QJ$8, AI$2, Calculations!$I445:$QJ445) -> 0 | AJ103: =SUMIF(Calculations!$I$8:$QJ$8, AJ$2, Calculations!$I445:$QJ445) -> 0
C104: =Calculations!C446 -> Cash Flows From Financing Activities | D104: -5465446.202 | E104: 3859138.05 | F104: =Calculations!E446 -> EUR | H104: -1606308.152 | I104: =SUM(I90:I103) -> 1800000 | J104: 2000000 | K104: 785723.2054 | L104: -379257.993 | M104: -379257.993 | N104: -379257.993 | O104: -379257.993 | P104: -379257.993 | Q104: -379257.993 | R104: -379257.993 | S104: -379257.993 | T104: -379257.993 | U104: -379257.993 | V104: -379257.993 | W104: -379257.993 | X104: -379257.993 | Y104: -379257.993 | Z104: -379257.993 | AA104: -379257.993 | AB104: -366083.0377 | AC104: -72051.03004 | AD104: -164815.8004 | AE104: -164815.8004 | AF104: -164815.8004 | AG104: -164815.8004 | AH104: 973493.8007 | AI104: 0 | AJ104: =SUM(AJ90:AJ103) -> 0
D105: 0 | E105: 0
B106: Net Movements In Cash | D106: 649490.9069 | E106: 1753764.713 | F106: =Calculations!E448 -> EUR | H106: =SUM(I106:AT106) -> 2403255.62 | I106: =I83+I87+I104 -> 41410.56426 | J106: 20623.79852 | K106: 70836.56767 | L106: 71617.37826 | M106: 66623.62807 | N106: 63460.36556 | O106: 58529.63166 | P106: 54926.97876 | Q106: 50468.77095 | R106: 45927.54927 | S106: 40746.03857 | T106: 35241.22397 | U106: 29559.26585 | V106: 23912.22823 | W106: 18237.47373 | X106: 12718.26906 | Y106: 7168.995695 | Z106: 1649.938227 | AA106: -3904.595314 | AB106: 3542.397327 | AC106: -183700.8822 | AD106: 173871.5724 | AE106: 128423.3963 | AF106: 118679.0069 | AG106: 108242.5739 | AH106: 1246553.753 | AI106: 276849.0983 | AJ106: =AJ83+AJ87+AJ104 -> -178959.3661
D107: =SUM(K107:AB107) -> 0
B108: Cash Position
C109: =Calculations!C451 -> Beginning of Period | F109: =Calculations!E451 -> EUR | I109: =H110 -> 0 | J109: =I110 -> 41410.56426 | K109: 62034.36278 | L109: 132870.9305 | M109: 204488.3087 | N109: =M110 -> 271111.9368 | O109: 334572.3023 | P109: 393101.934 | Q109: 448028.9128 | R109: 498497.6837 | S109: 544425.233 | T109: 585171.2716 | U109: 620412.4955 | V109: 649971.7614 | W109: 673883.9896 | X109: 692121.4633 | Y109: 704839.7324 | Z109: 712008.7281 | AA109: 713658.6663 | AB109: 709754.071 | AC109: 713296.4683 | AD109: 529595.5861 | AE109: 703467.1585 | AF109: 831890.5547 | AG109: =AF110 -> 950569.5617 | AH109: 1058812.136 | AI109: 2305365.888 | AJ109: 2582214.986
C110: =Calculations!C452 -> End of Period | F110: =Calculations!E452 -> EUR | H110: 0 | I110: =I106+I109 -> 41410.56426 | J110: =J106+J109 -> 62034.36278 | K110: 132870.9305 | L110: 204488.3087 | M110: 271111.9368 | N110: 334572.3023 | O110: 393101.934 | P110: 448028.9128 | Q110: 498497.6837 | R110: 544425.233 | S110: 585171.2716 | T110: 620412.4955 | U110: 649971.7614 | V110: 673883.9896 | W110: 692121.4633 | X110: 704839.7324 | Y110: 712008.7281 | Z110: 713658.6663 | AA110: 709754.071 | AB110: 713296.4683 | AC110: 529595.5861 | AD110: 703467.1585 | AE110: 831890.5547 | AF110: 950569.5617 | AG110: =AG106+AG109 -> 1058812.136 | AH110: 2305365.888 | AI110: 2582214.986 | AJ110: 2403255.62
A112: · | B112: Cash Waterfall | F112: Unit
C114: =Calculations!C459 -> Drawdown of Equity | F114: =Calculations!E459 -> EUR | H114: =SUM(I114:AT114) -> 1200000 | I114: =SUMIF(Calculations!$I$8:$QJ$8, I$2, Calculations!$I459:$QJ459) -> 1200000 | J114: =SUMIF(Calculations!$I$8:$QJ$8, J$2, Calculations!$I459:$QJ459) -> 0 | K114: =SUMIF(Calculations!$I$8:$QJ$8, K$2, Calculations!$I459:$QJ459) -> 0 | L114: =SUMIF(Calculations!$I$8:$QJ$8, L$2, Calculations!$I459:$QJ459) -> 0 | M114: =SUMIF(Calculations!$I$8:$QJ$8, M$2, Calculations!$I459:$QJ459) -> 0 | N114: =SUMIF(Calculations!$I$8:$QJ$8, N$2, Calculations!$I459:$QJ459) -> 0 | O114: =SUMIF(Calculations!$I$8:$QJ$8, O$2, Calculations!$I459:$QJ459) -> 0 | P114: =SUMIF(Calculations!$I$8:$QJ$8, P$2, Calculations!$I459:$QJ459) -> 0 | Q114: =SUMIF(Calculations!$I$8:$QJ$8, Q$2, Calculations!$I459:$QJ459) -> 0 | R114: =SUMIF(Calculations!$I$8:$QJ$8, R$2, Calculations!$I459:$QJ459) -> 0 | S114: =SUMIF(Calculations!$I$8:$QJ$8, S$2, Calculations!$I459:$QJ459) -> 0 | T114: =SUMIF(Calculations!$I$8:$QJ$8, T$2, Calculations!$I459:$QJ459) -> 0 | U114: =SUMIF(Calculations!$I$8:$QJ$8, U$2, Calculations!$I459:$QJ459) -> 0 | V114: =SUMIF(Calculations!$I$8:$QJ$8, V$2, Calculations!$I459:$QJ459) -> 0 | W114: =SUMIF(Calculations!$I$8:$QJ$8, W$2, Calculations!$I459:$QJ459) -> 0 | X114: =SUMIF(Calculations!$I$8:$QJ$8, X$2, Calculations!$I459:$QJ459) -> 0 | Y114: =SUMIF(Calculations!$I$8:$QJ$8, Y$2, Calculations!$I459:$QJ459) -> 0 | Z114: =SUMIF(Calculations!$I$8:$QJ$8, Z$2, Calculations!$I459:$QJ459) -> 0 | AA114: =SUMIF(Calculations!$I$8:$QJ$8, AA$2, Calculations!$I459:$QJ459) -> 0 | AB114: =SUMIF(Calculations!$I$8:$QJ$8, AB$2, Calculations!$I459:$QJ459) -> 0 | AC114: =SUMIF(Calculations!$I$8:$QJ$8, AC$2, Calculations!$I459:$QJ459) -> 0 | AD114: =SUMIF(Calculations!$I$8:$QJ$8, AD$2, Calculations!$I459:$QJ459) -> 0 | AE114: =SUMIF(Calculations!$I$8:$QJ$8, AE$2, Calculations!$I459:$QJ459) -> 0 | AF114: =SUMIF(Calculations!$I$8:$QJ$8, AF$2, Calculations!$I459:$QJ459) -> 0 | AG114: =SUMIF(Calculations!$I$8:$QJ$8, AG$2, Calculations!$I459:$QJ459) -> 0 | AH114: =SUMIF(Calculations!$I$8:$QJ$8, AH$2, Calculations!$I459:$QJ459) -> 0 | AI114: =SUMIF(Calculations!$I$8:$QJ$8, AI$2, Calculations!$I459:$QJ459) -> 0 | AJ114: =SUMIF(Calculations!$I$8:$QJ$8, AJ$2, Calculations!$I459:$QJ459) -> 0
C115: =Calculations!C460 -> Interest on Reserve Accounts | F115: =Calculations!E460 -> EUR | H115: 0 | I115: =SUMIF(Calculations!$I$8:$QJ$8, I$2, Calculations!$I460:$QJ460) -> 0 | J115: =SUMIF(Calculations!$I$8:$QJ$8, J$2, Calculations!$I460:$QJ460) -> 0 | K115: =SUMIF(Calculations!$I$8:$QJ$8, K$2, Calculations!$I460:$QJ460) -> 0 | L115: =SUMIF(Calculations!$I$8:$QJ$8, L$2, Calculations!$I460:$QJ460) -> 0 | M115: =SUMIF(Calculations!$I$8:$QJ$8, M$2, Calculations!$I460:$QJ460) -> 0 | N115: =SUMIF(Calculations!$I$8:$QJ$8, N$2, Calculations!$I460:$QJ460) -> 0 | O115: =SUMIF(Calculations!$I$8:$QJ$8, O$2, Calculations!$I460:$QJ460) -> 0 | P115: =SUMIF(Calculations!$I$8:$QJ$8, P$2, Calculations!$I460:$QJ460) -> 0 | Q115: =SUMIF(Calculations!$I$8:$QJ$8, Q$2, Calculations!$I460:$QJ460) -> 0 | R115: =SUMIF(Calculations!$I$8:$QJ$8, R$2, Calculations!$I460:$QJ460) -> 0 | S115: =SUMIF(Calculations!$I$8:$QJ$8, S$2, Calculations!$I460:$QJ460) -> 0 | T115: =SUMIF(Calculations!$I$8:$QJ$8, T$2, Calculations!$I460:$QJ460) -> 0 | U115: =SUMIF(Calculations!$I$8:$QJ$8, U$2, Calculations!$I460:$QJ460) -> 0 | V115: =SUMIF(Calculations!$I$8:$QJ$8, V$2, Calculations!$I460:$QJ460) -> 0 | W115: =SUMIF(Calculations!$I$8:$QJ$8, W$2, Calculations!$I460:$QJ460) -> 0 | X115: =SUMIF(Calculations!$I$8:$QJ$8, X$2, Calculations!$I460:$QJ460) -> 0 | Y115: =SUMIF(Calculations!$I$8:$QJ$8, Y$2, Calculations!$I460:$QJ460) -> 0 | Z115: =SUMIF(Calculations!$I$8:$QJ$8, Z$2, Calculations!$I460:$QJ460) -> 0 | AA115: =SUMIF(Calculations!$I$8:$QJ$8, AA$2, Calculations!$I460:$QJ460) -> 0 | AB115: =SUMIF(Calculations!$I$8:$QJ$8, AB$2, Calculations!$I460:$QJ460) -> 0 | AC115: =SUMIF(Calculations!$I$8:$QJ$8, AC$2, Calculations!$I460:$QJ460) -> 0 | AD115: =SUMIF(Calculations!$I$8:$QJ$8, AD$2, Calculations!$I460:$QJ460) -> 0 | AE115: =SUMIF(Calculations!$I$8:$QJ$8, AE$2, Calculations!$I460:$QJ460) -> 0 | AF115: =SUMIF(Calculations!$I$8:$QJ$8, AF$2, Calculations!$I460:$QJ460) -> 0 | AG115: =SUMIF(Calculations!$I$8:$QJ$8, AG$2, Calculations!$I460:$QJ460) -> 0 | AH115: =SUMIF(Calculations!$I$8:$QJ$8, AH$2, Calculations!$I460:$QJ460) -> 0 | AI115: =SUMIF(Calculations!$I$8:$QJ$8, AI$2, Calculations!$I460:$QJ460) -> 0 | AJ115: =SUMIF(Calculations!$I$8:$QJ$8, AJ$2, Calculations!$I460:$QJ460) -> 0
C116: =Calculations!C461 -> Cash Flow Available for Debt Service | F116: =Calculations!E461 -> EUR | H116: 10303532.74 | I116: =SUMIF(Calculations!$I$8:$QJ$8, I$2, Calculations!$I461:$QJ461) -> 1042557.342 | J116: =SUMIF(Calculations!$I$8:$QJ$8, J$2, Calculations!$I461:$QJ461) -> 107032.5579 | K116: =SUMIF(Calculations!$I$8:$QJ$8, K$2, Calculations!$I461:$QJ461) -> 216262.1486 | L116: =SUMIF(Calculations!$I$8:$QJ$8, L$2, Calculations!$I461:$QJ461) -> 450875.3713 | M116: =SUMIF(Calculations!$I$8:$QJ$8, M$2, Calculations!$I461:$QJ461) -> 445881.6211 | N116: =SUMIF(Calculations!$I$8:$QJ$8, N$2, Calculations!$I461:$QJ461) -> 442718.3586 | O116: =SUMIF(Calculations!$I$8:$QJ$8, O$2, Calculations!$I461:$QJ461) -> 437787.6247 | P116: =SUMIF(Calculations!$I$8:$QJ$8, P$2, Calculations!$I461:$QJ461) -> 434184.9718 | Q116: =SUMIF(Calculations!$I$8:$QJ$8, Q$2, Calculations!$I461:$QJ461) -> 429726.764 | R116: =SUMIF(Calculations!$I$8:$QJ$8, R$2, Calculations!$I461:$QJ461) -> 425185.5423 | S116: =SUMIF(Calculations!$I$8:$QJ$8, S$2, Calculations!$I461:$QJ461) -> 420004.0316 | T116: =SUMIF(Calculations!$I$8:$QJ$8, T$2, Calculations!$I461:$QJ461) -> 414499.217 | U116: =SUMIF(Calculations!$I$8:$QJ$8, U$2, Calculations!$I461:$QJ461) -> 408817.2589 | V116: =SUMIF(Calculations!$I$8:$QJ$8, V$2, Calculations!$I461:$QJ461) -> 403170.2213 | W116: =SUMIF(Calculations!$I$8:$QJ$8, W$2, Calculations!$I461:$QJ461) -> 397495.4668 | X116: =SUMIF(Calculations!$I$8:$QJ$8, X$2, Calculations!$I461:$QJ461) -> 391976.2621 | Y116: =SUMIF(Calculations!$I$8:$QJ$8, Y$2, Calculations!$I461:$QJ461) -> 386426.9887 | Z116: =SUMIF(Calculations!$I$8:$QJ$8, Z$2, Calculations!$I461:$QJ461) -> 380907.9313 | AA116: =SUMIF(Calculations!$I$8:$QJ$8, AA$2, Calculations!$I461:$QJ461) -> 375353.3977 | AB116: =SUMIF(Calculations!$I$8:$QJ$8, AB$2, Calculations!$I461:$QJ461) -> 369625.435 | AC116: =SUMIF(Calculations!$I$8:$QJ$8, AC$2, Calculations!$I461:$QJ461) -> 363614.7914 | AD116: =SUMIF(Calculations!$I$8:$QJ$8, AD$2, Calculations!$I461:$QJ461) -> 338687.3727 | AE116: =SUMIF(Calculations!$I$8:$QJ$8, AE$2, Calculations!$I461:$QJ461) -> 293239.1966 | AF116: =SUMIF(Calculations!$I$8:$QJ$8, AF$2, Calculations!$I461:$QJ461) -> 283494.8073 | AG116: =SUMIF(Calculations!$I$8:$QJ$8, AG$2, Calculations!$I461:$QJ461) -> 273058.3743 | AH116: =SUMIF(Calculations!$I$8:$QJ$8, AH$2, Calculations!$I461:$QJ461) -> 273059.9518 | AI116: =SUMIF(Calculations!$I$8:$QJ$8, AI$2, Calculations!$I461:$QJ461) -> 276849.0983 | AJ116: =SUMIF(Calculations!$I$8:$QJ$8, AJ$2, Calculations!$I461:$QJ461) -> -178959.3661
C117: =Calculations!C462 -> less: Senior Debt Interest Expense | F117: =Calculations!E462 -> EUR | H117: -1393173.964 | I117: =SUMIF(Calculations!$I$8:$QJ$8, I$2, Calculations!$I462:$QJ462) -> 0 | J117: =SUMIF(Calculations!$I$8:$QJ$8, J$2, Calculations!$I462:$QJ462) -> 0 | K117: =SUMIF(Calculations!$I$8:$QJ$8, K$2, Calculations!$I462:$QJ462) -> -44303.42536 | L117: =SUMIF(Calculations!$I$8:$QJ$8, L$2, Calculations!$I462:$QJ462) -> -130369.64 | M117: =SUMIF(Calculations!$I$8:$QJ$8, M$2, Calculations!$I462:$QJ462) -> -125627.2872 | N117: =SUMIF(Calculations!$I$8:$QJ$8, N$2, Calculations!$I462:$QJ462) -> -120617.4284 | O117: =SUMIF(Calculations!$I$8:$QJ$8, O$2, Calculations!$I462:$QJ462) -> -115324.9742 | P117: =SUMIF(Calculations!$I$8:$QJ$8, P$2, Calculations!$I462:$QJ462) -> -109733.984 | Q117: =SUMIF(Calculations!$I$8:$QJ$8, Q$2, Calculations!$I462:$QJ462) -> -103827.618 | R117: =SUMIF(Calculations!$I$8:$QJ$8, R$2, Calculations!$I462:$QJ462) -> -97588.08651 | S117: =SUMIF(Calculations!$I$8:$QJ$8, S$2, Calculations!$I462:$QJ462) -> -90996.5964 | T117: =SUMIF(Calculations!$I$8:$QJ$8, T$2, Calculations!$I462:$QJ462) -> -84033.29444 | U117: =SUMIF(Calculations!$I$8:$QJ$8, U$2, Calculations!$I462:$QJ462) -> -76677.20752 | V117: =SUMIF(Calculations!$I$8:$QJ$8, V$2, Calculations!$I462:$QJ462) -> -68906.17947 | W117: =SUMIF(Calculations!$I$8:$QJ$8, W$2, Calculations!$I462:$QJ462) -> -60696.80436 | X117: =SUMIF(Calculations!$I$8:$QJ$8, X$2, Calculations!$I462:$QJ462) -> -52024.35596 | Y117: =SUMIF(Calculations!$I$8:$QJ$8, Y$2, Calculations!$I462:$QJ462) -> -42862.71331 | Z117: =SUMIF(Calculations!$I$8:$QJ$8, Z$2, Calculations!$I462:$QJ462) -> -33184.28199 | AA117: =SUMIF(Calculations!$I$8:$QJ$8, AA$2, Calculations!$I462:$QJ462) -> -22959.91107 | AB117: =SUMIF(Calculations!$I$8:$QJ$8, AB$2, Calculations!$I462:$QJ462) -> -12158.80527 | AC117: =SUMIF(Calculations!$I$8:$QJ$8, AC$2, Calculations!$I462:$QJ462) -> -1281.370637 | AD117: =SUMIF(Calculations!$I$8:$QJ$8, AD$2, Calculations!$I462:$QJ462) -> 0 | AE117: =SUMIF(Calculations!$I$8:$QJ$8, AE$2, Calculations!$I462:$QJ462) -> 0 | AF117: =SUMIF(Calculations!$I$8:$QJ$8, AF$2, Calculations!$I462:$QJ462) -> 0 | AG117: =SUMIF(Calculations!$I$8:$QJ$8, AG$2, Calculations!$I462:$QJ462) -> 0 | AH117: =SUMIF(Calculations!$I$8:$QJ$8, AH$2, Calculations!$I462:$QJ462) -> 0 | AI117: =SUMIF(Calculations!$I$8:$QJ$8, AI$2, Calculations!$I462:$QJ462) -> 0 | AJ117: =SUMIF(Calculations!$I$8:$QJ$8, AJ$2, Calculations!$I462:$QJ462) -> 0
C118: =Calculations!C463 -> add: Drawdown on Senior Debt | F118: =Calculations!E463 -> EUR | H118: 2400000 | I118: =SUMIF(Calculations!$I$8:$QJ$8, I$2, Calculations!$I463:$QJ463) -> 0 | J118: =SUMIF(Calculations!$I$8:$QJ$8, J$2, Calculations!$I463:$QJ463) -> 1400000 | K118: =SUMIF(Calculations!$I$8:$QJ$8, K$2, Calculations!$I463:$QJ463) -> 1000000 | L118: =SUMIF(Calculations!$I$8:$QJ$8, L$2, Calculations!$I463:$QJ463) -> 0 | M118: =SUMIF(Calculations!$I$8:$QJ$8, M$2, Calculations!$I463:$QJ463) -> 0 | N118: =SUMIF(Calculations!$I$8:$QJ$8, N$2, Calculations!$I463:$QJ463) -> 0 | O118: =SUMIF(Calculations!$I$8:$QJ$8, O$2, Calculations!$I463:$QJ463) -> 0 | P118: =SUMIF(Calculations!$I$8:$QJ$8, P$2, Calculations!$I463:$QJ463) -> 0 | Q118: =SUMIF(Calculations!$I$8:$QJ$8, Q$2, Calculations!$I463:$QJ463) -> 0 | R118: =SUMIF(Calculations!$I$8:$QJ$8, R$2, Calculations!$I463:$QJ463) -> 0 | S118: =SUMIF(Calculations!$I$8:$QJ$8, S$2, Calculations!$I463:$QJ463) -> 0 | T118: =SUMIF(Calculations!$I$8:$QJ$8, T$2, Calculations!$I463:$QJ463) -> 0 | U118: =SUMIF(Calculations!$I$8:$QJ$8, U$2, Calculations!$I463:$QJ463) -> 0 | V118: =SUMIF(Calculations!$I$8:$QJ$8, V$2, Calculations!$I463:$QJ463) -> 0 | W118: =SUMIF(Calculations!$I$8:$QJ$8, W$2, Calculations!$I463:$QJ463) -> 0 | X118: =SUMIF(Calculations!$I$8:$QJ$8, X$2, Calculations!$I463:$QJ463) -> 0 | Y118: =SUMIF(Calculations!$I$8:$QJ$8, Y$2, Calculations!$I463:$QJ463) -> 0 | Z118: =SUMIF(Calculations!$I$8:$QJ$8, Z$2, Calculations!$I463:$QJ463) -> 0 | AA118: =SUMIF(Calculations!$I$8:$QJ$8, AA$2, Calculations!$I463:$QJ463) -> 0 | AB118: =SUMIF(Calculations!$I$8:$QJ$8, AB$2, Calculations!$I463:$QJ463) -> 0 | AC118: =SUMIF(Calculations!$I$8:$QJ$8, AC$2, Calculations!$I463:$QJ463) -> 0 | AD118: =SUMIF(Calculations!$I$8:$QJ$8, AD$2, Calculations!$I463:$QJ463) -> 0 | AE118: =SUMIF(Calculations!$I$8:$QJ$8, AE$2, Calculations!$I463:$QJ463) -> 0 | AF118: =SUMIF(Calculations!$I$8:$QJ$8, AF$2, Calculations!$I463:$QJ463) -> 0 | AG118: =SUMIF(Calculations!$I$8:$QJ$8, AG$2, Calculations!$I463:$QJ463) -> 0 | AH118: =SUMIF(Calculations!$I$8:$QJ$8, AH$2, Calculations!$I463:$QJ463) -> 0 | AI118: =SUMIF(Calculations!$I$8:$QJ$8, AI$2, Calculations!$I463:$QJ463) -> 0 | AJ118: =SUMIF(Calculations!$I$8:$QJ$8, AJ$2, Calculations!$I463:$QJ463) -> 0
C119: =Calculations!C464 -> less: Senior Debt Principal Repayment | F119: =Calculations!E464 -> EUR | H119: -2307235.23 | I119: =SUMIF(Calculations!$I$8:$QJ$8, I$2, Calculations!$I464:$QJ464) -> 0 | J119: =SUMIF(Calculations!$I$8:$QJ$8, J$2, Calculations!$I464:$QJ464) -> 0 | K119: =SUMIF(Calculations!$I$8:$QJ$8, K$2, Calculations!$I464:$QJ464) -> -9307.122798 | L119: =SUMIF(Calculations!$I$8:$QJ$8, L$2, Calculations!$I464:$QJ464) -> -84072.55263 | M119: =SUMIF(Calculations!$I$8:$QJ$8, M$2, Calculations!$I464:$QJ464) -> -88814.90544 | N119: =SUMIF(Calculations!$I$8:$QJ$8, N$2, Calculations!$I464:$QJ464) -> -93824.76423 | O119: =SUMIF(Calculations!$I$8:$QJ$8, O$2, Calculations!$I464:$QJ464) -> -99117.21843 | P119: =SUMIF(Calculations!$I$8:$QJ$8, P$2, Calculations!$I464:$QJ464) -> -104708.2086 | Q119: =SUMIF(Calculations!$I$8:$QJ$8, Q$2, Calculations!$I464:$QJ464) -> -110614.5747 | R119: =SUMIF(Calculations!$I$8:$QJ$8, R$2, Calculations!$I464:$QJ464) -> -116854.1061 | S119: =SUMIF(Calculations!$I$8:$QJ$8, S$2, Calculations!$I464:$QJ464) -> -123445.5962 | T119: =SUMIF(Calculations!$I$8:$QJ$8, T$2, Calculations!$I464:$QJ464) -> -130408.8982 | U119: =SUMIF(Calculations!$I$8:$QJ$8, U$2, Calculations!$I464:$QJ464) -> -137764.9851 | V119: =SUMIF(Calculations!$I$8:$QJ$8, V$2, Calculations!$I464:$QJ464) -> -145536.0132 | W119: =SUMIF(Calculations!$I$8:$QJ$8, W$2, Calculations!$I464:$QJ464) -> -153745.3883 | X119: =SUMIF(Calculations!$I$8:$QJ$8, X$2, Calculations!$I464:$QJ464) -> -162417.8367 | Y119: =SUMIF(Calculations!$I$8:$QJ$8, Y$2, Calculations!$I464:$QJ464) -> -171579.4793 | Z119: =SUMIF(Calculations!$I$8:$QJ$8, Z$2, Calculations!$I464:$QJ464) -> -181257.9107 | AA119: =SUMIF(Calculations!$I$8:$QJ$8, AA$2, Calculations!$I464:$QJ464) -> -191482.2816 | AB119: =SUMIF(Calculations!$I$8:$QJ$8, AB$2, Calculations!$I464:$QJ464) -> -202283.3874 | AC119: =SUMIF(Calculations!$I$8:$QJ$8, AC$2, Calculations!$I464:$QJ464) -> 0 | AD119: =SUMIF(Calculations!$I$8:$QJ$8, AD$2, Calculations!$I464:$QJ464) -> 0 | AE119: =SUMIF(Calculations!$I$8:$QJ$8, AE$2, Calculations!$I464:$QJ464) -> 0 | AF119: =SUMIF(Calculations!$I$8:$QJ$8, AF$2, Calculations!$I464:$QJ464) -> 0 | AG119: =SUMIF(Calculations!$I$8:$QJ$8, AG$2, Calculations!$I464:$QJ464) -> 0 | AH119: =SUMIF(Calculations!$I$8:$QJ$8, AH$2, Calculations!$I464:$QJ464) -> 0 | AI119: =SUMIF(Calculations!$I$8:$QJ$8, AI$2, Calculations!$I464:$QJ464) -> 0 | AJ119: =SUMIF(Calculations!$I$8:$QJ$8, AJ$2, Calculations!$I464:$QJ464) -> 0
C120: =Calculations!C465 -> Cash Flow Available for Reserve Accounts | F120: =Calculations!E465 -> EUR | H120: 9003123.545 | I120: =SUMIF(Calculations!$I$8:$QJ$8, I$2, Calculations!$I465:$QJ465) -> 1042557.342 | J120: =SUMIF(Calculations!$I$8:$QJ$8, J$2, Calculations!$I465:$QJ465) -> 1507032.558 | K120: =SUMIF(Calculations!$I$8:$QJ$8, K$2, Calculations!$I465:$QJ465) -> 1162651.6 | L120: =SUMIF(Calculations!$I$8:$QJ$8, L$2, Calculations!$I465:$QJ465) -> 236433.1786 | M120: =SUMIF(Calculations!$I$8:$QJ$8, M$2, Calculations!$I465:$QJ465) -> 231439.4284 | N120: =SUMIF(Calculations!$I$8:$QJ$8, N$2, Calculations!$I465:$QJ465) -> 228276.1659 | O120: =SUMIF(Calculations!$I$8:$QJ$8, O$2, Calculations!$I465:$QJ465) -> 223345.432 | P120: =SUMIF(Calculations!$I$8:$QJ$8, P$2, Calculations!$I465:$QJ465) -> 219742.7791 | Q120: =SUMIF(Calculations!$I$8:$QJ$8, Q$2, Calculations!$I465:$QJ465) -> 215284.5713 | R120: =SUMIF(Calculations!$I$8:$QJ$8, R$2, Calculations!$I465:$QJ465) -> 210743.3497 | S120: =SUMIF(Calculations!$I$8:$QJ$8, S$2, Calculations!$I465:$QJ465) -> 205561.839 | T120: =SUMIF(Calculations!$I$8:$QJ$8, T$2, Calculations!$I465:$QJ465) -> 200057.0244 | U120: =SUMIF(Calculations!$I$8:$QJ$8, U$2, Calculations!$I465:$QJ465) -> 194375.0662 | V120: =SUMIF(Calculations!$I$8:$QJ$8, V$2, Calculations!$I465:$QJ465) -> 188728.0286 | W120: =SUMIF(Calculations!$I$8:$QJ$8, W$2, Calculations!$I465:$QJ465) -> 183053.2741 | X120: =SUMIF(Calculations!$I$8:$QJ$8, X$2, Calculations!$I465:$QJ465) -> 177534.0694 | Y120: =SUMIF(Calculations!$I$8:$QJ$8, Y$2, Calculations!$I465:$QJ465) -> 171984.7961 | Z120: =SUMIF(Calculations!$I$8:$QJ$8, Z$2, Calculations!$I465:$QJ465) -> 166465.7386 | AA120: =SUMIF(Calculations!$I$8:$QJ$8, AA$2, Calculations!$I465:$QJ465) -> 160911.2051 | AB120: =SUMIF(Calculations!$I$8:$QJ$8, AB$2, Calculations!$I465:$QJ465) -> 155183.2424 | AC120: =SUMIF(Calculations!$I$8:$QJ$8, AC$2, Calculations!$I465:$QJ465) -> 362333.4208 | AD120: =SUMIF(Calculations!$I$8:$QJ$8, AD$2, Calculations!$I465:$QJ465) -> 338687.3727 | AE120: =SUMIF(Calculations!$I$8:$QJ$8, AE$2, Calculations!$I465:$QJ465) -> 293239.1966 | AF120: =SUMIF(Calculations!$I$8:$QJ$8, AF$2, Calculations!$I465:$QJ465) -> 283494.8073 | AG120: =SUMIF(Calculations!$I$8:$QJ$8, AG$2, Calculations!$I465:$QJ465) -> 273058.3743 | AH120: =SUMIF(Calculations!$I$8:$QJ$8, AH$2, Calculations!$I465:$QJ465) -> 273059.9518 | AI120: =SUMIF(Calculations!$I$8:$QJ$8, AI$2, Calculations!$I465:$QJ465) -> 276849.0983 | AJ120: =SUMIF(Calculations!$I$8:$QJ$8, AJ$2, Calculations!$I465:$QJ465) -> -178959.3661
C121: =Calculations!C466 -> less: Change in DSRA | F121: =Calculations!E466 -> EUR | H121: 0 | I121: =SUMIF(Calculations!$I$8:$QJ$8, I$2, Calculations!$I466:$QJ466) -> 0 | J121: =SUMIF(Calculations!$I$8:$QJ$8, J$2, Calculations!$I466:$QJ466) -> 0 | K121: =SUMIF(Calculations!$I$8:$QJ$8, K$2, Calculations!$I466:$QJ466) -> -107221.0963 | L121: =SUMIF(Calculations!$I$8:$QJ$8, L$2, Calculations!$I466:$QJ466) -> 0 | M121: =SUMIF(Calculations!$I$8:$QJ$8, M$2, Calculations!$I466:$QJ466) -> 0 | N121: =SUMIF(Calculations!$I$8:$QJ$8, N$2, Calculations!$I466:$QJ466) -> 0 | O121: =SUMIF(Calculations!$I$8:$QJ$8, O$2, Calculations!$I466:$QJ466) -> 0 | P121: =SUMIF(Calculations!$I$8:$QJ$8, P$2, Calculations!$I466:$QJ466) -> 0 | Q121: =SUMIF(Calculations!$I$8:$QJ$8, Q$2, Calculations!$I466:$QJ466) -> 0 | R121: =SUMIF(Calculations!$I$8:$QJ$8, R$2, Calculations!$I466:$QJ466) -> 0 | S121: =SUMIF(Calculations!$I$8:$QJ$8, S$2, Calculations!$I466:$QJ466) -> 0 | T121: =SUMIF(Calculations!$I$8:$QJ$8, T$2, Calculations!$I466:$QJ466) -> 0 | U121: =SUMIF(Calculations!$I$8:$QJ$8, U$2, Calculations!$I466:$QJ466) -> 0 | V121: =SUMIF(Calculations!$I$8:$QJ$8, V$2, Calculations!$I466:$QJ466) -> 0 | W121: =SUMIF(Calculations!$I$8:$QJ$8, W$2, Calculations!$I466:$QJ466) -> 0 | X121: =SUMIF(Calculations!$I$8:$QJ$8, X$2, Calculations!$I466:$QJ466) -> 0 | Y121: =SUMIF(Calculations!$I$8:$QJ$8, Y$2, Calculations!$I466:$QJ466) -> 0 | Z121: =SUMIF(Calculations!$I$8:$QJ$8, Z$2, Calculations!$I466:$QJ466) -> 0 | AA121: =SUMIF(Calculations!$I$8:$QJ$8, AA$2, Calculations!$I466:$QJ466) -> 0 | AB121: =SUMIF(Calculations!$I$8:$QJ$8, AB$2, Calculations!$I466:$QJ466) -> 13174.95535 | AC121: =SUMIF(Calculations!$I$8:$QJ$8, AC$2, Calculations!$I466:$QJ466) -> 94046.14098 | AD121: =SUMIF(Calculations!$I$8:$QJ$8, AD$2, Calculations!$I466:$QJ466) -> 0 | AE121: =SUMIF(Calculations!$I$8:$QJ$8, AE$2, Calculations!$I466:$QJ466) -> 0 | AF121: =SUMIF(Calculations!$I$8:$QJ$8, AF$2, Calculations!$I466:$QJ466) -> 0 | AG121: =SUMIF(Calculations!$I$8:$QJ$8, AG$2, Calculations!$I466:$QJ466) -> 0 | AH121: =SUMIF(Calculations!$I$8:$QJ$8, AH$2, Calculations!$I466:$QJ466) -> 0 | AI121: =SUMIF(Calculations!$I$8:$QJ$8, AI$2, Calculations!$I466:$QJ466) -> 0 | AJ121: =SUMIF(Calculations!$I$8:$QJ$8, AJ$2, Calculations!$I466:$QJ466) -> 0
C122: =Calculations!C467 -> less: Change in MMRA | F122: =Calculations!E467 -> EUR | H122: 0 | I122: =SUMIF(Calculations!$I$8:$QJ$8, I$2, Calculations!$I467:$QJ467) -> 0 | J122: =SUMIF(Calculations!$I$8:$QJ$8, J$2, Calculations!$I467:$QJ467) -> 0 | K122: =SUMIF(Calculations!$I$8:$QJ$8, K$2, Calculations!$I467:$QJ467) -> 0 | L122: =SUMIF(Calculations!$I$8:$QJ$8, L$2, Calculations!$I467:$QJ467) -> 0 | M122: =SUMIF(Calculations!$I$8:$QJ$8, M$2, Calculations!$I467:$QJ467) -> 0 | N122: =SUMIF(Calculations!$I$8:$QJ$8, N$2, Calculations!$I467:$QJ467) -> 0 | O122: =SUMIF(Calculations!$I$8:$QJ$8, O$2, Calculations!$I467:$QJ467) -> 0 | P122: =SUMIF(Calculations!$I$8:$QJ$8, P$2, Calculations!$I467:$QJ467) -> 0 | Q122: =SUMIF(Calculations!$I$8:$QJ$8, Q$2, Calculations!$I467:$QJ467) -> 0 | R122: =SUMIF(Calculations!$I$8:$QJ$8, R$2, Calculations!$I467:$QJ467) -> 0 | S122: =SUMIF(Calculations!$I$8:$QJ$8, S$2, Calculations!$I467:$QJ467) -> 0 | T122: =SUMIF(Calculations!$I$8:$QJ$8, T$2, Calculations!$I467:$QJ467) -> 0 | U122: =SUMIF(Calculations!$I$8:$QJ$8, U$2, Calculations!$I467:$QJ467) -> 0 | V122: =SUMIF(Calculations!$I$8:$QJ$8, V$2, Calculations!$I467:$QJ467) -> 0 | W122: =SUMIF(Calculations!$I$8:$QJ$8, W$2, Calculations!$I467:$QJ467) -> 0 | X122: =SUMIF(Calculations!$I$8:$QJ$8, X$2, Calculations!$I467:$QJ467) -> 0 | Y122: =SUMIF(Calculations!$I$8:$QJ$8, Y$2, Calculations!$I467:$QJ467) -> 0 | Z122: =SUMIF(Calculations!$I$8:$QJ$8, Z$2, Calculations!$I467:$QJ467) -> 0 | AA122: =SUMIF(Calculations!$I$8:$QJ$8, AA$2, Calculations!$I467:$QJ467) -> 0 | AB122: =SUMIF(Calculations!$I$8:$QJ$8, AB$2, Calculations!$I467:$QJ467) -> 0 | AC122: =SUMIF(Calculations!$I$8:$QJ$8, AC$2, Calculations!$I467:$QJ467) -> 0 | AD122: =SUMIF(Calculations!$I$8:$QJ$8, AD$2, Calculations!$I467:$QJ467) -> 0 | AE122: =SUMIF(Calculations!$I$8:$QJ$8, AE$2, Calculations!$I467:$QJ467) -> 0 | AF122: =SUMIF(Calculations!$I$8:$QJ$8, AF$2, Calculations!$I467:$QJ467) -> 0 | AG122: =SUMIF(Calculations!$I$8:$QJ$8, AG$2, Calculations!$I467:$QJ467) -> 0 | AH122: =SUMIF(Calculations!$I$8:$QJ$8, AH$2, Calculations!$I467:$QJ467) -> 0 | AI122: =SUMIF(Calculations!$I$8:$QJ$8, AI$2, Calculations!$I467:$QJ467) -> 0 | AJ122: =SUMIF(Calculations!$I$8:$QJ$8, AJ$2, Calculations!$I467:$QJ467) -> 0
C123: =Calculations!C468 -> Cash Flow Available for Subordinated Debt | F123: =Calculations!E468 -> EUR | H123: 9003123.545 | I123: =SUMIF(Calculations!$I$8:$QJ$8, I$2, Calculations!$I468:$QJ468) -> 1042557.342 | J123: =SUMIF(Calculations!$I$8:$QJ$8, J$2, Calculations!$I468:$QJ468) -> 1507032.558 | K123: =SUMIF(Calculations!$I$8:$QJ$8, K$2, Calculations!$I468:$QJ468) -> 1055430.504 | L123: =SUMIF(Calculations!$I$8:$QJ$8, L$2, Calculations!$I468:$QJ468) -> 236433.1786 | M123: =SUMIF(Calculations!$I$8:$QJ$8, M$2, Calculations!$I468:$QJ468) -> 231439.4284 | N123: =SUMIF(Calculations!$I$8:$QJ$8, N$2, Calculations!$I468:$QJ468) -> 228276.1659 | O123: =SUMIF(Calculations!$I$8:$QJ$8, O$2, Calculations!$I468:$QJ468) -> 223345.432 | P123: =SUMIF(Calculations!$I$8:$QJ$8, P$2, Calculations!$I468:$QJ468) -> 219742.7791 | Q123: =SUMIF(Calculations!$I$8:$QJ$8, Q$2, Calculations!$I468:$QJ468) -> 215284.5713 | R123: =SUMIF(Calculations!$I$8:$QJ$8, R$2, Calculations!$I468:$QJ468) -> 210743.3497 | S123: =SUMIF(Calculations!$I$8:$QJ$8, S$2, Calculations!$I468:$QJ468) -> 205561.839 | T123: =SUMIF(Calculations!$I$8:$QJ$8, T$2, Calculations!$I468:$QJ468) -> 200057.0244 | U123: =SUMIF(Calculations!$I$8:$QJ$8, U$2, Calculations!$I468:$QJ468) -> 194375.0662 | V123: =SUMIF(Calculations!$I$8:$QJ$8, V$2, Calculations!$I468:$QJ468) -> 188728.0286 | W123: =SUMIF(Calculations!$I$8:$QJ$8, W$2, Calculations!$I468:$QJ468) -> 183053.2741 | X123: =SUMIF(Calculations!$I$8:$QJ$8, X$2, Calculations!$I468:$QJ468) -> 177534.0694 | Y123: =SUMIF(Calculations!$I$8:$QJ$8, Y$2, Calculations!$I468:$QJ468) -> 171984.7961 | Z123: =SUMIF(Calculations!$I$8:$QJ$8, Z$2, Calculations!$I468:$QJ468) -> 166465.7386 | AA123: =SUMIF(Calculations!$I$8:$QJ$8, AA$2, Calculations!$I468:$QJ468) -> 160911.2051 | AB123: =SUMIF(Calculations!$I$8:$QJ$8, AB$2, Calculations!$I468:$QJ468) -> 168358.1977 | AC123: =SUMIF(Calculations!$I$8:$QJ$8, AC$2, Calculations!$I468:$QJ468) -> 456379.5618 | AD123: =SUMIF(Calculations!$I$8:$QJ$8, AD$2, Calculations!$I468:$QJ468) -> 338687.3727 | AE123: =SUMIF(Calculations!$I$8:$QJ$8, AE$2, Calculations!$I468:$QJ468) -> 293239.1966 | AF123: =SUMIF(Calculations!$I$8:$QJ$8, AF$2, Calculations!$I468:$QJ468) -> 283494.8073 | AG123: =SUMIF(Calculations!$I$8:$QJ$8, AG$2, Calculations!$I468:$QJ468) -> 273058.3743 | AH123: =SUMIF(Calculations!$I$8:$QJ$8, AH$2, Calculations!$I468:$QJ468) -> 273059.9518 | AI123: =SUMIF(Calculations!$I$8:$QJ$8, AI$2, Calculations!$I468:$QJ468) -> 276849.0983 | AJ123: =SUMIF(Calculations!$I$8:$QJ$8, AJ$2, Calculations!$I468:$QJ468) -> -178959.3661
C124: =Calculations!C469 -> less: Subordinated Debt Interest Expense | F124: =Calculations!E469 -> EUR | H124: -1505898.958 | I124: =SUMIF(Calculations!$I$8:$QJ$8, I$2, Calculations!$I469:$QJ469) -> 0 | J124: =SUMIF(Calculations!$I$8:$QJ$8, J$2, Calculations!$I469:$QJ469) -> 0 | K124: =SUMIF(Calculations!$I$8:$QJ$8, K$2, Calculations!$I469:$QJ469) -> -48724.812 | L124: =SUMIF(Calculations!$I$8:$QJ$8, L$2, Calculations!$I469:$QJ469) -> -143947.7817 | M124: =SUMIF(Calculations!$I$8:$QJ$8, M$2, Calculations!$I469:$QJ469) -> -141301.1946 | N124: =SUMIF(Calculations!$I$8:$QJ$8, N$2, Calculations!$I469:$QJ469) -> -138318.9541 | O124: =SUMIF(Calculations!$I$8:$QJ$8, O$2, Calculations!$I469:$QJ469) -> -134958.4907 | P124: =SUMIF(Calculations!$I$8:$QJ$8, P$2, Calculations!$I469:$QJ469) -> -131171.8365 | Q124: =SUMIF(Calculations!$I$8:$QJ$8, Q$2, Calculations!$I469:$QJ469) -> -126904.9398 | R124: =SUMIF(Calculations!$I$8:$QJ$8, R$2, Calculations!$I469:$QJ469) -> -122096.8938 | S124: =SUMIF(Calculations!$I$8:$QJ$8, S$2, Calculations!$I469:$QJ469) -> -116679.0671 | T124: =SUMIF(Calculations!$I$8:$QJ$8, T$2, Calculations!$I469:$QJ469) -> -110574.1245 | U124: =SUMIF(Calculations!$I$8:$QJ$8, U$2, Calculations!$I469:$QJ469) -> -103694.9223 | V124: =SUMIF(Calculations!$I$8:$QJ$8, V$2, Calculations!$I469:$QJ469) -> -95943.26511 | W124: =SUMIF(Calculations!$I$8:$QJ$8, W$2, Calculations!$I469:$QJ469) -> -87208.50375 | X124: =SUMIF(Calculations!$I$8:$QJ$8, X$2, Calculations!$I469:$QJ469) -> -77365.95601 | Y124: =SUMIF(Calculations!$I$8:$QJ$8, Y$2, Calculations!$I469:$QJ469) -> -66275.12686 | Z124: =SUMIF(Calculations!$I$8:$QJ$8, Z$2, Calculations!$I469:$QJ469) -> -53777.70298 | AA124: =SUMIF(Calculations!$I$8:$QJ$8, AA$2, Calculations!$I469:$QJ469) -> -39695.29293 | AB124: =SUMIF(Calculations!$I$8:$QJ$8, AB$2, Calculations!$I469:$QJ469) -> -23826.8808 | AC124: =SUMIF(Calculations!$I$8:$QJ$8, AC$2, Calculations!$I469:$QJ469) -> -5945.956823 | AD124: =SUMIF(Calculations!$I$8:$QJ$8, AD$2, Calculations!$I469:$QJ469) -> 14202.71587 | AE124: =SUMIF(Calculations!$I$8:$QJ$8, AE$2, Calculations!$I469:$QJ469) -> 36906.74459 | AF124: =SUMIF(Calculations!$I$8:$QJ$8, AF$2, Calculations!$I469:$QJ469) -> 62490.21244 | AG124: =SUMIF(Calculations!$I$8:$QJ$8, AG$2, Calculations!$I469:$QJ469) -> 91318.30436 | AH124: =SUMIF(Calculations!$I$8:$QJ$8, AH$2, Calculations!$I469:$QJ469) -> 57594.76736 | AI124: =SUMIF(Calculations!$I$8:$QJ$8, AI$2, Calculations!$I469:$QJ469) -> 0 | AJ124: =SUMIF(Calculations!$I$8:$QJ$8, AJ$2, Calculations!$I469:$QJ469) -> 0
C125: =Calculations!C470 -> add: Drawdown on Subordinated Debt | F125: =Calculations!E470 -> EUR | H125: 1200000 | I125: =SUMIF(Calculations!$I$8:$QJ$8, I$2, Calculations!$I470:$QJ470) -> 600000 | J125: =SUMIF(Calculations!$I$8:$QJ$8, J$2, Calculations!$I470:$QJ470) -> 600000 | K125: =SUMIF(Calculations!$I$8:$QJ$8, K$2, Calculations!$I470:$QJ470) -> 0 | L125: =SUMIF(Calculations!$I$8:$QJ$8, L$2, Calculations!$I470:$QJ470) -> 0 | M125: =SUMIF(Calculations!$I$8:$QJ$8, M$2, Calculations!$I470:$QJ470) -> 0 | N125: =SUMIF(Calculations!$I$8:$QJ$8, N$2, Calculations!$I470:$QJ470) -> 0 | O125: =SUMIF(Calculations!$I$8:$QJ$8, O$2, Calculations!$I470:$QJ470) -> 0 | P125: =SUMIF(Calculations!$I$8:$QJ$8, P$2, Calculations!$I470:$QJ470) -> 0 | Q125: =SUMIF(Calculations!$I$8:$QJ$8, Q$2, Calculations!$I470:$QJ470) -> 0 | R125: =SUMIF(Calculations!$I$8:$QJ$8, R$2, Calculations!$I470:$QJ470) -> 0 | S125: =SUMIF(Calculations!$I$8:$QJ$8, S$2, Calculations!$I470:$QJ470) -> 0 | T125: =SUMIF(Calculations!$I$8:$QJ$8, T$2, Calculations!$I470:$QJ470) -> 0 | U125: =SUMIF(Calculations!$I$8:$QJ$8, U$2, Calculations!$I470:$QJ470) -> 0 | V125: =SUMIF(Calculations!$I$8:$QJ$8, V$2, Calculations!$I470:$QJ470) -> 0 | W125: =SUMIF(Calculations!$I$8:$QJ$8, W$2, Calculations!$I470:$QJ470) -> 0 | X125: =SUMIF(Calculations!$I$8:$QJ$8, X$2, Calculations!$I470:$QJ470) -> 0 | Y125: =SUMIF(Calculations!$I$8:$QJ$8, Y$2, Calculations!$I470:$QJ470) -> 0 | Z125: =SUMIF(Calculations!$I$8:$QJ$8, Z$2, Calculations!$I470:$QJ470) -> 0 | AA125: =SUMIF(Calculations!$I$8:$QJ$8, AA$2, Calculations!$I470:$QJ470) -> 0 | AB125: =SUMIF(Calculations!$I$8:$QJ$8, AB$2, Calculations!$I470:$QJ470) -> 0 | AC125: =SUMIF(Calculations!$I$8:$QJ$8, AC$2, Calculations!$I470:$QJ470) -> 0 | AD125: =SUMIF(Calculations!$I$8:$QJ$8, AD$2, Calculations!$I470:$QJ470) -> 0 | AE125: =SUMIF(Calculations!$I$8:$QJ$8, AE$2, Calculations!$I470:$QJ470) -> 0 | AF125: =SUMIF(Calculations!$I$8:$QJ$8, AF$2, Calculations!$I470:$QJ470) -> 0 | AG125: =SUMIF(Calculations!$I$8:$QJ$8, AG$2, Calculations!$I470:$QJ470) -> 0 | AH125: =SUMIF(Calculations!$I$8:$QJ$8, AH$2, Calculations!$I470:$QJ470) -> 0 | AI125: =SUMIF(Calculations!$I$8:$QJ$8, AI$2, Calculations!$I470:$QJ470) -> 0 | AJ125: =SUMIF(Calculations!$I$8:$QJ$8, AJ$2, Calculations!$I470:$QJ470) -> 0
C126: =Calculations!C471 -> less: Subordinated Debt Principal Repayment | F126: =Calculations!E471 -> EUR | H126: -1200000 | I126: =SUMIF(Calculations!$I$8:$QJ$8, I$2, Calculations!$I471:$QJ471) -> 0 | J126: =SUMIF(Calculations!$I$8:$QJ$8, J$2, Calculations!$I471:$QJ471) -> 0 | K126: =SUMIF(Calculations!$I$8:$QJ$8, K$2, Calculations!$I471:$QJ471) -> -4720.338095 | L126: =SUMIF(Calculations!$I$8:$QJ$8, L$2, Calculations!$I471:$QJ471) -> -20868.01865 | M126: =SUMIF(Calculations!$I$8:$QJ$8, M$2, Calculations!$I471:$QJ471) -> -23514.60575 | N126: =SUMIF(Calculations!$I$8:$QJ$8, N$2, Calculations!$I471:$QJ471) -> -26496.84633 | O126: =SUMIF(Calculations!$I$8:$QJ$8, O$2, Calculations!$I471:$QJ471) -> -29857.30966 | P126: =SUMIF(Calculations!$I$8:$QJ$8, P$2, Calculations!$I471:$QJ471) -> -33643.96386 | Q126: =SUMIF(Calculations!$I$8:$QJ$8, Q$2, Calculations!$I471:$QJ471) -> -37910.86059 | R126: =SUMIF(Calculations!$I$8:$QJ$8, R$2, Calculations!$I471:$QJ471) -> -42718.90663 | S126: =SUMIF(Calculations!$I$8:$QJ$8, S$2, Calculations!$I471:$QJ471) -> -48136.73325 | T126: =SUMIF(Calculations!$I$8:$QJ$8, T$2, Calculations!$I471:$QJ471) -> -54241.67589 | U126: =SUMIF(Calculations!$I$8:$QJ$8, U$2, Calculations!$I471:$QJ471) -> -61120.87807 | V126: =SUMIF(Calculations!$I$8:$QJ$8, V$2, Calculations!$I471:$QJ471) -> -68872.53528 | W126: =SUMIF(Calculations!$I$8:$QJ$8, W$2, Calculations!$I471:$QJ471) -> -77607.29664 | X126: =SUMIF(Calculations!$I$8:$QJ$8, X$2, Calculations!$I471:$QJ471) -> -87449.84437 | Y126: =SUMIF(Calculations!$I$8:$QJ$8, Y$2, Calculations!$I471:$QJ471) -> -98540.67352 | Z126: =SUMIF(Calculations!$I$8:$QJ$8, Z$2, Calculations!$I471:$QJ471) -> -111038.0974 | AA126: =SUMIF(Calculations!$I$8:$QJ$8, AA$2, Calculations!$I471:$QJ471) -> -125120.5075 | AB126: =SUMIF(Calculations!$I$8:$QJ$8, AB$2, Calculations!$I471:$QJ471) -> -140988.9196 | AC126: =SUMIF(Calculations!$I$8:$QJ$8, AC$2, Calculations!$I471:$QJ471) -> -158869.8436 | AD126: =SUMIF(Calculations!$I$8:$QJ$8, AD$2, Calculations!$I471:$QJ471) -> -179018.5163 | AE126: =SUMIF(Calculations!$I$8:$QJ$8, AE$2, Calculations!$I471:$QJ471) -> -201722.545 | AF126: =SUMIF(Calculations!$I$8:$QJ$8, AF$2, Calculations!$I471:$QJ471) -> -227306.0128 | AG126: =SUMIF(Calculations!$I$8:$QJ$8, AG$2, Calculations!$I471:$QJ471) -> -256134.1047 | AH126: =SUMIF(Calculations!$I$8:$QJ$8, AH$2, Calculations!$I471:$QJ471) -> 915899.0334 | AI126: =SUMIF(Calculations!$I$8:$QJ$8, AI$2, Calculations!$I471:$QJ471) -> 0 | AJ126: =SUMIF(Calculations!$I$8:$QJ$8, AJ$2, Calculations!$I471:$QJ471) -> 0
C127: =Calculations!C472 -> less: Capital Investment | F127: =Calculations!E472 -> EUR | H127: -5093968.967 | I127: =SUMIF(Calculations!$I$8:$QJ$8, I$2, Calculations!$I472:$QJ472) -> -1601146.777 | J127: =SUMIF(Calculations!$I$8:$QJ$8, J$2, Calculations!$I472:$QJ472) -> -2086408.759 | K127: =SUMIF(Calculations!$I$8:$QJ$8, K$2, Calculations!$I472:$QJ472) -> -931148.7863 | L127: =SUMIF(Calculations!$I$8:$QJ$8, L$2, Calculations!$I472:$QJ472) -> 0 | M127: =SUMIF(Calculations!$I$8:$QJ$8, M$2, Calculations!$I472:$QJ472) -> 0 | N127: =SUMIF(Calculations!$I$8:$QJ$8, N$2, Calculations!$I472:$QJ472) -> 0 | O127: =SUMIF(Calculations!$I$8:$QJ$8, O$2, Calculations!$I472:$QJ472) -> 0 | P127: =SUMIF(Calculations!$I$8:$QJ$8, P$2, Calculations!$I472:$QJ472) -> 0 | Q127: =SUMIF(Calculations!$I$8:$QJ$8, Q$2, Calculations!$I472:$QJ472) -> 0 | R127: =SUMIF(Calculations!$I$8:$QJ$8, R$2, Calculations!$I472:$QJ472) -> 0 | S127: =SUMIF(Calculations!$I$8:$QJ$8, S$2, Calculations!$I472:$QJ472) -> 0 | T127: =SUMIF(Calculations!$I$8:$QJ$8, T$2, Calculations!$I472:$QJ472) -> 0 | U127: =SUMIF(Calculations!$I$8:$QJ$8, U$2, Calculations!$I472:$QJ472) -> 0 | V127: =SUMIF(Calculations!$I$8:$QJ$8, V$2, Calculations!$I472:$QJ472) -> 0 | W127: =SUMIF(Calculations!$I$8:$QJ$8, W$2, Calculations!$I472:$QJ472) -> 0 | X127: =SUMIF(Calculations!$I$8:$QJ$8, X$2, Calculations!$I472:$QJ472) -> 0 | Y127: =SUMIF(Calculations!$I$8:$QJ$8, Y$2, Calculations!$I472:$QJ472) -> 0 | Z127: =SUMIF(Calculations!$I$8:$QJ$8, Z$2, Calculations!$I472:$QJ472) -> 0 | AA127: =SUMIF(Calculations!$I$8:$QJ$8, AA$2, Calculations!$I472:$QJ472) -> 0 | AB127: =SUMIF(Calculations!$I$8:$QJ$8, AB$2, Calculations!$I472:$QJ472) -> 0 | AC127: =SUMIF(Calculations!$I$8:$QJ$8, AC$2, Calculations!$I472:$QJ472) -> -475264.6436 | AD127: =SUMIF(Calculations!$I$8:$QJ$8, AD$2, Calculations!$I472:$QJ472) -> 0 | AE127: =SUMIF(Calculations!$I$8:$QJ$8, AE$2, Calculations!$I472:$QJ472) -> 0 | AF127: =SUMIF(Calculations!$I$8:$QJ$8, AF$2, Calculations!$I472:$QJ472) -> 0 | AG127: =SUMIF(Calculations!$I$8:$QJ$8, AG$2, Calculations!$I472:$QJ472) -> 0 | AH127: =SUMIF(Calculations!$I$8:$QJ$8, AH$2, Calculations!$I472:$QJ472) -> 0 | AI127: =SUMIF(Calculations!$I$8:$QJ$8, AI$2, Calculations!$I472:$QJ472) -> 0 | AJ127: =SUMIF(Calculations!$I$8:$QJ$8, AJ$2, Calculations!$I472:$QJ472) -> 0
C128: =Calculations!C473 -> Cash Flow Available for Dividends | F128: =Calculations!E473 -> EUR | H128: 2403255.62 | I128: =SUMIF(Calculations!$I$8:$QJ$8, I$2, Calculations!$I473:$QJ473) -> 41410.56426 | J128: =SUMIF(Calculations!$I$8:$QJ$8, J$2, Calculations!$I473:$QJ473) -> 20623.79852 | K128: =SUMIF(Calculations!$I$8:$QJ$8, K$2, Calculations!$I473:$QJ473) -> 70836.56767 | L128: =SUMIF(Calculations!$I$8:$QJ$8, L$2, Calculations!$I473:$QJ473) -> 71617.37826 | M128: =SUMIF(Calculations!$I$8:$QJ$8, M$2, Calculations!$I473:$QJ473) -> 66623.62807 | N128: =SUMIF(Calculations!$I$8:$QJ$8, N$2, Calculations!$I473:$QJ473) -> 63460.36556 | O128: =SUMIF(Calculations!$I$8:$QJ$8, O$2, Calculations!$I473:$QJ473) -> 58529.63166 | P128: =SUMIF(Calculations!$I$8:$QJ$8, P$2, Calculations!$I473:$QJ473) -> 54926.97876 | Q128: =SUMIF(Calculations!$I$8:$QJ$8, Q$2, Calculations!$I473:$QJ473) -> 50468.77095 | R128: =SUMIF(Calculations!$I$8:$QJ$8, R$2, Calculations!$I473:$QJ473) -> 45927.54927 | S128: =SUMIF(Calculations!$I$8:$QJ$8, S$2, Calculations!$I473:$QJ473) -> 40746.03857 | T128: =SUMIF(Calculations!$I$8:$QJ$8, T$2, Calculations!$I473:$QJ473) -> 35241.22397 | U128: =SUMIF(Calculations!$I$8:$QJ$8, U$2, Calculations!$I473:$QJ473) -> 29559.26585 | V128: =SUMIF(Calculations!$I$8:$QJ$8, V$2, Calculations!$I473:$QJ473) -> 23912.22823 | W128: =SUMIF(Calculations!$I$8:$QJ$8, W$2, Calculations!$I473:$QJ473) -> 18237.47373 | X128: =SUMIF(Calculations!$I$8:$QJ$8, X$2, Calculations!$I473:$QJ473) -> 12718.26906 | Y128: =SUMIF(Calculations!$I$8:$QJ$8, Y$2, Calculations!$I473:$QJ473) -> 7168.995695 | Z128: =SUMIF(Calculations!$I$8:$QJ$8, Z$2, Calculations!$I473:$QJ473) -> 1649.938227 | AA128: =SUMIF(Calculations!$I$8:$QJ$8, AA$2, Calculations!$I473:$QJ473) -> -3904.595314 | AB128: =SUMIF(Calculations!$I$8:$QJ$8, AB$2, Calculations!$I473:$QJ473) -> 3542.397327 | AC128: =SUMIF(Calculations!$I$8:$QJ$8, AC$2, Calculations!$I473:$QJ473) -> -183700.8822 | AD128: =SUMIF(Calculations!$I$8:$QJ$8, AD$2, Calculations!$I473:$QJ473) -> 173871.5724 | AE128: =SUMIF(Calculations!$I$8:$QJ$8, AE$2, Calculations!$I473:$QJ473) -> 128423.3963 | AF128: =SUMIF(Calculations!$I$8:$QJ$8, AF$2, Calculations!$I473:$QJ473) -> 118679.0069 | AG128: =SUMIF(Calculations!$I$8:$QJ$8, AG$2, Calculations!$I473:$QJ473) -> 108242.5739 | AH128: =SUMIF(Calculations!$I$8:$QJ$8, AH$2, Calculations!$I473:$QJ473) -> 1246553.753 | AI128: =SUMIF(Calculations!$I$8:$QJ$8, AI$2, Calculations!$I473:$QJ473) -> 276849.0983 | AJ128: =SUMIF(Calculations!$I$8:$QJ$8, AJ$2, Calculations!$I473:$QJ473) -> -178959.3661
C129: =Calculations!C474 -> Dividend | F129: =Calculations!E474 -> EUR | H129: 0 | I129: =SUMIF(Calculations!$I$8:$QJ$8, I$2, Calculations!$I474:$QJ474) -> 0 | J129: =SUMIF(Calculations!$I$8:$QJ$8, J$2, Calculations!$I474:$QJ474) -> 0 | K129: =SUMIF(Calculations!$I$8:$QJ$8, K$2, Calculations!$I474:$QJ474) -> 0 | L129: =SUMIF(Calculations!$I$8:$QJ$8, L$2, Calculations!$I474:$QJ474) -> 0 | M129: =SUMIF(Calculations!$I$8:$QJ$8, M$2, Calculations!$I474:$QJ474) -> 0 | N129: =SUMIF(Calculations!$I$8:$QJ$8, N$2, Calculations!$I474:$QJ474) -> 0 | O129: =SUMIF(Calculations!$I$8:$QJ$8, O$2, Calculations!$I474:$QJ474) -> 0 | P129: =SUMIF(Calculations!$I$8:$QJ$8, P$2, Calculations!$I474:$QJ474) -> 0 | Q129: =SUMIF(Calculations!$I$8:$QJ$8, Q$2, Calculations!$I474:$QJ474) -> 0 | R129: =SUMIF(Calculations!$I$8:$QJ$8, R$2, Calculations!$I474:$QJ474) -> 0 | S129: =SUMIF(Calculations!$I$8:$QJ$8, S$2, Calculations!$I474:$QJ474) -> 0 | T129: =SUMIF(Calculations!$I$8:$QJ$8, T$2, Calculations!$I474:$QJ474) -> 0 | U129: =SUMIF(Calculations!$I$8:$QJ$8, U$2, Calculations!$I474:$QJ474) -> 0 | V129: =SUMIF(Calculations!$I$8:$QJ$8, V$2, Calculations!$I474:$QJ474) -> 0 | W129: =SUMIF(Calculations!$I$8:$QJ$8, W$2, Calculations!$I474:$QJ474) -> 0 | X129: =SUMIF(Calculations!$I$8:$QJ$8, X$2, Calculations!$I474:$QJ474) -> 0 | Y129: =SUMIF(Calculations!$I$8:$QJ$8, Y$2, Calculations!$I474:$QJ474) -> 0 | Z129: =SUMIF(Calculations!$I$8:$QJ$8, Z$2, Calculations!$I474:$QJ474) -> 0 | AA129: =SUMIF(Calculations!$I$8:$QJ$8, AA$2, Calculations!$I474:$QJ474) -> 0 | AB129: =SUMIF(Calculations!$I$8:$QJ$8, AB$2, Calculations!$I474:$QJ474) -> 0 | AC129: =SUMIF(Calculations!$I$8:$QJ$8, AC$2, Calculations!$I474:$QJ474) -> 0 | AD129: =SUMIF(Calculations!$I$8:$QJ$8, AD$2, Calculations!$I474:$QJ474) -> 0 | AE129: =SUMIF(Calculations!$I$8:$QJ$8, AE$2, Calculations!$I474:$QJ474) -> 0 | AF129: =SUMIF(Calculations!$I$8:$QJ$8, AF$2, Calculations!$I474:$QJ474) -> 0 | AG129: =SUMIF(Calculations!$I$8:$QJ$8, AG$2, Calculations!$I474:$QJ474) -> 0 | AH129: =SUMIF(Calculations!$I$8:$QJ$8, AH$2, Calculations!$I474:$QJ474) -> 0 | AI129: =SUMIF(Calculations!$I$8:$QJ$8, AI$2, Calculations!$I474:$QJ474) -> 0 | AJ129: =SUMIF(Calculations!$I$8:$QJ$8, AJ$2, Calculations!$I474:$QJ474) -> 0
C130: =Calculations!C475 -> Net Movements in Cash | F130: =Calculations!E475 -> EUR | H130: 2403255.62 | I130: =SUMIF(Calculations!$I$8:$QJ$8, I$2, Calculations!$I475:$QJ475) -> 41410.56426 | J130: =SUMIF(Calculations!$I$8:$QJ$8, J$2, Calculations!$I475:$QJ475) -> 20623.79852 | K130: =SUMIF(Calculations!$I$8:$QJ$8, K$2, Calculations!$I475:$QJ475) -> 70836.56767 | L130: =SUMIF(Calculations!$I$8:$QJ$8, L$2, Calculations!$I475:$QJ475) -> 71617.37826 | M130: =SUMIF(Calculations!$I$8:$QJ$8, M$2, Calculations!$I475:$QJ475) -> 66623.62807 | N130: =SUMIF(Calculations!$I$8:$QJ$8, N$2, Calculations!$I475:$QJ475) -> 63460.36556 | O130: =SUMIF(Calculations!$I$8:$QJ$8, O$2, Calculations!$I475:$QJ475) -> 58529.63166 | P130: =SUMIF(Calculations!$I$8:$QJ$8, P$2, Calculations!$I475:$QJ475) -> 54926.97876 | Q130: =SUMIF(Calculations!$I$8:$QJ$8, Q$2, Calculations!$I475:$QJ475) -> 50468.77095 | R130: =SUMIF(Calculations!$I$8:$QJ$8, R$2, Calculations!$I475:$QJ475) -> 45927.54927 | S130: =SUMIF(Calculations!$I$8:$QJ$8, S$2, Calculations!$I475:$QJ475) -> 40746.03857 | T130: =SUMIF(Calculations!$I$8:$QJ$8, T$2, Calculations!$I475:$QJ475) -> 35241.22397 | U130: =SUMIF(Calculations!$I$8:$QJ$8, U$2, Calculations!$I475:$QJ475) -> 29559.26585 | V130: =SUMIF(Calculations!$I$8:$QJ$8, V$2, Calculations!$I475:$QJ475) -> 23912.22823 | W130: =SUMIF(Calculations!$I$8:$QJ$8, W$2, Calculations!$I475:$QJ475) -> 18237.47373 | X130: =SUMIF(Calculations!$I$8:$QJ$8, X$2, Calculations!$I475:$QJ475) -> 12718.26906 | Y130: =SUMIF(Calculations!$I$8:$QJ$8, Y$2, Calculations!$I475:$QJ475) -> 7168.995695 | Z130: =SUMIF(Calculations!$I$8:$QJ$8, Z$2, Calculations!$I475:$QJ475) -> 1649.938227 | AA130: =SUMIF(Calculations!$I$8:$QJ$8, AA$2, Calculations!$I475:$QJ475) -> -3904.595314 | AB130: =SUMIF(Calculations!$I$8:$QJ$8, AB$2, Calculations!$I475:$QJ475) -> 3542.397327 | AC130: =SUMIF(Calculations!$I$8:$QJ$8, AC$2, Calculations!$I475:$QJ475) -> -183700.8822 | AD130: =SUMIF(Calculations!$I$8:$QJ$8, AD$2, Calculations!$I475:$QJ475) -> 173871.5724 | AE130: =SUMIF(Calculations!$I$8:$QJ$8, AE$2, Calculations!$I475:$QJ475) -> 128423.3963 | AF130: =SUMIF(Calculations!$I$8:$QJ$8, AF$2, Calculations!$I475:$QJ475) -> 118679.0069 | AG130: =SUMIF(Calculations!$I$8:$QJ$8, AG$2, Calculations!$I475:$QJ475) -> 108242.5739 | AH130: =SUMIF(Calculations!$I$8:$QJ$8, AH$2, Calculations!$I475:$QJ475) -> 1246553.753 | AI130: =SUMIF(Calculations!$I$8:$QJ$8, AI$2, Calculations!$I475:$QJ475) -> 276849.0983 | AJ130: =SUMIF(Calculations!$I$8:$QJ$8, AJ$2, Calculations!$I475:$QJ475) -> -178959.3661
C132: =Calculations!C477 -> Beginning Cash Balance | F132: =Calculations!E477 -> EUR | I132: =H133 -> 0 | J132: =I133 -> 41410.56426 | K132: 62034.36278 | L132: 132870.9305 | M132: 204488.3087 | N132: =M133 -> 271111.9368 | O132: 334572.3023 | P132: 393101.934 | Q132: 448028.9128 | R132: 498497.6837 | S132: 544425.233 | T132: 585171.2716 | U132: 620412.4955 | V132: 649971.7614 | W132: 673883.9896 | X132: 692121.4633 | Y132: 704839.7324 | Z132: 712008.7281 | AA132: 713658.6663 | AB132: 709754.071 | AC132: 713296.4683 | AD132: 529595.5861 | AE132: 703467.1585 | AF132: 831890.5547 | AG132: =AF133 -> 950569.5617 | AH132: 1058812.136 | AI132: 2305365.888 | AJ132: 2582214.986
C133: =Calculations!C478 -> Closing Cash Balance | F133: =Calculations!E478 -> EUR | H133: 0 | I133: =I130+I132 -> 41410.56426 | J133: =J130+J132 -> 62034.36278 | K133: =K130+K132 -> 132870.9305 | L133: 204488.3087 | M133: 271111.9368 | N133: 334572.3023 | O133: 393101.934 | P133: 448028.9128 | Q133: 498497.6837 | R133: 544425.233 | S133: 585171.2716 | T133: 620412.4955 | U133: 649971.7614 | V133: 673883.9896 | W133: 692121.4633 | X133: 704839.7324 | Y133: 712008.7281 | Z133: 713658.6663 | AA133: 709754.071 | AB133: 713296.4683 | AC133: 529595.5861 | AD133: 703467.1585 | AE133: 831890.5547 | AF133: 950569.5617 | AG133: =AG130+AG132 -> 1058812.136 | AH133: 2305365.888 | AI133: 2582214.986 | AJ133: 2403255.62
C135: Annual = Monthly Check | F135: Check | G135: =IF(ROUND($H$28-Calculations!$H$369+$H$106-Calculations!$H$448, 0)=0, "OK", "NO") -> OK

Sheet QFS
A1: =Inputs!$D$6&" - Quarterly Financial Statements" -> Força Açoreana, S.A.: Azores Photovoltaic Energy Venture - Quarterly Financial Statements
C3: Year | H3: 2026 | I3: =H3 -> 2026 | J3: 2027 | K3: =J3 -> 2027 | L3: =H3+1 -> 2027 | M3: =I3+1 -> 2027 | N3: 2028 | O3: 2028 | P3: =L3+1 -> 2028 | Q3: =M3+1 -> 2028 | R3: =N3+1 -> 2029 | S3: =O3+1 -> 2029 | T3: =P3+1 -> 2029 | U3: =Q3+1 -> 2029 | V3: =R3+1 -> 2030 | W3: =S3+1 -> 2030 | X3: =T3+1 -> 2030 | Y3: =U3+1 -> 2030 | Z3: =V3+1 -> 2031 | AA3: =W3+1 -> 2031 | AB3: =X3+1 -> 2031 | AC3: =Y3+1 -> 2031 | AD3: =Z3+1 -> 2032 | AE3: =AA3+1 -> 2032 | AF3: =AB3+1 -> 2032 | AG3: =AC3+1 -> 2032 | AH3: =AD3+1 -> 2033 | AI3: =AE3+1 -> 2033 | AJ3: =AF3+1 -> 2033 | AK3: =AG3+1 -> 2033 | AL3: =AH3+1 -> 2034 | AM3: =AI3+1 -> 2034 | AN3: =AJ3+1 -> 2034 | AO3: =AK3+1 -> 2034 | AP3: =AL3+1 -> 2035 | AQ3: =AM3+1 -> 2035 | AR3: =AN3+1 -> 2035 | AS3: =AO3+1 -> 2035 | AT3: =AP3+1 -> 2036 | AU3: =AQ3+1 -> 2036 | AV3: =AR3+1 -> 2036 | AW3: =AS3+1 -> 2036 | AX3: =AT3+1 -> 2037 | AY3: =AU3+1 -> 2037 | AZ3: =AV3+1 -> 2037 | BA3: =AW3+1 -> 2037 | BB3: =AX3+1 -> 2038 | BC3: =AY3+1 -> 2038 | BD3: =AZ3+1 -> 2038 | BE3: =BA3+1 -> 2038 | BF3: =BB3+1 -> 2039 | BG3: =BC3+1 -> 2039 | BH3: =BD3+1 -> 2039 | BI3: =BE3+1 -> 2039 | BJ3: =BF3+1 -> 2040 | BK3: =BG3+1 -> 2040 | BL3: =BH3+1 -> 2040 | BM3: =BI3+1 -> 2040 | BN3: =BJ3+1 -> 2041 | BO3: =BK3+1 -> 2041 | BP3: =BL3+1 -> 2041 | BQ3: =BM3+1 -> 2041 | BR3: =BN3+1 -> 2042 | BS3: =BO3+1 -> 2042 | BT3: =BP3+1 -> 2042 | BU3: =BQ3+1 -> 2042 | BV3: =BR3+1 -> 2043 | BW3: =BS3+1 -> 2043 | BX3: =BT3+1 -> 2043 | BY3: =BU3+1 -> 2043 | BZ3: =BV3+1 -> 2044 | CA3: =BW3+1 -> 2044 | CB3: =BX3+1 -> 2044 | CC3: =BY3+1 -> 2044 | CD3: =BZ3+1 -> 2045 | CE3: =CA3+1 -> 2045 | CF3: =CB3+1 -> 2045 | CG3: =CC3+1 -> 2045 | CH3: =CD3+1 -> 2046 | CI3: =CE3+1 -> 2046 | CJ3: =CF3+1 -> 2046 | CK3: =CG3+1 -> 2046 | CL3: =CH3+1 -> 2047 | CM3: =CI3+1 -> 2047 | CN3: =CJ3+1 -> 2047 | CO3: =CK3+1 -> 2047 | CP3: =CL3+1 -> 2048 | CQ3: =CM3+1 -> 2048 | CR3: =CN3+1 -> 2048 | CS3: =CO3+1 -> 2048 | CT3: =CP3+1 -> 2049 | CU3: =CQ3+1 -> 2049 | CV3: =CR3+1 -> 2049 | CW3: =CS3+1 -> 2049 | CX3: =CT3+1 -> 2050 | CY3: =CU3+1 -> 2050 | CZ3: =CV3+1 -> 2050 | DA3: =CW3+1 -> 2050 | DB3: =CX3+1 -> 2051 | DC3: =CY3+1 -> 2051 | DD3: =CZ3+1 -> 2051 | DE3: =DA3+1 -> 2051 | DF3: =DB3+1 -> 2052 | DG3: =DC3+1 -> 2052 | DH3: =DD3+1 -> 2052 | DI3: =DE3+1 -> 2052 | DJ3: =DF3+1 -> 2053 | DK3: =DG3+1 -> 2053 | EX3: =ET3+1 -> 1
C4: Quarter | H4: 3 | I4: =IF(H4=4, 1, H4+1) -> 4 | J4: =IF(I4=4, 1, I4+1) -> 1 | K4: =IF(J4=4, 1, J4+1) -> 2 | L4: =IF(K4=4, 1, K4+1) -> 3 | M4: =IF(L4=4, 1, L4+1) -> 4 | N4: =IF(M4=4, 1, M4+1) -> 1 | O4: 2 | P4: 3 | Q4: 4 | R4: 1 | S4: 2 | T4: 3 | U4: 4 | V4: 1 | W4: 2 | X4: 3 | Y4: 4 | Z4: 1 | AA4: 2 | AB4: 3 | AC4: 4 | AD4: 1 | AE4: 2 | AF4: 3 | AG4: 4 | AH4: 1 | AI4: 2 | AJ4: 3 | AK4: 4 | AL4: 1 | AM4: 2 | AN4: 3 | AO4: 4 | AP4: 1 | AQ4: 2 | AR4: 3 | AS4: 4 | AT4: 1 | AU4: 2 | AV4: 3 | AW4: 4 | AX4: 1 | AY4: 2 | AZ4: 3 | BA4: 4 | BB4: 1 | BC4: 2 | BD4: 3 | BE4: 4 | BF4: 1 | BG4: 2 | BH4: 3 | BI4: 4 | BJ4: 1 | BK4: 2 | BL4: 3 | BM4: 4 | BN4: 1 | BO4: 2 | BP4: 3 | BQ4: 4 | BR4: 1 | BS4: 2 | BT4: 3 | BU4: 4 | BV4: 1 | BW4: 2 | BX4: 3 | BY4: 4 | BZ4: =IF(BY4=4, 1, BY4+1) -> 1 | CA4: 2 | CB4: 3 | CC4: 4 | CD4: 1 | CE4: 2 | CF4: 3 | CG4: 4 | CH4: 1 | CI4: 2 | CJ4: 3 | CK4: 4 | CL4: 1 | CM4: 2 | CN4: 3 | CO4: 4 | CP4: 1 | CQ4: 2 | CR4: 3 | CS4: 4 | CT4: 1 | CU4: 2 | CV4: 3 | CW4: 4 | CX4: 1 | CY4: 2 | CZ4: 3 | DA4: 4 | DB4: 1 | DC4: 2 | DD4: =IF(DC4=4, 1, DC4+1) -> 3 | DE4: 4 | DF4: 1 | DG4: 2 | DH4: 3 | DI4: 4 | DJ4: 1 | DK4: 2 | EX4: =IF(EW4=4, 1, EW4+1) -> 1
C5: Period End | H5: =EOMONTH(DATE(H3, H4*3, 1), 0) -> 2026-09-30 | I5: =EOMONTH(DATE(I3, I4*3, 1), 0) -> 2026-12-31 | J5: =EOMONTH(DATE(J3, J4*3, 1), 0) -> 2027-03-31 | K5: 2027-06-30 | L5: 2027-09-30 | M5: 2027-12-31 | N5: 2028-03-31 | O5: 2028-06-30 | P5: 2028-09-30 | Q5: 2028-12-31 | R5: 2029-03-31 | S5: 2029-06-30 | T5: 2029-09-30 | U5: 2029-12-31 | V5: 2030-03-31 | W5: 2030-06-30 | X5: 2030-09-30 | Y5: 2030-12-31 | Z5: 2031-03-31 | AA5: 2031-06-30 | AB5: 2031-09-30 | AC5: 2031-12-31 | AD5: 2032-03-31 | AE5: 2032-06-30 | AF5: 2032-09-30 | AG5: 2032-12-31 | AH5: 2033-03-31 | AI5: 2033-06-30 | AJ5: 2033-09-30 | AK5: 2033-12-31 | AL5: 2034-03-31 | AM5: 2034-06-30 | AN5: 2034-09-30 | AO5: 2034-12-31 | AP5: 2035-03-31 | AQ5: 2035-06-30 | AR5: 2035-09-30 | AS5: 2035-12-31 | AT5: 2036-03-31 | AU5: 2036-06-30 | AV5: 2036-09-30 | AW5: 2036-12-31 | AX5: 2037-03-31 | AY5: 2037-06-30 | AZ5: 2037-09-30 | BA5: 2037-12-31 | BB5: 2038-03-31 | BC5: 2038-06-30 | BD5: 2038-09-30 | BE5: 2038-12-31 | BF5: 2039-03-31 | BG5: 2039-06-30 | BH5: 2039-09-30 | BI5: 2039-12-31 | BJ5: 2040-03-31 | BK5: 2040-06-30 | BL5: 2040-09-30 | BM5: 2040-12-31 | BN5: 2041-03-31 | BO5: 2041-06-30 | BP5: 2041-09-30 | BQ5: 2041-12-31 | BR5: 2042-03-31 | BS5: 2042-06-30 | BT5: 2042-09-30 | BU5: 2042-12-31 | BV5: =EOMONTH(DATE(BV3, BV4*3, 1), 0) -> 2043-03-31 | BW5: 2043-06-30 | BX5: 2043-09-30 | BY5: 2043-12-31 | BZ5: 2044-03-31 | CA5: 2044-06-30 | CB5: 2044-09-30 | CC5: 2044-12-31 | CD5: 2045-03-31 | CE5: 2045-06-30 | CF5: 2045-09-30 | CG5: 2045-12-31 | CH5: 2046-03-31 | CI5: 2046-06-30 | CJ5: 2046-09-30 | CK5: 2046-12-31 | CL5: 2047-03-31 | CM5: 2047-06-30 | CN5: 2047-09-30 | CO5: 2047-12-31 | CP5: 2048-03-31 | CQ5: 2048-06-30 | CR5: 2048-09-30 | CS5: 2048-12-31 | CT5: 2049-03-31 | CU5: 2049-06-30 | CV5: 2049-09-30 | CW5: 2049-12-31 | CX5: 2050-03-31 | CY5: 2050-06-30 | CZ5: 2050-09-30 | DA5: 2050-12-31 | DB5: 2051-03-31 | DC5: 2051-06-30 | DD5: =EOMONTH(DATE(DD3, DD4*3, 1), 0) -> 2051-09-30 | DE5: 2051-12-31 | DF5: 2052-03-31 | DG5: 2052-06-30 | DH5: 2052-09-30 | DI5: 2052-12-31 | DJ5: 2053-03-31 | DK5: 2053-06-30 | EX5: =EOMONTH(DATE(EX3, EX4*3, 1), 0) -> 1901-03-31
A6: · | B6: Income Statement | E6: Unit
A7: =Summary!$C$49 -> OK
C8: Revenues | AG8: .
C9: =Calculations!C352 -> Production Sold | E9: EUR | G9: =SUM(H9:FC9) -> 13569098.33 | H9: =SUMIFS(Calculations!$I229:$QJ229, Calculations!$I$8:$QJ$8, H$3, Calculations!$I$10:$QJ$10, H$4) -> 0 | I9: =SUMIFS(Calculations!$I229:$QJ229, Calculations!$I$8:$QJ$8, I$3, Calculations!$I$10:$QJ$10, I$4) -> 0 | J9: =SUMIFS(Calculations!$I229:$QJ229, Calculations!$I$8:$QJ$8, J$3, Calculations!$I$10:$QJ$10, J$4) -> 0 | K9: =SUMIFS(Calculations!$I229:$QJ229, Calculations!$I$8:$QJ$8, K$3, Calculations!$I$10:$QJ$10, K$4) -> 0 | L9: =SUMIFS(Calculations!$I229:$QJ229, Calculations!$I$8:$QJ$8, L$3, Calculations!$I$10:$QJ$10, L$4) -> 0 | M9: =SUMIFS(Calculations!$I229:$QJ229, Calculations!$I$8:$QJ$8, M$3, Calculations!$I$10:$QJ$10, M$4) -> 0 | N9: =SUMIFS(Calculations!$I229:$QJ229, Calculations!$I$8:$QJ$8, N$3, Calculations!$I$10:$QJ$10, N$4) -> 0 | O9: =SUMIFS(Calculations!$I229:$QJ229, Calculations!$I$8:$QJ$8, O$3, Calculations!$I$10:$QJ$10, O$4) -> 0 | P9: =SUMIFS(Calculations!$I229:$QJ229, Calculations!$I$8:$QJ$8, P$3, Calculations!$I$10:$QJ$10, P$4) -> 201992.7093 | Q9: =SUMIFS(Calculations!$I229:$QJ229, Calculations!$I$8:$QJ$8, Q$3, Calculations!$I$10:$QJ$10, Q$4) -> 111013.3865 | R9: =SUMIFS(Calculations!$I229:$QJ229, Calculations!$I$8:$QJ$8, R$3, Calculations!$I$10:$QJ$10, R$4) -> 82353.40047 | S9: =SUMIFS(Calculations!$I229:$QJ229, Calculations!$I$8:$QJ$8, S$3, Calculations!$I$10:$QJ$10, S$4) -> 134255.9956 | T9: =SUMIFS(Calculations!$I229:$QJ229, Calculations!$I$8:$QJ$8, T$3, Calculations!$I$10:$QJ$10, T$4) -> 204012.6364 | U9: =SUMIFS(Calculations!$I229:$QJ229, Calculations!$I$8:$QJ$8, U$3, Calculations!$I$10:$QJ$10, U$4) -> 111984.4564 | V9: =SUMIFS(Calculations!$I229:$QJ229, Calculations!$I$8:$QJ$8, V$3, Calculations!$I$10:$QJ$10, V$4) -> 83176.93447 | W9: =SUMIFS(Calculations!$I229:$QJ229, Calculations!$I$8:$QJ$8, W$3, Calculations!$I$10:$QJ$10, W$4) -> 135598.5556 | X9: =SUMIFS(Calculations!$I229:$QJ229, Calculations!$I$8:$QJ$8, X$3, Calculations!$I$10:$QJ$10, X$4) -> 206052.7627 | Y9: =SUMIFS(Calculations!$I229:$QJ229, Calculations!$I$8:$QJ$8, Y$3, Calculations!$I$10:$QJ$10, Y$4) -> 112604.4253 | Z9: =SUMIFS(Calculations!$I229:$QJ229, Calculations!$I$8:$QJ$8, Z$3, Calculations!$I$10:$QJ$10, Z$4) -> 84008.70382 | AA9: =SUMIFS(Calculations!$I229:$QJ229, Calculations!$I$8:$QJ$8, AA$3, Calculations!$I$10:$QJ$10, AA$4) -> 136954.5412 | AB9: =SUMIFS(Calculations!$I229:$QJ229, Calculations!$I$8:$QJ$8, AB$3, Calculations!$I$10:$QJ$10, AB$4) -> 208113.2904 | AC9: =SUMIFS(Calculations!$I229:$QJ229, Calculations!$I$8:$QJ$8, AC$3, Calculations!$I$10:$QJ$10, AC$4) -> 112909.3499 | AD9: =SUMIFS(Calculations!$I229:$QJ229, Calculations!$I$8:$QJ$8, AD$3, Calculations!$I$10:$QJ$10, AD$4) -> 84848.79086 | AE9: =SUMIFS(Calculations!$I229:$QJ229, Calculations!$I$8:$QJ$8, AE$3, Calculations!$I$10:$QJ$10, AE$4) -> 138324.0866 | AF9: =SUMIFS(Calculations!$I229:$QJ229, Calculations!$I$8:$QJ$8, AF$3, Calculations!$I$10:$QJ$10, AF$4) -> 210194.4233 | AG9: =SUMIFS(Calculations!$I229:$QJ229, Calculations!$I$8:$QJ$8, AG$3, Calculations!$I$10:$QJ$10, AG$4) -> 112730.6431 | AH9: =SUMIFS(Calculations!$I229:$QJ229, Calculations!$I$8:$QJ$8, AH$3, Calculations!$I$10:$QJ$10, AH$4) -> 85697.27876 | AI9: =SUMIFS(Calculations!$I229:$QJ229, Calculations!$I$8:$QJ$8, AI$3, Calculations!$I$10:$QJ$10, AI$4) -> 139707.3274 | AJ9: =SUMIFS(Calculations!$I229:$QJ229, Calculations!$I$8:$QJ$8, AJ$3, Calculations!$I$10:$QJ$10, AJ$4) -> 211805.7141 | AK9: =SUMIFS(Calculations!$I229:$QJ229, Calculations!$I$8:$QJ$8, AK$3, Calculations!$I$10:$QJ$10, AK$4) -> 112373.4516 | AL9: =SUMIFS(Calculations!$I229:$QJ229, Calculations!$I$8:$QJ$8, AL$3, Calculations!$I$10:$QJ$10, AL$4) -> 86554.25155 | AM9: =SUMIFS(Calculations!$I229:$QJ229, Calculations!$I$8:$QJ$8, AM$3, Calculations!$I$10:$QJ$10, AM$4) -> 141104.4007 | AN9: =SUMIFS(Calculations!$I229:$QJ229, Calculations!$I$8:$QJ$8, AN$3, Calculations!$I$10:$QJ$10, AN$4) -> 211174.6497 | AO9: =SUMIFS(Calculations!$I229:$QJ229, Calculations!$I$8:$QJ$8, AO$3, Calculations!$I$10:$QJ$10, AO$4) -> 111202.4678 | AP9: =SUMIFS(Calculations!$I229:$QJ229, Calculations!$I$8:$QJ$8, AP$3, Calculations!$I$10:$QJ$10, AP$4) -> 87419.79407 | AQ9: =SUMIFS(Calculations!$I229:$QJ229, Calculations!$I$8:$QJ$8, AQ$3, Calculations!$I$10:$QJ$10, AQ$4) -> 142515.4447 | AR9: =SUMIFS(Calculations!$I229:$QJ229, Calculations!$I$8:$QJ$8, AR$3, Calculations!$I$10:$QJ$10, AR$4) -> 210460.7996 | AS9: =SUMIFS(Calculations!$I229:$QJ229, Calculations!$I$8:$QJ$8, AS$3, Calculations!$I$10:$QJ$10, AS$4) -> 110043.1403 | AT9: =SUMIFS(Calculations!$I229:$QJ229, Calculations!$I$8:$QJ$8, AT$3, Calculations!$I$10:$QJ$10, AT$4) -> 88293.99201 | AU9: =SUMIFS(Calculations!$I229:$QJ229, Calculations!$I$8:$QJ$8, AU$3, Calculations!$I$10:$QJ$10, AU$4) -> 143940.5992 | AV9: =SUMIFS(Calculations!$I229:$QJ229, Calculations!$I$8:$QJ$8, AV$3, Calculations!$I$10:$QJ$10, AV$4) -> 209658.9591 | AW9: =SUMIFS(Calculations!$I229:$QJ229, Calculations!$I$8:$QJ$8, AW$3, Calculations!$I$10:$QJ$10, AW$4) -> 108895.3531 | AX9: =SUMIFS(Calculations!$I229:$QJ229, Calculations!$I$8:$QJ$8, AX$3, Calculations!$I$10:$QJ$10, AX$4) -> 89176.93193 | AY9: =SUMIFS(Calculations!$I229:$QJ229, Calculations!$I$8:$QJ$8, AY$3, Calculations!$I$10:$QJ$10, AY$4) -> 145380.0052 | AZ9: =SUMIFS(Calculations!$I229:$QJ229, Calculations!$I$8:$QJ$8, AZ$3, Calculations!$I$10:$QJ$10, AZ$4) -> 207519.5668 | BA9: =SUMIFS(Calculations!$I229:$QJ229, Calculations!$I$8:$QJ$8, BA$3, Calculations!$I$10:$QJ$10, BA$4) -> 107758.9914 | BB9: =SUMIFS(Calculations!$I229:$QJ229, Calculations!$I$8:$QJ$8, BB$3, Calculations!$I$10:$QJ$10, BB$4) -> 90068.70125 | BC9: =SUMIFS(Calculations!$I229:$QJ229, Calculations!$I$8:$QJ$8, BC$3, Calculations!$I$10:$QJ$10, BC$4) -> 146833.8052 | BD9: =SUMIFS(Calculations!$I229:$QJ229, Calculations!$I$8:$QJ$8, BD$3, Calculations!$I$10:$QJ$10, BD$4) -> 205401.4706 | BE9: =SUMIFS(Calculations!$I229:$QJ229, Calculations!$I$8:$QJ$8, BE$3, Calculations!$I$10:$QJ$10, BE$4) -> 106633.9413 | BF9: =SUMIFS(Calculations!$I229:$QJ229, Calculations!$I$8:$QJ$8, BF$3, Calculations!$I$10:$QJ$10, BF$4) -> 90969.38826 | BG9: =SUMIFS(Calculations!$I229:$QJ229, Calculations!$I$8:$QJ$8, BG$3, Calculations!$I$10:$QJ$10, BG$4) -> 148302.1433 | BH9: =SUMIFS(Calculations!$I229:$QJ229, Calculations!$I$8:$QJ$8, BH$3, Calculations!$I$10:$QJ$10, BH$4) -> 203304.4586 | BI9: =SUMIFS(Calculations!$I229:$QJ229, Calculations!$I$8:$QJ$8, BI$3, Calculations!$I$10:$QJ$10, BI$4) -> 105520.0902 | BJ9: =SUMIFS(Calculations!$I229:$QJ229, Calculations!$I$8:$QJ$8, BJ$3, Calculations!$I$10:$QJ$10, BJ$4) -> 91879.08214 | BK9: =SUMIFS(Calculations!$I229:$QJ229, Calculations!$I$8:$QJ$8, BK$3, Calculations!$I$10:$QJ$10, BK$4) -> 149785.1647 | BL9: =SUMIFS(Calculations!$I229:$QJ229, Calculations!$I$8:$QJ$8, BL$3, Calculations!$I$10:$QJ$10, BL$4) -> 201228.3209 | BM9: =SUMIFS(Calculations!$I229:$QJ229, Calculations!$I$8:$QJ$8, BM$3, Calculations!$I$10:$QJ$10, BM$4) -> 104417.3268 | BN9: =SUMIFS(Calculations!$I229:$QJ229, Calculations!$I$8:$QJ$8, BN$3, Calculations!$I$10:$QJ$10, BN$4) -> 92797.87296 | BO9: =SUMIFS(Calculations!$I229:$QJ229, Calculations!$I$8:$QJ$8, BO$3, Calculations!$I$10:$QJ$10, BO$4) -> 151283.0163 | BP9: =SUMIFS(Calculations!$I229:$QJ229, Calculations!$I$8:$QJ$8, BP$3, Calculations!$I$10:$QJ$10, BP$4) -> 199172.8496 | BQ9: =SUMIFS(Calculations!$I229:$QJ229, Calculations!$I$8:$QJ$8, BQ$3, Calculations!$I$10:$QJ$10, BQ$4) -> 103325.5406 | BR9: =SUMIFS(Calculations!$I229:$QJ229, Calculations!$I$8:$QJ$8, BR$3, Calculations!$I$10:$QJ$10, BR$4) -> 93725.85169 | BS9: =SUMIFS(Calculations!$I229:$QJ229, Calculations!$I$8:$QJ$8, BS$3, Calculations!$I$10:$QJ$10, BS$4) -> 152795.8465 | BT9: =SUMIFS(Calculations!$I229:$QJ229, Calculations!$I$8:$QJ$8, BT$3, Calculations!$I$10:$QJ$10, BT$4) -> 197137.8391 | BU9: =SUMIFS(Calculations!$I229:$QJ229, Calculations!$I$8:$QJ$8, BU$3, Calculations!$I$10:$QJ$10, BU$4) -> 102244.6224 | BV9: =SUMIFS(Calculations!$I229:$QJ229, Calculations!$I$8:$QJ$8, BV$3, Calculations!$I$10:$QJ$10, BV$4) -> 94663.11021 | BW9: =SUMIFS(Calculations!$I229:$QJ229, Calculations!$I$8:$QJ$8, BW$3, Calculations!$I$10:$QJ$10, BW$4) -> 154323.805 | BX9: =SUMIFS(Calculations!$I229:$QJ229, Calculations!$I$8:$QJ$8, BX$3, Calculations!$I$10:$QJ$10, BX$4) -> 195123.0857 | BY9: =SUMIFS(Calculations!$I229:$QJ229, Calculations!$I$8:$QJ$8, BY$3, Calculations!$I$10:$QJ$10, BY$4) -> 101174.4639 | BZ9: =SUMIFS(Calculations!$I229:$QJ229, Calculations!$I$8:$QJ$8, BZ$3, Calculations!$I$10:$QJ$10, BZ$4) -> 95609.74131 | CA9: =SUMIFS(Calculations!$I229:$QJ229, Calculations!$I$8:$QJ$8, CA$3, Calculations!$I$10:$QJ$10, CA$4) -> 155867.043 | CB9: =SUMIFS(Calculations!$I229:$QJ229, Calculations!$I$8:$QJ$8, CB$3, Calculations!$I$10:$QJ$10, CB$4) -> 193128.3877 | CC9: =SUMIFS(Calculations!$I229:$QJ229, Calculations!$I$8:$QJ$8, CC$3, Calculations!$I$10:$QJ$10, CC$4) -> 100114.9581 | CD9: =SUMIFS(Calculations!$I229:$QJ229, Calculations!$I$8:$QJ$8, CD$3, Calculations!$I$10:$QJ$10, CD$4) -> 96565.83873 | CE9: =SUMIFS(Calculations!$I229:$QJ229, Calculations!$I$8:$QJ$8, CE$3, Calculations!$I$10:$QJ$10, CE$4) -> 156211.7109 | CF9: =SUMIFS(Calculations!$I229:$QJ229, Calculations!$I$8:$QJ$8, CF$3, Calculations!$I$10:$QJ$10, CF$4) -> 191153.5456 | CG9: =SUMIFS(Calculations!$I229:$QJ229, Calculations!$I$8:$QJ$8, CG$3, Calculations!$I$10:$QJ$10, CG$4) -> 99065.999 | CH9: =SUMIFS(Calculations!$I229:$QJ229, Calculations!$I$8:$QJ$8, CH$3, Calculations!$I$10:$QJ$10, CH$4) -> 97514.99773 | CI9: =SUMIFS(Calculations!$I229:$QJ229, Calculations!$I$8:$QJ$8, CI$3, Calculations!$I$10:$QJ$10, CI$4) -> 156489.2932 | CJ9: =SUMIFS(Calculations!$I229:$QJ229, Calculations!$I$8:$QJ$8, CJ$3, Calculations!$I$10:$QJ$10, CJ$4) -> 189198.3616 | CK9: =SUMIFS(Calculations!$I229:$QJ229, Calculations!$I$8:$QJ$8, CK$3, Calculations!$I$10:$QJ$10, CK$4) -> 98027.48149 | CL9: =SUMIFS(Calculations!$I229:$QJ229, Calculations!$I$8:$QJ$8, CL$3, Calculations!$I$10:$QJ$10, CL$4) -> 97523.32057 | CM9: =SUMIFS(Calculations!$I229:$QJ229, Calculations!$I$8:$QJ$8, CM$3, Calculations!$I$10:$QJ$10, CM$4) -> 156782.6089 | CN9: =SUMIFS(Calculations!$I229:$QJ229, Calculations!$I$8:$QJ$8, CN$3, Calculations!$I$10:$QJ$10, CN$4) -> 187262.6401 | CO9: =SUMIFS(Calculations!$I229:$QJ229, Calculations!$I$8:$QJ$8, CO$3, Calculations!$I$10:$QJ$10, CO$4) -> 96999.3017 | CP9: =SUMIFS(Calculations!$I229:$QJ229, Calculations!$I$8:$QJ$8, CP$3, Calculations!$I$10:$QJ$10, CP$4) -> 97541.52723 | CQ9: =SUMIFS(Calculations!$I229:$QJ229, Calculations!$I$8:$QJ$8, CQ$3, Calculations!$I$10:$QJ$10, CQ$4) -> 157091.6861 | CR9: =SUMIFS(Calculations!$I229:$QJ229, Calculations!$I$8:$QJ$8, CR$3, Calculations!$I$10:$QJ$10, CR$4) -> 185346.1873 | CS9: =SUMIFS(Calculations!$I229:$QJ229, Calculations!$I$8:$QJ$8, CS$3, Calculations!$I$10:$QJ$10, CS$4) -> 95981.35671 | CT9: =SUMIFS(Calculations!$I229:$QJ229, Calculations!$I$8:$QJ$8, CT$3, Calculations!$I$10:$QJ$10, CT$4) -> 97403.41725 | CU9: =SUMIFS(Calculations!$I229:$QJ229, Calculations!$I$8:$QJ$8, CU$3, Calculations!$I$10:$QJ$10, CU$4) -> 157416.5549 | CV9: =SUMIFS(Calculations!$I229:$QJ229, Calculations!$I$8:$QJ$8, CV$3, Calculations!$I$10:$QJ$10, CV$4) -> 183448.8114 | CW9: =SUMIFS(Calculations!$I229:$QJ229, Calculations!$I$8:$QJ$8, CW$3, Calculations!$I$10:$QJ$10, CW$4) -> 94973.54464 | CX9: =SUMIFS(Calculations!$I229:$QJ229, Calculations!$I$8:$QJ$8, CX$3, Calculations!$I$10:$QJ$10, CX$4) -> 96795.23462 | CY9: =SUMIFS(Calculations!$I229:$QJ229, Calculations!$I$8:$QJ$8, CY$3, Calculations!$I$10:$QJ$10, CY$4) -> 157757.2468 | CZ9: =SUMIFS(Calculations!$I229:$QJ229, Calculations!$I$8:$QJ$8, CZ$3, Calculations!$I$10:$QJ$10, CZ$4) -> 181570.3226 | DA9: =SUMIFS(Calculations!$I229:$QJ229, Calculations!$I$8:$QJ$8, DA$3, Calculations!$I$10:$QJ$10, DA$4) -> 93975.76463 | DB9: =SUMIFS(Calculations!$I229:$QJ229, Calculations!$I$8:$QJ$8, DB$3, Calculations!$I$10:$QJ$10, DB$4) -> 96197.05596 | DC9: =SUMIFS(Calculations!$I229:$QJ229, Calculations!$I$8:$QJ$8, DC$3, Calculations!$I$10:$QJ$10, DC$4) -> 157728.3893 | DD9: =SUMIFS(Calculations!$I229:$QJ229, Calculations!$I$8:$QJ$8, DD$3, Calculations!$I$10:$QJ$10, DD$4) -> 179710.5329 | DE9: =SUMIFS(Calculations!$I229:$QJ229, Calculations!$I$8:$QJ$8, DE$3, Calculations!$I$10:$QJ$10, DE$4) -> 92987.91682 | DF9: =SUMIFS(Calculations!$I229:$QJ229, Calculations!$I$8:$QJ$8, DF$3, Calculations!$I$10:$QJ$10, DF$4) -> 95551.61903 | DG9: =SUMIFS(Calculations!$I229:$QJ229, Calculations!$I$8:$QJ$8, DG$3, Calculations!$I$10:$QJ$10, DG$4) -> 156978.2269 | DH9: =SUMIFS(Calculations!$I229:$QJ229, Calculations!$I$8:$QJ$8, DH$3, Calculations!$I$10:$QJ$10, DH$4) -> 177869.256 | DI9: =SUMIFS(Calculations!$I229:$QJ229, Calculations!$I$8:$QJ$8, DI$3, Calculations!$I$10:$QJ$10, DI$4) -> 92009.90233 | DJ9: =SUMIFS(Calculations!$I229:$QJ229, Calculations!$I$8:$QJ$8, DJ$3, Calculations!$I$10:$QJ$10, DJ$4) -> 95030.47122 | DK9: =SUMIFS(Calculations!$I229:$QJ229, Calculations!$I$8:$QJ$8, DK$3, Calculations!$I$10:$QJ$10, DK$4) -> 154294.0664 | EX9: =SUMIFS(Calculations!$I229:$QJ229, Calculations!$I$8:$QJ$8, EX$3, Calculations!$I$10:$QJ$10, EX$4) -> 0
C10: Storage | E10: EUR | G10: 3817108.854 | H10: =SUMIFS(Calculations!$I230:$QJ230, Calculations!$I$8:$QJ$8, H$3, Calculations!$I$10:$QJ$10, H$4) -> 0 | I10: =SUMIFS(Calculations!$I230:$QJ230, Calculations!$I$8:$QJ$8, I$3, Calculations!$I$10:$QJ$10, I$4) -> 0 | J10: =SUMIFS(Calculations!$I230:$QJ230, Calculations!$I$8:$QJ$8, J$3, Calculations!$I$10:$QJ$10, J$4) -> 0 | K10: =SUMIFS(Calculations!$I230:$QJ230, Calculations!$I$8:$QJ$8, K$3, Calculations!$I$10:$QJ$10, K$4) -> 0 | L10: =SUMIFS(Calculations!$I230:$QJ230, Calculations!$I$8:$QJ$8, L$3, Calculations!$I$10:$QJ$10, L$4) -> 0 | M10: =SUMIFS(Calculations!$I230:$QJ230, Calculations!$I$8:$QJ$8, M$3, Calculations!$I$10:$QJ$10, M$4) -> 0 | N10: =SUMIFS(Calculations!$I230:$QJ230, Calculations!$I$8:$QJ$8, N$3, Calculations!$I$10:$QJ$10, N$4) -> 0 | O10: =SUMIFS(Calculations!$I230:$QJ230, Calculations!$I$8:$QJ$8, O$3, Calculations!$I$10:$QJ$10, O$4) -> 0 | P10: =SUMIFS(Calculations!$I230:$QJ230, Calculations!$I$8:$QJ$8, P$3, Calculations!$I$10:$QJ$10, P$4) -> 44317.69818 | Q10: =SUMIFS(Calculations!$I230:$QJ230, Calculations!$I$8:$QJ$8, Q$3, Calculations!$I$10:$QJ$10, Q$4) -> 43148.26985 | R10: =SUMIFS(Calculations!$I230:$QJ230, Calculations!$I$8:$QJ$8, R$3, Calculations!$I$10:$QJ$10, R$4) -> 45007.992 | S10: =SUMIFS(Calculations!$I230:$QJ230, Calculations!$I$8:$QJ$8, S$3, Calculations!$I$10:$QJ$10, S$4) -> 46489.79119 | T10: =SUMIFS(Calculations!$I230:$QJ230, Calculations!$I$8:$QJ$8, T$3, Calculations!$I$10:$QJ$10, T$4) -> 43690.85253 | U10: =SUMIFS(Calculations!$I230:$QJ230, Calculations!$I$8:$QJ$8, U$3, Calculations!$I$10:$QJ$10, U$4) -> 42580.32685 | V10: =SUMIFS(Calculations!$I230:$QJ230, Calculations!$I$8:$QJ$8, V$3, Calculations!$I$10:$QJ$10, V$4) -> 44457.40579 | W10: =SUMIFS(Calculations!$I230:$QJ230, Calculations!$I$8:$QJ$8, W$3, Calculations!$I$10:$QJ$10, W$4) -> 46019.5365 | X10: =SUMIFS(Calculations!$I230:$QJ230, Calculations!$I$8:$QJ$8, X$3, Calculations!$I$10:$QJ$10, X$4) -> 42948.85711 | Y10: =SUMIFS(Calculations!$I230:$QJ230, Calculations!$I$8:$QJ$8, Y$3, Calculations!$I$10:$QJ$10, Y$4) -> 41993.69579 | Z10: =SUMIFS(Calculations!$I230:$QJ230, Calculations!$I$8:$QJ$8, Z$3, Calculations!$I$10:$QJ$10, Z$4) -> 43894.31832 | AA10: =SUMIFS(Calculations!$I230:$QJ230, Calculations!$I$8:$QJ$8, AA$3, Calculations!$I$10:$QJ$10, AA$4) -> 45136.44399 | AB10: =SUMIFS(Calculations!$I230:$QJ230, Calculations!$I$8:$QJ$8, AB$3, Calculations!$I$10:$QJ$10, AB$4) -> 42211.7331 | AC10: =SUMIFS(Calculations!$I230:$QJ230, Calculations!$I$8:$QJ$8, AC$3, Calculations!$I$10:$QJ$10, AC$4) -> 41431.9834 | AD10: =SUMIFS(Calculations!$I230:$QJ230, Calculations!$I$8:$QJ$8, AD$3, Calculations!$I$10:$QJ$10, AD$4) -> 43780.32571 | AE10: =SUMIFS(Calculations!$I230:$QJ230, Calculations!$I$8:$QJ$8, AE$3, Calculations!$I$10:$QJ$10, AE$4) -> 44594.578 | AF10: =SUMIFS(Calculations!$I230:$QJ230, Calculations!$I$8:$QJ$8, AF$3, Calculations!$I$10:$QJ$10, AF$4) -> 41479.40687 | AG10: =SUMIFS(Calculations!$I230:$QJ230, Calculations!$I$8:$QJ$8, AG$3, Calculations!$I$10:$QJ$10, AG$4) -> 40905.54904 | AH10: =SUMIFS(Calculations!$I230:$QJ230, Calculations!$I$8:$QJ$8, AH$3, Calculations!$I$10:$QJ$10, AH$4) -> 42782.43318 | AI10: =SUMIFS(Calculations!$I230:$QJ230, Calculations!$I$8:$QJ$8, AI$3, Calculations!$I$10:$QJ$10, AI$4) -> 44057.41179 | AJ10: =SUMIFS(Calculations!$I230:$QJ230, Calculations!$I$8:$QJ$8, AJ$3, Calculations!$I$10:$QJ$10, AJ$4) -> 40782.11308 | AK10: =SUMIFS(Calculations!$I230:$QJ230, Calculations!$I$8:$QJ$8, AK$3, Calculations!$I$10:$QJ$10, AK$4) -> 40395.4899 | AL10: =SUMIFS(Calculations!$I230:$QJ230, Calculations!$I$8:$QJ$8, AL$3, Calculations!$I$10:$QJ$10, AL$4) -> 42233.5243 | AM10: =SUMIFS(Calculations!$I230:$QJ230, Calculations!$I$8:$QJ$8, AM$3, Calculations!$I$10:$QJ$10, AM$4) -> 43524.89163 | AN10: =SUMIFS(Calculations!$I230:$QJ230, Calculations!$I$8:$QJ$8, AN$3, Calculations!$I$10:$QJ$10, AN$4) -> 40229.2806 | AO10: =SUMIFS(Calculations!$I230:$QJ230, Calculations!$I$8:$QJ$8, AO$3, Calculations!$I$10:$QJ$10, AO$4) -> 39940.99588 | AP10: =SUMIFS(Calculations!$I230:$QJ230, Calculations!$I$8:$QJ$8, AP$3, Calculations!$I$10:$QJ$10, AP$4) -> 41689.23122 | AQ10: =SUMIFS(Calculations!$I230:$QJ230, Calculations!$I$8:$QJ$8, AQ$3, Calculations!$I$10:$QJ$10, AQ$4) -> 42571.79881 | AR10: =SUMIFS(Calculations!$I230:$QJ230, Calculations!$I$8:$QJ$8, AR$3, Calculations!$I$10:$QJ$10, AR$4) -> 39687.45291 | AS10: =SUMIFS(Calculations!$I230:$QJ230, Calculations!$I$8:$QJ$8, AS$3, Calculations!$I$10:$QJ$10, AS$4) -> 39491.02603 | AT10: =SUMIFS(Calculations!$I230:$QJ230, Calculations!$I$8:$QJ$8, AT$3, Calculations!$I$10:$QJ$10, AT$4) -> 41574.00115 | AU10: =SUMIFS(Calculations!$I230:$QJ230, Calculations!$I$8:$QJ$8, AU$3, Calculations!$I$10:$QJ$10, AU$4) -> 41978.0406 | AV10: =SUMIFS(Calculations!$I230:$QJ230, Calculations!$I$8:$QJ$8, AV$3, Calculations!$I$10:$QJ$10, AV$4) -> 39156.89286 | AW10: =SUMIFS(Calculations!$I230:$QJ230, Calculations!$I$8:$QJ$8, AW$3, Calculations!$I$10:$QJ$10, AW$4) -> 39045.5353 | AX10: =SUMIFS(Calculations!$I230:$QJ230, Calculations!$I$8:$QJ$8, AX$3, Calculations!$I$10:$QJ$10, AX$4) -> 40170.06525 | AY10: =SUMIFS(Calculations!$I230:$QJ230, Calculations!$I$8:$QJ$8, AY$3, Calculations!$I$10:$QJ$10, AY$4) -> 41388.88644 | AZ10: =SUMIFS(Calculations!$I230:$QJ230, Calculations!$I$8:$QJ$8, AZ$3, Calculations!$I$10:$QJ$10, AZ$4) -> 38714.7282 | BA10: =SUMIFS(Calculations!$I230:$QJ230, Calculations!$I$8:$QJ$8, BA$3, Calculations!$I$10:$QJ$10, BA$4) -> 38604.47913 | BB10: =SUMIFS(Calculations!$I230:$QJ230, Calculations!$I$8:$QJ$8, BB$3, Calculations!$I$10:$QJ$10, BB$4) -> 39605.87049 | BC10: =SUMIFS(Calculations!$I230:$QJ230, Calculations!$I$8:$QJ$8, BC$3, Calculations!$I$10:$QJ$10, BC$4) -> 40804.27742 | BD10: =SUMIFS(Calculations!$I230:$QJ230, Calculations!$I$8:$QJ$8, BD$3, Calculations!$I$10:$QJ$10, BD$4) -> 38276.96497 | BE10: =SUMIFS(Calculations!$I230:$QJ230, Calculations!$I$8:$QJ$8, BE$3, Calculations!$I$10:$QJ$10, BE$4) -> 38167.81335 | BF10: =SUMIFS(Calculations!$I230:$QJ230, Calculations!$I$8:$QJ$8, BF$3, Calculations!$I$10:$QJ$10, BF$4) -> 39046.1927 | BG10: =SUMIFS(Calculations!$I230:$QJ230, Calculations!$I$8:$QJ$8, BG$3, Calculations!$I$10:$QJ$10, BG$4) -> 40224.15512 | BH10: =SUMIFS(Calculations!$I230:$QJ230, Calculations!$I$8:$QJ$8, BH$3, Calculations!$I$10:$QJ$10, BH$4) -> 37843.55937 | BI10: =SUMIFS(Calculations!$I230:$QJ230, Calculations!$I$8:$QJ$8, BI$3, Calculations!$I$10:$QJ$10, BI$4) -> 37735.49428 | BJ10: =SUMIFS(Calculations!$I230:$QJ230, Calculations!$I$8:$QJ$8, BJ$3, Calculations!$I$10:$QJ$10, BJ$4) -> 38896.4434 | BK10: =SUMIFS(Calculations!$I230:$QJ230, Calculations!$I$8:$QJ$8, BK$3, Calculations!$I$10:$QJ$10, BK$4) -> 39648.46153 | BL10: =SUMIFS(Calculations!$I230:$QJ230, Calculations!$I$8:$QJ$8, BL$3, Calculations!$I$10:$QJ$10, BL$4) -> 37414.46801 | BM10: =SUMIFS(Calculations!$I230:$QJ230, Calculations!$I$8:$QJ$8, BM$3, Calculations!$I$10:$QJ$10, BM$4) -> 37307.47863 | BN10: =SUMIFS(Calculations!$I230:$QJ230, Calculations!$I$8:$QJ$8, BN$3, Calculations!$I$10:$QJ$10, BN$4) -> 37940.1647 | BO10: =SUMIFS(Calculations!$I230:$QJ230, Calculations!$I$8:$QJ$8, BO$3, Calculations!$I$10:$QJ$10, BO$4) -> 39077.13912 | BP10: =SUMIFS(Calculations!$I230:$QJ230, Calculations!$I$8:$QJ$8, BP$3, Calculations!$I$10:$QJ$10, BP$4) -> 36989.64796 | BQ10: =SUMIFS(Calculations!$I230:$QJ230, Calculations!$I$8:$QJ$8, BQ$3, Calculations!$I$10:$QJ$10, BQ$4) -> 36883.72358 | BR10: =SUMIFS(Calculations!$I230:$QJ230, Calculations!$I$8:$QJ$8, BR$3, Calculations!$I$10:$QJ$10, BR$4) -> 37393.70391 | BS10: =SUMIFS(Calculations!$I230:$QJ230, Calculations!$I$8:$QJ$8, BS$3, Calculations!$I$10:$QJ$10, BS$4) -> 38510.13078 | BT10: =SUMIFS(Calculations!$I230:$QJ230, Calculations!$I$8:$QJ$8, BT$3, Calculations!$I$10:$QJ$10, BT$4) -> 36569.05669 | BU10: =SUMIFS(Calculations!$I230:$QJ230, Calculations!$I$8:$QJ$8, BU$3, Calculations!$I$10:$QJ$10, BU$4) -> 36464.18672 | BV10: =SUMIFS(Calculations!$I230:$QJ230, Calculations!$I$8:$QJ$8, BV$3, Calculations!$I$10:$QJ$10, BV$4) -> 36851.53894 | BW10: =SUMIFS(Calculations!$I230:$QJ230, Calculations!$I$8:$QJ$8, BW$3, Calculations!$I$10:$QJ$10, BW$4) -> 37947.37984 | BX10: =SUMIFS(Calculations!$I230:$QJ230, Calculations!$I$8:$QJ$8, BX$3, Calculations!$I$10:$QJ$10, BX$4) -> 36152.65211 | BY10: =SUMIFS(Calculations!$I230:$QJ230, Calculations!$I$8:$QJ$8, BY$3, Calculations!$I$10:$QJ$10, BY$4) -> 36048.82604 | BZ10: =SUMIFS(Calculations!$I230:$QJ230, Calculations!$I$8:$QJ$8, BZ$3, Calculations!$I$10:$QJ$10, BZ$4) -> 36700.7955 | CA10: =SUMIFS(Calculations!$I230:$QJ230, Calculations!$I$8:$QJ$8, CA$3, Calculations!$I$10:$QJ$10, CA$4) -> 37388.83004 | CB10: =SUMIFS(Calculations!$I230:$QJ230, Calculations!$I$8:$QJ$8, CB$3, Calculations!$I$10:$QJ$10, CB$4) -> 35740.39254 | CC10: =SUMIFS(Calculations!$I230:$QJ230, Calculations!$I$8:$QJ$8, CC$3, Calculations!$I$10:$QJ$10, CC$4) -> 35637.59999 | CD10: =SUMIFS(Calculations!$I230:$QJ230, Calculations!$I$8:$QJ$8, CD$3, Calculations!$I$10:$QJ$10, CD$4) -> 35779.88009 | CE10: =SUMIFS(Calculations!$I230:$QJ230, Calculations!$I$8:$QJ$8, CE$3, Calculations!$I$10:$QJ$10, CE$4) -> 36909.41489 | CF10: =SUMIFS(Calculations!$I230:$QJ230, Calculations!$I$8:$QJ$8, CF$3, Calculations!$I$10:$QJ$10, CF$4) -> 35332.23673 | CG10: =SUMIFS(Calculations!$I230:$QJ230, Calculations!$I$8:$QJ$8, CG$3, Calculations!$I$10:$QJ$10, CG$4) -> 35230.4674 | CH10: =SUMIFS(Calculations!$I230:$QJ230, Calculations!$I$8:$QJ$8, CH$3, Calculations!$I$10:$QJ$10, CH$4) -> 35251.29825 | CI10: =SUMIFS(Calculations!$I230:$QJ230, Calculations!$I$8:$QJ$8, CI$3, Calculations!$I$10:$QJ$10, CI$4) -> 35908.66231 | CJ10: =SUMIFS(Calculations!$I230:$QJ230, Calculations!$I$8:$QJ$8, CJ$3, Calculations!$I$10:$QJ$10, CJ$4) -> 34928.14381 | CK10: =SUMIFS(Calculations!$I230:$QJ230, Calculations!$I$8:$QJ$8, CK$3, Calculations!$I$10:$QJ$10, CK$4) -> 34827.38753 | CL10: =SUMIFS(Calculations!$I230:$QJ230, Calculations!$I$8:$QJ$8, CL$3, Calculations!$I$10:$QJ$10, CL$4) -> 34785.5102 | CM10: =SUMIFS(Calculations!$I230:$QJ230, Calculations!$I$8:$QJ$8, CM$3, Calculations!$I$10:$QJ$10, CM$4) -> 35381.85988 | CN10: =SUMIFS(Calculations!$I230:$QJ230, Calculations!$I$8:$QJ$8, CN$3, Calculations!$I$10:$QJ$10, CN$4) -> 34528.07336 | CO10: =SUMIFS(Calculations!$I230:$QJ230, Calculations!$I$8:$QJ$8, CO$3, Calculations!$I$10:$QJ$10, CO$4) -> 34428.32004 | CP10: =SUMIFS(Calculations!$I230:$QJ230, Calculations!$I$8:$QJ$8, CP$3, Calculations!$I$10:$QJ$10, CP$4) -> 34693.35281 | CQ10: =SUMIFS(Calculations!$I230:$QJ230, Calculations!$I$8:$QJ$8, CQ$3, Calculations!$I$10:$QJ$10, CQ$4) -> 34859.14744 | CR10: =SUMIFS(Calculations!$I230:$QJ230, Calculations!$I$8:$QJ$8, CR$3, Calculations!$I$10:$QJ$10, CR$4) -> 34131.98533 | CS10: =SUMIFS(Calculations!$I230:$QJ230, Calculations!$I$8:$QJ$8, CS$3, Calculations!$I$10:$QJ$10, CS$4) -> 34033.22498 | CT10: =SUMIFS(Calculations!$I230:$QJ230, Calculations!$I$8:$QJ$8, CT$3, Calculations!$I$10:$QJ$10, CT$4) -> 33876.21709 | CU10: =SUMIFS(Calculations!$I230:$QJ230, Calculations!$I$8:$QJ$8, CU$3, Calculations!$I$10:$QJ$10, CU$4) -> 34340.47274 | CV10: =SUMIFS(Calculations!$I230:$QJ230, Calculations!$I$8:$QJ$8, CV$3, Calculations!$I$10:$QJ$10, CV$4) -> 33739.84007 | CW10: =SUMIFS(Calculations!$I230:$QJ230, Calculations!$I$8:$QJ$8, CW$3, Calculations!$I$10:$QJ$10, CW$4) -> 33642.06281 | CX10: =SUMIFS(Calculations!$I230:$QJ230, Calculations!$I$8:$QJ$8, CX$3, Calculations!$I$10:$QJ$10, CX$4) -> 33462.26735 | CY10: =SUMIFS(Calculations!$I230:$QJ230, Calculations!$I$8:$QJ$8, CY$3, Calculations!$I$10:$QJ$10, CY$4) -> 33825.78393 | CZ10: =SUMIFS(Calculations!$I230:$QJ230, Calculations!$I$8:$QJ$8, CZ$3, Calculations!$I$10:$QJ$10, CZ$4) -> 33351.59834 | DA10: =SUMIFS(Calculations!$I230:$QJ230, Calculations!$I$8:$QJ$8, DA$3, Calculations!$I$10:$QJ$10, DA$4) -> 33254.79439 | DB10: =SUMIFS(Calculations!$I230:$QJ230, Calculations!$I$8:$QJ$8, DB$3, Calculations!$I$10:$QJ$10, DB$4) -> 33052.1942 | DC10: =SUMIFS(Calculations!$I230:$QJ230, Calculations!$I$8:$QJ$8, DC$3, Calculations!$I$10:$QJ$10, DC$4) -> 33338.83618 | DD10: =SUMIFS(Calculations!$I230:$QJ230, Calculations!$I$8:$QJ$8, DD$3, Calculations!$I$10:$QJ$10, DD$4) -> 32967.22129 | DE10: =SUMIFS(Calculations!$I230:$QJ230, Calculations!$I$8:$QJ$8, DE$3, Calculations!$I$10:$QJ$10, DE$4) -> 32871.38095 | DF10: =SUMIFS(Calculations!$I230:$QJ230, Calculations!$I$8:$QJ$8, DF$3, Calculations!$I$10:$QJ$10, DF$4) -> 33002.21874 | DG10: =SUMIFS(Calculations!$I230:$QJ230, Calculations!$I$8:$QJ$8, DG$3, Calculations!$I$10:$QJ$10, DG$4) -> 32901.30863 | DH10: =SUMIFS(Calculations!$I230:$QJ230, Calculations!$I$8:$QJ$8, DH$3, Calculations!$I$10:$QJ$10, DH$4) -> 32586.67043 | DI10: =SUMIFS(Calculations!$I230:$QJ230, Calculations!$I$8:$QJ$8, DI$3, Calculations!$I$10:$QJ$10, DI$4) -> 32491.78411 | DJ10: =SUMIFS(Calculations!$I230:$QJ230, Calculations!$I$8:$QJ$8, DJ$3, Calculations!$I$10:$QJ$10, DJ$4) -> 32243.51393 | DK10: =SUMIFS(Calculations!$I230:$QJ230, Calculations!$I$8:$QJ$8, DK$3, Calculations!$I$10:$QJ$10, DK$4) -> 31777.73402 | EX10: =SUMIFS(Calculations!$I230:$QJ230, Calculations!$I$8:$QJ$8, EX$3, Calculations!$I$10:$QJ$10, EX$4) -> 0
C11: less: Purchased from EDA | E11: EUR | G11: -2135032.293 | H11: =SUMIFS(Calculations!$I354:$QJ354, Calculations!$I$8:$QJ$8, H$3, Calculations!$I$10:$QJ$10, H$4) -> 0 | I11: =SUMIFS(Calculations!$I354:$QJ354, Calculations!$I$8:$QJ$8, I$3, Calculations!$I$10:$QJ$10, I$4) -> 0 | J11: =SUMIFS(Calculations!$I354:$QJ354, Calculations!$I$8:$QJ$8, J$3, Calculations!$I$10:$QJ$10, J$4) -> 0 | K11: =SUMIFS(Calculations!$I354:$QJ354, Calculations!$I$8:$QJ$8, K$3, Calculations!$I$10:$QJ$10, K$4) -> 0 | L11: =SUMIFS(Calculations!$I354:$QJ354, Calculations!$I$8:$QJ$8, L$3, Calculations!$I$10:$QJ$10, L$4) -> 0 | M11: =SUMIFS(Calculations!$I354:$QJ354, Calculations!$I$8:$QJ$8, M$3, Calculations!$I$10:$QJ$10, M$4) -> 0 | N11: =SUMIFS(Calculations!$I354:$QJ354, Calculations!$I$8:$QJ$8, N$3, Calculations!$I$10:$QJ$10, N$4) -> 0 | O11: =SUMIFS(Calculations!$I354:$QJ354, Calculations!$I$8:$QJ$8, O$3, Calculations!$I$10:$QJ$10, O$4) -> 0 | P11: =SUMIFS(Calculations!$I354:$QJ354, Calculations!$I$8:$QJ$8, P$3, Calculations!$I$10:$QJ$10, P$4) -> -20690.02809 | Q11: =SUMIFS(Calculations!$I354:$QJ354, Calculations!$I$8:$QJ$8, Q$3, Calculations!$I$10:$QJ$10, Q$4) -> -31807.53723 | R11: =SUMIFS(Calculations!$I354:$QJ354, Calculations!$I$8:$QJ$8, R$3, Calculations!$I$10:$QJ$10, R$4) -> -3891.565734 | S11: =SUMIFS(Calculations!$I354:$QJ354, Calculations!$I$8:$QJ$8, S$3, Calculations!$I$10:$QJ$10, S$4) -> 0 | T11: =SUMIFS(Calculations!$I354:$QJ354, Calculations!$I$8:$QJ$8, T$3, Calculations!$I$10:$QJ$10, T$4) -> -21872.6446 | U11: =SUMIFS(Calculations!$I354:$QJ354, Calculations!$I$8:$QJ$8, U$3, Calculations!$I$10:$QJ$10, U$4) -> -32373.97286 | V11: =SUMIFS(Calculations!$I354:$QJ354, Calculations!$I$8:$QJ$8, V$3, Calculations!$I$10:$QJ$10, V$4) -> -4539.332033 | W11: =SUMIFS(Calculations!$I354:$QJ354, Calculations!$I$8:$QJ$8, W$3, Calculations!$I$10:$QJ$10, W$4) -> 0 | X11: =SUMIFS(Calculations!$I354:$QJ354, Calculations!$I$8:$QJ$8, X$3, Calculations!$I$10:$QJ$10, X$4) -> -24341.87552 | Y11: =SUMIFS(Calculations!$I354:$QJ354, Calculations!$I$8:$QJ$8, Y$3, Calculations!$I$10:$QJ$10, Y$4) -> -33195.12786 | Z11: =SUMIFS(Calculations!$I354:$QJ354, Calculations!$I$8:$QJ$8, Z$3, Calculations!$I$10:$QJ$10, Z$4) -> -5372.985847 | AA11: =SUMIFS(Calculations!$I354:$QJ354, Calculations!$I$8:$QJ$8, AA$3, Calculations!$I$10:$QJ$10, AA$4) -> -233.5842396 | AB11: =SUMIFS(Calculations!$I354:$QJ354, Calculations!$I$8:$QJ$8, AB$3, Calculations!$I$10:$QJ$10, AB$4) -> -26813.42351 | AC11: =SUMIFS(Calculations!$I354:$QJ354, Calculations!$I$8:$QJ$8, AC$3, Calculations!$I$10:$QJ$10, AC$4) -> -33804.03738 | AD11: =SUMIFS(Calculations!$I354:$QJ354, Calculations!$I$8:$QJ$8, AD$3, Calculations!$I$10:$QJ$10, AD$4) -> -6624.547455 | AE11: =SUMIFS(Calculations!$I354:$QJ354, Calculations!$I$8:$QJ$8, AE$3, Calculations!$I$10:$QJ$10, AE$4) -> -972.8137658 | AF11: =SUMIFS(Calculations!$I354:$QJ354, Calculations!$I$8:$QJ$8, AF$3, Calculations!$I$10:$QJ$10, AF$4) -> -29287.53445 | AG11: =SUMIFS(Calculations!$I354:$QJ354, Calculations!$I$8:$QJ$8, AG$3, Calculations!$I$10:$QJ$10, AG$4) -> -34089.35708 | AH11: =SUMIFS(Calculations!$I354:$QJ354, Calculations!$I$8:$QJ$8, AH$3, Calculations!$I$10:$QJ$10, AH$4) -> -7041.89818 | AI11: =SUMIFS(Calculations!$I354:$QJ354, Calculations!$I$8:$QJ$8, AI$3, Calculations!$I$10:$QJ$10, AI$4) -> -1712.109113 | AJ11: =SUMIFS(Calculations!$I354:$QJ354, Calculations!$I$8:$QJ$8, AJ$3, Calculations!$I$10:$QJ$10, AJ$4) -> -31440.28118 | AK11: =SUMIFS(Calculations!$I354:$QJ354, Calculations!$I$8:$QJ$8, AK$3, Calculations!$I$10:$QJ$10, AK$4) -> -34252.73702 | AL11: =SUMIFS(Calculations!$I354:$QJ354, Calculations!$I$8:$QJ$8, AL$3, Calculations!$I$10:$QJ$10, AL$4) -> -7877.32277 | AM11: =SUMIFS(Calculations!$I354:$QJ354, Calculations!$I$8:$QJ$8, AM$3, Calculations!$I$10:$QJ$10, AM$4) -> -2451.543869 | AN11: =SUMIFS(Calculations!$I354:$QJ354, Calculations!$I$8:$QJ$8, AN$3, Calculations!$I$10:$QJ$10, AN$4) -> -32100.67806 | AO11: =SUMIFS(Calculations!$I354:$QJ354, Calculations!$I$8:$QJ$8, AO$3, Calculations!$I$10:$QJ$10, AO$4) -> -33874.47115 | AP11: =SUMIFS(Calculations!$I354:$QJ354, Calculations!$I$8:$QJ$8, AP$3, Calculations!$I$10:$QJ$10, AP$4) -> -8713.503786 | AQ11: =SUMIFS(Calculations!$I354:$QJ354, Calculations!$I$8:$QJ$8, AQ$3, Calculations!$I$10:$QJ$10, AQ$4) -> -2861.435961 | AR11: =SUMIFS(Calculations!$I354:$QJ354, Calculations!$I$8:$QJ$8, AR$3, Calculations!$I$10:$QJ$10, AR$4) -> -32695.65456 | AS11: =SUMIFS(Calculations!$I354:$QJ354, Calculations!$I$8:$QJ$8, AS$3, Calculations!$I$10:$QJ$10, AS$4) -> -33499.97065 | AT11: =SUMIFS(Calculations!$I354:$QJ354, Calculations!$I$8:$QJ$8, AT$3, Calculations!$I$10:$QJ$10, AT$4) -> -9951.436431 | AU11: =SUMIFS(Calculations!$I354:$QJ354, Calculations!$I$8:$QJ$8, AU$3, Calculations!$I$10:$QJ$10, AU$4) -> -4228.49809 | AV11: =SUMIFS(Calculations!$I354:$QJ354, Calculations!$I$8:$QJ$8, AV$3, Calculations!$I$10:$QJ$10, AV$4) -> -33221.8786 | AW11: =SUMIFS(Calculations!$I354:$QJ354, Calculations!$I$8:$QJ$8, AW$3, Calculations!$I$10:$QJ$10, AW$4) -> -33129.19804 | AX11: =SUMIFS(Calculations!$I354:$QJ354, Calculations!$I$8:$QJ$8, AX$3, Calculations!$I$10:$QJ$10, AX$4) -> -10053.83974 | AY11: =SUMIFS(Calculations!$I354:$QJ354, Calculations!$I$8:$QJ$8, AY$3, Calculations!$I$10:$QJ$10, AY$4) -> -5595.925396 | AZ11: =SUMIFS(Calculations!$I354:$QJ354, Calculations!$I$8:$QJ$8, AZ$3, Calculations!$I$10:$QJ$10, AZ$4) -> -32853.8742 | BA11: =SUMIFS(Calculations!$I354:$QJ354, Calculations!$I$8:$QJ$8, BA$3, Calculations!$I$10:$QJ$10, BA$4) -> -32762.11621 | BB11: =SUMIFS(Calculations!$I354:$QJ354, Calculations!$I$8:$QJ$8, BB$3, Calculations!$I$10:$QJ$10, BB$4) -> -11126.8123 | BC11: =SUMIFS(Calculations!$I354:$QJ354, Calculations!$I$8:$QJ$8, BC$3, Calculations!$I$10:$QJ$10, BC$4) -> -6963.853976 | BD11: =SUMIFS(Calculations!$I354:$QJ354, Calculations!$I$8:$QJ$8, BD$3, Calculations!$I$10:$QJ$10, BD$4) -> -32489.53302 | BE11: =SUMIFS(Calculations!$I354:$QJ354, Calculations!$I$8:$QJ$8, BE$3, Calculations!$I$10:$QJ$10, BE$4) -> -32398.68842 | BF11: =SUMIFS(Calculations!$I354:$QJ354, Calculations!$I$8:$QJ$8, BF$3, Calculations!$I$10:$QJ$10, BF$4) -> -12200.86103 | BG11: =SUMIFS(Calculations!$I354:$QJ354, Calculations!$I$8:$QJ$8, BG$3, Calculations!$I$10:$QJ$10, BG$4) -> -8332.41997 | BH11: =SUMIFS(Calculations!$I354:$QJ354, Calculations!$I$8:$QJ$8, BH$3, Calculations!$I$10:$QJ$10, BH$4) -> -32128.81861 | BI11: =SUMIFS(Calculations!$I354:$QJ354, Calculations!$I$8:$QJ$8, BI$3, Calculations!$I$10:$QJ$10, BI$4) -> -32038.87829 | BJ11: =SUMIFS(Calculations!$I354:$QJ354, Calculations!$I$8:$QJ$8, BJ$3, Calculations!$I$10:$QJ$10, BJ$4) -> -13661.16304 | BK11: =SUMIFS(Calculations!$I354:$QJ354, Calculations!$I$8:$QJ$8, BK$3, Calculations!$I$10:$QJ$10, BK$4) -> -9701.759575 | BL11: =SUMIFS(Calculations!$I354:$QJ354, Calculations!$I$8:$QJ$8, BL$3, Calculations!$I$10:$QJ$10, BL$4) -> -31771.69484 | BM11: =SUMIFS(Calculations!$I354:$QJ354, Calculations!$I$8:$QJ$8, BM$3, Calculations!$I$10:$QJ$10, BM$4) -> -31682.64982 | BN11: =SUMIFS(Calculations!$I354:$QJ354, Calculations!$I$8:$QJ$8, BN$3, Calculations!$I$10:$QJ$10, BN$4) -> -14352.61457 | BO11: =SUMIFS(Calculations!$I354:$QJ354, Calculations!$I$8:$QJ$8, BO$3, Calculations!$I$10:$QJ$10, BO$4) -> -11072.00906 | BP11: =SUMIFS(Calculations!$I354:$QJ354, Calculations!$I$8:$QJ$8, BP$3, Calculations!$I$10:$QJ$10, BP$4) -> -31418.126 | BQ11: =SUMIFS(Calculations!$I354:$QJ354, Calculations!$I$8:$QJ$8, BQ$3, Calculations!$I$10:$QJ$10, BQ$4) -> -31329.96736 | BR11: =SUMIFS(Calculations!$I354:$QJ354, Calculations!$I$8:$QJ$8, BR$3, Calculations!$I$10:$QJ$10, BR$4) -> -15430.53342 | BS11: =SUMIFS(Calculations!$I354:$QJ354, Calculations!$I$8:$QJ$8, BS$3, Calculations!$I$10:$QJ$10, BS$4) -> -12443.30477 | BT11: =SUMIFS(Calculations!$I354:$QJ354, Calculations!$I$8:$QJ$8, BT$3, Calculations!$I$10:$QJ$10, BT$4) -> -31068.07668 | BU11: =SUMIFS(Calculations!$I354:$QJ354, Calculations!$I$8:$QJ$8, BU$3, Calculations!$I$10:$QJ$10, BU$4) -> -30980.7956 | BV11: =SUMIFS(Calculations!$I354:$QJ354, Calculations!$I$8:$QJ$8, BV$3, Calculations!$I$10:$QJ$10, BV$4) -> -16509.9566 | BW11: =SUMIFS(Calculations!$I354:$QJ354, Calculations!$I$8:$QJ$8, BW$3, Calculations!$I$10:$QJ$10, BW$4) -> -13815.78315 | BX11: =SUMIFS(Calculations!$I354:$QJ354, Calculations!$I$8:$QJ$8, BX$3, Calculations!$I$10:$QJ$10, BX$4) -> -30721.51186 | BY11: =SUMIFS(Calculations!$I354:$QJ354, Calculations!$I$8:$QJ$8, BY$3, Calculations!$I$10:$QJ$10, BY$4) -> -30635.09959 | BZ11: =SUMIFS(Calculations!$I354:$QJ354, Calculations!$I$8:$QJ$8, BZ$3, Calculations!$I$10:$QJ$10, BZ$4) -> -17960.84135 | CA11: =SUMIFS(Calculations!$I354:$QJ354, Calculations!$I$8:$QJ$8, CA$3, Calculations!$I$10:$QJ$10, CA$4) -> -15189.58077 | CB11: =SUMIFS(Calculations!$I354:$QJ354, Calculations!$I$8:$QJ$8, CB$3, Calculations!$I$10:$QJ$10, CB$4) -> -30378.39684 | CC11: =SUMIFS(Calculations!$I354:$QJ354, Calculations!$I$8:$QJ$8, CC$3, Calculations!$I$10:$QJ$10, CC$4) -> -30292.84475 | CD11: =SUMIFS(Calculations!$I354:$QJ354, Calculations!$I$8:$QJ$8, CD$3, Calculations!$I$10:$QJ$10, CD$4) -> -18673.74551 | CE11: =SUMIFS(Calculations!$I354:$QJ354, Calculations!$I$8:$QJ$8, CE$3, Calculations!$I$10:$QJ$10, CE$4) -> -15762.7462 | CF11: =SUMIFS(Calculations!$I354:$QJ354, Calculations!$I$8:$QJ$8, CF$3, Calculations!$I$10:$QJ$10, CF$4) -> -30038.69729 | CG11: =SUMIFS(Calculations!$I354:$QJ354, Calculations!$I$8:$QJ$8, CG$3, Calculations!$I$10:$QJ$10, CG$4) -> -29953.99681 | CH11: =SUMIFS(Calculations!$I354:$QJ354, Calculations!$I$8:$QJ$8, CH$3, Calculations!$I$10:$QJ$10, CH$4) -> -19747.42537 | CI11: =SUMIFS(Calculations!$I354:$QJ354, Calculations!$I$8:$QJ$8, CI$3, Calculations!$I$10:$QJ$10, CI$4) -> -15974.57001 | CJ11: =SUMIFS(Calculations!$I354:$QJ354, Calculations!$I$8:$QJ$8, CJ$3, Calculations!$I$10:$QJ$10, CJ$4) -> -29702.37921 | CK11: =SUMIFS(Calculations!$I354:$QJ354, Calculations!$I$8:$QJ$8, CK$3, Calculations!$I$10:$QJ$10, CK$4) -> -29618.52186 | CL11: =SUMIFS(Calculations!$I354:$QJ354, Calculations!$I$8:$QJ$8, CL$3, Calculations!$I$10:$QJ$10, CL$4) -> -20195.05208 | CM11: =SUMIFS(Calculations!$I354:$QJ354, Calculations!$I$8:$QJ$8, CM$3, Calculations!$I$10:$QJ$10, CM$4) -> -17035.87811 | CN11: =SUMIFS(Calculations!$I354:$QJ354, Calculations!$I$8:$QJ$8, CN$3, Calculations!$I$10:$QJ$10, CN$4) -> -29369.40894 | CO11: =SUMIFS(Calculations!$I354:$QJ354, Calculations!$I$8:$QJ$8, CO$3, Calculations!$I$10:$QJ$10, CO$4) -> -29286.38633 | CP11: =SUMIFS(Calculations!$I354:$QJ354, Calculations!$I$8:$QJ$8, CP$3, Calculations!$I$10:$QJ$10, CP$4) -> -21000.03453 | CQ11: =SUMIFS(Calculations!$I354:$QJ354, Calculations!$I$8:$QJ$8, CQ$3, Calculations!$I$10:$QJ$10, CQ$4) -> -18098.96438 | CR11: =SUMIFS(Calculations!$I354:$QJ354, Calculations!$I$8:$QJ$8, CR$3, Calculations!$I$10:$QJ$10, CR$4) -> -29039.75315 | CS11: =SUMIFS(Calculations!$I354:$QJ354, Calculations!$I$8:$QJ$8, CS$3, Calculations!$I$10:$QJ$10, CS$4) -> -28957.55698 | CT11: =SUMIFS(Calculations!$I354:$QJ354, Calculations!$I$8:$QJ$8, CT$3, Calculations!$I$10:$QJ$10, CT$4) -> -20986.92857 | CU11: =SUMIFS(Calculations!$I354:$QJ354, Calculations!$I$8:$QJ$8, CU$3, Calculations!$I$10:$QJ$10, CU$4) -> -19163.93453 | CV11: =SUMIFS(Calculations!$I354:$QJ354, Calculations!$I$8:$QJ$8, CV$3, Calculations!$I$10:$QJ$10, CV$4) -> -28713.37886 | CW11: =SUMIFS(Calculations!$I354:$QJ354, Calculations!$I$8:$QJ$8, CW$3, Calculations!$I$10:$QJ$10, CW$4) -> -28632.00089 | CX11: =SUMIFS(Calculations!$I354:$QJ354, Calculations!$I$8:$QJ$8, CX$3, Calculations!$I$10:$QJ$10, CX$4) -> -21014.15962 | CY11: =SUMIFS(Calculations!$I354:$QJ354, Calculations!$I$8:$QJ$8, CY$3, Calculations!$I$10:$QJ$10, CY$4) -> -20230.89449 | CZ11: =SUMIFS(Calculations!$I354:$QJ354, Calculations!$I$8:$QJ$8, CZ$3, Calculations!$I$10:$QJ$10, CZ$4) -> -28390.25339 | DA11: =SUMIFS(Calculations!$I354:$QJ354, Calculations!$I$8:$QJ$8, DA$3, Calculations!$I$10:$QJ$10, DA$4) -> -28309.68548 | DB11: =SUMIFS(Calculations!$I354:$QJ354, Calculations!$I$8:$QJ$8, DB$3, Calculations!$I$10:$QJ$10, DB$4) -> -21043.72932 | DC11: =SUMIFS(Calculations!$I354:$QJ354, Calculations!$I$8:$QJ$8, DC$3, Calculations!$I$10:$QJ$10, DC$4) -> -21045.31407 | DD11: =SUMIFS(Calculations!$I354:$QJ354, Calculations!$I$8:$QJ$8, DD$3, Calculations!$I$10:$QJ$10, DD$4) -> -28070.3444 | DE11: =SUMIFS(Calculations!$I354:$QJ354, Calculations!$I$8:$QJ$8, DE$3, Calculations!$I$10:$QJ$10, DE$4) -> -27990.57849 | DF11: =SUMIFS(Calculations!$I354:$QJ354, Calculations!$I$8:$QJ$8, DF$3, Calculations!$I$10:$QJ$10, DF$4) -> -21379.02411 | DG11: =SUMIFS(Calculations!$I354:$QJ354, Calculations!$I$8:$QJ$8, DG$3, Calculations!$I$10:$QJ$10, DG$4) -> -21374.87278 | DH11: =SUMIFS(Calculations!$I354:$QJ354, Calculations!$I$8:$QJ$8, DH$3, Calculations!$I$10:$QJ$10, DH$4) -> -27753.61988 | DI11: =SUMIFS(Calculations!$I354:$QJ354, Calculations!$I$8:$QJ$8, DI$3, Calculations!$I$10:$QJ$10, DI$4) -> -27674.64799 | DJ11: =SUMIFS(Calculations!$I354:$QJ354, Calculations!$I$8:$QJ$8, DJ$3, Calculations!$I$10:$QJ$10, DJ$4) -> -21109.89619 | DK11: =SUMIFS(Calculations!$I354:$QJ354, Calculations!$I$8:$QJ$8, DK$3, Calculations!$I$10:$QJ$10, DK$4) -> -21368.59737 | EX11: =SUMIFS(Calculations!$I354:$QJ354, Calculations!$I$8:$QJ$8, EX$3, Calculations!$I$10:$QJ$10, EX$4) -> 0
C12: Total Revenues | G12: 15251174.89 | H12: =+H9+H10+H11 -> 0 | I12: =+I9+I10+I11 -> 0 | J12: 0 | K12: 0 | L12: 0 | M12: 0 | N12: 0 | O12: 0 | P12: 225620.3794 | Q12: 122354.1192 | R12: 123469.8267 | S12: 180745.7868 | T12: 225830.8443 | U12: 122190.8104 | V12: 123095.0082 | W12: 181618.0921 | X12: 224659.7443 | Y12: 121402.9932 | Z12: 122530.0363 | AA12: 181857.4009 | AB12: 223511.5999 | AC12: 120537.296 | AD12: 122004.5691 | AE12: 181945.8508 | AF12: 222386.2957 | AG12: 119546.835 | AH12: 121437.8138 | AI12: 182052.6301 | AJ12: 221147.546 | AK12: 118516.2045 | AL12: 120910.4531 | AM12: 182177.7485 | AN12: 219303.2522 | AO12: 117268.9925 | AP12: 120395.5215 | AQ12: 182225.8076 | AR12: 217452.598 | AS12: 116034.1957 | AT12: 119916.5567 | AU12: 181690.1417 | AV12: 215593.9734 | AW12: 114811.6904 | AX12: 119293.1574 | AY12: 181172.9662 | AZ12: 213380.4208 | BA12: 113601.3543 | BB12: 118547.7594 | BC12: 180674.2287 | BD12: 211188.9026 | BE12: 112403.0662 | BF12: 117814.7199 | BG12: 180193.8784 | BH12: 209019.1994 | BI12: 111216.7062 | BJ12: 117114.3625 | BK12: 179731.8667 | BL12: 206871.094 | BM12: 110042.1556 | BN12: 116385.4231 | BO12: 179288.1464 | BP12: 204744.3715 | BQ12: 108879.2968 | BR12: 115689.0222 | BS12: 178862.6725 | BT12: 202638.8191 | BU12: =+BU9+BU10+BU11 -> 107728.0135 | BV12: 115004.6926 | BW12: 178455.4017 | BX12: 200554.2259 | BY12: 106588.1904 | BZ12: 114349.6955 | CA12: 178066.2923 | CB12: 198490.3834 | CC12: 105459.7134 | CD12: 113671.9733 | CE12: 177358.3796 | CF12: 196447.085 | CG12: 104342.4696 | CH12: 113018.8706 | CI12: 176423.3855 | CJ12: 194424.1262 | CK12: 103236.3472 | CL12: 112113.7787 | CM12: 175128.5906 | CN12: 192421.3045 | CO12: 102141.2354 | CP12: 111234.8455 | CQ12: 173851.8692 | CR12: 190438.4195 | CS12: 101057.0247 | CT12: 110292.7058 | CU12: 172593.0931 | CV12: 188475.2727 | CW12: 99983.60656 | CX12: 109243.3423 | CY12: 171352.1362 | CZ12: 186531.6676 | DA12: 98920.87354 | DB12: 108205.5208 | DC12: 170021.9114 | DD12: 184607.4098 | DE12: 97868.71927 | DF12: 107174.8137 | DG12: 168504.6628 | DH12: 182702.3065 | DI12: 96827.03846 | DJ12: 106164.089 | DK12: 164703.203 | EX12: =+EX9+EX10+EX11 -> 0
C13: =Calculations!C356 -> less: Operating Expenses | E13: =Calculations!E356 -> EUR | G13: -5720816.41 | H13: =SUMIFS(Calculations!$I356:$QJ356, Calculations!$I$8:$QJ$8, H$3, Calculations!$I$10:$QJ$10, H$4) -> 0 | I13: =SUMIFS(Calculations!$I356:$QJ356, Calculations!$I$8:$QJ$8, I$3, Calculations!$I$10:$QJ$10, I$4) -> 0 | J13: =SUMIFS(Calculations!$I356:$QJ356, Calculations!$I$8:$QJ$8, J$3, Calculations!$I$10:$QJ$10, J$4) -> 0 | K13: =SUMIFS(Calculations!$I356:$QJ356, Calculations!$I$8:$QJ$8, K$3, Calculations!$I$10:$QJ$10, K$4) -> 0 | L13: =SUMIFS(Calculations!$I356:$QJ356, Calculations!$I$8:$QJ$8, L$3, Calculations!$I$10:$QJ$10, L$4) -> 0 | M13: =SUMIFS(Calculations!$I356:$QJ356, Calculations!$I$8:$QJ$8, M$3, Calculations!$I$10:$QJ$10, M$4) -> 0 | N13: =SUMIFS(Calculations!$I356:$QJ356, Calculations!$I$8:$QJ$8, N$3, Calculations!$I$10:$QJ$10, N$4) -> 0 | O13: =SUMIFS(Calculations!$I356:$QJ356, Calculations!$I$8:$QJ$8, O$3, Calculations!$I$10:$QJ$10, O$4) -> 0 | P13: =SUMIFS(Calculations!$I356:$QJ356, Calculations!$I$8:$QJ$8, P$3, Calculations!$I$10:$QJ$10, P$4) -> -53145.50818 | Q13: =SUMIFS(Calculations!$I356:$QJ356, Calculations!$I$8:$QJ$8, Q$3, Calculations!$I$10:$QJ$10, Q$4) -> -60830.18297 | R13: =SUMIFS(Calculations!$I356:$QJ356, Calculations!$I$8:$QJ$8, R$3, Calculations!$I$10:$QJ$10, R$4) -> -48624.56082 | S13: =SUMIFS(Calculations!$I356:$QJ356, Calculations!$I$8:$QJ$8, S$3, Calculations!$I$10:$QJ$10, S$4) -> -49851.54818 | T13: =SUMIFS(Calculations!$I356:$QJ356, Calculations!$I$8:$QJ$8, T$3, Calculations!$I$10:$QJ$10, T$4) -> -52564.69694 | U13: =SUMIFS(Calculations!$I356:$QJ356, Calculations!$I$8:$QJ$8, U$3, Calculations!$I$10:$QJ$10, U$4) -> -50491.89626 | V13: =SUMIFS(Calculations!$I356:$QJ356, Calculations!$I$8:$QJ$8, V$3, Calculations!$I$10:$QJ$10, V$4) -> -50347.04392 | W13: =SUMIFS(Calculations!$I356:$QJ356, Calculations!$I$8:$QJ$8, W$3, Calculations!$I$10:$QJ$10, W$4) -> -51598.97375 | X13: =SUMIFS(Calculations!$I356:$QJ356, Calculations!$I$8:$QJ$8, X$3, Calculations!$I$10:$QJ$10, X$4) -> -52777.00389 | Y13: =SUMIFS(Calculations!$I356:$QJ356, Calculations!$I$8:$QJ$8, Y$3, Calculations!$I$10:$QJ$10, Y$4) -> -50711.86887 | Z13: =SUMIFS(Calculations!$I356:$QJ356, Calculations!$I$8:$QJ$8, Z$3, Calculations!$I$10:$QJ$10, Z$4) -> -50571.47343 | AA13: =SUMIFS(Calculations!$I356:$QJ356, Calculations!$I$8:$QJ$8, AA$3, Calculations!$I$10:$QJ$10, AA$4) -> -51839.48887 | AB13: =SUMIFS(Calculations!$I356:$QJ356, Calculations!$I$8:$QJ$8, AB$3, Calculations!$I$10:$QJ$10, AB$4) -> -52995.66318 | AC13: =SUMIFS(Calculations!$I356:$QJ356, Calculations!$I$8:$QJ$8, AC$3, Calculations!$I$10:$QJ$10, AC$4) -> -50936.1771 | AD13: =SUMIFS(Calculations!$I356:$QJ356, Calculations!$I$8:$QJ$8, AD$3, Calculations!$I$10:$QJ$10, AD$4) -> -51259.05441 | AE13: =SUMIFS(Calculations!$I356:$QJ356, Calculations!$I$8:$QJ$8, AE$3, Calculations!$I$10:$QJ$10, AE$4) -> -52457.88005 | AF13: =SUMIFS(Calculations!$I356:$QJ356, Calculations!$I$8:$QJ$8, AF$3, Calculations!$I$10:$QJ$10, AF$4) -> -53595.81982 | AG13: =SUMIFS(Calculations!$I356:$QJ356, Calculations!$I$8:$QJ$8, AG$3, Calculations!$I$10:$QJ$10, AG$4) -> -51539.03061 | AH13: =SUMIFS(Calculations!$I356:$QJ356, Calculations!$I$8:$QJ$8, AH$3, Calculations!$I$10:$QJ$10, AH$4) -> -51413.91389 | AI13: =SUMIFS(Calculations!$I356:$QJ356, Calculations!$I$8:$QJ$8, AI$3, Calculations!$I$10:$QJ$10, AI$4) -> -52707.67836 | AJ13: =SUMIFS(Calculations!$I356:$QJ356, Calculations!$I$8:$QJ$8, AJ$3, Calculations!$I$10:$QJ$10, AJ$4) -> -53824.89913 | AK13: =SUMIFS(Calculations!$I356:$QJ356, Calculations!$I$8:$QJ$8, AK$3, Calculations!$I$10:$QJ$10, AK$4) -> -51772.2723 | AL13: =SUMIFS(Calculations!$I356:$QJ356, Calculations!$I$8:$QJ$8, AL$3, Calculations!$I$10:$QJ$10, AL$4) -> -51657.22097 | AM13: =SUMIFS(Calculations!$I356:$QJ356, Calculations!$I$8:$QJ$8, AM$3, Calculations!$I$10:$QJ$10, AM$4) -> -52964.03503 | AN13: =SUMIFS(Calculations!$I356:$QJ356, Calculations!$I$8:$QJ$8, AN$3, Calculations!$I$10:$QJ$10, AN$4) -> -54048.21391 | AO13: =SUMIFS(Calculations!$I356:$QJ356, Calculations!$I$8:$QJ$8, AO$3, Calculations!$I$10:$QJ$10, AO$4) -> -52007.52871 | AP13: =SUMIFS(Calculations!$I356:$QJ356, Calculations!$I$8:$QJ$8, AP$3, Calculations!$I$10:$QJ$10, AP$4) -> -51907.12299 | AQ13: =SUMIFS(Calculations!$I356:$QJ356, Calculations!$I$8:$QJ$8, AQ$3, Calculations!$I$10:$QJ$10, AQ$4) -> -53225.19687 | AR13: =SUMIFS(Calculations!$I356:$QJ356, Calculations!$I$8:$QJ$8, AR$3, Calculations!$I$10:$QJ$10, AR$4) -> -54277.9065 | AS13: =SUMIFS(Calculations!$I356:$QJ356, Calculations!$I$8:$QJ$8, AS$3, Calculations!$I$10:$QJ$10, AS$4) -> -52249.53845 | AT13: =SUMIFS(Calculations!$I356:$QJ356, Calculations!$I$8:$QJ$8, AT$3, Calculations!$I$10:$QJ$10, AT$4) -> -52245.71752 | AU13: =SUMIFS(Calculations!$I356:$QJ356, Calculations!$I$8:$QJ$8, AU$3, Calculations!$I$10:$QJ$10, AU$4) -> -53481.18922 | AV13: =SUMIFS(Calculations!$I356:$QJ356, Calculations!$I$8:$QJ$8, AV$3, Calculations!$I$10:$QJ$10, AV$4) -> -54514.10732 | AW13: =SUMIFS(Calculations!$I356:$QJ356, Calculations!$I$8:$QJ$8, AW$3, Calculations!$I$10:$QJ$10, AW$4) -> -52498.46166 | AX13: =SUMIFS(Calculations!$I356:$QJ356, Calculations!$I$8:$QJ$8, AX$3, Calculations!$I$10:$QJ$10, AX$4) -> -52425.1547 | AY13: =SUMIFS(Calculations!$I356:$QJ356, Calculations!$I$8:$QJ$8, AY$3, Calculations!$I$10:$QJ$10, AY$4) -> -53744.21902 | AZ13: =SUMIFS(Calculations!$I356:$QJ356, Calculations!$I$8:$QJ$8, AZ$3, Calculations!$I$10:$QJ$10, AZ$4) -> -54750.04391 | BA13: =SUMIFS(Calculations!$I356:$QJ356, Calculations!$I$8:$QJ$8, BA$3, Calculations!$I$10:$QJ$10, BA$4) -> -52754.46258 | BB13: =SUMIFS(Calculations!$I356:$QJ356, Calculations!$I$8:$QJ$8, BB$3, Calculations!$I$10:$QJ$10, BB$4) -> -52690.45438 | BC13: =SUMIFS(Calculations!$I356:$QJ356, Calculations!$I$8:$QJ$8, BC$3, Calculations!$I$10:$QJ$10, BC$4) -> -54014.45192 | BD13: =SUMIFS(Calculations!$I356:$QJ356, Calculations!$I$8:$QJ$8, BD$3, Calculations!$I$10:$QJ$10, BD$4) -> -54993.42639 | BE13: =SUMIFS(Calculations!$I356:$QJ356, Calculations!$I$8:$QJ$8, BE$3, Calculations!$I$10:$QJ$10, BE$4) -> -53017.70966 | BF13: =SUMIFS(Calculations!$I356:$QJ356, Calculations!$I$8:$QJ$8, BF$3, Calculations!$I$10:$QJ$10, BF$4) -> -52963.00643 | BG13: =SUMIFS(Calculations!$I356:$QJ356, Calculations!$I$8:$QJ$8, BG$3, Calculations!$I$10:$QJ$10, BG$4) -> -54292.05775 | BH13: =SUMIFS(Calculations!$I356:$QJ356, Calculations!$I$8:$QJ$8, BH$3, Calculations!$I$10:$QJ$10, BH$4) -> -55244.42548 | BI13: =SUMIFS(Calculations!$I356:$QJ356, Calculations!$I$8:$QJ$8, BI$3, Calculations!$I$10:$QJ$10, BI$4) -> -53288.37562 | BJ13: =SUMIFS(Calculations!$I356:$QJ356, Calculations!$I$8:$QJ$8, BJ$3, Calculations!$I$10:$QJ$10, BJ$4) -> -53324.86059 | BK13: =SUMIFS(Calculations!$I356:$QJ356, Calculations!$I$8:$QJ$8, BK$3, Calculations!$I$10:$QJ$10, BK$4) -> -54577.21068 | BL13: =SUMIFS(Calculations!$I356:$QJ356, Calculations!$I$8:$QJ$8, BL$3, Calculations!$I$10:$QJ$10, BL$4) -> -55503.21636 | BM13: =SUMIFS(Calculations!$I356:$QJ356, Calculations!$I$8:$QJ$8, BM$3, Calculations!$I$10:$QJ$10, BM$4) -> -53566.63759 | BN13: =SUMIFS(Calculations!$I356:$QJ356, Calculations!$I$8:$QJ$8, BN$3, Calculations!$I$10:$QJ$10, BN$4) -> -53530.56664 | BO13: =SUMIFS(Calculations!$I356:$QJ356, Calculations!$I$8:$QJ$8, BO$3, Calculations!$I$10:$QJ$10, BO$4) -> -54870.08926 | BP13: =SUMIFS(Calculations!$I356:$QJ356, Calculations!$I$8:$QJ$8, BP$3, Calculations!$I$10:$QJ$10, BP$4) -> -55769.97872 | BQ13: =SUMIFS(Calculations!$I356:$QJ356, Calculations!$I$8:$QJ$8, BQ$3, Calculations!$I$10:$QJ$10, BQ$4) -> -53852.67723 | BR13: =SUMIFS(Calculations!$I356:$QJ356, Calculations!$I$8:$QJ$8, BR$3, Calculations!$I$10:$QJ$10, BR$4) -> -53825.93544 | BS13: =SUMIFS(Calculations!$I356:$QJ356, Calculations!$I$8:$QJ$8, BS$3, Calculations!$I$10:$QJ$10, BS$4) -> -55170.87659 | BT13: =SUMIFS(Calculations!$I356:$QJ356, Calculations!$I$8:$QJ$8, BT$3, Calculations!$I$10:$QJ$10, BT$4) -> -56044.89691 | BU13: =SUMIFS(Calculations!$I356:$QJ356, Calculations!$I$8:$QJ$8, BU$3, Calculations!$I$10:$QJ$10, BU$4) -> -54146.6808 | BV13: =SUMIFS(Calculations!$I356:$QJ356, Calculations!$I$8:$QJ$8, BV$3, Calculations!$I$10:$QJ$10, BV$4) -> -54129.27808 | BW13: =SUMIFS(Calculations!$I356:$QJ356, Calculations!$I$8:$QJ$8, BW$3, Calculations!$I$10:$QJ$10, BW$4) -> -55479.76041 | BX13: =SUMIFS(Calculations!$I356:$QJ356, Calculations!$I$8:$QJ$8, BX$3, Calculations!$I$10:$QJ$10, BX$4) -> -56328.16001 | BY13: =SUMIFS(Calculations!$I356:$QJ356, Calculations!$I$8:$QJ$8, BY$3, Calculations!$I$10:$QJ$10, BY$4) -> -54448.8393 | BZ13: =SUMIFS(Calculations!$I356:$QJ356, Calculations!$I$8:$QJ$8, BZ$3, Calculations!$I$10:$QJ$10, BZ$4) -> -54522.60125 | CA13: =SUMIFS(Calculations!$I356:$QJ356, Calculations!$I$8:$QJ$8, CA$3, Calculations!$I$10:$QJ$10, CA$4) -> -55796.93318 | CB13: =SUMIFS(Calculations!$I356:$QJ356, Calculations!$I$8:$QJ$8, CB$3, Calculations!$I$10:$QJ$10, CB$4) -> -56619.96199 | CC13: =SUMIFS(Calculations!$I356:$QJ356, Calculations!$I$8:$QJ$8, CC$3, Calculations!$I$10:$QJ$10, CC$4) -> -54759.34859 | CD13: =SUMIFS(Calculations!$I356:$QJ356, Calculations!$I$8:$QJ$8, CD$3, Calculations!$I$10:$QJ$10, CD$4) -> -54760.65749 | CE13: =SUMIFS(Calculations!$I356:$QJ356, Calculations!$I$8:$QJ$8, CE$3, Calculations!$I$10:$QJ$10, CE$4) -> -56115.85377 | CF13: =SUMIFS(Calculations!$I356:$QJ356, Calculations!$I$8:$QJ$8, CF$3, Calculations!$I$10:$QJ$10, CF$4) -> -56920.50183 | CG13: =SUMIFS(Calculations!$I356:$QJ356, Calculations!$I$8:$QJ$8, CG$3, Calculations!$I$10:$QJ$10, CG$4) -> -55078.40953 | CH13: =SUMIFS(Calculations!$I356:$QJ356, Calculations!$I$8:$QJ$8, CH$3, Calculations!$I$10:$QJ$10, CH$4) -> -55089.00125 | CI13: =SUMIFS(Calculations!$I356:$QJ356, Calculations!$I$8:$QJ$8, CI$3, Calculations!$I$10:$QJ$10, CI$4) -> -56438.5597 | CJ13: =SUMIFS(Calculations!$I356:$QJ356, Calculations!$I$8:$QJ$8, CJ$3, Calculations!$I$10:$QJ$10, CJ$4) -> -57229.98361 | CK13: =SUMIFS(Calculations!$I356:$QJ356, Calculations!$I$8:$QJ$8, CK$3, Calculations!$I$10:$QJ$10, CK$4) -> -55406.22803 | CL13: =SUMIFS(Calculations!$I356:$QJ356, Calculations!$I$8:$QJ$8, CL$3, Calculations!$I$10:$QJ$10, CL$4) -> -55420.84036 | CM13: =SUMIFS(Calculations!$I356:$QJ356, Calculations!$I$8:$QJ$8, CM$3, Calculations!$I$10:$QJ$10, CM$4) -> -56762.60475 | CN13: =SUMIFS(Calculations!$I356:$QJ356, Calculations!$I$8:$QJ$8, CN$3, Calculations!$I$10:$QJ$10, CN$4) -> -57548.61666 | CO13: =SUMIFS(Calculations!$I356:$QJ356, Calculations!$I$8:$QJ$8, CO$3, Calculations!$I$10:$QJ$10, CO$4) -> -55743.01527 | CP13: =SUMIFS(Calculations!$I356:$QJ356, Calculations!$I$8:$QJ$8, CP$3, Calculations!$I$10:$QJ$10, CP$4) -> -55843.41933 | CQ13: =SUMIFS(Calculations!$I356:$QJ356, Calculations!$I$8:$QJ$8, CQ$3, Calculations!$I$10:$QJ$10, CQ$4) -> -57095.7598 | CR13: =SUMIFS(Calculations!$I356:$QJ356, Calculations!$I$8:$QJ$8, CR$3, Calculations!$I$10:$QJ$10, CR$4) -> -57876.61567 | CS13: =SUMIFS(Calculations!$I356:$QJ356, Calculations!$I$8:$QJ$8, CS$3, Calculations!$I$10:$QJ$10, CS$4) -> -56088.98777 | CT13: =SUMIFS(Calculations!$I356:$QJ356, Calculations!$I$8:$QJ$8, CT$3, Calculations!$I$10:$QJ$10, CT$4) -> -56110.7651 | CU13: =SUMIFS(Calculations!$I356:$QJ356, Calculations!$I$8:$QJ$8, CU$3, Calculations!$I$10:$QJ$10, CU$4) -> -57438.24099 | CV13: =SUMIFS(Calculations!$I356:$QJ356, Calculations!$I$8:$QJ$8, CV$3, Calculations!$I$10:$QJ$10, CV$4) -> -58214.20087 | CW13: =SUMIFS(Calculations!$I356:$QJ356, Calculations!$I$8:$QJ$8, CW$3, Calculations!$I$10:$QJ$10, CW$4) -> -56444.36754 | CX13: =SUMIFS(Calculations!$I356:$QJ356, Calculations!$I$8:$QJ$8, CX$3, Calculations!$I$10:$QJ$10, CX$4) -> -56466.62596 | CY13: =SUMIFS(Calculations!$I356:$QJ356, Calculations!$I$8:$QJ$8, CY$3, Calculations!$I$10:$QJ$10, CY$4) -> -57790.26999 | CZ13: =SUMIFS(Calculations!$I356:$QJ356, Calculations!$I$8:$QJ$8, CZ$3, Calculations!$I$10:$QJ$10, CZ$4) -> -58561.5981 | DA13: =SUMIFS(Calculations!$I356:$QJ356, Calculations!$I$8:$QJ$8, DA$3, Calculations!$I$10:$QJ$10, DA$4) -> -56809.38222 | DB13: =SUMIFS(Calculations!$I356:$QJ356, Calculations!$I$8:$QJ$8, DB$3, Calculations!$I$10:$QJ$10, DB$4) -> -56832.13886 | DC13: =SUMIFS(Calculations!$I356:$QJ356, Calculations!$I$8:$QJ$8, DC$3, Calculations!$I$10:$QJ$10, DC$4) -> -58149.93483 | DD13: =SUMIFS(Calculations!$I356:$QJ356, Calculations!$I$8:$QJ$8, DD$3, Calculations!$I$10:$QJ$10, DD$4) -> -58919.03901 | DE13: =SUMIFS(Calculations!$I356:$QJ356, Calculations!$I$8:$QJ$8, DE$3, Calculations!$I$10:$QJ$10, DE$4) -> -57184.2652 | DF13: =SUMIFS(Calculations!$I356:$QJ356, Calculations!$I$8:$QJ$8, DF$3, Calculations!$I$10:$QJ$10, DF$4) -> -57288.91894 | DG13: =SUMIFS(Calculations!$I356:$QJ356, Calculations!$I$8:$QJ$8, DG$3, Calculations!$I$10:$QJ$10, DG$4) -> -58515.51592 | DH13: =SUMIFS(Calculations!$I356:$QJ356, Calculations!$I$8:$QJ$8, DH$3, Calculations!$I$10:$QJ$10, DH$4) -> -59286.76117 | DI13: =SUMIFS(Calculations!$I356:$QJ356, Calculations!$I$8:$QJ$8, DI$3, Calculations!$I$10:$QJ$10, DI$4) -> -57569.25581 | DJ13: =SUMIFS(Calculations!$I356:$QJ356, Calculations!$I$8:$QJ$8, DJ$3, Calculations!$I$10:$QJ$10, DJ$4) -> -57593.06052 | DK13: =SUMIFS(Calculations!$I356:$QJ356, Calculations!$I$8:$QJ$8, DK$3, Calculations!$I$10:$QJ$10, DK$4) -> -320843.8428 | EX13: =SUMIFS(Calculations!$I356:$QJ356, Calculations!$I$8:$QJ$8, EX$3, Calculations!$I$10:$QJ$10, EX$4) -> 0
C14: =Calculations!C357 -> EBITDA | G14: 9530358.48 | H14: =SUM(H12:H13) -> 0 | I14: 0 | J14: 0 | K14: 0 | L14: 0 | M14: 0 | N14: 0 | O14: 0 | P14: 172474.8712 | Q14: 61523.93618 | R14: 74845.26591 | S14: 130894.2387 | T14: 173266.1474 | U14: 71698.91415 | V14: 72747.96431 | W14: 130019.1184 | X14: 171882.7404 | Y14: 70691.12436 | Z14: 71958.56286 | AA14: 130017.912 | AB14: 170515.9368 | AC14: 69601.11886 | AD14: 70745.5147 | AE14: 129487.9708 | AF14: 168790.4759 | AG14: 68007.80443 | AH14: 70023.89987 | AI14: 129344.9518 | AJ14: 167322.6469 | AK14: 66743.93219 | AL14: 69253.23212 | AM14: 129213.7134 | AN14: =SUM(AN12:AN13) -> 165255.0383 | AO14: 65261.46382 | AP14: 68488.39851 | AQ14: 129000.6107 | AR14: 163174.6915 | AS14: 63784.65725 | AT14: 67670.83921 | AU14: 128208.9525 | AV14: 161079.866 | AW14: 62313.22874 | AX14: 66868.00274 | AY14: 127428.7472 | AZ14: 158630.3769 | BA14: 60846.89169 | BB14: 65857.30505 | BC14: 126659.7767 | BD14: 156195.4762 | BE14: 59385.35653 | BF14: 64851.7135 | BG14: 125901.8207 | BH14: 153774.7739 | BI14: 57928.3306 | BJ14: 63789.50191 | BK14: 125154.656 | BL14: 151367.8777 | BM14: 56475.51803 | BN14: 62854.85646 | BO14: 124418.0571 | BP14: 148974.3928 | BQ14: 55026.61961 | BR14: 61863.08675 | BS14: 123691.7959 | BT14: =SUM(BT12:BT13) -> 146593.9222 | BU14: 53581.33271 | BV14: 60875.41448 | BW14: 122975.6412 | BX14: 144226.0659 | BY14: 52139.35108 | BZ14: 59827.09422 | CA14: 122269.3591 | CB14: 141870.4214 | CC14: 50700.36479 | CD14: 58911.31581 | CE14: 121242.5258 | CF14: 139526.5832 | CG14: 49264.06006 | CH14: 57929.86936 | CI14: 119984.8258 | CJ14: 137194.1426 | CK14: 47830.11913 | CL14: 56692.93832 | CM14: 118365.9859 | CN14: 134872.6878 | CO14: 46398.22013 | CP14: 55391.42618 | CQ14: 116756.1094 | CR14: 132561.8038 | CS14: 44968.03693 | CT14: 54181.94068 | CU14: 115154.8521 | CV14: 130261.0718 | CW14: 43539.23902 | CX14: 52776.71639 | CY14: 113561.8662 | CZ14: =SUM(CZ12:CZ13) -> 127970.0695 | DA14: 42111.49132 | DB14: 51373.38197 | DC14: 111871.9766 | DD14: 125688.3707 | DE14: 40684.45407 | DF14: 49885.89473 | DG14: 109989.1469 | DH14: 123415.5454 | DI14: 39257.78265 | DJ14: 48571.02844 | DK14: -156140.6398 | EX14: =SUM(EX12:EX13) -> 0
C16: =Calculations!C359 -> less: Depreciation and Amortization | E16: =Calculations!E359 -> EUR | G16: =SUM(H16:FC16) -> -4509358.585 | H16: =SUMIFS(Calculations!$I359:$QJ359, Calculations!$I$8:$QJ$8, H$3, Calculations!$I$10:$QJ$10, H$4) -> 0 | I16: =SUMIFS(Calculations!$I359:$QJ359, Calculations!$I$8:$QJ$8, I$3, Calculations!$I$10:$QJ$10, I$4) -> 0 | J16: =SUMIFS(Calculations!$I359:$QJ359, Calculations!$I$8:$QJ$8, J$3, Calculations!$I$10:$QJ$10, J$4) -> 0 | K16: =SUMIFS(Calculations!$I359:$QJ359, Calculations!$I$8:$QJ$8, K$3, Calculations!$I$10:$QJ$10, K$4) -> 0 | L16: =SUMIFS(Calculations!$I359:$QJ359, Calculations!$I$8:$QJ$8, L$3, Calculations!$I$10:$QJ$10, L$4) -> 0 | M16: =SUMIFS(Calculations!$I359:$QJ359, Calculations!$I$8:$QJ$8, M$3, Calculations!$I$10:$QJ$10, M$4) -> 0 | N16: =SUMIFS(Calculations!$I359:$QJ359, Calculations!$I$8:$QJ$8, N$3, Calculations!$I$10:$QJ$10, N$4) -> 0 | O16: =SUMIFS(Calculations!$I359:$QJ359, Calculations!$I$8:$QJ$8, O$3, Calculations!$I$10:$QJ$10, O$4) -> 0 | P16: =SUMIFS(Calculations!$I359:$QJ359, Calculations!$I$8:$QJ$8, P$3, Calculations!$I$10:$QJ$10, P$4) -> -89585.95925 | Q16: =SUMIFS(Calculations!$I359:$QJ359, Calculations!$I$8:$QJ$8, Q$3, Calculations!$I$10:$QJ$10, Q$4) -> -89585.95925 | R16: =SUMIFS(Calculations!$I359:$QJ359, Calculations!$I$8:$QJ$8, R$3, Calculations!$I$10:$QJ$10, R$4) -> -89585.95925 | S16: =SUMIFS(Calculations!$I359:$QJ359, Calculations!$I$8:$QJ$8, S$3, Calculations!$I$10:$QJ$10, S$4) -> -89585.95925 | T16: =SUMIFS(Calculations!$I359:$QJ359, Calculations!$I$8:$QJ$8, T$3, Calculations!$I$10:$QJ$10, T$4) -> -89585.95925 | U16: =SUMIFS(Calculations!$I359:$QJ359, Calculations!$I$8:$QJ$8, U$3, Calculations!$I$10:$QJ$10, U$4) -> -89585.95925 | V16: =SUMIFS(Calculations!$I359:$QJ359, Calculations!$I$8:$QJ$8, V$3, Calculations!$I$10:$QJ$10, V$4) -> -89585.95925 | W16: =SUMIFS(Calculations!$I359:$QJ359, Calculations!$I$8:$QJ$8, W$3, Calculations!$I$10:$QJ$10, W$4) -> -89585.95925 | X16: =SUMIFS(Calculations!$I359:$QJ359, Calculations!$I$8:$QJ$8, X$3, Calculations!$I$10:$QJ$10, X$4) -> -89585.95925 | Y16: =SUMIFS(Calculations!$I359:$QJ359, Calculations!$I$8:$QJ$8, Y$3, Calculations!$I$10:$QJ$10, Y$4) -> -89585.95925 | Z16: =SUMIFS(Calculations!$I359:$QJ359, Calculations!$I$8:$QJ$8, Z$3, Calculations!$I$10:$QJ$10, Z$4) -> -89585.95925 | AA16: =SUMIFS(Calculations!$I359:$QJ359, Calculations!$I$8:$QJ$8, AA$3, Calculations!$I$10:$QJ$10, AA$4) -> -89585.95925 | AB16: =SUMIFS(Calculations!$I359:$QJ359, Calculations!$I$8:$QJ$8, AB$3, Calculations!$I$10:$QJ$10, AB$4) -> -89585.95925 | AC16: =SUMIFS(Calculations!$I359:$QJ359, Calculations!$I$8:$QJ$8, AC$3, Calculations!$I$10:$QJ$10, AC$4) -> -89585.95925 | AD16: =SUMIFS(Calculations!$I359:$QJ359, Calculations!$I$8:$QJ$8, AD$3, Calculations!$I$10:$QJ$10, AD$4) -> -89585.95925 | AE16: =SUMIFS(Calculations!$I359:$QJ359, Calculations!$I$8:$QJ$8, AE$3, Calculations!$I$10:$QJ$10, AE$4) -> -89585.95925 | AF16: =SUMIFS(Calculations!$I359:$QJ359, Calculations!$I$8:$QJ$8, AF$3, Calculations!$I$10:$QJ$10, AF$4) -> -89585.95925 | AG16: =SUMIFS(Calculations!$I359:$QJ359, Calculations!$I$8:$QJ$8, AG$3, Calculations!$I$10:$QJ$10, AG$4) -> -89585.95925 | AH16: =SUMIFS(Calculations!$I359:$QJ359, Calculations!$I$8:$QJ$8, AH$3, Calculations!$I$10:$QJ$10, AH$4) -> -89585.95925 | AI16: =SUMIFS(Calculations!$I359:$QJ359, Calculations!$I$8:$QJ$8, AI$3, Calculations!$I$10:$QJ$10, AI$4) -> -89585.95925 | AJ16: =SUMIFS(Calculations!$I359:$QJ359, Calculations!$I$8:$QJ$8, AJ$3, Calculations!$I$10:$QJ$10, AJ$4) -> -81560.95925 | AK16: =SUMIFS(Calculations!$I359:$QJ359, Calculations!$I$8:$QJ$8, AK$3, Calculations!$I$10:$QJ$10, AK$4) -> -81560.95925 | AL16: =SUMIFS(Calculations!$I359:$QJ359, Calculations!$I$8:$QJ$8, AL$3, Calculations!$I$10:$QJ$10, AL$4) -> -81560.95925 | AM16: =SUMIFS(Calculations!$I359:$QJ359, Calculations!$I$8:$QJ$8, AM$3, Calculations!$I$10:$QJ$10, AM$4) -> -81560.95925 | AN16: =SUMIFS(Calculations!$I359:$QJ359, Calculations!$I$8:$QJ$8, AN$3, Calculations!$I$10:$QJ$10, AN$4) -> -81560.95925 | AO16: =SUMIFS(Calculations!$I359:$QJ359, Calculations!$I$8:$QJ$8, AO$3, Calculations!$I$10:$QJ$10, AO$4) -> -81560.95925 | AP16: =SUMIFS(Calculations!$I359:$QJ359, Calculations!$I$8:$QJ$8, AP$3, Calculations!$I$10:$QJ$10, AP$4) -> -81560.95925 | AQ16: =SUMIFS(Calculations!$I359:$QJ359, Calculations!$I$8:$QJ$8, AQ$3, Calculations!$I$10:$QJ$10, AQ$4) -> -81560.95925 | AR16: =SUMIFS(Calculations!$I359:$QJ359, Calculations!$I$8:$QJ$8, AR$3, Calculations!$I$10:$QJ$10, AR$4) -> -52151.93197 | AS16: =SUMIFS(Calculations!$I359:$QJ359, Calculations!$I$8:$QJ$8, AS$3, Calculations!$I$10:$QJ$10, AS$4) -> -52151.93197 | AT16: =SUMIFS(Calculations!$I359:$QJ359, Calculations!$I$8:$QJ$8, AT$3, Calculations!$I$10:$QJ$10, AT$4) -> -52151.93197 | AU16: =SUMIFS(Calculations!$I359:$QJ359, Calculations!$I$8:$QJ$8, AU$3, Calculations!$I$10:$QJ$10, AU$4) -> -52151.93197 | AV16: =SUMIFS(Calculations!$I359:$QJ359, Calculations!$I$8:$QJ$8, AV$3, Calculations!$I$10:$QJ$10, AV$4) -> -52151.93197 | AW16: =SUMIFS(Calculations!$I359:$QJ359, Calculations!$I$8:$QJ$8, AW$3, Calculations!$I$10:$QJ$10, AW$4) -> -52151.93197 | AX16: =SUMIFS(Calculations!$I359:$QJ359, Calculations!$I$8:$QJ$8, AX$3, Calculations!$I$10:$QJ$10, AX$4) -> -52151.93197 | AY16: =SUMIFS(Calculations!$I359:$QJ359, Calculations!$I$8:$QJ$8, AY$3, Calculations!$I$10:$QJ$10, AY$4) -> -52151.93197 | AZ16: =SUMIFS(Calculations!$I359:$QJ359, Calculations!$I$8:$QJ$8, AZ$3, Calculations!$I$10:$QJ$10, AZ$4) -> -52151.93197 | BA16: =SUMIFS(Calculations!$I359:$QJ359, Calculations!$I$8:$QJ$8, BA$3, Calculations!$I$10:$QJ$10, BA$4) -> -52151.93197 | BB16: =SUMIFS(Calculations!$I359:$QJ359, Calculations!$I$8:$QJ$8, BB$3, Calculations!$I$10:$QJ$10, BB$4) -> -52041.93197 | BC16: =SUMIFS(Calculations!$I359:$QJ359, Calculations!$I$8:$QJ$8, BC$3, Calculations!$I$10:$QJ$10, BC$4) -> -52041.93197 | BD16: =SUMIFS(Calculations!$I359:$QJ359, Calculations!$I$8:$QJ$8, BD$3, Calculations!$I$10:$QJ$10, BD$4) -> -28802.71752 | BE16: =SUMIFS(Calculations!$I359:$QJ359, Calculations!$I$8:$QJ$8, BE$3, Calculations!$I$10:$QJ$10, BE$4) -> -28802.71752 | BF16: =SUMIFS(Calculations!$I359:$QJ359, Calculations!$I$8:$QJ$8, BF$3, Calculations!$I$10:$QJ$10, BF$4) -> -28802.71752 | BG16: =SUMIFS(Calculations!$I359:$QJ359, Calculations!$I$8:$QJ$8, BG$3, Calculations!$I$10:$QJ$10, BG$4) -> -28802.71752 | BH16: =SUMIFS(Calculations!$I359:$QJ359, Calculations!$I$8:$QJ$8, BH$3, Calculations!$I$10:$QJ$10, BH$4) -> -28802.71752 | BI16: =SUMIFS(Calculations!$I359:$QJ359, Calculations!$I$8:$QJ$8, BI$3, Calculations!$I$10:$QJ$10, BI$4) -> -28802.71752 | BJ16: =SUMIFS(Calculations!$I359:$QJ359, Calculations!$I$8:$QJ$8, BJ$3, Calculations!$I$10:$QJ$10, BJ$4) -> -28802.71752 | BK16: =SUMIFS(Calculations!$I359:$QJ359, Calculations!$I$8:$QJ$8, BK$3, Calculations!$I$10:$QJ$10, BK$4) -> -28802.71752 | BL16: =SUMIFS(Calculations!$I359:$QJ359, Calculations!$I$8:$QJ$8, BL$3, Calculations!$I$10:$QJ$10, BL$4) -> -28802.71752 | BM16: =SUMIFS(Calculations!$I359:$QJ359, Calculations!$I$8:$QJ$8, BM$3, Calculations!$I$10:$QJ$10, BM$4) -> -28802.71752 | BN16: =SUMIFS(Calculations!$I359:$QJ359, Calculations!$I$8:$QJ$8, BN$3, Calculations!$I$10:$QJ$10, BN$4) -> -23003.09182 | BO16: =SUMIFS(Calculations!$I359:$QJ359, Calculations!$I$8:$QJ$8, BO$3, Calculations!$I$10:$QJ$10, BO$4) -> -23003.09182 | BP16: =SUMIFS(Calculations!$I359:$QJ359, Calculations!$I$8:$QJ$8, BP$3, Calculations!$I$10:$QJ$10, BP$4) -> -23003.09182 | BQ16: =SUMIFS(Calculations!$I359:$QJ359, Calculations!$I$8:$QJ$8, BQ$3, Calculations!$I$10:$QJ$10, BQ$4) -> -23003.09182 | BR16: =SUMIFS(Calculations!$I359:$QJ359, Calculations!$I$8:$QJ$8, BR$3, Calculations!$I$10:$QJ$10, BR$4) -> -23003.09182 | BS16: =SUMIFS(Calculations!$I359:$QJ359, Calculations!$I$8:$QJ$8, BS$3, Calculations!$I$10:$QJ$10, BS$4) -> -23003.09182 | BT16: =SUMIFS(Calculations!$I359:$QJ359, Calculations!$I$8:$QJ$8, BT$3, Calculations!$I$10:$QJ$10, BT$4) -> -23003.09182 | BU16: =SUMIFS(Calculations!$I359:$QJ359, Calculations!$I$8:$QJ$8, BU$3, Calculations!$I$10:$QJ$10, BU$4) -> -23003.09182 | BV16: =SUMIFS(Calculations!$I359:$QJ359, Calculations!$I$8:$QJ$8, BV$3, Calculations!$I$10:$QJ$10, BV$4) -> -23003.09182 | BW16: =SUMIFS(Calculations!$I359:$QJ359, Calculations!$I$8:$QJ$8, BW$3, Calculations!$I$10:$QJ$10, BW$4) -> -23003.09182 | BX16: =SUMIFS(Calculations!$I359:$QJ359, Calculations!$I$8:$QJ$8, BX$3, Calculations!$I$10:$QJ$10, BX$4) -> -23003.09182 | BY16: =SUMIFS(Calculations!$I359:$QJ359, Calculations!$I$8:$QJ$8, BY$3, Calculations!$I$10:$QJ$10, BY$4) -> -23003.09182 | BZ16: =SUMIFS(Calculations!$I359:$QJ359, Calculations!$I$8:$QJ$8, BZ$3, Calculations!$I$10:$QJ$10, BZ$4) -> -23003.09182 | CA16: =SUMIFS(Calculations!$I359:$QJ359, Calculations!$I$8:$QJ$8, CA$3, Calculations!$I$10:$QJ$10, CA$4) -> -23003.09182 | CB16: =SUMIFS(Calculations!$I359:$QJ359, Calculations!$I$8:$QJ$8, CB$3, Calculations!$I$10:$QJ$10, CB$4) -> -23003.09182 | CC16: =SUMIFS(Calculations!$I359:$QJ359, Calculations!$I$8:$QJ$8, CC$3, Calculations!$I$10:$QJ$10, CC$4) -> -23003.09182 | CD16: =SUMIFS(Calculations!$I359:$QJ359, Calculations!$I$8:$QJ$8, CD$3, Calculations!$I$10:$QJ$10, CD$4) -> -23003.09182 | CE16: =SUMIFS(Calculations!$I359:$QJ359, Calculations!$I$8:$QJ$8, CE$3, Calculations!$I$10:$QJ$10, CE$4) -> -23003.09182 | CF16: =SUMIFS(Calculations!$I359:$QJ359, Calculations!$I$8:$QJ$8, CF$3, Calculations!$I$10:$QJ$10, CF$4) -> -23003.09182 | CG16: =SUMIFS(Calculations!$I359:$QJ359, Calculations!$I$8:$QJ$8, CG$3, Calculations!$I$10:$QJ$10, CG$4) -> -23003.09182 | CH16: =SUMIFS(Calculations!$I359:$QJ359, Calculations!$I$8:$QJ$8, CH$3, Calculations!$I$10:$QJ$10, CH$4) -> -23048.65102 | CI16: =SUMIFS(Calculations!$I359:$QJ359, Calculations!$I$8:$QJ$8, CI$3, Calculations!$I$10:$QJ$10, CI$4) -> -23048.65102 | CJ16: =SUMIFS(Calculations!$I359:$QJ359, Calculations!$I$8:$QJ$8, CJ$3, Calculations!$I$10:$QJ$10, CJ$4) -> -23048.65102 | CK16: =SUMIFS(Calculations!$I359:$QJ359, Calculations!$I$8:$QJ$8, CK$3, Calculations!$I$10:$QJ$10, CK$4) -> -23048.65102 | CL16: =SUMIFS(Calculations!$I359:$QJ359, Calculations!$I$8:$QJ$8, CL$3, Calculations!$I$10:$QJ$10, CL$4) -> -23048.65102 | CM16: =SUMIFS(Calculations!$I359:$QJ359, Calculations!$I$8:$QJ$8, CM$3, Calculations!$I$10:$QJ$10, CM$4) -> -23048.65102 | CN16: =SUMIFS(Calculations!$I359:$QJ359, Calculations!$I$8:$QJ$8, CN$3, Calculations!$I$10:$QJ$10, CN$4) -> -23048.65102 | CO16: =SUMIFS(Calculations!$I359:$QJ359, Calculations!$I$8:$QJ$8, CO$3, Calculations!$I$10:$QJ$10, CO$4) -> -23048.65102 | CP16: =SUMIFS(Calculations!$I359:$QJ359, Calculations!$I$8:$QJ$8, CP$3, Calculations!$I$10:$QJ$10, CP$4) -> -23048.65102 | CQ16: =SUMIFS(Calculations!$I359:$QJ359, Calculations!$I$8:$QJ$8, CQ$3, Calculations!$I$10:$QJ$10, CQ$4) -> -23048.65102 | CR16: =SUMIFS(Calculations!$I359:$QJ359, Calculations!$I$8:$QJ$8, CR$3, Calculations!$I$10:$QJ$10, CR$4) -> -23048.65102 | CS16: =SUMIFS(Calculations!$I359:$QJ359, Calculations!$I$8:$QJ$8, CS$3, Calculations!$I$10:$QJ$10, CS$4) -> -23048.65102 | CT16: =SUMIFS(Calculations!$I359:$QJ359, Calculations!$I$8:$QJ$8, CT$3, Calculations!$I$10:$QJ$10, CT$4) -> -23048.65102 | CU16: =SUMIFS(Calculations!$I359:$QJ359, Calculations!$I$8:$QJ$8, CU$3, Calculations!$I$10:$QJ$10, CU$4) -> -23048.65102 | CV16: =SUMIFS(Calculations!$I359:$QJ359, Calculations!$I$8:$QJ$8, CV$3, Calculations!$I$10:$QJ$10, CV$4) -> -23048.65102 | CW16: =SUMIFS(Calculations!$I359:$QJ359, Calculations!$I$8:$QJ$8, CW$3, Calculations!$I$10:$QJ$10, CW$4) -> -23048.65102 | CX16: =SUMIFS(Calculations!$I359:$QJ359, Calculations!$I$8:$QJ$8, CX$3, Calculations!$I$10:$QJ$10, CX$4) -> -23048.65102 | CY16: =SUMIFS(Calculations!$I359:$QJ359, Calculations!$I$8:$QJ$8, CY$3, Calculations!$I$10:$QJ$10, CY$4) -> -23048.65102 | CZ16: =SUMIFS(Calculations!$I359:$QJ359, Calculations!$I$8:$QJ$8, CZ$3, Calculations!$I$10:$QJ$10, CZ$4) -> -23048.65102 | DA16: =SUMIFS(Calculations!$I359:$QJ359, Calculations!$I$8:$QJ$8, DA$3, Calculations!$I$10:$QJ$10, DA$4) -> -23048.65102 | DB16: =SUMIFS(Calculations!$I359:$QJ359, Calculations!$I$8:$QJ$8, DB$3, Calculations!$I$10:$QJ$10, DB$4) -> -23048.65102 | DC16: =SUMIFS(Calculations!$I359:$QJ359, Calculations!$I$8:$QJ$8, DC$3, Calculations!$I$10:$QJ$10, DC$4) -> -23048.65102 | DD16: =SUMIFS(Calculations!$I359:$QJ359, Calculations!$I$8:$QJ$8, DD$3, Calculations!$I$10:$QJ$10, DD$4) -> -23048.65102 | DE16: =SUMIFS(Calculations!$I359:$QJ359, Calculations!$I$8:$QJ$8, DE$3, Calculations!$I$10:$QJ$10, DE$4) -> -23048.65102 | DF16: =SUMIFS(Calculations!$I359:$QJ359, Calculations!$I$8:$QJ$8, DF$3, Calculations!$I$10:$QJ$10, DF$4) -> -23048.65102 | DG16: =SUMIFS(Calculations!$I359:$QJ359, Calculations!$I$8:$QJ$8, DG$3, Calculations!$I$10:$QJ$10, DG$4) -> -23048.65102 | DH16: =SUMIFS(Calculations!$I359:$QJ359, Calculations!$I$8:$QJ$8, DH$3, Calculations!$I$10:$QJ$10, DH$4) -> -23048.65102 | DI16: =SUMIFS(Calculations!$I359:$QJ359, Calculations!$I$8:$QJ$8, DI$3, Calculations!$I$10:$QJ$10, DI$4) -> -23048.65102 | DJ16: =SUMIFS(Calculations!$I359:$QJ359, Calculations!$I$8:$QJ$8, DJ$3, Calculations!$I$10:$QJ$10, DJ$4) -> -23048.65102 | DK16: =SUMIFS(Calculations!$I359:$QJ359, Calculations!$I$8:$QJ$8, DK$3, Calculations!$I$10:$QJ$10, DK$4) -> -23048.65102 | EX16: =SUMIFS(Calculations!$I359:$QJ359, Calculations!$I$8:$QJ$8, EX$3, Calculations!$I$10:$QJ$10, EX$4) -> 0
C17: =Calculations!C360 -> EBIT | E17: =Calculations!E360 -> EUR | G17: =SUM(H17:FC17) -> 5020999.895 | H17: =H14+H16 -> 0 | I17: =I14+I16 -> 0 | J17: 0 | K17: 0 | L17: 0 | M17: 0 | N17: 0 | O17: 0 | P17: 82888.91194 | Q17: -28062.02307 | R17: -14740.69334 | S17: 41308.27941 | T17: 83680.1881 | U17: -17887.0451 | V17: -16837.99494 | W17: 40433.15911 | X17: 82296.78117 | Y17: -18894.83489 | Z17: -17627.39639 | AA17: 40431.95278 | AB17: 80929.97751 | AC17: -19984.84039 | AD17: -18840.44455 | AE17: 39902.01151 | AF17: 79204.5166 | AG17: -21578.15482 | AH17: -19562.05938 | AI17: 39758.9925 | AJ17: 85761.68763 | AK17: -14817.02707 | AL17: -12307.72714 | AM17: 47652.75419 | AN17: 83694.07906 | AO17: -16299.49543 | AP17: -13072.56074 | AQ17: 47439.65145 | AR17: 111022.7595 | AS17: 11632.72528 | AT17: 15518.90724 | AU17: 76057.02049 | AV17: 108927.9341 | AW17: 10161.29677 | AX17: 14716.07077 | AY17: 75276.81521 | AZ17: 106478.4449 | BA17: 8694.959723 | BB17: 13815.37308 | BC17: 74617.84477 | BD17: 127392.7587 | BE17: 30582.63901 | BF17: 36048.99597 | BG17: 97099.10314 | BH17: 124972.0564 | BI17: 29125.61308 | BJ17: 34986.78439 | BK17: 96351.93845 | BL17: 122565.1601 | BM17: 27672.8005 | BN17: 39851.76464 | BO17: 101414.9653 | BP17: 125971.301 | BQ17: 32023.52779 | BR17: 38859.99493 | BS17: 100688.7041 | BT17: 123590.8304 | BU17: =BU14+BU16 -> 30578.24089 | BV17: 37872.32266 | BW17: 99972.54943 | BX17: 121222.9741 | BY17: 29136.25926 | BZ17: 36824.0024 | CA17: 99266.26729 | CB17: 118867.3296 | CC17: 27697.27297 | CD17: 35908.22399 | CE17: 98239.434 | CF17: 116523.4913 | CG17: 26260.96824 | CH17: 34881.21835 | CI17: 96936.17482 | CJ17: 114145.4916 | CK17: 24781.46811 | CL17: 33644.28731 | CM17: 95317.33486 | CN17: 111824.0368 | CO17: 23349.56911 | CP17: 32342.77516 | CQ17: 93707.45836 | CR17: 109513.1528 | CS17: 21919.38592 | CT17: 31133.28966 | CU17: 92106.20111 | CV17: 107212.4208 | CW17: 20490.588 | CX17: 29728.06537 | CY17: 90513.2152 | CZ17: 104921.4185 | DA17: 19062.8403 | DB17: 28324.73095 | DC17: 88823.32556 | DD17: =DD14+DD16 -> 102639.7197 | DE17: 17635.80305 | DF17: 26837.24371 | DG17: 86940.49586 | DH17: 100366.8943 | DI17: 16209.13163 | DJ17: 25522.37742 | DK17: -179189.2908 | EX17: =EX14+EX16 -> 0
C19: =Calculations!C362 -> less: Senior Debt Interest Expense | E19: =Calculations!E362 -> EUR | G19: =SUM(H19:FC19) -> -1393173.964 | H19: =SUMIFS(Calculations!$I362:$QJ362, Calculations!$I$8:$QJ$8, H$3, Calculations!$I$10:$QJ$10, H$4) -> 0 | I19: =SUMIFS(Calculations!$I362:$QJ362, Calculations!$I$8:$QJ$8, I$3, Calculations!$I$10:$QJ$10, I$4) -> 0 | J19: =SUMIFS(Calculations!$I362:$QJ362, Calculations!$I$8:$QJ$8, J$3, Calculations!$I$10:$QJ$10, J$4) -> 0 | K19: =SUMIFS(Calculations!$I362:$QJ362, Calculations!$I$8:$QJ$8, K$3, Calculations!$I$10:$QJ$10, K$4) -> 0 | L19: =SUMIFS(Calculations!$I362:$QJ362, Calculations!$I$8:$QJ$8, L$3, Calculations!$I$10:$QJ$10, L$4) -> 0 | M19: =SUMIFS(Calculations!$I362:$QJ362, Calculations!$I$8:$QJ$8, M$3, Calculations!$I$10:$QJ$10, M$4) -> 0 | N19: =SUMIFS(Calculations!$I362:$QJ362, Calculations!$I$8:$QJ$8, N$3, Calculations!$I$10:$QJ$10, N$4) -> 0 | O19: =SUMIFS(Calculations!$I362:$QJ362, Calculations!$I$8:$QJ$8, O$3, Calculations!$I$10:$QJ$10, O$4) -> 0 | P19: =SUMIFS(Calculations!$I362:$QJ362, Calculations!$I$8:$QJ$8, P$3, Calculations!$I$10:$QJ$10, P$4) -> -33151.48108 | Q19: =SUMIFS(Calculations!$I362:$QJ362, Calculations!$I$8:$QJ$8, Q$3, Calculations!$I$10:$QJ$10, Q$4) -> -33116.85015 | R19: =SUMIFS(Calculations!$I362:$QJ362, Calculations!$I$8:$QJ$8, R$3, Calculations!$I$10:$QJ$10, R$4) -> -32833.7683 | S19: =SUMIFS(Calculations!$I362:$QJ362, Calculations!$I$8:$QJ$8, S$3, Calculations!$I$10:$QJ$10, S$4) -> -32546.7762 | T19: =SUMIFS(Calculations!$I362:$QJ362, Calculations!$I$8:$QJ$8, T$3, Calculations!$I$10:$QJ$10, T$4) -> -32255.81986 | U19: =SUMIFS(Calculations!$I362:$QJ362, Calculations!$I$8:$QJ$8, U$3, Calculations!$I$10:$QJ$10, U$4) -> -31960.84449 | V19: =SUMIFS(Calculations!$I362:$QJ362, Calculations!$I$8:$QJ$8, V$3, Calculations!$I$10:$QJ$10, V$4) -> -31661.7946 | W19: =SUMIFS(Calculations!$I362:$QJ362, Calculations!$I$8:$QJ$8, W$3, Calculations!$I$10:$QJ$10, W$4) -> -31358.6139 | X19: =SUMIFS(Calculations!$I362:$QJ362, Calculations!$I$8:$QJ$8, X$3, Calculations!$I$10:$QJ$10, X$4) -> -31051.24532 | Y19: =SUMIFS(Calculations!$I362:$QJ362, Calculations!$I$8:$QJ$8, Y$3, Calculations!$I$10:$QJ$10, Y$4) -> -30739.63103 | Z19: =SUMIFS(Calculations!$I362:$QJ362, Calculations!$I$8:$QJ$8, Z$3, Calculations!$I$10:$QJ$10, Z$4) -> -30423.71237 | AA19: =SUMIFS(Calculations!$I362:$QJ362, Calculations!$I$8:$QJ$8, AA$3, Calculations!$I$10:$QJ$10, AA$4) -> -30103.42989 | AB19: =SUMIFS(Calculations!$I362:$QJ362, Calculations!$I$8:$QJ$8, AB$3, Calculations!$I$10:$QJ$10, AB$4) -> -29778.72332 | AC19: =SUMIFS(Calculations!$I362:$QJ362, Calculations!$I$8:$QJ$8, AC$3, Calculations!$I$10:$QJ$10, AC$4) -> -29449.53153 | AD19: =SUMIFS(Calculations!$I362:$QJ362, Calculations!$I$8:$QJ$8, AD$3, Calculations!$I$10:$QJ$10, AD$4) -> -29115.79258 | AE19: =SUMIFS(Calculations!$I362:$QJ362, Calculations!$I$8:$QJ$8, AE$3, Calculations!$I$10:$QJ$10, AE$4) -> -28777.44365 | AF19: =SUMIFS(Calculations!$I362:$QJ362, Calculations!$I$8:$QJ$8, AF$3, Calculations!$I$10:$QJ$10, AF$4) -> -28434.42107 | AG19: =SUMIFS(Calculations!$I362:$QJ362, Calculations!$I$8:$QJ$8, AG$3, Calculations!$I$10:$QJ$10, AG$4) -> -28086.66028 | AH19: =SUMIFS(Calculations!$I362:$QJ362, Calculations!$I$8:$QJ$8, AH$3, Calculations!$I$10:$QJ$10, AH$4) -> -27734.09582 | AI19: =SUMIFS(Calculations!$I362:$QJ362, Calculations!$I$8:$QJ$8, AI$3, Calculations!$I$10:$QJ$10, AI$4) -> -27376.66136 | AJ19: =SUMIFS(Calculations!$I362:$QJ362, Calculations!$I$8:$QJ$8, AJ$3, Calculations!$I$10:$QJ$10, AJ$4) -> -27014.28961 | AK19: =SUMIFS(Calculations!$I362:$QJ362, Calculations!$I$8:$QJ$8, AK$3, Calculations!$I$10:$QJ$10, AK$4) -> -26646.91237 | AL19: =SUMIFS(Calculations!$I362:$QJ362, Calculations!$I$8:$QJ$8, AL$3, Calculations!$I$10:$QJ$10, AL$4) -> -26274.46051 | AM19: =SUMIFS(Calculations!$I362:$QJ362, Calculations!$I$8:$QJ$8, AM$3, Calculations!$I$10:$QJ$10, AM$4) -> -25896.86393 | AN19: =SUMIFS(Calculations!$I362:$QJ362, Calculations!$I$8:$QJ$8, AN$3, Calculations!$I$10:$QJ$10, AN$4) -> -25514.05157 | AO19: =SUMIFS(Calculations!$I362:$QJ362, Calculations!$I$8:$QJ$8, AO$3, Calculations!$I$10:$QJ$10, AO$4) -> -25125.95137 | AP19: =SUMIFS(Calculations!$I362:$QJ362, Calculations!$I$8:$QJ$8, AP$3, Calculations!$I$10:$QJ$10, AP$4) -> -24732.4903 | AQ19: =SUMIFS(Calculations!$I362:$QJ362, Calculations!$I$8:$QJ$8, AQ$3, Calculations!$I$10:$QJ$10, AQ$4) -> -24333.5943 | AR19: =SUMIFS(Calculations!$I362:$QJ362, Calculations!$I$8:$QJ$8, AR$3, Calculations!$I$10:$QJ$10, AR$4) -> -23929.18831 | AS19: =SUMIFS(Calculations!$I362:$QJ362, Calculations!$I$8:$QJ$8, AS$3, Calculations!$I$10:$QJ$10, AS$4) -> -23519.19621 | AT19: =SUMIFS(Calculations!$I362:$QJ362, Calculations!$I$8:$QJ$8, AT$3, Calculations!$I$10:$QJ$10, AT$4) -> -23103.54084 | AU19: =SUMIFS(Calculations!$I362:$QJ362, Calculations!$I$8:$QJ$8, AU$3, Calculations!$I$10:$QJ$10, AU$4) -> -22682.14398 | AV19: =SUMIFS(Calculations!$I362:$QJ362, Calculations!$I$8:$QJ$8, AV$3, Calculations!$I$10:$QJ$10, AV$4) -> -22254.92631 | AW19: =SUMIFS(Calculations!$I362:$QJ362, Calculations!$I$8:$QJ$8, AW$3, Calculations!$I$10:$QJ$10, AW$4) -> -21821.80743 | AX19: =SUMIFS(Calculations!$I362:$QJ362, Calculations!$I$8:$QJ$8, AX$3, Calculations!$I$10:$QJ$10, AX$4) -> -21382.70583 | AY19: =SUMIFS(Calculations!$I362:$QJ362, Calculations!$I$8:$QJ$8, AY$3, Calculations!$I$10:$QJ$10, AY$4) -> -20937.53887 | AZ19: =SUMIFS(Calculations!$I362:$QJ362, Calculations!$I$8:$QJ$8, AZ$3, Calculations!$I$10:$QJ$10, AZ$4) -> -20486.22277 | BA19: =SUMIFS(Calculations!$I362:$QJ362, Calculations!$I$8:$QJ$8, BA$3, Calculations!$I$10:$QJ$10, BA$4) -> -20028.67258 | BB19: =SUMIFS(Calculations!$I362:$QJ362, Calculations!$I$8:$QJ$8, BB$3, Calculations!$I$10:$QJ$10, BB$4) -> -19564.8022 | BC19: =SUMIFS(Calculations!$I362:$QJ362, Calculations!$I$8:$QJ$8, BC$3, Calculations!$I$10:$QJ$10, BC$4) -> -19094.52432 | BD19: =SUMIFS(Calculations!$I362:$QJ362, Calculations!$I$8:$QJ$8, BD$3, Calculations!$I$10:$QJ$10, BD$4) -> -18617.75044 | BE19: =SUMIFS(Calculations!$I362:$QJ362, Calculations!$I$8:$QJ$8, BE$3, Calculations!$I$10:$QJ$10, BE$4) -> -18134.39083 | BF19: =SUMIFS(Calculations!$I362:$QJ362, Calculations!$I$8:$QJ$8, BF$3, Calculations!$I$10:$QJ$10, BF$4) -> -17644.35452 | BG19: =SUMIFS(Calculations!$I362:$QJ362, Calculations!$I$8:$QJ$8, BG$3, Calculations!$I$10:$QJ$10, BG$4) -> -17147.54927 | BH19: =SUMIFS(Calculations!$I362:$QJ362, Calculations!$I$8:$QJ$8, BH$3, Calculations!$I$10:$QJ$10, BH$4) -> -16643.8816 | BI19: =SUMIFS(Calculations!$I362:$QJ362, Calculations!$I$8:$QJ$8, BI$3, Calculations!$I$10:$QJ$10, BI$4) -> -16133.2567 | BJ19: =SUMIFS(Calculations!$I362:$QJ362, Calculations!$I$8:$QJ$8, BJ$3, Calculations!$I$10:$QJ$10, BJ$4) -> -15615.57849 | BK19: =SUMIFS(Calculations!$I362:$QJ362, Calculations!$I$8:$QJ$8, BK$3, Calculations!$I$10:$QJ$10, BK$4) -> -15090.74952 | BL19: =SUMIFS(Calculations!$I362:$QJ362, Calculations!$I$8:$QJ$8, BL$3, Calculations!$I$10:$QJ$10, BL$4) -> -14558.67103 | BM19: =SUMIFS(Calculations!$I362:$QJ362, Calculations!$I$8:$QJ$8, BM$3, Calculations!$I$10:$QJ$10, BM$4) -> -14019.24288 | BN19: =SUMIFS(Calculations!$I362:$QJ362, Calculations!$I$8:$QJ$8, BN$3, Calculations!$I$10:$QJ$10, BN$4) -> -13472.36354 | BO19: =SUMIFS(Calculations!$I362:$QJ362, Calculations!$I$8:$QJ$8, BO$3, Calculations!$I$10:$QJ$10, BO$4) -> -12917.9301 | BP19: =SUMIFS(Calculations!$I362:$QJ362, Calculations!$I$8:$QJ$8, BP$3, Calculations!$I$10:$QJ$10, BP$4) -> -12355.8382 | BQ19: =SUMIFS(Calculations!$I362:$QJ362, Calculations!$I$8:$QJ$8, BQ$3, Calculations!$I$10:$QJ$10, BQ$4) -> -11785.98206 | BR19: =SUMIFS(Calculations!$I362:$QJ362, Calculations!$I$8:$QJ$8, BR$3, Calculations!$I$10:$QJ$10, BR$4) -> -11208.25443 | BS19: =SUMIFS(Calculations!$I362:$QJ362, Calculations!$I$8:$QJ$8, BS$3, Calculations!$I$10:$QJ$10, BS$4) -> -10622.54658 | BT19: =SUMIFS(Calculations!$I362:$QJ362, Calculations!$I$8:$QJ$8, BT$3, Calculations!$I$10:$QJ$10, BT$4) -> -10028.74828 | BU19: =SUMIFS(Calculations!$I362:$QJ362, Calculations!$I$8:$QJ$8, BU$3, Calculations!$I$10:$QJ$10, BU$4) -> -9426.747771 | BV19: =SUMIFS(Calculations!$I362:$QJ362, Calculations!$I$8:$QJ$8, BV$3, Calculations!$I$10:$QJ$10, BV$4) -> -8816.431762 | BW19: =SUMIFS(Calculations!$I362:$QJ362, Calculations!$I$8:$QJ$8, BW$3, Calculations!$I$10:$QJ$10, BW$4) -> -8197.685386 | BX19: =SUMIFS(Calculations!$I362:$QJ362, Calculations!$I$8:$QJ$8, BX$3, Calculations!$I$10:$QJ$10, BX$4) -> -7570.392194 | BY19: =SUMIFS(Calculations!$I362:$QJ362, Calculations!$I$8:$QJ$8, BY$3, Calculations!$I$10:$QJ$10, BY$4) -> -6934.434127 | BZ19: =SUMIFS(Calculations!$I362:$QJ362, Calculations!$I$8:$QJ$8, BZ$3, Calculations!$I$10:$QJ$10, BZ$4) -> -6289.691498 | CA19: =SUMIFS(Calculations!$I362:$QJ362, Calculations!$I$8:$QJ$8, CA$3, Calculations!$I$10:$QJ$10, CA$4) -> -5636.042963 | CB19: =SUMIFS(Calculations!$I362:$QJ362, Calculations!$I$8:$QJ$8, CB$3, Calculations!$I$10:$QJ$10, CB$4) -> -4973.365504 | CC19: =SUMIFS(Calculations!$I362:$QJ362, Calculations!$I$8:$QJ$8, CC$3, Calculations!$I$10:$QJ$10, CC$4) -> -4301.534404 | CD19: =SUMIFS(Calculations!$I362:$QJ362, Calculations!$I$8:$QJ$8, CD$3, Calculations!$I$10:$QJ$10, CD$4) -> -3620.423222 | CE19: =SUMIFS(Calculations!$I362:$QJ362, Calculations!$I$8:$QJ$8, CE$3, Calculations!$I$10:$QJ$10, CE$4) -> -2929.903771 | CF19: =SUMIFS(Calculations!$I362:$QJ362, Calculations!$I$8:$QJ$8, CF$3, Calculations!$I$10:$QJ$10, CF$4) -> -2229.846095 | CG19: =SUMIFS(Calculations!$I362:$QJ362, Calculations!$I$8:$QJ$8, CG$3, Calculations!$I$10:$QJ$10, CG$4) -> -1520.11844 | CH19: =SUMIFS(Calculations!$I362:$QJ362, Calculations!$I$8:$QJ$8, CH$3, Calculations!$I$10:$QJ$10, CH$4) -> -429.0782044 | CI19: =SUMIFS(Calculations!$I362:$QJ362, Calculations!$I$8:$QJ$8, CI$3, Calculations!$I$10:$QJ$10, CI$4) -> 0 | CJ19: =SUMIFS(Calculations!$I362:$QJ362, Calculations!$I$8:$QJ$8, CJ$3, Calculations!$I$10:$QJ$10, CJ$4) -> 0 | CK19: =SUMIFS(Calculations!$I362:$QJ362, Calculations!$I$8:$QJ$8, CK$3, Calculations!$I$10:$QJ$10, CK$4) -> 0 | CL19: =SUMIFS(Calculations!$I362:$QJ362, Calculations!$I$8:$QJ$8, CL$3, Calculations!$I$10:$QJ$10, CL$4) -> 0 | CM19: =SUMIFS(Calculations!$I362:$QJ362, Calculations!$I$8:$QJ$8, CM$3, Calculations!$I$10:$QJ$10, CM$4) -> 0 | CN19: =SUMIFS(Calculations!$I362:$QJ362, Calculations!$I$8:$QJ$8, CN$3, Calculations!$I$10:$QJ$10, CN$4) -> 0 | CO19: =SUMIFS(Calculations!$I362:$QJ362, Calculations!$I$8:$QJ$8, CO$3, Calculations!$I$10:$QJ$10, CO$4) -> 0 | CP19: =SUMIFS(Calculations!$I362:$QJ362, Calculations!$I$8:$QJ$8, CP$3, Calculations!$I$10:$QJ$10, CP$4) -> 0 | CQ19: =SUMIFS(Calculations!$I362:$QJ362, Calculations!$I$8:$QJ$8, CQ$3, Calculations!$I$10:$QJ$10, CQ$4) -> 0 | CR19: =SUMIFS(Calculations!$I362:$QJ362, Calculations!$I$8:$QJ$8, CR$3, Calculations!$I$10:$QJ$10, CR$4) -> 0 | CS19: =SUMIFS(Calculations!$I362:$QJ362, Calculations!$I$8:$QJ$8, CS$3, Calculations!$I$10:$QJ$10, CS$4) -> 0 | CT19: =SUMIFS(Calculations!$I362:$QJ362, Calculations!$I$8:$QJ$8, CT$3, Calculations!$I$10:$QJ$10, CT$4) -> 0 | CU19: =SUMIFS(Calculations!$I362:$QJ362, Calculations!$I$8:$QJ$8, CU$3, Calculations!$I$10:$QJ$10, CU$4) -> 0 | CV19: =SUMIFS(Calculations!$I362:$QJ362, Calculations!$I$8:$QJ$8, CV$3, Calculations!$I$10:$QJ$10, CV$4) -> 0 | CW19: =SUMIFS(Calculations!$I362:$QJ362, Calculations!$I$8:$QJ$8, CW$3, Calculations!$I$10:$QJ$10, CW$4) -> 0 | CX19: =SUMIFS(Calculations!$I362:$QJ362, Calculations!$I$8:$QJ$8, CX$3, Calculations!$I$10:$QJ$10, CX$4) -> 0 | CY19: =SUMIFS(Calculations!$I362:$QJ362, Calculations!$I$8:$QJ$8, CY$3, Calculations!$I$10:$QJ$10, CY$4) -> 0 | CZ19: =SUMIFS(Calculations!$I362:$QJ362, Calculations!$I$8:$QJ$8, CZ$3, Calculations!$I$10:$QJ$10, CZ$4) -> 0 | DA19: =SUMIFS(Calculations!$I362:$QJ362, Calculations!$I$8:$QJ$8, DA$3, Calculations!$I$10:$QJ$10, DA$4) -> 0 | DB19: =SUMIFS(Calculations!$I362:$QJ362, Calculations!$I$8:$QJ$8, DB$3, Calculations!$I$10:$QJ$10, DB$4) -> 0 | DC19: =SUMIFS(Calculations!$I362:$QJ362, Calculations!$I$8:$QJ$8, DC$3, Calculations!$I$10:$QJ$10, DC$4) -> 0 | DD19: =SUMIFS(Calculations!$I362:$QJ362, Calculations!$I$8:$QJ$8, DD$3, Calculations!$I$10:$QJ$10, DD$4) -> 0 | DE19: =SUMIFS(Calculations!$I362:$QJ362, Calculations!$I$8:$QJ$8, DE$3, Calculations!$I$10:$QJ$10, DE$4) -> 0 | DF19: =SUMIFS(Calculations!$I362:$QJ362, Calculations!$I$8:$QJ$8, DF$3, Calculations!$I$10:$QJ$10, DF$4) -> 0 | DG19: =SUMIFS(Calculations!$I362:$QJ362, Calculations!$I$8:$QJ$8, DG$3, Calculations!$I$10:$QJ$10, DG$4) -> 0 | DH19: =SUMIFS(Calculations!$I362:$QJ362, Calculations!$I$8:$QJ$8, DH$3, Calculations!$I$10:$QJ$10, DH$4) -> 0 | DI19: =SUMIFS(Calculations!$I362:$QJ362, Calculations!$I$8:$QJ$8, DI$3, Calculations!$I$10:$QJ$10, DI$4) -> 0 | DJ19: =SUMIFS(Calculations!$I362:$QJ362, Calculations!$I$8:$QJ$8, DJ$3, Calculations!$I$10:$QJ$10, DJ$4) -> 0 | DK19: =SUMIFS(Calculations!$I362:$QJ362, Calculations!$I$8:$QJ$8, DK$3, Calculations!$I$10:$QJ$10, DK$4) -> 0 | EX19: =SUMIFS(Calculations!$I362:$QJ362, Calculations!$I$8:$QJ$8, EX$3, Calculations!$I$10:$QJ$10, EX$4) -> 0
C20: =Calculations!C363 -> less: Subordinated Debt Interest Expense | E20: =Calculations!E363 -> EUR | G20: =SUM(H20:FC20) -> -1505898.958 | H20: =SUMIFS(Calculations!$I363:$QJ363, Calculations!$I$8:$QJ$8, H$3, Calculations!$I$10:$QJ$10, H$4) -> 0 | I20: =SUMIFS(Calculations!$I363:$QJ363, Calculations!$I$8:$QJ$8, I$3, Calculations!$I$10:$QJ$10, I$4) -> 0 | J20: =SUMIFS(Calculations!$I363:$QJ363, Calculations!$I$8:$QJ$8, J$3, Calculations!$I$10:$QJ$10, J$4) -> 0 | K20: =SUMIFS(Calculations!$I363:$QJ363, Calculations!$I$8:$QJ$8, K$3, Calculations!$I$10:$QJ$10, K$4) -> 0 | L20: =SUMIFS(Calculations!$I363:$QJ363, Calculations!$I$8:$QJ$8, L$3, Calculations!$I$10:$QJ$10, L$4) -> 0 | M20: =SUMIFS(Calculations!$I363:$QJ363, Calculations!$I$8:$QJ$8, M$3, Calculations!$I$10:$QJ$10, M$4) -> 0 | N20: =SUMIFS(Calculations!$I363:$QJ363, Calculations!$I$8:$QJ$8, N$3, Calculations!$I$10:$QJ$10, N$4) -> 0 | O20: =SUMIFS(Calculations!$I363:$QJ363, Calculations!$I$8:$QJ$8, O$3, Calculations!$I$10:$QJ$10, O$4) -> 0 | P20: =SUMIFS(Calculations!$I363:$QJ363, Calculations!$I$8:$QJ$8, P$3, Calculations!$I$10:$QJ$10, P$4) -> -36361.2 | Q20: =SUMIFS(Calculations!$I363:$QJ363, Calculations!$I$8:$QJ$8, Q$3, Calculations!$I$10:$QJ$10, Q$4) -> -36388.7332 | R20: =SUMIFS(Calculations!$I363:$QJ363, Calculations!$I$8:$QJ$8, R$3, Calculations!$I$10:$QJ$10, R$4) -> -36117.95484 | S20: =SUMIFS(Calculations!$I363:$QJ363, Calculations!$I$8:$QJ$8, S$3, Calculations!$I$10:$QJ$10, S$4) -> -35963.84409 | T20: =SUMIFS(Calculations!$I363:$QJ363, Calculations!$I$8:$QJ$8, T$3, Calculations!$I$10:$QJ$10, T$4) -> -35805.06364 | U20: =SUMIFS(Calculations!$I363:$QJ363, Calculations!$I$8:$QJ$8, U$3, Calculations!$I$10:$QJ$10, U$4) -> -35641.47198 | V20: =SUMIFS(Calculations!$I363:$QJ363, Calculations!$I$8:$QJ$8, V$3, Calculations!$I$10:$QJ$10, V$4) -> -35472.92333 | W20: =SUMIFS(Calculations!$I363:$QJ363, Calculations!$I$8:$QJ$8, W$3, Calculations!$I$10:$QJ$10, W$4) -> -35299.26749 | X20: =SUMIFS(Calculations!$I363:$QJ363, Calculations!$I$8:$QJ$8, X$3, Calculations!$I$10:$QJ$10, X$4) -> -35120.3497 | Y20: =SUMIFS(Calculations!$I363:$QJ363, Calculations!$I$8:$QJ$8, Y$3, Calculations!$I$10:$QJ$10, Y$4) -> -34936.01053 | Z20: =SUMIFS(Calculations!$I363:$QJ363, Calculations!$I$8:$QJ$8, Z$3, Calculations!$I$10:$QJ$10, Z$4) -> -34746.08569 | AA20: =SUMIFS(Calculations!$I363:$QJ363, Calculations!$I$8:$QJ$8, AA$3, Calculations!$I$10:$QJ$10, AA$4) -> -34550.40594 | AB20: =SUMIFS(Calculations!$I363:$QJ363, Calculations!$I$8:$QJ$8, AB$3, Calculations!$I$10:$QJ$10, AB$4) -> -34348.7969 | AC20: =SUMIFS(Calculations!$I363:$QJ363, Calculations!$I$8:$QJ$8, AC$3, Calculations!$I$10:$QJ$10, AC$4) -> -34141.0789 | AD20: =SUMIFS(Calculations!$I363:$QJ363, Calculations!$I$8:$QJ$8, AD$3, Calculations!$I$10:$QJ$10, AD$4) -> -33927.06684 | AE20: =SUMIFS(Calculations!$I363:$QJ363, Calculations!$I$8:$QJ$8, AE$3, Calculations!$I$10:$QJ$10, AE$4) -> -33706.57001 | AF20: =SUMIFS(Calculations!$I363:$QJ363, Calculations!$I$8:$QJ$8, AF$3, Calculations!$I$10:$QJ$10, AF$4) -> -33479.39189 | AG20: =SUMIFS(Calculations!$I363:$QJ363, Calculations!$I$8:$QJ$8, AG$3, Calculations!$I$10:$QJ$10, AG$4) -> -33245.33005 | AH20: =SUMIFS(Calculations!$I363:$QJ363, Calculations!$I$8:$QJ$8, AH$3, Calculations!$I$10:$QJ$10, AH$4) -> -33004.17591 | AI20: =SUMIFS(Calculations!$I363:$QJ363, Calculations!$I$8:$QJ$8, AI$3, Calculations!$I$10:$QJ$10, AI$4) -> -32755.71455 | AJ20: =SUMIFS(Calculations!$I363:$QJ363, Calculations!$I$8:$QJ$8, AJ$3, Calculations!$I$10:$QJ$10, AJ$4) -> -32499.72456 | AK20: =SUMIFS(Calculations!$I363:$QJ363, Calculations!$I$8:$QJ$8, AK$3, Calculations!$I$10:$QJ$10, AK$4) -> -32235.97783 | AL20: =SUMIFS(Calculations!$I363:$QJ363, Calculations!$I$8:$QJ$8, AL$3, Calculations!$I$10:$QJ$10, AL$4) -> -31964.2393 | AM20: =SUMIFS(Calculations!$I363:$QJ363, Calculations!$I$8:$QJ$8, AM$3, Calculations!$I$10:$QJ$10, AM$4) -> -31684.26682 | AN20: =SUMIFS(Calculations!$I363:$QJ363, Calculations!$I$8:$QJ$8, AN$3, Calculations!$I$10:$QJ$10, AN$4) -> -31395.8109 | AO20: =SUMIFS(Calculations!$I363:$QJ363, Calculations!$I$8:$QJ$8, AO$3, Calculations!$I$10:$QJ$10, AO$4) -> -31098.61447 | AP20: =SUMIFS(Calculations!$I363:$QJ363, Calculations!$I$8:$QJ$8, AP$3, Calculations!$I$10:$QJ$10, AP$4) -> -30792.4127 | AQ20: =SUMIFS(Calculations!$I363:$QJ363, Calculations!$I$8:$QJ$8, AQ$3, Calculations!$I$10:$QJ$10, AQ$4) -> -30476.9327 | AR20: =SUMIFS(Calculations!$I363:$QJ363, Calculations!$I$8:$QJ$8, AR$3, Calculations!$I$10:$QJ$10, AR$4) -> -30151.89335 | AS20: =SUMIFS(Calculations!$I363:$QJ363, Calculations!$I$8:$QJ$8, AS$3, Calculations!$I$10:$QJ$10, AS$4) -> -29817.00498 | AT20: =SUMIFS(Calculations!$I363:$QJ363, Calculations!$I$8:$QJ$8, AT$3, Calculations!$I$10:$QJ$10, AT$4) -> -29471.96915 | AU20: =SUMIFS(Calculations!$I363:$QJ363, Calculations!$I$8:$QJ$8, AU$3, Calculations!$I$10:$QJ$10, AU$4) -> -29116.4784 | AV20: =SUMIFS(Calculations!$I363:$QJ363, Calculations!$I$8:$QJ$8, AV$3, Calculations!$I$10:$QJ$10, AV$4) -> -28750.21592 | AW20: =SUMIFS(Calculations!$I363:$QJ363, Calculations!$I$8:$QJ$8, AW$3, Calculations!$I$10:$QJ$10, AW$4) -> -28372.85532 | AX20: =SUMIFS(Calculations!$I363:$QJ363, Calculations!$I$8:$QJ$8, AX$3, Calculations!$I$10:$QJ$10, AX$4) -> -27984.06032 | AY20: =SUMIFS(Calculations!$I363:$QJ363, Calculations!$I$8:$QJ$8, AY$3, Calculations!$I$10:$QJ$10, AY$4) -> -27583.48444 | AZ20: =SUMIFS(Calculations!$I363:$QJ363, Calculations!$I$8:$QJ$8, AZ$3, Calculations!$I$10:$QJ$10, AZ$4) -> -27170.77071 | BA20: =SUMIFS(Calculations!$I363:$QJ363, Calculations!$I$8:$QJ$8, BA$3, Calculations!$I$10:$QJ$10, BA$4) -> -26745.55134 | BB20: =SUMIFS(Calculations!$I363:$QJ363, Calculations!$I$8:$QJ$8, BB$3, Calculations!$I$10:$QJ$10, BB$4) -> -26307.4474 | BC20: =SUMIFS(Calculations!$I363:$QJ363, Calculations!$I$8:$QJ$8, BC$3, Calculations!$I$10:$QJ$10, BC$4) -> -25856.06847 | BD20: =SUMIFS(Calculations!$I363:$QJ363, Calculations!$I$8:$QJ$8, BD$3, Calculations!$I$10:$QJ$10, BD$4) -> -25391.01231 | BE20: =SUMIFS(Calculations!$I363:$QJ363, Calculations!$I$8:$QJ$8, BE$3, Calculations!$I$10:$QJ$10, BE$4) -> -24911.86448 | BF20: =SUMIFS(Calculations!$I363:$QJ363, Calculations!$I$8:$QJ$8, BF$3, Calculations!$I$10:$QJ$10, BF$4) -> -24418.198 | BG20: =SUMIFS(Calculations!$I363:$QJ363, Calculations!$I$8:$QJ$8, BG$3, Calculations!$I$10:$QJ$10, BG$4) -> -23909.57292 | BH20: =SUMIFS(Calculations!$I363:$QJ363, Calculations!$I$8:$QJ$8, BH$3, Calculations!$I$10:$QJ$10, BH$4) -> -23385.536 | BI20: =SUMIFS(Calculations!$I363:$QJ363, Calculations!$I$8:$QJ$8, BI$3, Calculations!$I$10:$QJ$10, BI$4) -> -22845.62023 | BJ20: =SUMIFS(Calculations!$I363:$QJ363, Calculations!$I$8:$QJ$8, BJ$3, Calculations!$I$10:$QJ$10, BJ$4) -> -22289.34448 | BK20: =SUMIFS(Calculations!$I363:$QJ363, Calculations!$I$8:$QJ$8, BK$3, Calculations!$I$10:$QJ$10, BK$4) -> -21716.21301 | BL20: =SUMIFS(Calculations!$I363:$QJ363, Calculations!$I$8:$QJ$8, BL$3, Calculations!$I$10:$QJ$10, BL$4) -> -21125.71509 | BM20: =SUMIFS(Calculations!$I363:$QJ363, Calculations!$I$8:$QJ$8, BM$3, Calculations!$I$10:$QJ$10, BM$4) -> -20517.32449 | BN20: =SUMIFS(Calculations!$I363:$QJ363, Calculations!$I$8:$QJ$8, BN$3, Calculations!$I$10:$QJ$10, BN$4) -> -19890.49905 | BO20: =SUMIFS(Calculations!$I363:$QJ363, Calculations!$I$8:$QJ$8, BO$3, Calculations!$I$10:$QJ$10, BO$4) -> -19244.68017 | BP20: =SUMIFS(Calculations!$I363:$QJ363, Calculations!$I$8:$QJ$8, BP$3, Calculations!$I$10:$QJ$10, BP$4) -> -18579.29233 | BQ20: =SUMIFS(Calculations!$I363:$QJ363, Calculations!$I$8:$QJ$8, BQ$3, Calculations!$I$10:$QJ$10, BQ$4) -> -17893.74258 | BR20: =SUMIFS(Calculations!$I363:$QJ363, Calculations!$I$8:$QJ$8, BR$3, Calculations!$I$10:$QJ$10, BR$4) -> -17187.41998 | BS20: =SUMIFS(Calculations!$I363:$QJ363, Calculations!$I$8:$QJ$8, BS$3, Calculations!$I$10:$QJ$10, BS$4) -> -16459.6951 | BT20: =SUMIFS(Calculations!$I363:$QJ363, Calculations!$I$8:$QJ$8, BT$3, Calculations!$I$10:$QJ$10, BT$4) -> -15709.91943 | BU20: =SUMIFS(Calculations!$I363:$QJ363, Calculations!$I$8:$QJ$8, BU$3, Calculations!$I$10:$QJ$10, BU$4) -> -14937.42481 | BV20: =SUMIFS(Calculations!$I363:$QJ363, Calculations!$I$8:$QJ$8, BV$3, Calculations!$I$10:$QJ$10, BV$4) -> -14141.52283 | BW20: =SUMIFS(Calculations!$I363:$QJ363, Calculations!$I$8:$QJ$8, BW$3, Calculations!$I$10:$QJ$10, BW$4) -> -13321.50422 | BX20: =SUMIFS(Calculations!$I363:$QJ363, Calculations!$I$8:$QJ$8, BX$3, Calculations!$I$10:$QJ$10, BX$4) -> -12476.63823 | BY20: =SUMIFS(Calculations!$I363:$QJ363, Calculations!$I$8:$QJ$8, BY$3, Calculations!$I$10:$QJ$10, BY$4) -> -11606.17195 | BZ20: =SUMIFS(Calculations!$I363:$QJ363, Calculations!$I$8:$QJ$8, BZ$3, Calculations!$I$10:$QJ$10, BZ$4) -> -10709.32967 | CA20: =SUMIFS(Calculations!$I363:$QJ363, Calculations!$I$8:$QJ$8, CA$3, Calculations!$I$10:$QJ$10, CA$4) -> -9785.312179 | CB20: =SUMIFS(Calculations!$I363:$QJ363, Calculations!$I$8:$QJ$8, CB$3, Calculations!$I$10:$QJ$10, CB$4) -> -8833.296032 | CC20: =SUMIFS(Calculations!$I363:$QJ363, Calculations!$I$8:$QJ$8, CC$3, Calculations!$I$10:$QJ$10, CC$4) -> -7852.432843 | CD20: =SUMIFS(Calculations!$I363:$QJ363, Calculations!$I$8:$QJ$8, CD$3, Calculations!$I$10:$QJ$10, CD$4) -> -6841.848518 | CE20: =SUMIFS(Calculations!$I363:$QJ363, Calculations!$I$8:$QJ$8, CE$3, Calculations!$I$10:$QJ$10, CE$4) -> -5800.642479 | CF20: =SUMIFS(Calculations!$I363:$QJ363, Calculations!$I$8:$QJ$8, CF$3, Calculations!$I$10:$QJ$10, CF$4) -> -4727.886854 | CG20: =SUMIFS(Calculations!$I363:$QJ363, Calculations!$I$8:$QJ$8, CG$3, Calculations!$I$10:$QJ$10, CG$4) -> -3622.625662 | CH20: =SUMIFS(Calculations!$I363:$QJ363, Calculations!$I$8:$QJ$8, CH$3, Calculations!$I$10:$QJ$10, CH$4) -> -2483.873951 | CI20: =SUMIFS(Calculations!$I363:$QJ363, Calculations!$I$8:$QJ$8, CI$3, Calculations!$I$10:$QJ$10, CI$4) -> -1310.616923 | CJ20: =SUMIFS(Calculations!$I363:$QJ363, Calculations!$I$8:$QJ$8, CJ$3, Calculations!$I$10:$QJ$10, CJ$4) -> -101.8090349 | CK20: =SUMIFS(Calculations!$I363:$QJ363, Calculations!$I$8:$QJ$8, CK$3, Calculations!$I$10:$QJ$10, CK$4) -> 1143.626941 | CL20: =SUMIFS(Calculations!$I363:$QJ363, Calculations!$I$8:$QJ$8, CL$3, Calculations!$I$10:$QJ$10, CL$4) -> 2426.800873 | CM20: =SUMIFS(Calculations!$I363:$QJ363, Calculations!$I$8:$QJ$8, CM$3, Calculations!$I$10:$QJ$10, CM$4) -> 3748.856258 | CN20: =SUMIFS(Calculations!$I363:$QJ363, Calculations!$I$8:$QJ$8, CN$3, Calculations!$I$10:$QJ$10, CN$4) -> 5110.971244 | CO20: =SUMIFS(Calculations!$I363:$QJ363, Calculations!$I$8:$QJ$8, CO$3, Calculations!$I$10:$QJ$10, CO$4) -> 6514.359675 | CP20: =SUMIFS(Calculations!$I363:$QJ363, Calculations!$I$8:$QJ$8, CP$3, Calculations!$I$10:$QJ$10, CP$4) -> 7960.27218 | CQ20: =SUMIFS(Calculations!$I363:$QJ363, Calculations!$I$8:$QJ$8, CQ$3, Calculations!$I$10:$QJ$10, CQ$4) -> 9449.997279 | CR20: =SUMIFS(Calculations!$I363:$QJ363, Calculations!$I$8:$QJ$8, CR$3, Calculations!$I$10:$QJ$10, CR$4) -> 10984.86254 | CS20: =SUMIFS(Calculations!$I363:$QJ363, Calculations!$I$8:$QJ$8, CS$3, Calculations!$I$10:$QJ$10, CS$4) -> 12566.23575 | CT20: =SUMIFS(Calculations!$I363:$QJ363, Calculations!$I$8:$QJ$8, CT$3, Calculations!$I$10:$QJ$10, CT$4) -> 14195.52615 | CU20: =SUMIFS(Calculations!$I363:$QJ363, Calculations!$I$8:$QJ$8, CU$3, Calculations!$I$10:$QJ$10, CU$4) -> 15874.18568 | CV20: =SUMIFS(Calculations!$I363:$QJ363, Calculations!$I$8:$QJ$8, CV$3, Calculations!$I$10:$QJ$10, CV$4) -> 17603.71027 | CW20: =SUMIFS(Calculations!$I363:$QJ363, Calculations!$I$8:$QJ$8, CW$3, Calculations!$I$10:$QJ$10, CW$4) -> 19385.64119 | CX20: =SUMIFS(Calculations!$I363:$QJ363, Calculations!$I$8:$QJ$8, CX$3, Calculations!$I$10:$QJ$10, CX$4) -> 21221.5664 | CY20: =SUMIFS(Calculations!$I363:$QJ363, Calculations!$I$8:$QJ$8, CY$3, Calculations!$I$10:$QJ$10, CY$4) -> 23113.12197 | CZ20: =SUMIFS(Calculations!$I363:$QJ363, Calculations!$I$8:$QJ$8, CZ$3, Calculations!$I$10:$QJ$10, CZ$4) -> 25061.99357 | DA20: =SUMIFS(Calculations!$I363:$QJ363, Calculations!$I$8:$QJ$8, DA$3, Calculations!$I$10:$QJ$10, DA$4) -> 27069.91793 | DB20: =SUMIFS(Calculations!$I363:$QJ363, Calculations!$I$8:$QJ$8, DB$3, Calculations!$I$10:$QJ$10, DB$4) -> 29138.68441 | DC20: =SUMIFS(Calculations!$I363:$QJ363, Calculations!$I$8:$QJ$8, DC$3, Calculations!$I$10:$QJ$10, DC$4) -> 10046.51238 | DD20: =SUMIFS(Calculations!$I363:$QJ363, Calculations!$I$8:$QJ$8, DD$3, Calculations!$I$10:$QJ$10, DD$4) -> 0 | DE20: =SUMIFS(Calculations!$I363:$QJ363, Calculations!$I$8:$QJ$8, DE$3, Calculations!$I$10:$QJ$10, DE$4) -> 0 | DF20: =SUMIFS(Calculations!$I363:$QJ363, Calculations!$I$8:$QJ$8, DF$3, Calculations!$I$10:$QJ$10, DF$4) -> 0 | DG20: =SUMIFS(Calculations!$I363:$QJ363, Calculations!$I$8:$QJ$8, DG$3, Calculations!$I$10:$QJ$10, DG$4) -> 0 | DH20: =SUMIFS(Calculations!$I363:$QJ363, Calculations!$I$8:$QJ$8, DH$3, Calculations!$I$10:$QJ$10, DH$4) -> 0 | DI20: =SUMIFS(Calculations!$I363:$QJ363, Calculations!$I$8:$QJ$8, DI$3, Calculations!$I$10:$QJ$10, DI$4) -> 0 | DJ20: =SUMIFS(Calculations!$I363:$QJ363, Calculations!$I$8:$QJ$8, DJ$3, Calculations!$I$10:$QJ$10, DJ$4) -> 0 | DK20: =SUMIFS(Calculations!$I363:$QJ363, Calculations!$I$8:$QJ$8, DK$3, Calculations!$I$10:$QJ$10, DK$4) -> 0 | EX20: =SUMIFS(Calculations!$I363:$QJ363, Calculations!$I$8:$QJ$8, EX$3, Calculations!$I$10:$QJ$10, EX$4) -> 0
